{"text_format":"1","workbook":"xlsx","n_sheets":3,"sheets":["Etab","Bilan d'activités du labo","Classeur"],"not_rendered":{"charts":0,"images":0,"macros":1,"external_links":0,"defined_names":106,"comments":0,"pivot_tables":0},"unopened":[],"bounds":{"document_bytes":16777216,"sheet_cells":100000,"rows_first":2000,"rows_last":500,"rows_between":2000,"halvings":0,"cell_chars":16384,"cell_head_chars":4096},"cells_cut":0,"cells_raw":0,"read":"whole","date_system":"1900"}

{"sheet":"Etab","index":0,"n_rows":1473,"n_cols":6,"rows_kept":1473,"cut":false,"hidden":true,"merged":[]}
["Etablissement de rattachement","Etablissement_de_rattachement","Intitulé du Laboratoire","عنوان المخبر",null,"Etablissement de rattachement"]
["CU. El Bayadh","Centre_Universitaire_d_El_Bayadh_Nour_Bachir","Instrumentation Et Matériaux Avancés","الأجهزة و المواد المتقدمة","Centre Universitaire d El Bayadh Nour Bachir","Centre Universitaire d El Bayadh Nour Bachir"]
["CU. El Bayadh","Centre_Universitaire_d_El_Bayadh_Nour_Bachir","Législations De Protection De La Fonction Publique","مخبر البحث في تشريعات حماية الوظيفة العامة","Centre Universitaire d Illizi Cheikh Amoud Ben Mokhtar","Centre Universitaire d El Bayadh Nour Bachir"]
["CU. Illizi","Centre_Universitaire_d_Illizi_Cheikh_Amoud_Ben_Mokhtar","Le Développement Des Économies Des Affaires Modernes Et L’Amélioration De Leurs Performances Dans La Région De Tassili","تنمية اقتصاديات الأعمال الحديثة و تحسين أدائها في منطقة الطاسيلي","Centre Universitaire de Aïn Témouchent Belhadj Bouchaib","Centre Universitaire d Illizi Cheikh Amoud Ben Mokhtar"]
["CU. Ain Témouchent","Centre_Universitaire_de_Aïn_Témouchent_Belhadj_Bouchaib","Chimie Appliquée","مخبر الكيمياء التطبيقية","Centre universitaire de Maghnia","Centre Universitaire de Aïn Témouchent Belhadj Bouchaib"]
["CU. Ain Témouchent","Centre_Universitaire_de_Aïn_Témouchent_Belhadj_Bouchaib","Discours Communicatif Algérien Moderne : Littéraire, Réligieux, Publicitaire, Informatif …Étude Et Analyse","الخطاب التواصلي الجزائري الحديث:الأدبي ، الديني ، الإعلامي ،الإشهاري – دراسة وتحليل","Centre Universitaire de Mila Abdelhafid Boussouf","Centre Universitaire de Aïn Témouchent Belhadj Bouchaib"]
["CU. Ain Témouchent","Centre_Universitaire_de_Aïn_Témouchent_Belhadj_Bouchaib","Hydrologie Appliquée Et Environnement","مخبر علم المياه التطبيقي و البيئة","Centre universitaire de Naâma Ahmed Salhi","Centre Universitaire de Aïn Témouchent Belhadj Bouchaib"]
["CU. Ain Témouchent","Centre_Universitaire_de_Aïn_Témouchent_Belhadj_Bouchaib","Marchés, Emploi, Législation Et Simulation Au Pays Maghrébins","الأسواق٬ التشغيل٬التشريع و المحاكاة في الدول المغاربية","Centre universitaire de Rélizane Ahmed Zabana","Centre Universitaire de Aïn Témouchent Belhadj Bouchaib"]
["CU. Ain Témouchent","Centre_Universitaire_de_Aïn_Témouchent_Belhadj_Bouchaib","Structures Intelligentes","مخبر الهياكل الذكية","Centre Universitaire de Tamanrasset Amine Elokkal El Hadj Moussa Eg Akhamouk","Centre Universitaire de Aïn Témouchent Belhadj Bouchaib"]
["CU. Maghnia","Centre_universitaire_de_Maghnia","Evaluation et Prospective des Politiques Economiques et Stratégies des Entreprises","مخبر تقييم و استشراف السياسات الاقتصادية\n و استيراتيجيات المؤسسات","Centre universitaire de Tindouf Ali Kafi","Centre universitaire de Maghnia"]
["CU. Mila","Centre_Universitaire_de_Mila_Abdelhafid_Boussouf","Études Des Stratégies De La Diversification Économique Pour Réaliser Le Développement Durable","دراسات استراتيجيات التنويع الاقتصادي لتحقيق التنمية المستدامة","Centre Universitaire de Tipaza Abdallah Morsli","Centre Universitaire de Mila Abdelhafid Boussouf"]
["CU. Mila","Centre_Universitaire_de_Mila_Abdelhafid_Boussouf","Mathématiques Et Leurs Interactions","الرياضيات و تفاعلاتها","Centre Universitaire de Tissemsilt Ahmed ben yahia elwancharissi","Centre Universitaire de Mila Abdelhafid Boussouf"]
["CU. Mila","Centre_Universitaire_de_Mila_Abdelhafid_Boussouf","Sciences Naturelles Et Matériaux","مخبر العلوم الطبيعية والمواد","Ecole des Hautes Éudes Commerciales Boualem Oussedik","Centre Universitaire de Mila Abdelhafid Boussouf"]
["CU. Naâma","Centre_universitaire_de_Naâma_Ahmed_Salhi","Crimes Transfrontaliers","الجرائم العابرة للحدود","Ecole Nationale Polytechnique d Alger","Centre universitaire de Naâma Ahmed Salhi"]
["CU. Naâma","Centre_universitaire_de_Naâma_Ahmed_Salhi","Gestion Durable Des Ressources Naturelles Des Zones Arides Et Semi-Arides","التسيير المستدام للموارد الطبيعية في المناطق الجافة وشبه الجافة","Ecole Nationale Polytechnique d Oran Maurice Audin","Centre universitaire de Naâma Ahmed Salhi"]
["CU. Naâma","Centre_universitaire_de_Naâma_Ahmed_Salhi","Le Patrimoine Culturel Dans Le Sud Ouest Algérien À La Lumière De La Critique Contemporaine. (Wilayas De Naama Et El Bayedh )","التراث الثقافي بالجنوب الغربي الجزائري على ضوء النقد المعاصر (ولايتي النعامة و البيض)","Ecole Nationale Polytechnique de Constantine Malek Bennabi","Centre universitaire de Naâma Ahmed Salhi"]
["CU. Naâma","Centre_universitaire_de_Naâma_Ahmed_Salhi","L'Étude Du Vocabulaire Arabe Classique Des Dialectes De L'Ouest Algérien","دراسة للمفردات العربية الفصحي المتداولة في لهجات الغرب الجزائري","Ecole Nationale Supérieure Agronomique Khalef Abdellah alias Kasdi Merbah","Centre universitaire de Naâma Ahmed Salhi"]
["CU. Rélizane","Centre_universitaire_de_Rélizane_Ahmed_Zabana","Environnement, Substances Naturelles Végétales Et Technologie Des Aliments","البيئة المركبات النباتية الطبيعية النباتية وتكنولوجيا التغدية","Ecole Nationale Supérieure d Hydraulique Arbaoui Abdellah","Centre universitaire de Rélizane Ahmed Zabana"]
["CU. Rélizane","Centre_universitaire_de_Rélizane_Ahmed_Zabana","Etudes Sociales, Psychologiques Et Anthropologiques","مخبر الدراسات الإجتماعية والنفسیة والأنثروبولوجیة","Ecole Nationale Supérieure de Biotechnologie de Constantine","Centre universitaire de Rélizane Ahmed Zabana"]
["CU. Rélizane","Centre_universitaire_de_Rélizane_Ahmed_Zabana","Génie Industriel Et Développement Durable","مخبر الهندسة الصناعية و التنمية المستدامة","Ecole Nationale Supérieure de Journalisme et des Sciences de l Information","Centre universitaire de Rélizane Ahmed Zabana"]
["CU. Rélizane","Centre_universitaire_de_Rélizane_Ahmed_Zabana","Gestion Des Marchés Financiers Par L’Application Des Mathématiques Et L’Informatique","إدارة الأسواق المالية باستخدام الأساليب الرياضية و الإعلام الآلي","Ecole Nationale Supérieure de Management","Centre universitaire de Rélizane Ahmed Zabana"]
["CU. Rélizane","Centre_universitaire_de_Rélizane_Ahmed_Zabana","Langue Et Communication","مخبر اللغة والتوصل","Ecole Nationale Supérieure de Sciences Politiques","Centre universitaire de Rélizane Ahmed Zabana"]
["CU. Rélizane","Centre_universitaire_de_Rélizane_Ahmed_Zabana","Législations Internationales Des Mers Et Ses Effets Sur Le Système Juridique Maritime En Algérie","التشريعات الدولية للبحار و أثرها على المنظومة القانونية البحرية في الجزائر","Ecole Nationale Supérieure de Technologie","Centre universitaire de Rélizane Ahmed Zabana"]
["CU. Tamanrasset","Centre_Universitaire_de_Tamanrasset_Amine_Elokkal_El_Hadj_Moussa_Eg_Akhamouk","Energies et de Matériaux","مخبر الطاقات و المواد","Ecole Nationale Supérieure des Mines et de la Métallurgie Amar Laskri","Centre Universitaire de Tamanrasset Amine Elokkal El Hadj Moussa Eg Akhamouk"]
["CU. Tamanrasset","Centre_Universitaire_de_Tamanrasset_Amine_Elokkal_El_Hadj_Moussa_Eg_Akhamouk","Héritage Scientifique Et Culturel De La Région De Tamanrasset","مخبر دراسات الموروث العلمي والثقافي لمنطقة تمنراست","Ecole Nationale Supérieure des Sciences de la Mer et de l Aménagement du Littoral","Centre Universitaire de Tamanrasset Amine Elokkal El Hadj Moussa Eg Akhamouk"]
["CU. Tamanrasset","Centre_Universitaire_de_Tamanrasset_Amine_Elokkal_El_Hadj_Moussa_Eg_Akhamouk","Sciences Et Environnement : Bioressources, Géochimie- Physique, Législation Et Développement Socio-Économique","العلوم و البيئة :الموارد البيولوجية - الجيوكيمياء -فيزياء التشريع و التطوير الإجتماعي","Ecole Nationale Supérieure des Travaux Publics Francis Jeanson","Centre Universitaire de Tamanrasset Amine Elokkal El Hadj Moussa Eg Akhamouk"]
["CU. Tindouf","Centre_universitaire_de_Tindouf_Ali_Kafi","Développement Local Durable Et L’Entreprenariat - Mobilisation & Prospérité : Tindouf","التنمية المحلية المستدامة والمقاولاتية: تعبئة و ازدھار تندوف","Ecole Nationale Supérieure en Informatique","Centre universitaire de Tindouf Ali Kafi"]
["CU. Tipaza","Centre_Universitaire_de_Tipaza_Abdallah_Morsli","Des Pratiques Culturelles, Enseignantes Et D'Apprentissage En Algérie","الممارسات الثقافية و التعليمية في الجزائر","Ecole Nationale Supérieure en Statistique et en Economie Appliquée","Centre Universitaire de Tipaza Abdallah Morsli"]
["CU. Tipaza","Centre_Universitaire_de_Tipaza_Abdallah_Morsli","Economie Et Développement","الاقتصـــــــاد والتنميــــــــــــة","Ecole Nationale Supérieure Maritime","Centre Universitaire de Tipaza Abdallah Morsli"]
["CU. Tipaza","Centre_Universitaire_de_Tipaza_Abdallah_Morsli","Etudes En Cultures, Personnalité Et Développement","الدراسات في الثقافة والشخصية والتنمية","Ecole Nationale Supérieure Vétérinaire Rabie Bouchama","Centre Universitaire de Tipaza Abdallah Morsli"]
["CU. Tipaza","Centre_Universitaire_de_Tipaza_Abdallah_Morsli","Études En Finance Islamique Et Le Développement Durable","الدراسات في المالية الإسلامية والتنمية المستدامة","Ecole Normale Supérieure de Bouzaréah Cheikh Mubarak Ben Mohamed Brahimi El Mili","Centre Universitaire de Tipaza Abdallah Morsli"]
["CU. Tipaza","Centre_Universitaire_de_Tipaza_Abdallah_Morsli","Géographie Économique Et Les Échanges Internationaux","الجغرافيا الاقتصادية والتبادل الدولي","Ecole Normale Supérieure de Constantine Assia Djebar","Centre Universitaire de Tipaza Abdallah Morsli"]
["CU. Tipaza","Centre_Universitaire_de_Tipaza_Abdallah_Morsli","Institutions Constitutionnelles Et Le Système Politique","المؤسسات الدستورية و النظم السياسية","Ecole Normale Supérieure de Kouba Mohamed Bachir El Ibrahimi","Centre Universitaire de Tipaza Abdallah Morsli"]
["CU. Tissemsilt","Centre_Universitaire_de_Tissemsilt_Ahmed_ben_yahia_elwancharissi","Agronomie Environnement","مخبر البحث في الزراعة و البيئة","Ecole Normale Supérieure de Laghouat Taleb Abderrahmane","Centre Universitaire de Tissemsilt Ahmed ben yahia elwancharissi"]
["CU. Tissemsilt","Centre_Universitaire_de_Tissemsilt_Ahmed_ben_yahia_elwancharissi","Économie Moderne Du Le Développement Durable","الاقتصاد الحديث والتنمية المستدامة","Ecole Polytechnique d Architecture et d Urbanisme Hocine Aït Ahmed","Centre Universitaire de Tissemsilt Ahmed ben yahia elwancharissi"]
["CU. Tissemsilt","Centre_Universitaire_de_Tissemsilt_Ahmed_ben_yahia_elwancharissi","Etudes Critiques Et Littéraires Modernes","الدراسات النقدية و الأدبية المعاصرة","Ecole Préparatoire en Sciences Economiques Commerciales et Sciences de Gestion d Alger","Centre Universitaire de Tissemsilt Ahmed ben yahia elwancharissi"]
["CU. Tissemsilt","Centre_Universitaire_de_Tissemsilt_Ahmed_ben_yahia_elwancharissi","Mesure Et Évaluation Des Activités Sportives","مخبر القياس و التقويم في النشاطات الرياضية","Ecole Supérieure Agronomique de Mostaganem","Centre Universitaire de Tissemsilt Ahmed ben yahia elwancharissi"]
["CU. Tissemsilt","Centre_Universitaire_de_Tissemsilt_Ahmed_ben_yahia_elwancharissi","Recherche Dans Le Développement De Législations Économique","مخبر البحث في تطوير التشريعات الاقتصادية","Ecole Supérieure d Informatique 08 Mai 1945","Centre Universitaire de Tissemsilt Ahmed ben yahia elwancharissi"]
["EHEC Alger Ex-INC","Ecole_des_Hautes_Éudes_Commerciales_Boualem_Oussedik","Management, Performance Et Innovation","الإدارة والأداء والابتكار","Ecole Supérieure de Commerce Mouloud Kacem Naït Belkacem","Ecole des Hautes Éudes Commerciales Boualem Oussedik"]
["EHEC Alger Ex-INC","Ecole_des_Hautes_Éudes_Commerciales_Boualem_Oussedik","Marketing Et Technologies De L'Information Et De La Communication","مختبر التسويق وتقنية المعلومات والاتصالات","Ecole Supérieure de Management de Tlemcen","Ecole des Hautes Éudes Commerciales Boualem Oussedik"]
["ENP Alger","Ecole_Nationale_Polytechnique_d_Alger","Bioengineering Et Génie Des Procédés","الهندسة الحيوية و هندسة الطرائق","Ecole Supérieure en Génie Electrique et Energétique d Oran","Ecole Nationale Polytechnique d Alger"]
["ENP Alger","Ecole_Nationale_Polytechnique_d_Alger","Commande Des Processus","التحكم في العماليات التصنيعية","École Supérieure en Sciences et Technologie du Sport","Ecole Nationale Polytechnique d Alger"]
["ENP Alger","Ecole_Nationale_Polytechnique_d_Alger","Dispositifs De Communication Et De Conversion Photovoltaïque","مخبر أجهزة الاتصالات والتحويل التوتر الفوتوني","Institut National de la Poste et des TIC","Ecole Nationale Polytechnique d Alger"]
["ENP Alger","Ecole_Nationale_Polytechnique_d_Alger","Electrotechnique","الإليكتروتقنية","Institut National des Télécommunications et des Technologies de l Information et de la Communication Oran","Ecole Nationale Polytechnique d Alger"]
["ENP Alger","Ecole_Nationale_Polytechnique_d_Alger","Génie Mécanique Et Développement","مخبر الهندسة الميكانيكية و التطوير","Institut Pasteur","Ecole Nationale Polytechnique d Alger"]
["ENP Alger","Ecole_Nationale_Polytechnique_d_Alger","Génie Minier","هندسة المناجم","Université 8 Mai 1945 de Guelma","Ecole Nationale Polytechnique d Alger"]
["ENP Alger","Ecole_Nationale_Polytechnique_d_Alger","Génie Sismique Et Dynamique Des Structures","مخبر هندسة الزلازل و دينامكية الهياكل","Université d Adrar Ahmed Draya","Ecole Nationale Polytechnique d Alger"]
["ENP Alger","Ecole_Nationale_Polytechnique_d_Alger","Ingénierie Et Environnement","مخبر البحث في مواد الهندسة المدنية و البيئة","Université d Alger 1 Benyoucef Benkhedda","Ecole Nationale Polytechnique d Alger"]
["ENP Alger","Ecole_Nationale_Polytechnique_d_Alger","Sciences De L'Eau","علوم الماء","Université d Alger 2 Abou Elkacem Saad Allah","Ecole Nationale Polytechnique d Alger"]
["ENP Alger","Ecole_Nationale_Polytechnique_d_Alger","Sciences Et Génie Des Matériaux","مخبر علوم و هندسة المواد","Université d Alger 3 Brahim Soltane Chaibout","Ecole Nationale Polytechnique d Alger"]
["ENP Alger","Ecole_Nationale_Polytechnique_d_Alger","Sciences Et Techniques De L'Environnement","علوم و تقنيات البيئة","Université d Annaba Badji Mokhtar","Ecole Nationale Polytechnique d Alger"]
["ENP Alger","Ecole_Nationale_Polytechnique_d_Alger","Signal Et Communications","الإشارة و الإتصالات","Université d El Oued Hamma Lakhdar","Ecole Nationale Polytechnique d Alger"]
["ENP Alger","Ecole_Nationale_Polytechnique_d_Alger","Valorisation Des Énergies Fossiles","تثنين طاقة الفضلات","Université d El Tarf Chadli Bendjedid","Ecole Nationale Polytechnique d Alger"]
["ENP Oran Ex-Enset","Ecole_Nationale_Polytechnique_d_Oran_Maurice_Audin","Automatique Et Analyse Des Systèmes","مخبر الأتوماتيك وتحليل الأنظمة","Université d Oran 1 Ahmed Ben Bella","Ecole Nationale Polytechnique d Oran Maurice Audin"]
["ENP Oran Ex-Enset","Ecole_Nationale_Polytechnique_d_Oran_Maurice_Audin","Biomécanique Appliquée Et Biomatériaux","مخبر البيوميكانيك التطبيقية و البيومواد","Université d Oran 2 Mohamed Ben Ahmed","Ecole Nationale Polytechnique d Oran Maurice Audin"]
["ENP Oran Ex-Enset","Ecole_Nationale_Polytechnique_d_Oran_Maurice_Audin","Caractérisation Et Simulation Des Composants Et Circuits Électroniques","مخبر الخاصيات و التظاهر للمركبات و الدارات الإليكترونية","Université de Batna 1 El Hadj Lakhdar","Ecole Nationale Polytechnique d Oran Maurice Audin"]
["ENP Oran Ex-Enset","Ecole_Nationale_Polytechnique_d_Oran_Maurice_Audin","Innovation Des Systèmes Et Produits Industriels","الإبداع في الأنظمة والمنتجات الصناعية","Université de Batna 2 Mustapha Ben Boulaid","Ecole Nationale Polytechnique d Oran Maurice Audin"]
["ENP Oran Ex-Enset","Ecole_Nationale_Polytechnique_d_Oran_Maurice_Audin","Matériaux","مخبر البحث في المواد","Université de Béchar Mohamed Tahri","Ecole Nationale Polytechnique d Oran Maurice Audin"]
["ENP Oran Ex-Enset","Ecole_Nationale_Polytechnique_d_Oran_Maurice_Audin","Micro Et De Nanophysique","مخبر الميكرو والنانوفيزياء","Université de Béjaia Abderrahmane Mira","Ecole Nationale Polytechnique d Oran Maurice Audin"]
["ENP Oran Ex-Enset","Ecole_Nationale_Polytechnique_d_Oran_Maurice_Audin","Simulation, Commande, Analyse Et Maintenance Des Réseaux Électriques","محاكاة تحكم تحليل و صيانة الشبكات الكهربائية","Université de Biskra Mohamed Khider","Ecole Nationale Polytechnique d Oran Maurice Audin"]
["ENP Oran Ex-Enset","Ecole_Nationale_Polytechnique_d_Oran_Maurice_Audin","Technologie De L'Environnement","تكنولوجيا البيئة","Université de Blida 1 Saâd Dahlab","Ecole Nationale Polytechnique d Oran Maurice Audin"]
["ENP Oran Ex-Enset","Ecole_Nationale_Polytechnique_d_Oran_Maurice_Audin","Technologie En Fabrication Mécanique","البحث التكنولوجي في التصنيع الميكانيكي","Université de Blida 2 Lounici Ali","Ecole Nationale Polytechnique d Oran Maurice Audin"]
["ENP Constantine","Ecole_Nationale_Polytechnique_de_Constantine_Malek_Bennabi","Génie des Procédés pour le Développement Durable et des Produits de Santé","هندسة الطرائق للتنمية المستدامة و المنتجات الصحية","Université de Bordj Bou Arréridj Mohamed Bachir El Ibrahimi","Ecole Nationale Polytechnique de Constantine Malek Bennabi"]
["ENP Constantine","Ecole_Nationale_Polytechnique_de_Constantine_Malek_Bennabi","Génie électrique Polytech Constantine","مخبر الهندسة الكهربائية المتعددة التقنيات قسنطينة","Université de Bouira Akli Mohand Oulhadj","Ecole Nationale Polytechnique de Constantine Malek Bennabi"]
["ENP Constantine","Ecole_Nationale_Polytechnique_de_Constantine_Malek_Bennabi","Mécanique et Matériaux Avancés","مخبر الميكانيك و المواد المتقدمة","Université de Boumerdès M hamed Bougara","Ecole Nationale Polytechnique de Constantine Malek Bennabi"]
["ENS-Agro. Ex-INA","Ecole_Nationale_Supérieure_Agronomique_Khalef_Abdellah_alias_Kasdi_Merbah","Amélioration Intégrative Des Productions Végétales","تحسين التكاملي للإنتاج النباتي","Université de Chlef Hassiba Benbouali","Ecole Nationale Supérieure Agronomique Khalef Abdellah alias Kasdi Merbah"]
["ENS-Agro. Ex-INA","Ecole_Nationale_Supérieure_Agronomique_Khalef_Abdellah_alias_Kasdi_Merbah","Conservation, Gestion Et Amélioration Des Ecosystèmes Forestiers","مخبر بحث وطني حول صون تسيير و تحسين الوسط الغابي","Université de Constantine 1 Frères Mentouri","Ecole Nationale Supérieure Agronomique Khalef Abdellah alias Kasdi Merbah"]
["ENS-Agro. Ex-INA","Ecole_Nationale_Supérieure_Agronomique_Khalef_Abdellah_alias_Kasdi_Merbah","Economie Agricole, Agroalimentaire Et Rurale Et De L'Environnement","مخبر الإقتصاد الفلاحي والزراعي الغذائي والريفي والبيئي","Université de Constantine 2 Abdelhamid Mehri","Ecole Nationale Supérieure Agronomique Khalef Abdellah alias Kasdi Merbah"]
["ENS-Agro. Ex-INA","Ecole_Nationale_Supérieure_Agronomique_Khalef_Abdellah_alias_Kasdi_Merbah","Maîtrise De L'Eau En Agriculture","التحكم المياه في الميدات الفلاحي","Université de Constantine 3 Salah Boubnider","Ecole Nationale Supérieure Agronomique Khalef Abdellah alias Kasdi Merbah"]
["ENS-Agro. Ex-INA","Ecole_Nationale_Supérieure_Agronomique_Khalef_Abdellah_alias_Kasdi_Merbah","Phytopathologie Et Biologie Moléculaire","علم الأمراض النباتي و علم الأحياء الجزئي","Université de Djelfa Ziane Achour","Ecole Nationale Supérieure Agronomique Khalef Abdellah alias Kasdi Merbah"]
["ENS-Agro. Ex-INA","Ecole_Nationale_Supérieure_Agronomique_Khalef_Abdellah_alias_Kasdi_Merbah","Production Animale","الإنتاج الحيواني","Université de Ghardaïa","Ecole Nationale Supérieure Agronomique Khalef Abdellah alias Kasdi Merbah"]
["ENS-Agro. Ex-INA","Ecole_Nationale_Supérieure_Agronomique_Khalef_Abdellah_alias_Kasdi_Merbah","Production Végétale","الإنتاج النباتي","Université de Jijel Mohammed Seddik Ben Yahia","Ecole Nationale Supérieure Agronomique Khalef Abdellah alias Kasdi Merbah"]
["ENS-Agro. Ex-INA","Ecole_Nationale_Supérieure_Agronomique_Khalef_Abdellah_alias_Kasdi_Merbah","Protection Des Végétaux En Milieux Agricoles Et Naturels","حماية النباتات في البيئة وفي الوسط الزراعي","Université de Khemis Miliana Djilali Bounaama","Ecole Nationale Supérieure Agronomique Khalef Abdellah alias Kasdi Merbah"]
["ENS-Agro. Ex-INA","Ecole_Nationale_Supérieure_Agronomique_Khalef_Abdellah_alias_Kasdi_Merbah","Ressources Génétiques Et Biotechnologies","مخبر الموارد الوراثية و التقانة الحيوية","Université de Khenchela Abbas Laghrour","Ecole Nationale Supérieure Agronomique Khalef Abdellah alias Kasdi Merbah"]
["ENS-Agro. Ex-INA","Ecole_Nationale_Supérieure_Agronomique_Khalef_Abdellah_alias_Kasdi_Merbah","Technologie Alimentaire Et Nutrition Humaine","التكنولوجيا الغدائية و التغدية الإنسانية","Université de la Formation Continue","Ecole Nationale Supérieure Agronomique Khalef Abdellah alias Kasdi Merbah"]
["ENS-H Blida","Ecole_Nationale_Supérieure_d_Hydraulique_Arbaoui_Abdellah","Génie De L'Eau Et De L'Environnement","هندسة الماء والمحيط","Université de Laghouat Amar Telidji","Ecole Nationale Supérieure d Hydraulique Arbaoui Abdellah"]
["ENS-H Blida","Ecole_Nationale_Supérieure_d_Hydraulique_Arbaoui_Abdellah","Mobilisation Et Evaluation Des Ressources En Eau","تعبئة وتقييم الموارد المائية","Université de M sila  Mohamed Boudiaf","Ecole Nationale Supérieure d Hydraulique Arbaoui Abdellah"]
["ENSB Constantine","Ecole_Nationale_Supérieure_de_Biotechnologie_de_Constantine","Bioengineering","الهندسة الحيوية","Université de Mascara Mustapha Stambouli","Ecole Nationale Supérieure de Biotechnologie de Constantine"]
["ENSB Constantine","Ecole_Nationale_Supérieure_de_Biotechnologie_de_Constantine","Biotechnologies","البيوتكنولوجيات","Université de Médéa Yahia Farès","Ecole Nationale Supérieure de Biotechnologie de Constantine"]
["ENS-JSI","Ecole_Nationale_Supérieure_de_Journalisme_et_des_Sciences_de_l_Information","Médias Usages Sociaux Et Communication","وسائل الإعلام،الاستخدامات و الاتصال","Université de Mostaganem Abdelhamid Ibn Badis","Ecole Nationale Supérieure de Journalisme et des Sciences de l Information"]
["ENSM Alger","Ecole_Nationale_Supérieure_de_Management","Innovation Managériale, Gouvernance Et Entrepreneuriat","الإبداع التسييري و الحوكمة و المقاولاتية","Université de Ouargla Kasdi Merbah","Ecole Nationale Supérieure de Management"]
["ENSSP Alger","Ecole_Nationale_Supérieure_de_Sciences_Politiques","Analyse Des Politiques Moyen - Orientales","تحليل السياسات الشرق أوسطية","Université de Oum El Bouaghi Larbi Ben M hidi","Ecole Nationale Supérieure de Sciences Politiques"]
["ENSSP Alger","Ecole_Nationale_Supérieure_de_Sciences_Politiques","Études Et De Recherches Politiques En Afrique","الدراسات و الأبحاث السياسية في افريقيا","Université de Saida Tahar Moulay","Ecole Nationale Supérieure de Sciences Politiques"]
["ENSSP Alger","Ecole_Nationale_Supérieure_de_Sciences_Politiques","Politiques Publiques Et Les Défis De Développement Et Les Défis Sécuritaire Au Maghreb","السياسات العامة و التحديات التنموية و الأمنية في المغرب العربي","Université de Sétif 1 Ferhat Abbes","Ecole Nationale Supérieure de Sciences Politiques"]
["ENST Alger","Ecole_Nationale_Supérieure_de_Technologie","Technologies Innovantes","التكنولوجيات المبتكرة","Université de Sétif 2 Mohamed Lamine Debaghine","Ecole Nationale Supérieure de Technologie"]
["ENS-Mine & Métallurgie","Ecole_Nationale_Supérieure_des_Mines_et_de_la_Métallurgie_Amar_Laskri","Mines, Métallurgie Et Matériaux","مناجم ٬معادن ومواد","Université de Sidi Bel Abbès Djilali Liabès","Ecole Nationale Supérieure des Mines et de la Métallurgie Amar Laskri"]
["ENS-SMAL","Ecole_Nationale_Supérieure_des_Sciences_de_la_Mer_et_de_l_Aménagement_du_Littoral","Conservation Et Valorisation Des Ressources Marines","حتفاظ وتقييم الموارد البحرية","Université de Souk Ahras Mohammed Chérif Messaadia","Ecole Nationale Supérieure des Sciences de la Mer et de l Aménagement du Littoral"]
["ENS-SMAL","Ecole_Nationale_Supérieure_des_Sciences_de_la_Mer_et_de_l_Aménagement_du_Littoral","Ecosystèmes Marins Et Littoraux","مخبر الأنظمة البحرية و الساحلية","Université de Tébessa Larbi Tébessi","Ecole Nationale Supérieure des Sciences de la Mer et de l Aménagement du Littoral"]
["ENS-TP Ex-ENTP","Ecole_Nationale_Supérieure_des_Travaux_Publics_Francis_Jeanson","Travaux Publics, Ingénierie Du Transport Et Environnement","الأشغال العمومية ٬هندسة النقل و البيئة","Université de Tiaret Ibn Khaldoun","Ecole Nationale Supérieure des Travaux Publics Francis Jeanson"]
["ESI Ex-INI","Ecole_Nationale_Supérieure_en_Informatique","Communication Dans Les Systèmes Informatiques","الإتصال في أنظمة الإعلام الالي","Université de Tizi Ouzou Mouloud Maameri","Ecole Nationale Supérieure en Informatique"]
["ESI Ex-INI","Ecole_Nationale_Supérieure_en_Informatique","Méthodes De Conception De Systèmes","مناهج تصميم الأنزمة","Université de Tlemcen Abou bekr Belkaid","Ecole Nationale Supérieure en Informatique"]
["ENS-SEA Ex-INPS","Ecole_Nationale_Supérieure_en_Statistique_et_en_Economie_Appliquée","Economie Quantitative Appliquée Au Développement","مخبر الإقتصاد الكمي المطبق على التنمية","Université des Sciences et de la Technologie d Oran Mohamed Boudiaf","Ecole Nationale Supérieure en Statistique et en Economie Appliquée"]
["ENS-SEA Ex-INPS","Ecole_Nationale_Supérieure_en_Statistique_et_en_Economie_Appliquée","Gouvernance, Économie Institutionnelle Et Croissance Durable","الحوكمة، الاقتصاد المؤسسي والنمو المستدام","Université des Sciences et de la Technologie Houari Boumediène","Ecole Nationale Supérieure en Statistique et en Economie Appliquée"]
["ENS-SEA Ex-INPS","Ecole_Nationale_Supérieure_en_Statistique_et_en_Economie_Appliquée","Intégration Régionale Et Union Européenne","الإندماج الجهوي و الاتحاد الأوروبي","Université des Sciences Islamiques Emir Abdelkader de Constantine","Ecole Nationale Supérieure en Statistique et en Economie Appliquée"]
["ENS-SEA Ex-INPS","Ecole_Nationale_Supérieure_en_Statistique_et_en_Economie_Appliquée","Modélisation De Phénomènes Stochastiques","مخبر نمذجة الظواهر العشوائية","Université du 20 Août 1955 de Skikda","Ecole Nationale Supérieure en Statistique et en Economie Appliquée"]
["ENS-SEA Ex-INPS","Ecole_Nationale_Supérieure_en_Statistique_et_en_Economie_Appliquée","Statistique Appliquée","الإحصاء التطبيقي",null,"Ecole Nationale Supérieure en Statistique et en Economie Appliquée"]
["IS Maritime Bousmail (Hors MESRS)","Ecole_Nationale_Supérieure_Maritime","Sécurité Dans Le Transport Maritime","مخبر بحث في سلامة النقل البحري",null,"Ecole Nationale Supérieure Maritime"]
["ENS-V Ex-Env","Ecole_Nationale_Supérieure_Vétérinaire_Rabie_Bouchama","Gestion Des Ressources Animales Locales","تسيير الموارد الحيوانية المحلية",null,"Ecole Nationale Supérieure Vétérinaire Rabie Bouchama"]
["ENS-V Ex-Env","Ecole_Nationale_Supérieure_Vétérinaire_Rabie_Bouchama","Hygiène Alimentaire Et Système Assurance Qualité","الصحة الغذائية ونظام ضمان الجودة",null,"Ecole Nationale Supérieure Vétérinaire Rabie Bouchama"]
["ENS-V Ex-Env","Ecole_Nationale_Supérieure_Vétérinaire_Rabie_Bouchama","Santé Et Production Animale","مخبر البحث \" الصحة والإنتاج الحيواني\"",null,"Ecole Nationale Supérieure Vétérinaire Rabie Bouchama"]
["Ens Bouzaréah","Ecole_Normale_Supérieure_de_Bouzaréah_Cheikh_Mubarak_Ben_Mohamed_Brahimi_El_Mili","Des Études Historiques Contemporaines","الدراسات التاريخية المعاصرة",null,"Ecole Normale Supérieure de Bouzaréah Cheikh Mubarak Ben Mohamed Brahimi El Mili"]
["Ens Bouzaréah","Ecole_Normale_Supérieure_de_Bouzaréah_Cheikh_Mubarak_Ben_Mohamed_Brahimi_El_Mili","Education Et Épistémologie","التربية والإبستيمولوجيا",null,"Ecole Normale Supérieure de Bouzaréah Cheikh Mubarak Ben Mohamed Brahimi El Mili"]
["Ens Bouzaréah","Ecole_Normale_Supérieure_de_Bouzaréah_Cheikh_Mubarak_Ben_Mohamed_Brahimi_El_Mili","Enseignement, Formation Et Didactique","مخبر التعليم ، التكوين والتعليمية",null,"Ecole Normale Supérieure de Bouzaréah Cheikh Mubarak Ben Mohamed Brahimi El Mili"]
["Ens Bouzaréah","Ecole_Normale_Supérieure_de_Bouzaréah_Cheikh_Mubarak_Ben_Mohamed_Brahimi_El_Mili","Histoire, Civilisation Et Géographie Appliquées","مخبر التاريخ و الحضارة و الجغرافيا التطبيقية",null,"Ecole Normale Supérieure de Bouzaréah Cheikh Mubarak Ben Mohamed Brahimi El Mili"]
["Ens Bouzaréah","Ecole_Normale_Supérieure_de_Bouzaréah_Cheikh_Mubarak_Ben_Mohamed_Brahimi_El_Mili","Linguistique Et Sociodidactique Du Plurilinguisme","اللسانيات وعلم الإجتماع التعليمي والتعدد اللغوي",null,"Ecole Normale Supérieure de Bouzaréah Cheikh Mubarak Ben Mohamed Brahimi El Mili"]
["Ens Bouzaréah","Ecole_Normale_Supérieure_de_Bouzaréah_Cheikh_Mubarak_Ben_Mohamed_Brahimi_El_Mili","Science D’Apprentissage De La Langue Arabe","مخبرعلم تعليم اللغة العربية",null,"Ecole Normale Supérieure de Bouzaréah Cheikh Mubarak Ben Mohamed Brahimi El Mili"]
["Ens Constantine","Ecole_Normale_Supérieure_de_Constantine_Assia_Djebar","Didactique Du Français","تعلمية اللغة الفرنسية",null,"Ecole Normale Supérieure de Constantine Assia Djebar"]
["Ens Constantine","Ecole_Normale_Supérieure_de_Constantine_Assia_Djebar","Études Didactiques Linguistiques Et Littéraires En Algérie","الدراسات التعليمية واللسانية والأدبية في الجزائر",null,"Ecole Normale Supérieure de Constantine Assia Djebar"]
["Ens Constantine","Ecole_Normale_Supérieure_de_Constantine_Assia_Djebar","Formation Des Sociétés Et Dynamique Des Territoires","مخبر البحث حول تكوين المجتمعات وديناميكية الأقاليم",null,"Ecole Normale Supérieure de Constantine Assia Djebar"]
["Ens Constantine","Ecole_Normale_Supérieure_de_Constantine_Assia_Djebar","Mathématiques Appliquées Et Didactique","الرياضيات التطبيقية و المعلوماتية",null,"Ecole Normale Supérieure de Constantine Assia Djebar"]
["Ens Kouba","Ecole_Normale_Supérieure_de_Kouba_Mohamed_Bachir_El_Ibrahimi","Biologie Des Systèmes Microbiens","مخبر بيولوجيا الأنظمة الميكروبية",null,"Ecole Normale Supérieure de Kouba Mohamed Bachir El Ibrahimi"]
["Ens Kouba","Ecole_Normale_Supérieure_de_Kouba_Mohamed_Bachir_El_Ibrahimi","Biologie Et Physiologie Animale","مخبر بيولوجيا و فيزيولوجيا الحيوان",null,"Ecole Normale Supérieure de Kouba Mohamed Bachir El Ibrahimi"]
["Ens Kouba","Ecole_Normale_Supérieure_de_Kouba_Mohamed_Bachir_El_Ibrahimi","Didactique Des Sciences (Biologie, Chimie, Mathématiques Et Physique)","مخبر بحث في تعليمية العلوم ( بيولوجيا كيمياء رياضيات فيزياء )",null,"Ecole Normale Supérieure de Kouba Mohamed Bachir El Ibrahimi"]
["Ens Kouba","Ecole_Normale_Supérieure_de_Kouba_Mohamed_Bachir_El_Ibrahimi","Ecobiologie Animale","مخبر البيولوجيا البيئية الحيوانية",null,"Ecole Normale Supérieure de Kouba Mohamed Bachir El Ibrahimi"]
["Ens Kouba","Ecole_Normale_Supérieure_de_Kouba_Mohamed_Bachir_El_Ibrahimi","Epistémologie Et Histoire Des Mathématiques","مخبر الإبيستيمولوجيا وتاريخ الرياضيات",null,"Ecole Normale Supérieure de Kouba Mohamed Bachir El Ibrahimi"]
["Ens Kouba","Ecole_Normale_Supérieure_de_Kouba_Mohamed_Bachir_El_Ibrahimi","Equations Aux Dérivées Partielles Non Linéaires Et Histoire Des Mathématiques","مخبر المعادلات التفاضلية الجزئية غير الخطية وتاريخ الرياضيات",null,"Ecole Normale Supérieure de Kouba Mohamed Bachir El Ibrahimi"]
["Ens Kouba","Ecole_Normale_Supérieure_de_Kouba_Mohamed_Bachir_El_Ibrahimi","Ethnobotanique Et Substance Naturelle","مخبر النباتات المستعملة شعبيا والمواد الطبيعية",null,"Ecole Normale Supérieure de Kouba Mohamed Bachir El Ibrahimi"]
["Ens Kouba","Ecole_Normale_Supérieure_de_Kouba_Mohamed_Bachir_El_Ibrahimi","Etude Et Développement Des Techniques De Traitement Et D'Épuration Des Eaux Et De Gestion Environnementale","دراسة و تطوير تقنيات معالجة و تنقية المياه و التسيير البيئي",null,"Ecole Normale Supérieure de Kouba Mohamed Bachir El Ibrahimi"]
["Ens Kouba","Ecole_Normale_Supérieure_de_Kouba_Mohamed_Bachir_El_Ibrahimi","N-Corps Et Structure De La Matière","مخبر ن-جسم و بنية المادة",null,"Ecole Normale Supérieure de Kouba Mohamed Bachir El Ibrahimi"]
["Ens Kouba","Ecole_Normale_Supérieure_de_Kouba_Mohamed_Bachir_El_Ibrahimi","Physique Des Particules Et Physique Statistique","مخبر فيزياء الجسيمات الأولية و الإحصاء",null,"Ecole Normale Supérieure de Kouba Mohamed Bachir El Ibrahimi"]
["Ens Kouba","Ecole_Normale_Supérieure_de_Kouba_Mohamed_Bachir_El_Ibrahimi","Physique Mathématique Et Applications","مخبر الفيزياء الرياضيات وتطبيقاتها",null,"Ecole Normale Supérieure de Kouba Mohamed Bachir El Ibrahimi"]
["Ens Kouba","Ecole_Normale_Supérieure_de_Kouba_Mohamed_Bachir_El_Ibrahimi","Produits Bioactifs Et Valorisation De La Biomasse","البحث على المواد الفعالة وتثمين الكتلة الحية",null,"Ecole Normale Supérieure de Kouba Mohamed Bachir El Ibrahimi"]
["Ens Kouba","Ecole_Normale_Supérieure_de_Kouba_Mohamed_Bachir_El_Ibrahimi","Systèmes Intégrés À Base De Capteurs","مخبر الأنظمة المندمجة المستعملة للواقط",null,"Ecole Normale Supérieure de Kouba Mohamed Bachir El Ibrahimi"]
["Ens Kouba","Ecole_Normale_Supérieure_de_Kouba_Mohamed_Bachir_El_Ibrahimi","Théorie Du Point Fixe Et Applications","مخبر نظرية النقطة الصامدة و تطبيقاتها",null,"Ecole Normale Supérieure de Kouba Mohamed Bachir El Ibrahimi"]
["Ens Laghouat","Ecole_Normale_Supérieure_de_Laghouat_Taleb_Abderrahmane","Sciences Chimiques Et Physiques Appliquées","مخبر العلوم الكيميائية و الفيزيائية التطبيقية",null,"Ecole Normale Supérieure de Laghouat Taleb Abderrahmane"]
["ENS-Archit. Ex-EPAU","Ecole_Polytechnique_d_Architecture_et_d_Urbanisme_Hocine_Aït_Ahmed","Architecture Et Environnement","الهندسة المعمارية و البيئة",null,"Ecole Polytechnique d Architecture et d Urbanisme Hocine Aït Ahmed"]
["ENS-Archit. Ex-EPAU","Ecole_Polytechnique_d_Architecture_et_d_Urbanisme_Hocine_Aït_Ahmed","Ville, Architecture Et Patrimoine","مدن، هنـدسة معمـارية و تـراث",null,"Ecole Polytechnique d Architecture et d Urbanisme Hocine Aït Ahmed"]
["ENS-Archit. Ex-EPAU","Ecole_Polytechnique_d_Architecture_et_d_Urbanisme_Hocine_Aït_Ahmed","Ville, Urbanisme Et Développement Durable","المدينة، العمران والتنمية المستديمة",null,"Ecole Polytechnique d Architecture et d Urbanisme Hocine Aït Ahmed"]
["EPSECG Alger","Ecole_Préparatoire_en_Sciences_Economiques_Commerciales_et_Sciences_de_Gestion_d_Alger","Études Et De Recherches Sur L'Économie Numérique","الدراسات و البحوث حول الاقتصاد الرقمي",null,"Ecole Préparatoire en Sciences Economiques Commerciales et Sciences de Gestion d Alger"]
["ESA Mostaganem","Ecole_Supérieure_Agronomique_de_Mostaganem","Biotechnologie Appliquée À L’Agriculture Et À La Préservation De L’Environnement","البيوتكنولوجيا المطبقة على الفلاحة و المحافظة على البيئة",null,"Ecole Supérieure Agronomique de Mostaganem"]
["ESI Sidi Bel Abbès","Ecole_Supérieure_d_Informatique_08_Mai_1945","Informatique De Sidi Bel Abbès","الإعلام الآلي بسيدي بلعباس",null,"Ecole Supérieure d Informatique 08 Mai 1945"]
["ENS-SCF Ex-ESC","Ecole_Supérieure_de_Commerce_Mouloud_Kacem_Naït_Belkacem","Management, Gouvernance, Innovation Et Performance Des Organisations","إدارة وحوكمة و تجديد وأداء المنظمات",null,"Ecole Supérieure de Commerce Mouloud Kacem Naït Belkacem"]
["ENS-SCF Ex-ESC","Ecole_Supérieure_de_Commerce_Mouloud_Kacem_Naït_Belkacem","Réformes Économiques, Développement Et Stratégies D'Intégration En Économie Mondiale","مخبر الإصلاحات الإقتصادية التنمية واستراتيجيات الإندماج فى الإقتصاد العالمي",null,"Ecole Supérieure de Commerce Mouloud Kacem Naït Belkacem"]
["ENS-SCF Ex-ESC","Ecole_Supérieure_de_Commerce_Mouloud_Kacem_Naït_Belkacem","Systèmes D'Informations Comptables \"Etudes Pratiques En Sciences Commerciales Et Sciences De Gestion\"","أنظمة الإعلام الآلي المحاسبية الدراسات التطبيقية في العلوم التجارية و علوم التسيير",null,"Ecole Supérieure de Commerce Mouloud Kacem Naït Belkacem"]
["ESM Tlemcen","Ecole_Supérieure_de_Management_de_Tlemcen","Études Et Recherches En Économie Managériale","الدراسات و الأبحاث في الاقتصاد الإداري",null,"Ecole Supérieure de Management de Tlemcen"]
["ESG2E Oran","Ecole_Supérieure_en_Génie_Electrique_et_Energétique_d_Oran","Génie Électrique Et Matériaux","الهندسة الكهربائية والمواد",null,"Ecole Supérieure en Génie Electrique et Energétique d Oran"]
["ES/STS Ex-INFS/STS DelyBrahim (Hors MESRS)","École_Supérieure_en_Sciences_et_Technologie_du_Sport","Sciences Biologiques Appliquées Au Sport (Ex: Adaptations Et Performance Motrice)","مخبر العلوم البيولوجية المطبقة على الرياضة",null,"École Supérieure en Sciences et Technologie du Sport"]
["ES/STS Ex-INFS/STS DelyBrahim (Hors MESRS)","École_Supérieure_en_Sciences_et_Technologie_du_Sport","Sciences Sociales Appliquées Au Sport","العلوم الإجتماعية المطبقة في الرياضة",null,"École Supérieure en Sciences et Technologie du Sport"]
["ES/STS Ex-INFS/STS DelyBrahim (Hors MESRS)","École_Supérieure_en_Sciences_et_Technologie_du_Sport","Technologie De L'Entrainement Sportif","مخبر تكنولوجية التدريب الرياضي",null,"École Supérieure en Sciences et Technologie du Sport"]
["INPTIC","Institut_National_de_la_Poste_et_des_TIC","Recherche En Tic","تكنولوجيا الإعلام والإتصال",null,"Institut National de la Poste et des TIC"]
["INTTIC Oran Ex-ITO (Hors MESRS)","Institut_National_des_Télécommunications_et_des_Technologies_de_l_Information_et_de_la_Communication_Oran","Recherche Appliquée En Tic","مخبر للبحوث التطبيقية في مجال تكنــــولوجيــات الإعلام و الإتصال",null,"Institut National des Télécommunications et des Technologies de l Information et de la Communication Oran"]
["Institut Pasteur (Hors MESRS)","Institut_Pasteur","Immuno-Pathologie Et Immuno-Génétique","أمراض المناعية و المناعة الوراثة",null,"Institut Pasteur"]
["Institut Pasteur (Hors MESRS)","Institut_Pasteur","Parasitologie","علم الطفيليات",null,"Institut Pasteur"]
["U. Guelma","Université_8_Mai_1945_de_Guelma","Analyses Industrielles Et Génie Des Matériaux","مخبر التحاليل الصناعــيـة و هندسة المواد",null,"Université 8 Mai 1945 de Guelma"]
["U. Guelma","Université_8_Mai_1945_de_Guelma","Automatique Et Informatique De Guelma","مخبر الأوتوماتيك و الإعـلام الآلي لقــالمة",null,"Université 8 Mai 1945 de Guelma"]
["U. Guelma","Université_8_Mai_1945_de_Guelma","Biologie, Eau Et Environnement","مخبر البيولوجيا ٬ماء و محيط",null,"Université 8 Mai 1945 de Guelma"]
["U. Guelma","Université_8_Mai_1945_de_Guelma","Chimie Appliquée","مخبر الكيمياء التطبيقية",null,"Université 8 Mai 1945 de Guelma"]
["U. Guelma","Université_8_Mai_1945_de_Guelma","Chimie Computationnelle Et Nanostructures","مختبر الكيمياء الرقمي و البنيات النانونية",null,"Université 8 Mai 1945 de Guelma"]
["U. Guelma","Université_8_Mai_1945_de_Guelma","Chimie Physique","مخبر الكيمياء الفيزيائية",null,"Université 8 Mai 1945 de Guelma"]
["U. Guelma","Université_8_Mai_1945_de_Guelma","Conservation Des Zones Humides","مخبــــرالحفاظـ على المنــاطق الرطبــــة",null,"Université 8 Mai 1945 de Guelma"]
["U. Guelma","Université_8_Mai_1945_de_Guelma","Contrôle Avancé","مخبر التحكم المتقدم",null,"Université 8 Mai 1945 de Guelma"]
["U. Guelma","Université_8_Mai_1945_de_Guelma","Développement Endogène, Auto - Développement Et Bonne Gouvernance","التنمية الذاتية والحكم الراشد",null,"Université 8 Mai 1945 de Guelma"]
["U. Guelma","Université_8_Mai_1945_de_Guelma","Etudes Juridiques Environnementaux","مخبر الدراسات القانونية البيئية",null,"Université 8 Mai 1945 de Guelma"]
["U. Guelma","Université_8_Mai_1945_de_Guelma","Etudes Linguistiques Et Littératures","مخبر الدراسات اللغوية و الأدبية",null,"Université 8 Mai 1945 de Guelma"]
["U. Guelma","Université_8_Mai_1945_de_Guelma","Génie Civil Et Hydraulique","مخبر الهندسة المدنية والمياه",null,"Université 8 Mai 1945 de Guelma"]
["U. Guelma","Université_8_Mai_1945_de_Guelma","Génie Électrique","مخبر الهندسة الكهربائية",null,"Université 8 Mai 1945 de Guelma"]
["U. Guelma","Université_8_Mai_1945_de_Guelma","Histoire Des Recherches Et Études Maghrébines","مخبر التاريخ للأبحاث و الدراسات المغاربية",null,"Université 8 Mai 1945 de Guelma"]
["U. Guelma","Université_8_Mai_1945_de_Guelma","Mathématiques Appliquées Et De Modélisation","مخبر الرياضيات التطبيقية و النمذجة",null,"Université 8 Mai 1945 de Guelma"]
["U. Guelma","Université_8_Mai_1945_de_Guelma","Mécanique Appliquée Des Nouveaux Matériaux","الميكانيك التطبيقية للمواد الجديدة",null,"Université 8 Mai 1945 de Guelma"]
["U. Guelma","Université_8_Mai_1945_de_Guelma","Mécanique Et Structures","مخبر الميكانيك والهياكل",null,"Université 8 Mai 1945 de Guelma"]
["U. Guelma","Université_8_Mai_1945_de_Guelma","Philosophie Et Études Humaines Et Sociales, Et De Problèmes De L’Information Et De La Communication","الفلسفة والدراسات الإنسانية والاجتماعية ومشكلات الإعلام والاتصال",null,"Université 8 Mai 1945 de Guelma"]
["U. Guelma","Université_8_Mai_1945_de_Guelma","Physique De Guelma","مخبر الفيزياء بقالمة",null,"Université 8 Mai 1945 de Guelma"]
["U. Guelma","Université_8_Mai_1945_de_Guelma","Physique Des Matériaux","مخبر فيزياء المواد",null,"Université 8 Mai 1945 de Guelma"]
["U. Guelma","Université_8_Mai_1945_de_Guelma","Problèmes Inverses, Modélisation, Information Et Systèmes","المسائل العكسية: النمذجة'المعلوماتية و الأنظمة",null,"Université 8 Mai 1945 de Guelma"]
["U. Guelma","Université_8_Mai_1945_de_Guelma","Sciences Et Techniques De L'Information Et De La Communication","مخبر العلوم و تكنولوجيات الإعلام والاتصال",null,"Université 8 Mai 1945 de Guelma"]
["U. Guelma","Université_8_Mai_1945_de_Guelma","Silicates, Polymères Et Des Nano Composites","مخبر السيليكات البوليميرات و المركبات النانومترية",null,"Université 8 Mai 1945 de Guelma"]
["U. Guelma","Université_8_Mai_1945_de_Guelma","Télécommunications","مخبر الاتصالات والمواصلات",null,"Université 8 Mai 1945 de Guelma"]
["U. Adrar","Université_d_Adrar_Ahmed_Draya","Développement Durable Et D'Informatique","مخبر التنمية المستدامة و الإعلام الالي",null,"Université d Adrar Ahmed Draya"]
["U. Adrar","Université_d_Adrar_Ahmed_Draya","Droit Et Développement Local","القانون والتنمية المحلية",null,"Université d Adrar Ahmed Draya"]
["U. Adrar","Université_d_Adrar_Ahmed_Draya","Droit Et Société","القانون والمجتمع",null,"Université d Adrar Ahmed Draya"]
["U. Adrar","Université_d_Adrar_Ahmed_Draya","Education Et Développement","التربية والتنمية",null,"Université d Adrar Ahmed Draya"]
["U. Adrar","Université_d_Adrar_Ahmed_Draya","Energie, Environnement Et Système D'Information","مخبر الطاقة و البيئة وأنظمة المعلومات",null,"Université d Adrar Ahmed Draya"]
["U. Adrar","Université_d_Adrar_Ahmed_Draya","Espace Saharien Dans Le Code De La Narration Algérienne","الفضاء الصحراوي في مدونة السرد الجزائري",null,"Université d Adrar Ahmed Draya"]
["U. Adrar","Université_d_Adrar_Ahmed_Draya","Etudes Africaines Des Sciences Humaines Et Des Sciences Sociales","الدراسات الإفريقية للعلوم الإنسانية والعلوم الاجتماعية",null,"Université d Adrar Ahmed Draya"]
["U. Adrar","Université_d_Adrar_Ahmed_Draya","Études Sur Développement Spatial Et La Recherche Entrepreneuriale En Algérie","الدراسات حول التنمية المكانية و تطوير المقاولاتية في الجزائر",null,"Université d Adrar Ahmed Draya"]
["U. Adrar","Université_d_Adrar_Ahmed_Draya","Intégration Économique Algéro-Africaine","التكامل الاقتصادي الجزائري الإفريقي",null,"Université d Adrar Ahmed Draya"]
["U. Adrar","Université_d_Adrar_Ahmed_Draya","Manuscrits Informateur Algérien En Afrique (Inventaire Et De Comptage, D'Indexation Et D'Enquête )","مخبر المخطوطات الجزائرية في إفريقيا (للجرد و الحساب والفهرسة والبحث)",null,"Université d Adrar Ahmed Draya"]
["U. Adrar","Université_d_Adrar_Ahmed_Draya","Ressources Naturelles Sahariennes","الموارد الطبيعية الصحراوية",null,"Université d Adrar Ahmed Draya"]
["U. Alger-1-","Université_d_Alger_1_Benyoucef_Benkhedda","Audiophonologie Et De La Communication","السمعي وعلم الأصوات الكلامية والإتصال",null,"Université d Alger 1 Benyoucef Benkhedda"]
["U. Alger-1-","Université_d_Alger_1_Benyoucef_Benkhedda","Biochimie Génétique","مخبر البيوكيمياء الوراثية",null,"Université d Alger 1 Benyoucef Benkhedda"]
["U. Alger-1-","Université_d_Alger_1_Benyoucef_Benkhedda","Biogenotoxicologie Et Santé Au Travail","مخبر التسمم الوراثي الحيوي و الصحة في ميدان العمل",null,"Université d Alger 1 Benyoucef Benkhedda"]
["U. Alger-1-","Université_d_Alger_1_Benyoucef_Benkhedda","Biopathologie Et Cancer","مخبر البيوباتولوجيا ومرض السرطان",null,"Université d Alger 1 Benyoucef Benkhedda"]
["U. Alger-1-","Université_d_Alger_1_Benyoucef_Benkhedda","Biosciences Medico - Pharmaceutiques","مخبر البحث في العلوم الفيزيائية الطبية والصيدلانية",null,"Université d Alger 1 Benyoucef Benkhedda"]
["U. Alger-1-","Université_d_Alger_1_Benyoucef_Benkhedda","Cardio Oncology Collaborative Research Group","مخبر أمراض القلب و السرطان",null,"Université d Alger 1 Benyoucef Benkhedda"]
["U. Alger-1-","Université_d_Alger_1_Benyoucef_Benkhedda","Chariaa","الشريعة",null,"Université d Alger 1 Benyoucef Benkhedda"]
["U. Alger-1-","Université_d_Alger_1_Benyoucef_Benkhedda","Diabetes And Pregnancy Collaborative Research Group","فوج البحث في السكري و الحمل",null,"Université d Alger 1 Benyoucef Benkhedda"]
["U. Alger-1-","Université_d_Alger_1_Benyoucef_Benkhedda","Droit De La Famille","قانون الأسرة",null,"Université d Alger 1 Benyoucef Benkhedda"]
["U. Alger-1-","Université_d_Alger_1_Benyoucef_Benkhedda","Droits De L’Homme Et Droit International Humanitaire","حقــوق الإنســان والقانون الدولي الإنساني",null,"Université d Alger 1 Benyoucef Benkhedda"]
["U. Alger-1-","Université_d_Alger_1_Benyoucef_Benkhedda","Économie Numérique, Économie Verte Et Droit Des Affaires","الاقتصاد الرقمي و الاقتصاد الأخضر و قانون الأعمال",null,"Université d Alger 1 Benyoucef Benkhedda"]
["U. Alger-1-","Université_d_Alger_1_Benyoucef_Benkhedda","Endocrinologie Et Métabolisme","مخبر الغدد الصماء و الاستقلاب",null,"Université d Alger 1 Benyoucef Benkhedda"]
["U. Alger-1-","Université_d_Alger_1_Benyoucef_Benkhedda","Etude Du Polymorphisme Génétique","الشكالة الوراثية",null,"Université d Alger 1 Benyoucef Benkhedda"]
["U. Alger-1-","Université_d_Alger_1_Benyoucef_Benkhedda","Hémostase","مخبرالبحث في أمراض نزيف و تخثر الدم",null,"Université d Alger 1 Benyoucef Benkhedda"]
["U. Alger-1-","Université_d_Alger_1_Benyoucef_Benkhedda","Maladies Respiratoires Non Transmissibles","الأمراض التنفسية الغير المتنقلة",null,"Université d Alger 1 Benyoucef Benkhedda"]
["U. Alger-1-","Université_d_Alger_1_Benyoucef_Benkhedda","Médecines Alternatives Et Complémentaires En Milieu Hospitalier","الطب البديل والتكميلي في الوسط الاستشفائي",null,"Université d Alger 1 Benyoucef Benkhedda"]
["U. Alger-1-","Université_d_Alger_1_Benyoucef_Benkhedda","Méthodes De Recherche En Sciences Islamiques, Leur Finalité Et Style D'Évaluation","مخبر مناهج البحث في العلوم الإسلامية ومقاصدها ومسالك تقويمها",null,"Université d Alger 1 Benyoucef Benkhedda"]
["U. Alger-1-","Université_d_Alger_1_Benyoucef_Benkhedda","Neuro-Sciences","مخبر العلوم العصبية",null,"Université d Alger 1 Benyoucef Benkhedda"]
["U. Alger-1-","Université_d_Alger_1_Benyoucef_Benkhedda","Oncologie Moléculaire Fondamentale Et Appliquée","البحث الجزئي الأساسي و التطبيقي للأورام السرطانية",null,"Université d Alger 1 Benyoucef Benkhedda"]
["U. Alger-1-","Université_d_Alger_1_Benyoucef_Benkhedda","Pharmacie Galénique Industrielle","الصيدلة الجالينوسية الصناعية",null,"Université d Alger 1 Benyoucef Benkhedda"]
["U. Alger-1-","Université_d_Alger_1_Benyoucef_Benkhedda","Propriété Intellectuelle","الملكية الفكرية",null,"Université d Alger 1 Benyoucef Benkhedda"]
["U. Alger-1-","Université_d_Alger_1_Benyoucef_Benkhedda","Risque Cardiovasculaire En Néphrologie Et Transplantation","خطر أمراض القلب و الأوعية الدموية عند المرضى و مزروعي الكلى",null,"Université d Alger 1 Benyoucef Benkhedda"]
["U. Alger-1-","Université_d_Alger_1_Benyoucef_Benkhedda","Sciences Criminelles","العلوم الجنائية",null,"Université d Alger 1 Benyoucef Benkhedda"]
["U. Alger-1-","Université_d_Alger_1_Benyoucef_Benkhedda","Sénologie Interventionnelle Guidée Par Imagerie Médicale Dans Le Diagnostic Précoce Et Le Traitement Du Cancer Du Sein","علم الثدي العملياتي الموجه بالصورة الطبية في التشخيص الأولي ومعالجة سرطان الثدي",null,"Université d Alger 1 Benyoucef Benkhedda"]
["U. Alger-1-","Université_d_Alger_1_Benyoucef_Benkhedda","Simulation En Anesthésie Réanimation Et Médecine D’Urgence","التطاهر في التخدير الإنعاش والطب الإستعجالي",null,"Université d Alger 1 Benyoucef Benkhedda"]
["U. Alger-1-","Université_d_Alger_1_Benyoucef_Benkhedda","Valorisation Et Bio-Ingénierie Des Ressources Naturelles","التثمين والهندسة الحيوية للموارد الطبيعية",null,"Université d Alger 1 Benyoucef Benkhedda"]
["U. Alger-2-","Université_d_Alger_2_Abou_Elkacem_Saad_Allah","Anthropologie Psychanalytique Et De Psychopathologie","مخبر الأنتروبولوجيا التحليلية وعلم النفس المرضي",null,"Université d Alger 2 Abou Elkacem Saad Allah"]
["U. Alger-2-","Université_d_Alger_2_Abou_Elkacem_Saad_Allah","Atlas De La Culture Populaire Algérienne","أطلس الثقافة الشعبية الجزائرية",null,"Université d Alger 2 Abou Elkacem Saad Allah"]
["U. Alger-2-","Université_d_Alger_2_Abou_Elkacem_Saad_Allah","Changement Social","مخبر التغيير الاجتماعي",null,"Université d Alger 2 Abou Elkacem Saad Allah"]
["U. Alger-2-","Université_d_Alger_2_Abou_Elkacem_Saad_Allah","Discours Soufi Dans La Littérature Et La Langue","الخطاب الصوفي في الأدب واللغة",null,"Université d Alger 2 Abou Elkacem Saad Allah"]
["U. Alger-2-","Université_d_Alger_2_Abou_Elkacem_Saad_Allah","Education-Formation-Orientation-Travail","تربية – تكوين - عمل",null,"Université d Alger 2 Abou Elkacem Saad Allah"]
["U. Alger-2-","Université_d_Alger_2_Abou_Elkacem_Saad_Allah","Esthétique, Arts Et Philosophie Contemporaine","الجماليات والفنون والفلسفة المعاصرة",null,"Université d Alger 2 Abou Elkacem Saad Allah"]
["U. Alger-2-","Université_d_Alger_2_Abou_Elkacem_Saad_Allah","Etudes Africaines","دراسات إفريقية",null,"Université d Alger 2 Abou Elkacem Saad Allah"]
["U. Alger-2-","Université_d_Alger_2_Abou_Elkacem_Saad_Allah","Etudes de Pragmatique Inferentielle","دراسات في التداولية الاستدلالية",null,"Université d Alger 2 Abou Elkacem Saad Allah"]
["U. Alger-2-","Université_d_Alger_2_Abou_Elkacem_Saad_Allah","Etudes Et Recherche En Acoustique","مخبر الدراسات والبحوث الصوتية والمعجمية",null,"Université d Alger 2 Abou Elkacem Saad Allah"]
["U. Alger-2-","Université_d_Alger_2_Abou_Elkacem_Saad_Allah","Études Et Recherches Sur Le Patrimoine Ottoman En Algérie 1516-1830","الدراسات و الأبحاث في الموروث العثماني بالجزائر 1516-1830",null,"Université d Alger 2 Abou Elkacem Saad Allah"]
["U. Alger-2-","Université_d_Alger_2_Abou_Elkacem_Saad_Allah","Etudes Philosophiques Et Axiologiques","مخبر الدراسات الفلسفية و الإكسيولوجية",null,"Université d Alger 2 Abou Elkacem Saad Allah"]
["U. Alger-2-","Université_d_Alger_2_Abou_Elkacem_Saad_Allah","Evolution De La Civilisation Du Maghreb Central Algérie Jusqu’À La Fin De La Période Otomane","البناء الحضاري للمغرب، الأوساط الجزائر حتى نهاية العهد العثماني",null,"Université d Alger 2 Abou Elkacem Saad Allah"]
["U. Alger-2-","Université_d_Alger_2_Abou_Elkacem_Saad_Allah","Famille, Développement, Prévention De La Délinquance Et De La Criminologie","الأسرة، التنمية، الوقاية من الانحراف والإجرام",null,"Université d Alger 2 Abou Elkacem Saad Allah"]
["U. Alger-2-","Université_d_Alger_2_Abou_Elkacem_Saad_Allah","Interdisciplinaire De Recherche : Analyse Du Discours, Didactique Des Langues Et Interculturalité","التقاطع التخصصي للبحث :تحليل الخطاب’تعلمية اللغات و التدخل الثقافي",null,"Université d Alger 2 Abou Elkacem Saad Allah"]
["U. Alger-2-","Université_d_Alger_2_Abou_Elkacem_Saad_Allah","Linguistique Appliquée Et Enseignement Des Langues","اللسانيات التطبيقية و تعليم اللغات",null,"Université d Alger 2 Abou Elkacem Saad Allah"]
["U. Alger-2-","Université_d_Alger_2_Abou_Elkacem_Saad_Allah","Linguistique Et Didactique Des Langues","اللسانيات و علم الاجتماع اللغوي و تعليمية اللغات",null,"Université d Alger 2 Abou Elkacem Saad Allah"]
["U. Alger-2-","Université_d_Alger_2_Abou_Elkacem_Saad_Allah","Manuscrits","مخبر المخطوطات",null,"Université d Alger 2 Abou Elkacem Saad Allah"]
["U. Alger-2-","Université_d_Alger_2_Abou_Elkacem_Saad_Allah","Prévention Et Ergonomie","مخبر الوقاية والأرغنوميا",null,"Université d Alger 2 Abou Elkacem Saad Allah"]
["U. Alger-2-","Université_d_Alger_2_Abou_Elkacem_Saad_Allah","Problématique De La Recherche Scientifique Dans L'Élaboration De La Société Arabe Contemporaine, L'Agérie Comme Modèle","اشكالية البحث العلمي في بناء المجتمع العربي المعاصر 'الجزائر نموذجا",null,"Université d Alger 2 Abou Elkacem Saad Allah"]
["U. Alger-2-","Université_d_Alger_2_Abou_Elkacem_Saad_Allah","Problèmes De La Civilisation Et De L'Histoire En Algérie","مخبر مشكلات الحضارة والتاريخ في الجزائر",null,"Université d Alger 2 Abou Elkacem Saad Allah"]
["U. Alger-2-","Université_d_Alger_2_Abou_Elkacem_Saad_Allah","Psychologie Clinique Et Métrique","مخبر علم النفس العيادي و القياسي",null,"Université d Alger 2 Abou Elkacem Saad Allah"]
["U. Alger-2-","Université_d_Alger_2_Abou_Elkacem_Saad_Allah","Psychologie De La Santé, Prévention Et Qualité De Vie","علم النفس الصحة و الوقاية و نوعية الحياة",null,"Université d Alger 2 Abou Elkacem Saad Allah"]
["U. Alger-2-","Université_d_Alger_2_Abou_Elkacem_Saad_Allah","Psychologie Et Sciences De L’Éducation","علم النفس وعلوم التربية",null,"Université d Alger 2 Abou Elkacem Saad Allah"]
["U. Alger-2-","Université_d_Alger_2_Abou_Elkacem_Saad_Allah","Psychologie Sociale Et Les Fléaux Sociaux","علم النفس الاجتماعي و الافات الاجتماعية",null,"Université d Alger 2 Abou Elkacem Saad Allah"]
["U. Alger-2-","Université_d_Alger_2_Abou_Elkacem_Saad_Allah","Psychométrie & Consulting","مخـــبر القــيـاس و الإرشـــاد النفــسـي",null,"Université d Alger 2 Abou Elkacem Saad Allah"]
["U. Alger-2-","Université_d_Alger_2_Abou_Elkacem_Saad_Allah","Religion Et Société","الدين و المجتمع",null,"Université d Alger 2 Abou Elkacem Saad Allah"]
["U. Alger-2-","Université_d_Alger_2_Abou_Elkacem_Saad_Allah","Socio Anthropologie Du Développement Des Territoires","مخبر التحليل السوسيو أنتروبولجي لتنمية الأقاليم",null,"Université d Alger 2 Abou Elkacem Saad Allah"]
["U. Alger-2-","Université_d_Alger_2_Abou_Elkacem_Saad_Allah","Sociologie Des Organisations Et De Management","علم اجتماع التنظيم والمناجمنت",null,"Université d Alger 2 Abou Elkacem Saad Allah"]
["U. Alger-2-","Université_d_Alger_2_Abou_Elkacem_Saad_Allah","Traduction Des Documents Historiques","ترجمة الوتائق التاريخية",null,"Université d Alger 2 Abou Elkacem Saad Allah"]
["U. Alger-2-","Université_d_Alger_2_Abou_Elkacem_Saad_Allah","Traduction Et Terminologie","الترجمة والمصطلح",null,"Université d Alger 2 Abou Elkacem Saad Allah"]
["U. Alger-2-","Université_d_Alger_2_Abou_Elkacem_Saad_Allah","Unité De Recherche : Neurosciences Cognitives - Orthophonie - Phoniatrie (Remplace Le Lr 2000 \" Sciences Du Langage-Neurosciences Cognitives-Communication Slancom\")","علوم عصبية معرفية - أرطفونيا - اضطرابات الصوت",null,"Université d Alger 2 Abou Elkacem Saad Allah"]
["U. Alger-2-","Université_d_Alger_2_Abou_Elkacem_Saad_Allah","Unité Et Etudes Maghrébines À Travers L'Histoire","الوحدة المغاربية عبر التاريخ",null,"Université d Alger 2 Abou Elkacem Saad Allah"]
["U. Alger-3-","Université_d_Alger_3_Brahim_Soltane_Chaibout","Capital Humain Et Performance","رأس المال البشري و الأداء",null,"Université d Alger 3 Brahim Soltane Chaibout"]
["U. Alger-3-","Université_d_Alger_3_Brahim_Soltane_Chaibout","Droits De L'Homme Dans Les Systèmes De Comparaison À La Lumière Des Changements Internationaux Actuels","حقوق الإنسان في الأنظمة المقارنة في ظل التحولات الدولية الراهنة",null,"Université d Alger 3 Brahim Soltane Chaibout"]
["U. Alger-3-","Université_d_Alger_3_Brahim_Soltane_Chaibout","Etude Et Analyse Des Politiques Publiques En Algérie","مخبر دراسات وتحليل السياسات العامة في الجزائر",null,"Université d Alger 3 Brahim Soltane Chaibout"]
["U. Alger-3-","Université_d_Alger_3_Brahim_Soltane_Chaibout","Etudes En Relations Internationales","الدراسات في العلاقات الدولية",null,"Université d Alger 3 Brahim Soltane Chaibout"]
["U. Alger-3-","Université_d_Alger_3_Brahim_Soltane_Chaibout","Industries Traditionnelles","مخبر الصناعات التقليدية",null,"Université d Alger 3 Brahim Soltane Chaibout"]
["U. Alger-3-","Université_d_Alger_3_Brahim_Soltane_Chaibout","La Communication Et La Sécurité Alimentaire","الاتصال و الأمن الغذائي",null,"Université d Alger 3 Brahim Soltane Chaibout"]
["U. Alger-3-","Université_d_Alger_3_Brahim_Soltane_Chaibout","Langues, Communication Et Des Nouvelles Technologies","مخبر اللغات و الاتصال و التكنولوجيات الحديثة",null,"Université d Alger 3 Brahim Soltane Chaibout"]
["U. Alger-3-","Université_d_Alger_3_Brahim_Soltane_Chaibout","Management Du Changement Dans L'Entreprise Algérienne","إدارة التغيير في المؤسسة الجزائرية",null,"Université d Alger 3 Brahim Soltane Chaibout"]
["U. Alger-3-","Université_d_Alger_3_Brahim_Soltane_Chaibout","Mondialisation Et Politique Économique","العولمة والسياسات الإقتصادية",null,"Université d Alger 3 Brahim Soltane Chaibout"]
["U. Alger-3-","Université_d_Alger_3_Brahim_Soltane_Chaibout","Recherches Et Études Politiques","البحوث والدراسات السياسية",null,"Université d Alger 3 Brahim Soltane Chaibout"]
["U. Alger-3-","Université_d_Alger_3_Brahim_Soltane_Chaibout","Science De La Performance Motrice Et Des Interventions Pédagogiques","علوم الأداء الحركي و التدخلات البيداغوجية",null,"Université d Alger 3 Brahim Soltane Chaibout"]
["U. Alger-3-","Université_d_Alger_3_Brahim_Soltane_Chaibout","Sciences Des Activités Physiques","مخبر علوم وتقنيات النشاط البدني والرياضي",null,"Université d Alger 3 Brahim Soltane Chaibout"]
["U. Alger-3-","Université_d_Alger_3_Brahim_Soltane_Chaibout","Sciences Du Sport Et De L'Entrainement De Haut Niveau","مخبر علوم الرياضية والتدريب العالي المستوى",null,"Université d Alger 3 Brahim Soltane Chaibout"]
["U. Alger-3-","Université_d_Alger_3_Brahim_Soltane_Chaibout","Sciences Et Pratiques Des Activités Physiques Sportives Et Artistiques","مخبر علوم و ممارسات الأتشطة البدنية الرياضية و الفنية",null,"Université d Alger 3 Brahim Soltane Chaibout"]
["U. Alger-3-","Université_d_Alger_3_Brahim_Soltane_Chaibout","Usage Réception Produit Médiatique Et Culturel En Algérie","استخدامات وتلقي المنتجات الإعلامية والثقافية في الجزائر",null,"Université d Alger 3 Brahim Soltane Chaibout"]
["U. Annaba","Université_d_Annaba_Badji_Mokhtar","Amélioration Génétique Des Plantes","تحسين وراثة النباتات",null,"Université d Annaba Badji Mokhtar"]
["U. Annaba","Université_d_Annaba_Badji_Mokhtar","Analyse Biogéochimiques Et Écologiques Des Environnements Aquatiques","مخبر التحليل البيوجيوكيميائي و البيئي للأوساط المائية",null,"Université d Annaba Badji Mokhtar"]
["U. Annaba","Université_d_Annaba_Badji_Mokhtar","Analyse Du Travail Et I'Étude Ergonomique","تحليل العمل و الدراسات الارغونومية",null,"Université d Annaba Badji Mokhtar"]
["U. Annaba","Université_d_Annaba_Badji_Mokhtar","Analyse Numérique, Optimisation Et Statistiques","مخبر التحليل العددي الإمتثال والإحصاء",null,"Université d Annaba Badji Mokhtar"]
["U. Annaba","Université_d_Annaba_Badji_Mokhtar","Analyses Urbaines Et Environnementales","مخبر التحاليل العمرانية و البيئية",null,"Université d Annaba Badji Mokhtar"]
["U. Annaba","Université_d_Annaba_Badji_Mokhtar","Aquaculture Et Pathologies","التربية المائية و و أمراضها",null,"Université d Annaba Badji Mokhtar"]
["U. Annaba","Université_d_Annaba_Badji_Mokhtar","Architecture Et Urbanisme","الهندسة و التعمير",null,"Université d Annaba Badji Mokhtar"]
["U. Annaba","Université_d_Annaba_Badji_Mokhtar","Automatique Et Signaux","الآليات و الإشارات",null,"Université d Annaba Badji Mokhtar"]
["U. Annaba","Université_d_Annaba_Badji_Mokhtar","Biochimie Et Microbiologie Appliquée","البيوكيمياء وعلم الأحياء المجهري التطبيقية",null,"Université d Annaba Badji Mokhtar"]
["U. Annaba","Université_d_Annaba_Badji_Mokhtar","Biochimie Et Toxicologie Environnementale","مخبر البيوكيمياء وعلم التسمم البيئي",null,"Université d Annaba Badji Mokhtar"]
["U. Annaba","Université_d_Annaba_Badji_Mokhtar","Biologie Animale Appliquée","مخبر بيولوجيا الحيوان التطبيقية",null,"Université d Annaba Badji Mokhtar"]
["U. Annaba","Université_d_Annaba_Badji_Mokhtar","Biologie Végétale Et Environnement","مخبر البحث في بيولوجيا النبات والمحيط",null,"Université d Annaba Badji Mokhtar"]
["U. Annaba","Université_d_Annaba_Badji_Mokhtar","Bioressources Marines","مختبر الموارد البيولوجية البحرية",null,"Université d Annaba Badji Mokhtar"]
["U. Annaba","Université_d_Annaba_Badji_Mokhtar","Biosurveillance Environnementale","مراقبة البيولوجية و البيئة",null,"Université d Annaba Badji Mokhtar"]
["U. Annaba","Université_d_Annaba_Badji_Mokhtar","Biotechnologie Et Développement De La Santé","مخبر البيوتكنولوجية و تطوير الصحة",null,"Université d Annaba Badji Mokhtar"]
["U. Annaba","Université_d_Annaba_Badji_Mokhtar","Catalyse Asymétrique Éco-Compatible","تحفيز غير تناظري ملائم أيكولوجيا",null,"Université d Annaba Badji Mokhtar"]
["U. Annaba","Université_d_Annaba_Badji_Mokhtar","Chimie Des Matériaux Inorganiques","مخبر كيمياء المواد اللاعضوية",null,"Université d Annaba Badji Mokhtar"]
["U. Annaba","Université_d_Annaba_Badji_Mokhtar","Chimie Organique Appliquée","كمياء بيوعضوية",null,"Université d Annaba Badji Mokhtar"]
["U. Annaba","Université_d_Annaba_Badji_Mokhtar","Développement Durable Et La Bonne Gouvernance Au Sud De La Méditerranée","مخبر التنمية المستدامة و الحكم الراشد في جنوب المتوسط",null,"Université d Annaba Badji Mokhtar"]
["U. Annaba","Université_d_Annaba_Badji_Mokhtar","Développement Et De Contrôle Des Préparations Pharmaceutiques Hospitalières","مخبر تنمية و مراقبة المنتجات الصيدلانية الاستشفائية",null,"Université d Annaba Badji Mokhtar"]
["U. Annaba","Université_d_Annaba_Badji_Mokhtar","Droit, Urbanisme Et Environnement","القانون- العمران و المحيط",null,"Université d Annaba Badji Mokhtar"]
["U. Annaba","Université_d_Annaba_Badji_Mokhtar","Ecobiologie Des Milieux Marins Et Littoraux","البيولوجيا البيئية للأوساط البحلرية و الشاطئية",null,"Université d Annaba Badji Mokhtar"]
["U. Annaba","Université_d_Annaba_Badji_Mokhtar","Ecologie Des Systèmes Terrestres Et Aquatiques","مخبر إيكولوجيا النظم الأرضية والمائية",null,"Université d Annaba Badji Mokhtar"]
["U. Annaba","Université_d_Annaba_Badji_Mokhtar","Ecophysiologie Animale","الفيزيولوجيا البيئية الحيوانية",null,"Université d Annaba Badji Mokhtar"]
["U. Annaba","Université_d_Annaba_Badji_Mokhtar","Elaboration Et Analyse Des Matériaux","مخبر تحضیر و تحلیل المواد",null,"Université d Annaba Badji Mokhtar"]
["U. Annaba","Université_d_Annaba_Badji_Mokhtar","Electrotechnique D'Annaba","عنابه الكھروتقنى",null,"Université d Annaba Badji Mokhtar"]
["U. Annaba","Université_d_Annaba_Badji_Mokhtar","Etude Des Surfaces Et Interfaces De La Matière","مخبر دراسات السطوح و السطوح البينية للمادة الصلبة",null,"Université d Annaba Badji Mokhtar"]
["U. Annaba","Université_d_Annaba_Badji_Mokhtar","Etude Et Recherche En Instrumentation Et En Communication","مخبرالدراسا ت و البحو ث في التجهيز و الإتصالات",null,"Université d Annaba Badji Mokhtar"]
["U. Annaba","Université_d_Annaba_Badji_Mokhtar","Etude Et Recherche Sur Les États Condensés","مخبر الدراسات و البحث في الحالات المكثفة",null,"Université d Annaba Badji Mokhtar"]
["U. Annaba","Université_d_Annaba_Badji_Mokhtar","Etude Juridique Maghrébine","الدراسات القانونية المغاربية",null,"Université d Annaba Badji Mokhtar"]
["U. Annaba","Université_d_Annaba_Badji_Mokhtar","Études Et Recherches En Communication","دراسات و أبحاث في الاتصال",null,"Université d Annaba Badji Mokhtar"]
["U. Annaba","Université_d_Annaba_Badji_Mokhtar","Etudes Sociales Et Humaines Et Analyse Des Activités Physiques Et Sportives","مخبر الدراسات الإجتماعية والإنسانية وتحليل النشاطات البدنية والرياضية",null,"Université d Annaba Badji Mokhtar"]
["U. Annaba","Université_d_Annaba_Badji_Mokhtar","Finance Internationale Et D'Étude Sur La Gouvernance Et L'Émergence","مخبر المالية الدولية و دراسة الحوكمة و البلوغ الاقتصادي",null,"Université d Annaba Badji Mokhtar"]
["U. Annaba","Université_d_Annaba_Badji_Mokhtar","Fonderie","مخبرالسباكة",null,"Université d Annaba Badji Mokhtar"]
["U. Annaba","Université_d_Annaba_Badji_Mokhtar","Génie Civil","مخبر الهندسة المدنية",null,"Université d Annaba Badji Mokhtar"]
["U. Annaba","Université_d_Annaba_Badji_Mokhtar","Génie De L'Environnement","مخبر هندسة البيئة",null,"Université d Annaba Badji Mokhtar"]
["U. Annaba","Université_d_Annaba_Badji_Mokhtar","Génie Électromécanique","الهندسة الكهروميكانيكية",null,"Université d Annaba Badji Mokhtar"]
["U. Annaba","Université_d_Annaba_Badji_Mokhtar","Géodynamique Et Ressources Naturelles","مخبر الجيوديناميكية و الموارد الطبيعية",null,"Université d Annaba Badji Mokhtar"]
["U. Annaba","Université_d_Annaba_Badji_Mokhtar","Géologie","مخبر البحث في الجيولوجيا",null,"Université d Annaba Badji Mokhtar"]
["U. Annaba","Université_d_Annaba_Badji_Mokhtar","Gestion Électronique Des Documents","مخبر للعلاج الالكتروني للوثائق",null,"Université d Annaba Badji Mokhtar"]
["U. Annaba","Université_d_Annaba_Badji_Mokhtar","Informatique","مخبر البحث في الإعلام الآلي",null,"Université d Annaba Badji Mokhtar"]
["U. Annaba","Université_d_Annaba_Badji_Mokhtar","Ingénierie Des Surfaces","مخبر هندسة السطحيات",null,"Université d Annaba Badji Mokhtar"]
["U. Annaba","Université_d_Annaba_Badji_Mokhtar","Ingénierie Des Systèmes Complexes","هندسة الأنظمة المعقدة",null,"Université d Annaba Badji Mokhtar"]
["U. Annaba","Université_d_Annaba_Badji_Mokhtar","Innovation Et Analyse Économique Et Financière","مخبر البحث في الابتكار والتحليل الاقتصادي والمالي",null,"Université d Annaba Badji Mokhtar"]
["U. Annaba","Université_d_Annaba_Badji_Mokhtar","Intelligence Économique Et Développement Durable","مخبر البحث في الذكاء الاقتصادي والتنمية المستدامة",null,"Université d Annaba Badji Mokhtar"]
["U. Annaba","Université_d_Annaba_Badji_Mokhtar","Interdisciplinaire De Pédagogie Et De Didactique","التربية متعدد التخصصات في التربية وفن التعليم",null,"Université d Annaba Badji Mokhtar"]
["U. Annaba","Université_d_Annaba_Badji_Mokhtar","Interdisciplinaire Entreprenariat","المخبر المتعدد التخصصات للدراسات المقاولتية",null,"Université d Annaba Badji Mokhtar"]
["U. Annaba","Université_d_Annaba_Badji_Mokhtar","Langues Et Textes","لغات ونصوص",null,"Université d Annaba Badji Mokhtar"]
["U. Annaba","Université_d_Annaba_Badji_Mokhtar","Langues Étrangères, Civilisation Universelle, Communication Et Réalité Algérienne","اللغات الأجنبية و الحضارة العالمية و الإتصال والواقع الجزائري",null,"Université d Annaba Badji Mokhtar"]
["U. Annaba","Université_d_Annaba_Badji_Mokhtar","Littérature Générale Et Comparée","مخبر الأدب العام والمقارن",null,"Université d Annaba Badji Mokhtar"]
["U. Annaba","Université_d_Annaba_Badji_Mokhtar","Magnétisme Et Spectroscopie Des Solides","المغناطيسيا و مطيايفة المادة الصلبة",null,"Université d Annaba Badji Mokhtar"]
["U. Annaba","Université_d_Annaba_Badji_Mokhtar","Matériaux Avancés","مخبر المواد المتقدمة",null,"Université d Annaba Badji Mokhtar"]
["U. Annaba","Université_d_Annaba_Badji_Mokhtar","Matériaux, Géomatériaux Et Environnement","المواد، جيومواد و البيئة",null,"Université d Annaba Badji Mokhtar"]
["U. Annaba","Université_d_Annaba_Badji_Mokhtar","Mathématiques Appliquées","مخبر الرياضيات التطبيقية",null,"Université d Annaba Badji Mokhtar"]
["U. Annaba","Université_d_Annaba_Badji_Mokhtar","Mathématiques, Dynamique Et Modélisation","الرياضيات و الديناميكا و التنميط",null,"Université d Annaba Badji Mokhtar"]
["U. Annaba","Université_d_Annaba_Badji_Mokhtar","Mécanique Des Matériaux Et Maintenance Industrielle","مخبر البحث في مكانيك المواد والصيانة الصناعية",null,"Université d Annaba Badji Mokhtar"]
["U. Annaba","Université_d_Annaba_Badji_Mokhtar","Mécanique Industrielle","مخبر المكانيك الصناعية",null,"Université d Annaba Badji Mokhtar"]
["U. Annaba","Université_d_Annaba_Badji_Mokhtar","Métallurgie Et Génie Des Matériaux","التعدين و هندسة المواد",null,"Université d Annaba Badji Mokhtar"]
["U. Annaba","Université_d_Annaba_Badji_Mokhtar","Métallurgie Physique Et Propriété Des Matériaux","مخبر التعدين الفيزيائي و خصائص المواد",null,"Université d Annaba Badji Mokhtar"]
["U. Annaba","Université_d_Annaba_Badji_Mokhtar","Mise En Forme Des Matériaux Métalliques","مخبر صياغة المواد المعدنية",null,"Université d Annaba Badji Mokhtar"]
["U. Annaba","Université_d_Annaba_Badji_Mokhtar","Modélisation Mathématique Et Simulation Numérique","النماذج الرياضية و المحاكاة العددية",null,"Université d Annaba Badji Mokhtar"]
["U. Annaba","Université_d_Annaba_Badji_Mokhtar","Nanomatériaux, Corrosion Et Traitements De Surfaces","مخبر المواد النانومترية – تآكل و معالجة السطوح",null,"Université d Annaba Badji Mokhtar"]
["U. Annaba","Université_d_Annaba_Badji_Mokhtar","Neuro-Endocrinologie","العصبية التطبيقية",null,"Université d Annaba Badji Mokhtar"]
["U. Annaba","Université_d_Annaba_Badji_Mokhtar","Neuro-Urologie","البحوث العصبية في أمراض الكلى و المسالك البولية و التناسلية",null,"Université d Annaba Badji Mokhtar"]
["U. Annaba","Université_d_Annaba_Badji_Mokhtar","Onco-Urologie Appliquée","الأورام السرطانية للمسالك البولية",null,"Université d Annaba Badji Mokhtar"]
["U. Annaba","Université_d_Annaba_Badji_Mokhtar","Physique Des Lasers, De Spectroscopie Optique Et D'Optoélectronique","مخبر فيزياء الليزر و المطيافية الضوئية والبصريات الألكترونية",null,"Université d Annaba Badji Mokhtar"]
["U. Annaba","Université_d_Annaba_Badji_Mokhtar","Physique Des Rayonnements","مخبر فيزياء الإشعاع",null,"Université d Annaba Badji Mokhtar"]
["U. Annaba","Université_d_Annaba_Badji_Mokhtar","Physique Du Solide","فیزیاء الجسم الصلب",null,"Université d Annaba Badji Mokhtar"]
["U. Annaba","Université_d_Annaba_Badji_Mokhtar","Poétique Et Analyse De Discours","مخبر الشعريات وتحليل الخطاب",null,"Université d Annaba Badji Mokhtar"]
["U. Annaba","Université_d_Annaba_Badji_Mokhtar","Probabilités Et Statistique","مخبر الإحتمالات و الإحصاء",null,"Université d Annaba Badji Mokhtar"]
["U. Annaba","Université_d_Annaba_Badji_Mokhtar","Réseaux Et Systèmes","مخبر الشبكات و الأنظمة",null,"Université d Annaba Badji Mokhtar"]
["U. Annaba","Université_d_Annaba_Badji_Mokhtar","Ressources En Eau Et Développement Durable","الموارد المائية والتنمية المستدامة",null,"Université d Annaba Badji Mokhtar"]
["U. Annaba","Université_d_Annaba_Badji_Mokhtar","Ressources Naturelles Et Aménagement","موارد طبيعية و تهيئة",null,"Université d Annaba Badji Mokhtar"]
["U. Annaba","Université_d_Annaba_Badji_Mokhtar","Risques Industriels / Cnd / Sureté De Fonctionnement","المخاطر الصناعية، والمراقبة التقنية عن بعد و ضمان التحكم في تسيير الأجهزة",null,"Université d Annaba Badji Mokhtar"]
["U. Annaba","Université_d_Annaba_Badji_Mokhtar","Santé Bucco-Dentaire","معالجة الأسنان",null,"Université d Annaba Badji Mokhtar"]
["U. Annaba","Université_d_Annaba_Badji_Mokhtar","Santé Et Environnement","الصحة و المحيط",null,"Université d Annaba Badji Mokhtar"]
["U. Annaba","Université_d_Annaba_Badji_Mokhtar","Semi-Conducteurs","مخبر أنصاف النواقل",null,"Université d Annaba Badji Mokhtar"]
["U. Annaba","Université_d_Annaba_Badji_Mokhtar","Sols Et Développement Durable","مخبر التربة و التنمية المستدامة",null,"Université d Annaba Badji Mokhtar"]
["U. Annaba","Université_d_Annaba_Badji_Mokhtar","Sols Et Hydraulique","التربة و الري",null,"Université d Annaba Badji Mokhtar"]
["U. Annaba","Université_d_Annaba_Badji_Mokhtar","Synthèse Biocatalyse Organique","مخبر خلق والتحفيزالعضوي",null,"Université d Annaba Badji Mokhtar"]
["U. Annaba","Université_d_Annaba_Badji_Mokhtar","Synthèse Organique, Modélisation Et Optimisation Des Procédés Chimiques","مخبرالتحليل العضوي، النمذجة والتحسين للطرائق الكيميائية",null,"Université d Annaba Badji Mokhtar"]
["U. Annaba","Université_d_Annaba_Badji_Mokhtar","Systèmes Electromécaniques","مخبر الانظمة الالكتروميكانيكية",null,"Université d Annaba Badji Mokhtar"]
["U. Annaba","Université_d_Annaba_Badji_Mokhtar","Systèmes Embarqués","مخبر الأنظمة المشحونة",null,"Université d Annaba Badji Mokhtar"]
["U. Annaba","Université_d_Annaba_Badji_Mokhtar","Technologies Avancées En Production Mécanique","مخبر البحث التكنولوجيات المتقدمة في الإنتاج الميكانيكي",null,"Université d Annaba Badji Mokhtar"]
["U. Annaba","Université_d_Annaba_Badji_Mokhtar","Toxicologie Cellulaire","علم الثسمم الخلوي",null,"Université d Annaba Badji Mokhtar"]
["U. Annaba","Université_d_Annaba_Badji_Mokhtar","Traduction Et Didactique Des Langues","الترجمة وتعليمية اللغات",null,"Université d Annaba Badji Mokhtar"]
["U. Annaba","Université_d_Annaba_Badji_Mokhtar","Traitement Des Eaux Et Valorisation Des Déchets Industriels","مخبر تطهير المياه و تثمين الفضلات الصناعية",null,"Université d Annaba Badji Mokhtar"]
["U. Annaba","Université_d_Annaba_Badji_Mokhtar","Valorisation Des Ressources Minières Et Environnement","إثراء الموارد المنجمية والبيئة",null,"Université d Annaba Badji Mokhtar"]
["U. Annaba","Université_d_Annaba_Badji_Mokhtar","Violence, Éducation Et Criminalité Dans La Société","مخبر التربية الانحراف والجريمة في المجتمع",null,"Université d Annaba Badji Mokhtar"]
["U. El Oued","Université_d_El_Oued_Hamma_Lakhdar","Algerian Scientists Contributions To Enrich The Islamic Studies","إسهامات علماء الجزائر في إثراء العلوم الإسلامية",null,"Université d El Oued Hamma Lakhdar"]
["U. El Oued","Université_d_El_Oued_Hamma_Lakhdar","Économie De L'Énergie Renouvelable Et De Son Rôle Dans La Réalisation Développement Durable","اقتصاديات الطاقات المتجددة ودورها في تحقيق التنمية المستدامة",null,"Université d El Oued Hamma Lakhdar"]
["U. El Oued","Université_d_El_Oued_Hamma_Lakhdar","Economie Politique entre Développement Economique et Défis Politiques des Pays Arabes et Africains","الاقتصاد السياسي بين التنمية الاقتصادية والتحديات السياسية للدول العربية والإفريقية",null,"Université d El Oued Hamma Lakhdar"]
["U. El Oued","Université_d_El_Oued_Hamma_Lakhdar","Etudes Doctrinales Et Judiciaires","الدراسات الفقهية و القضائية",null,"Université d El Oued Hamma Lakhdar"]
["U. El Oued","Université_d_El_Oued_Hamma_Lakhdar","Exploitation Et Valorisation Des Ressources Énergétiques Sahariennes","استغلال وتثمين المصادر الطاقوية الصحراوية",null,"Université d El Oued Hamma Lakhdar"]
["U. El Oued","Université_d_El_Oued_Hamma_Lakhdar","Intégration Cognitive Entre Des Sciences De La Langue Et La Littérature Arabe Et Les Sciences Sociales","التكامل المعرفي بين علوم اللغة العربية و آدابها و العلوم الاجتماعية",null,"Université d El Oued Hamma Lakhdar"]
["U. El Oued","Université_d_El_Oued_Hamma_Lakhdar","La Croissance Et Le Développement Économique Dans Les Pays Arabes","النمو و التنمية الاقتصادية في الدول العربية",null,"Université d El Oued Hamma Lakhdar"]
["U. El Oued","Université_d_El_Oued_Hamma_Lakhdar","Neuropsychologie Cognitive Et Sociale","علم النفس العصبي المعرفي والاجتماعي",null,"Université d El Oued Hamma Lakhdar"]
["U. El Oued","Université_d_El_Oued_Hamma_Lakhdar","Politique De Détective Et D'Améliorer Le Service Public En Algérie","السياسات العامة و تحسين الخدمة العمومية في الجزائر",null,"Université d El Oued Hamma Lakhdar"]
["U. El Oued","Université_d_El_Oued_Hamma_Lakhdar","Recherches Et Critique(S) En Littérature Algériennes","بحوث في الأدب الجزائري ونقده",null,"Université d El Oued Hamma Lakhdar"]
["U. El Oued","Université_d_El_Oued_Hamma_Lakhdar","Théorie Des Opérateurs Et EDP","نظرية المؤثرات و المعادلات التفاضلية الجزئية أساسيات و تطبيقات",null,"Université d El Oued Hamma Lakhdar"]
["U. El Oued","Université_d_El_Oued_Hamma_Lakhdar","Unité De Recherche : Développement Des Énergies Renouvelable Dans Les Zones Arides","وحدة تطوير الطاقات المتجددة في المناطق القاحلة",null,"Université d El Oued Hamma Lakhdar"]
["U. El Oued","Université_d_El_Oued_Hamma_Lakhdar","Valorisation Et Technologie Des Ressources Sahariennes","الموارد الصحراوية تثمينها و تكنولوجيتها",null,"Université d El Oued Hamma Lakhdar"]
["U. El Tarf","Université_d_El_Tarf_Chadli_Bendjedid","Agriculture Et Fonctionnement Des Écosystèmes","الزراعة و أداء النظم الإيكولوجية",null,"Université d El Tarf Chadli Bendjedid"]
["U. El Tarf","Université_d_El_Tarf_Chadli_Bendjedid","Biodiversité Et La Pollution Des Écosystèmes","مخبر التنوع و التلوث البيئي",null,"Université d El Tarf Chadli Bendjedid"]
["U. El Tarf","Université_d_El_Tarf_Chadli_Bendjedid","Développement Local Durable : Agriculture, Développement Rural Et Écotourisme","التنمية المحلية المستدامة : الزراعة ،التنمية الريفية والسياحة الايكولوجية",null,"Université d El Tarf Chadli Bendjedid"]
["U. El Tarf","Université_d_El_Tarf_Chadli_Bendjedid","Ecologie Fonctionnelle Et Évolutive","علم الوظيفية والتطورية علم البيئة",null,"Université d El Tarf Chadli Bendjedid"]
["U. El Tarf","Université_d_El_Tarf_Chadli_Bendjedid","Epidémio-Surveillance, Santé, Production Et Reproduction Expérimentation Et Thérapie Cellulaire Des Animaux","مراقبة العدوة ـ الصحة ـ إنتاج وإعادة إنتاج التجربة والمعالجة الخلوية للحيوانات الأليفة والمتوحشة",null,"Université d El Tarf Chadli Bendjedid"]
["U. El Tarf","Université_d_El_Tarf_Chadli_Bendjedid","Patrimoine Et Études Linguistiques","الثراث و الدراسات اللسانية",null,"Université d El Tarf Chadli Bendjedid"]
["U. El Tarf","Université_d_El_Tarf_Chadli_Bendjedid","Physico-Chimie Des Matériaux","الفيزياء الكيميائي للمواد",null,"Université d El Tarf Chadli Bendjedid"]
["U. Oran-1-","Université_d_Oran_1_Ahmed_Ben_Bella","Accidentologie Pédiatrique","الحوادث عند الطفولة",null,"Université d Oran 1 Ahmed Ben Bella"]
["U. Oran-1-","Université_d_Oran_1_Ahmed_Ben_Bella","Analyse Et Conception De Modèles Médiatiques En Histoire, Économie, Sociologie, Politique","مخبر تحليل و تصميم النماذج الإعلامية في التاريخ ٬ الاقتصاد٬ الاجتماع ٬ السياسة",null,"Université d Oran 1 Ahmed Ben Bella"]
["U. Oran-1-","Université_d_Oran_1_Ahmed_Ben_Bella","Analyse Mathématique Et Applications","مخبر التحليل الرياضياتي و التطبيقات",null,"Université d Oran 1 Ahmed Ben Bella"]
["U. Oran-1-","Université_d_Oran_1_Ahmed_Ben_Bella","Aquaculture Et De Bioremédiation","مخبر تربية المائيات و الإستصلاح البيولوجي",null,"Université d Oran 1 Ahmed Ben Bella"]
["U. Oran-1-","Université_d_Oran_1_Ahmed_Ben_Bella","Architectures Parallèles, Embarquées Et Calcul Intensif","مخبر الهياكل المتوازية٬ المحمولة و الحساب المكثف",null,"Université d Oran 1 Ahmed Ben Bella"]
["U. Oran-1-","Université_d_Oran_1_Ahmed_Ben_Bella","Archivage Du Théâtre Algérien Et Élaboration D'Un Répertoire Et Dictionnaire Des Hommes De Théâtre En Algérie","أرشقة المسرح الجزائري و إنجاز دليل و قاموس لرجال المسرح في الجزائر",null,"Université d Oran 1 Ahmed Ben Bella"]
["U. Oran-1-","Université_d_Oran_1_Ahmed_Ben_Bella","Biologie Buccale","بيولوجية الجوفية",null,"Université d Oran 1 Ahmed Ben Bella"]
["U. Oran-1-","Université_d_Oran_1_Ahmed_Ben_Bella","Biologie De Micro-Organismes Et Biotechnologie","مختبر علم الأحياء الكائنات الحية الدقيقة و التكنولوجيا الحيوية",null,"Université d Oran 1 Ahmed Ben Bella"]
["U. Oran-1-","Université_d_Oran_1_Ahmed_Ben_Bella","Biologie Du Développement Et De Différenciation","مخبر بيولوجيا التطور و التمايز",null,"Université d Oran 1 Ahmed Ben Bella"]
["U. Oran-1-","Université_d_Oran_1_Ahmed_Ben_Bella","Biotechnologies Des Rhizobia Et Amélioration Des Plantes","بيتكنولوجيا الريزوبيا و تحسين النباتات",null,"Université d Oran 1 Ahmed Ben Bella"]
["U. Oran-1-","Université_d_Oran_1_Ahmed_Ben_Bella","Biotoxicologie Expérimental De Bio Dépollution Et De Pyttoremédiation","بیولوجیا التسمم التجریبي، نزع الملوثات والاصلاح النباتي",null,"Université d Oran 1 Ahmed Ben Bella"]
["U. Oran-1-","Université_d_Oran_1_Ahmed_Ben_Bella","Chimie Des Matériaux","مخبر كيمياء المواد",null,"Université d Oran 1 Ahmed Ben Bella"]
["U. Oran-1-","Université_d_Oran_1_Ahmed_Ben_Bella","Chimie Des Polymères","مخبر كيمياء المبلملراث",null,"Université d Oran 1 Ahmed Ben Bella"]
["U. Oran-1-","Université_d_Oran_1_Ahmed_Ben_Bella","Chimie Fine","الكيمياء الدقيقة",null,"Université d Oran 1 Ahmed Ben Bella"]
["U. Oran-1-","Université_d_Oran_1_Ahmed_Ben_Bella","Chimie Physique Macromoléculaire","مخبر الكيمباء الفيزيائية للجزيئات الكلية",null,"Université d Oran 1 Ahmed Ben Bella"]
["U. Oran-1-","Université_d_Oran_1_Ahmed_Ben_Bella","Communication De Masse Et Sémiologie Des Systèmes Visuels","الإتصال الجماهيري وسيميولوجية الأنظمة البصرية",null,"Université d Oran 1 Ahmed Ben Bella"]
["U. Oran-1-","Université_d_Oran_1_Ahmed_Ben_Bella","Développement Pharmaceutique","ﻤﺧﺒﺮ ﺍﻷﺒﺤﺎﺚ ﻓﻲ ﺍﻠﺘﻂﻮﻳﺮ ﺍﻠﺻﻴﺪﻻﻨﻲ",null,"Université d Oran 1 Ahmed Ben Bella"]
["U. Oran-1-","Université_d_Oran_1_Ahmed_Ben_Bella","Dialectes Et Traitement De La Parole","اللهجات و معالجة الكلام",null,"Université d Oran 1 Ahmed Ben Bella"]
["U. Oran-1-","Université_d_Oran_1_Ahmed_Ben_Bella","Didactique De La Traduction Et Multi-Linguisme","تعليمية الترجمة وتعدد الألسن",null,"Université d Oran 1 Ahmed Ben Bella"]
["U. Oran-1-","Université_d_Oran_1_Ahmed_Ben_Bella","Discours Littéraire En Algérie","الخطاب الأدبي في الجزائر",null,"Université d Oran 1 Ahmed Ben Bella"]
["U. Oran-1-","Université_d_Oran_1_Ahmed_Ben_Bella","Enseignement Et Recherche En Maladies Émergentes Et Ré Émergentes","التدريس والبحث في الأمراض الناشئة و التي تعود للظهور",null,"Université d Oran 1 Ahmed Ben Bella"]
["U. Oran-1-","Université_d_Oran_1_Ahmed_Ben_Bella","Environnement, Épidémiologie Et Santé De L'Enfant","المحيط ٬ الوباء و الصحة عند الطفل",null,"Université d Oran 1 Ahmed Ben Bella"]
["U. Oran-1-","Université_d_Oran_1_Ahmed_Ben_Bella","Etude Des Matériaux, Optoélectronique Et Polymères","مخبر بحث دراسة المواد البصرية ، والإلكترونية و المبلمرات",null,"Université d Oran 1 Ahmed Ben Bella"]
["U. Oran-1-","Université_d_Oran_1_Ahmed_Ben_Bella","Etudes Coraniques Et Finalités","الدراسات القرآنية و المقاصدية",null,"Université d Oran 1 Ahmed Ben Bella"]
["U. Oran-1-","Université_d_Oran_1_Ahmed_Ben_Bella","Études Des Sciences De L'Environnement Et Des Matériaux","مختبر العلوم البيئية والمواد",null,"Université d Oran 1 Ahmed Ben Bella"]
["U. Oran-1-","Université_d_Oran_1_Ahmed_Ben_Bella","Etudes Maghrébines, Les Élites Et La Construction De L’État National","الدراسات المغاربية، النخب وبناء الدولة الوطنية",null,"Université d Oran 1 Ahmed Ben Bella"]
["U. Oran-1-","Université_d_Oran_1_Ahmed_Ben_Bella","Etudes Sur Les Domaines D'Al Ijaz : Patrimoine Classique Et Contemporain","الأبحاث و الدراسات في قضايا الإعجاز : تراث و معاصرة",null,"Université d Oran 1 Ahmed Ben Bella"]
["U. Oran-1-","Université_d_Oran_1_Ahmed_Ben_Bella","Expérimentation D'Une Nouvelle Approche D'Évaluation Dans Les Services De La Santé","تجريب مقاربة جديدة للتقييم في المصالح الصحية",null,"Université d Oran 1 Ahmed Ben Bella"]
["U. Oran-1-","Université_d_Oran_1_Ahmed_Ben_Bella","Génétique Médicale Appliquée À L'Ophtalmologie","علم الوراثة في طب العيون",null,"Université d Oran 1 Ahmed Ben Bella"]
["U. Oran-1-","Université_d_Oran_1_Ahmed_Ben_Bella","Génétique Microbienne","البيولوجية الجزئية و الوراثية للكائنات الدقيقة",null,"Université d Oran 1 Ahmed Ben Bella"]
["U. Oran-1-","Université_d_Oran_1_Ahmed_Ben_Bella","Géométrie Et Analyse","مخبر الهندسة و التحليل",null,"Université d Oran 1 Ahmed Ben Bella"]
["U. Oran-1-","Université_d_Oran_1_Ahmed_Ben_Bella","Histoire De L’Algérie","تاريخ الجزائر",null,"Université d Oran 1 Ahmed Ben Bella"]
["U. Oran-1-","Université_d_Oran_1_Ahmed_Ben_Bella","Image De La Révolution Algérienne Dans La Littérature Arabe Et Universelle","صورة الثورة الجزائرية في الأدبين العربي و العالمي",null,"Université d Oran 1 Ahmed Ben Bella"]
["U. Oran-1-","Université_d_Oran_1_Ahmed_Ben_Bella","Informatique D'Oran","مخبر الإعلام الألي لوهران",null,"Université d Oran 1 Ahmed Ben Bella"]
["U. Oran-1-","Université_d_Oran_1_Ahmed_Ben_Bella","Informatique Et Des Technologies De L'Information","الإعلام الآلي و تكنولوجيات المعلومات بوهران",null,"Université d Oran 1 Ahmed Ben Bella"]
["U. Oran-1-","Université_d_Oran_1_Ahmed_Ben_Bella","Informatique Industrielle Et Réseaux","الحوسبة الصناعية و الشبكات",null,"Université d Oran 1 Ahmed Ben Bella"]
["U. Oran-1-","Université_d_Oran_1_Ahmed_Ben_Bella","La Sémantique Dans Les Niveaux Linguistique Dans Le Patrimoine Littéraire Algérien","الدلالة في المستويات اللسانية في التراث الأدبي الجزائري",null,"Université d Oran 1 Ahmed Ben Bella"]
["U. Oran-1-","Université_d_Oran_1_Ahmed_Ben_Bella","Langue Arabe Et La Communication","اللغة العربية والإتصال",null,"Université d Oran 1 Ahmed Ben Bella"]
["U. Oran-1-","Université_d_Oran_1_Ahmed_Ben_Bella","Linguistique Et Analyse Du Discours","اللسانيات وتحليل الخطاب",null,"Université d Oran 1 Ahmed Ben Bella"]
["U. Oran-1-","Université_d_Oran_1_Ahmed_Ben_Bella","Littérature Populaire En Algérie \"Collecte Et Étude\"","الأدب الشعبي في الجزائر - جمع و دراسة -",null,"Université d Oran 1 Ahmed Ben Bella"]
["U. Oran-1-","Université_d_Oran_1_Ahmed_Ben_Bella","Manuscrits De La Civilisation Islamique En Afrique Du Nord","مخطوطات الحضارة الإسلامية في شمال إفريقيا",null,"Université d Oran 1 Ahmed Ben Bella"]
["U. Oran-1-","Université_d_Oran_1_Ahmed_Ben_Bella","Mathématiques Et Ses Applications","الرياضيات وتطبيقاتها",null,"Université d Oran 1 Ahmed Ben Bella"]
["U. Oran-1-","Université_d_Oran_1_Ahmed_Ben_Bella","Mathématiques Fondamentales Et Appliquées D'Oran","مخبر الرياضيات الأساسية و التطبيقية لوهران",null,"Université d Oran 1 Ahmed Ben Bella"]
["U. Oran-1-","Université_d_Oran_1_Ahmed_Ben_Bella","Microbiologie Appliquée","مخبر الميكروبيولوجيا التطبيقية",null,"Université d Oran 1 Ahmed Ben Bella"]
["U. Oran-1-","Université_d_Oran_1_Ahmed_Ben_Bella","Nutrition Clinique Et Métabolique","أبحات في التغدية الكلينيكية و تحولاتها",null,"Université d Oran 1 Ahmed Ben Bella"]
["U. Oran-1-","Université_d_Oran_1_Ahmed_Ben_Bella","Odontologie Conservatrice Et Endodontie","علاج الاسنان التحفظي و أمراض القلب",null,"Université d Oran 1 Ahmed Ben Bella"]
["U. Oran-1-","Université_d_Oran_1_Ahmed_Ben_Bella","Pédagogie Et Développement En Didactique Des Sciences Médicales","مخبر البيداغوجية و تطوير التعلم في العلوم الطبية",null,"Université d Oran 1 Ahmed Ben Bella"]
["U. Oran-1-","Université_d_Oran_1_Ahmed_Ben_Bella","Physiologie De La Nutrition Et Sécurité Alimentaire","فيزيولوجيا التغذية و الأمن الغذائي",null,"Université d Oran 1 Ahmed Ben Bella"]
["U. Oran-1-","Université_d_Oran_1_Ahmed_Ben_Bella","Physique Des Couches Minces Et Matériaux Pour L'Électronique","مخبر فيزياء الطبقات الرقيقة و مواد للإلكترونيك",null,"Université d Oran 1 Ahmed Ben Bella"]
["U. Oran-1-","Université_d_Oran_1_Ahmed_Ben_Bella","Physique Théorique","مخبر الفيزياء النظرية لوهران",null,"Université d Oran 1 Ahmed Ben Bella"]
["U. Oran-1-","Université_d_Oran_1_Ahmed_Ben_Bella","Prise En Charge De La Douleur Chronique À L’Ouest Algérien","إدارة الألم المزمن في الغرب الجزائري",null,"Université d Oran 1 Ahmed Ben Bella"]
["U. Oran-1-","Université_d_Oran_1_Ahmed_Ben_Bella","Répertoire Et Archivage Des Films Révolutionnaires Dans Le Cinéma Algérien","فهرس الأفلام الثورية في السينما الجزائرية وأرشفتها",null,"Université d Oran 1 Ahmed Ben Bella"]
["U. Oran-1-","Université_d_Oran_1_Ahmed_Ben_Bella","Réseau De Surveillance Environnementale","مخبر شبكة حراسة البيئية",null,"Université d Oran 1 Ahmed Ben Bella"]
["U. Oran-1-","Université_d_Oran_1_Ahmed_Ben_Bella","Santé Et Environnement","مخبر بحث في الصحة و البيئة",null,"Université d Oran 1 Ahmed Ben Bella"]
["U. Oran-1-","Université_d_Oran_1_Ahmed_Ben_Bella","Sciences Criminelles","مخبر بحث في العلوم الجنائية",null,"Université d Oran 1 Ahmed Ben Bella"]
["U. Oran-1-","Université_d_Oran_1_Ahmed_Ben_Bella","Sciences De La Matière Condensée","علوم المواد المكثفة",null,"Université d Oran 1 Ahmed Ben Bella"]
["U. Oran-1-","Université_d_Oran_1_Ahmed_Ben_Bella","Sémiotique Et Analyse Du Discours","السيميائيات و تحليل الخطاب",null,"Université d Oran 1 Ahmed Ben Bella"]
["U. Oran-1-","Université_d_Oran_1_Ahmed_Ben_Bella","Sources Et Biographies","مخبر البحث التاريخي مصادر وتراجم",null,"Université d Oran 1 Ahmed Ben Bella"]
["U. Oran-1-","Université_d_Oran_1_Ahmed_Ben_Bella","Surveillance Des Accidents Vasculaires Cérébraux","رصد السكتة الدماغية",null,"Université d Oran 1 Ahmed Ben Bella"]
["U. Oran-1-","Université_d_Oran_1_Ahmed_Ben_Bella","Surveillance Des Infections Liées Aux Soins À Oran","مراقبة الامراض الناتجة عن العلاج بوهران",null,"Université d Oran 1 Ahmed Ben Bella"]
["U. Oran-1-","Université_d_Oran_1_Ahmed_Ben_Bella","Surveillance Du Cancer","حراسة مرض السرطان",null,"Université d Oran 1 Ahmed Ben Bella"]
["U. Oran-1-","Université_d_Oran_1_Ahmed_Ben_Bella","Synthèse Organique Appliquée","مختبر التركيب العضوي التطبيقي",null,"Université d Oran 1 Ahmed Ben Bella"]
["U. Oran-1-","Université_d_Oran_1_Ahmed_Ben_Bella","Systèmes D'Information En Santé","نظام الإعلام في الصحة",null,"Université d Oran 1 Ahmed Ben Bella"]
["U. Oran-1-","Université_d_Oran_1_Ahmed_Ben_Bella","Systèmes D'Information Et Des Archives En Algérie Mutations Technologiques, Pratiques Professionnelles Et Normes Internationales","مخبر بحث في أنظمة المعلومات و الأرشيف في الجزائرالتكنولوجية ٬ممارسات مهنية والمعايير الدولية",null,"Université d Oran 1 Ahmed Ben Bella"]
["U. Oran-1-","Université_d_Oran_1_Ahmed_Ben_Bella","Techniques Innovantes En Médecine","المخبر الجزائري للبحث في التكنولوجيات العصرية في الطب",null,"Université d Oran 1 Ahmed Ben Bella"]
["U. Oran-1-","Université_d_Oran_1_Ahmed_Ben_Bella","Technologie Et Biomatériaux Dentaires","التكنولوجيا و المواد البيولوجية",null,"Université d Oran 1 Ahmed Ben Bella"]
["U. Oran-1-","Université_d_Oran_1_Ahmed_Ben_Bella","Traduction Et Typologie Des Textes","الترجمة و أنواع النصوص",null,"Université d Oran 1 Ahmed Ben Bella"]
["U. Oran-2-","Université_d_Oran_2_Mohamed_Ben_Ahmed","Application De La Psychologie Et De La Pédagogie Pour Le Développement En Algérie","تطبيقات علوم النفس و علوم التربية من أجل التنمية في الجزائر",null,"Université d Oran 2 Mohamed Ben Ahmed"]
["U. Oran-2-","Université_d_Oran_2_Mohamed_Ben_Ahmed","Création D'Outils Pédagogiques En Langues Étrangères","الأدوات البيداغوجية في اللغات الأجنبية",null,"Université d Oran 2 Mohamed Ben Ahmed"]
["U. Oran-2-","Université_d_Oran_2_Mohamed_Ben_Ahmed","Développement, Culture Et Politique : Cas De La Ville D'Oran","التطور، الثقافة والسياسة وهران نموذجا",null,"Université d Oran 2 Mohamed Ben Ahmed"]
["U. Oran-2-","Université_d_Oran_2_Mohamed_Ben_Ahmed","Dimensions Et Valeurs Des Transformations Idéologiques Et Politiques En Algérie","مخبر الأبعاد القيمية للتحولات الفكرية والسياسية بالجزائر",null,"Université d Oran 2 Mohamed Ben Ahmed"]
["U. Oran-2-","Université_d_Oran_2_Mohamed_Ben_Ahmed","Droit De Transport Et Des Activités Portuaires","مخبر قانون النقل والنشاطات المينائية",null,"Université d Oran 2 Mohamed Ben Ahmed"]
["U. Oran-2-","Université_d_Oran_2_Mohamed_Ben_Ahmed","Droit Économique Et Environnement","مخبر القانون الإقتصادي و البيئة",null,"Université d Oran 2 Mohamed Ben Ahmed"]
["U. Oran-2-","Université_d_Oran_2_Mohamed_Ben_Ahmed","Droit Social","مخبر القانون الإجتماعي",null,"Université d Oran 2 Mohamed Ben Ahmed"]
["U. Oran-2-","Université_d_Oran_2_Mohamed_Ben_Ahmed","Droit, Société Et Pouvoir","القانون، المجتمع والسلطة",null,"Université d Oran 2 Mohamed Ben Ahmed"]
["U. Oran-2-","Université_d_Oran_2_Mohamed_Ben_Ahmed","Dynamiques Urbaines Et Évolution Sociale En Algérie","الديناميات الحضرية والتطور الاجتماعي في الجزائر",null,"Université d Oran 2 Mohamed Ben Ahmed"]
["U. Oran-2-","Université_d_Oran_2_Mohamed_Ben_Ahmed","Economie Et Gestion Des Entreprises","مخبر البحث في الإقتصاد و تسيير المؤسسات",null,"Université d Oran 2 Mohamed Ben Ahmed"]
["U. Oran-2-","Université_d_Oran_2_Mohamed_Ben_Ahmed","Economies Euro-Méditérranéennes","مخبر البحث حول إقتصاديات الأورو متوسطية",null,"Université d Oran 2 Mohamed Ben Ahmed"]
["U. Oran-2-","Université_d_Oran_2_Mohamed_Ben_Ahmed","Education Et Développement","مخبر التربية و التنمية",null,"Université d Oran 2 Mohamed Ben Ahmed"]
["U. Oran-2-","Université_d_Oran_2_Mohamed_Ben_Ahmed","Entreprise Et Commerce","المؤسسات و التجارة",null,"Université d Oran 2 Mohamed Ben Ahmed"]
["U. Oran-2-","Université_d_Oran_2_Mohamed_Ben_Ahmed","Ergonomie Et Prévention Des Risques","مخبر الأرغونوميا والوقاية من الأخطار",null,"Université d Oran 2 Mohamed Ben Ahmed"]
["U. Oran-2-","Université_d_Oran_2_Mohamed_Ben_Ahmed","Espace Géographique Et Aménagement Du Territoire","الفضاء الجغرافي و التهيئة القطرية",null,"Université d Oran 2 Mohamed Ben Ahmed"]
["U. Oran-2-","Université_d_Oran_2_Mohamed_Ben_Ahmed","Géodynamique Des Bassins Et Bilan Sédimentaire","جيوديناميكية الأحواض و الحصيلة الرسوبية",null,"Université d Oran 2 Mohamed Ben Ahmed"]
["U. Oran-2-","Université_d_Oran_2_Mohamed_Ben_Ahmed","Géoressources, Environnement Et Risques Naturels","مخبر الموارد الجيولوجية، البيئة و المخاطر الطبيعية",null,"Université d Oran 2 Mohamed Ben Ahmed"]
["U. Oran-2-","Université_d_Oran_2_Mohamed_Ben_Ahmed","Ingénierie De La Sécurité Industrielle Et Du Développement Durable","هندسة الأمن الصناعية والتنمية المستدامة",null,"Université d Oran 2 Mohamed Ben Ahmed"]
["U. Oran-2-","Université_d_Oran_2_Mohamed_Ben_Ahmed","Investissement Et Développement Durable","الاستثمار و التنمية المستدامة",null,"Université d Oran 2 Mohamed Ben Ahmed"]
["U. Oran-2-","Université_d_Oran_2_Mohamed_Ben_Ahmed","Langue Française Au Maghreb, Pratiques De Suivi Et Évaluation De Compétences En Francophonie","اللغة الفرنسية في المغرب العربي رصد الممارسات و تقييم المهارات في الفرنكوفونية",null,"Université d Oran 2 Mohamed Ben Ahmed"]
["U. Oran-2-","Université_d_Oran_2_Mohamed_Ben_Ahmed","Langue, Discours, Civilisations Et Littératures","اللغة-الخطاب-الحضارات و الآداب",null,"Université d Oran 2 Mohamed Ben Ahmed"]
["U. Oran-2-","Université_d_Oran_2_Mohamed_Ben_Ahmed","Langues, Littératures Et Civilisation/Histoires En Afrique","مخبر اللغات و الآداب و الحضارة/التاريخ في إفريقيا",null,"Université d Oran 2 Mohamed Ben Ahmed"]
["U. Oran-2-","Université_d_Oran_2_Mohamed_Ben_Ahmed","Linguistique, Dynamique Du Langage Et Didactique","مخبر في اللسانـيات ، ديناميكية اللغات و التعليمية",null,"Université d Oran 2 Mohamed Ben Ahmed"]
["U. Oran-2-","Université_d_Oran_2_Mohamed_Ben_Ahmed","Lmd Des Langues Étrangères Appliquées, Sciences Exactes, Technologie Et Développement","ل.م.د اللغات الأجنبية الخاصة العلوم الدقيقة التكنولوجية و التنمية",null,"Université d Oran 2 Mohamed Ben Ahmed"]
["U. Oran-2-","Université_d_Oran_2_Mohamed_Ben_Ahmed","Macro-Économie Organisationnelle","مخبر الاقتصاد الكلي التنظيمي",null,"Université d Oran 2 Mohamed Ben Ahmed"]
["U. Oran-2-","Université_d_Oran_2_Mohamed_Ben_Ahmed","Moyens D'Investigation Et Techniques Thérapeutiques Des Troubles Du Comportement","وسائل التقصي و تقنيات العلاج للاضطرابات السلوكية",null,"Université d Oran 2 Mohamed Ben Ahmed"]
["U. Oran-2-","Université_d_Oran_2_Mohamed_Ben_Ahmed","Paléontologie Stratigraphique Et Paléoenvironnement","علم المستحثات الإستراتجية و البيئية",null,"Université d Oran 2 Mohamed Ben Ahmed"]
["U. Oran-2-","Université_d_Oran_2_Mohamed_Ben_Ahmed","Philosophie Et Histoire Du Temps Présent","مخبر الفلسفة وتاريخ الزمن الحاضر",null,"Université d Oran 2 Mohamed Ben Ahmed"]
["U. Oran-2-","Université_d_Oran_2_Mohamed_Ben_Ahmed","Philosophie Et Son Histoire","مخبر الفلسفة وتاريخها",null,"Université d Oran 2 Mohamed Ben Ahmed"]
["U. Oran-2-","Université_d_Oran_2_Mohamed_Ben_Ahmed","Philosophie, Sciences Et Développement En Algérie","فلسة، علوم والتنمية بالجزائر",null,"Université d Oran 2 Mohamed Ben Ahmed"]
["U. Oran-2-","Université_d_Oran_2_Mohamed_Ben_Ahmed","Processus Éducatifs Et Contexte Social En Algérie","مخبر العمليات التربوية و السياق الإجتماعي في الجزائر",null,"Université d Oran 2 Mohamed Ben Ahmed"]
["U. Oran-2-","Université_d_Oran_2_Mohamed_Ben_Ahmed","Protection Juridique Et Sociale De L'Enfant En Droit Algérien Et En Droit Comparé","الحماية القانونية و الإجتماعية للطفل في القانون الجزائري و القانون المقارن",null,"Université d Oran 2 Mohamed Ben Ahmed"]
["U. Oran-2-","Université_d_Oran_2_Mohamed_Ben_Ahmed","Psychologie Et Sciences De L'Éducation","مخبر البحث في علم النفس وعلوم التربية",null,"Université d Oran 2 Mohamed Ben Ahmed"]
["U. Oran-2-","Université_d_Oran_2_Mohamed_Ben_Ahmed","Recherche Appliquée Sur La Firme, L'Industrie Et Le Territoire","مخبر البحث التطبيقي على المؤسسة و الصناعة والإقليم",null,"Université d Oran 2 Mohamed Ben Ahmed"]
["U. Oran-2-","Université_d_Oran_2_Mohamed_Ben_Ahmed","Réformes Économiques Et Intégration Régionale Et Internationale","مخبر الإصلاحات الاقتصادية والإندماج الجهوي والدولي",null,"Université d Oran 2 Mohamed Ben Ahmed"]
["U. Oran-2-","Université_d_Oran_2_Mohamed_Ben_Ahmed","Stratégies De Population Et Développement Durable","استراتيجيات السكان و التنمية المستدامة",null,"Université d Oran 2 Mohamed Ben Ahmed"]
["U. Oran-2-","Université_d_Oran_2_Mohamed_Ben_Ahmed","Systèmes, Structures, Modèles Et Pratiques : Philosophie, Sciences Sociales Et Traduction","الأنسياق ٬البنيات ٬ والنماذج والممارسات: الفلسفة والعلوم الاجتماعية والترجمة",null,"Université d Oran 2 Mohamed Ben Ahmed"]
["U. Oran-2-","Université_d_Oran_2_Mohamed_Ben_Ahmed","Traduction Et Méthodologie","مخبر البحت الترجمة و المنهجية",null,"Université d Oran 2 Mohamed Ben Ahmed"]
["U. Oran-2-","Université_d_Oran_2_Mohamed_Ben_Ahmed","Unité De Recherche : Sciences Sociales (Remplace Lr2001 \"Anthropologie De La Santé\")","وحدة البحث في العلوم الاجتماعية و الصحة",null,"Université d Oran 2 Mohamed Ben Ahmed"]
["U. Batna-1-","Université_de_Batna_1_El_Hadj_Lakhdar","Algérie : Histoire Culture Et Société","دراسات في التاريخ والثقافة والمجتمع",null,"Université de Batna 1 El Hadj Lakhdar"]
["U. Batna-1-","Université_de_Batna_1_El_Hadj_Lakhdar","Amélioration Des Productions Agricoles Et Protection Des Écosystèmes En Zones Arides","مخبر تحسين المنتجات الفلاحية و حماية الأنظمة البيئية فى المناطق الجافة",null,"Université de Batna 1 El Hadj Lakhdar"]
["U. Batna-1-","Université_de_Batna_1_El_Hadj_Lakhdar","Amélioration Des Techniques De Protection Phytosanitaires En Agro-Systèmes Montagneux: Cas Des Aurès","مخبر تطوير تقنيات وقاية النباتات في الأنظمة الزراعية الجبلية: حالة منطقة الأوراس",null,"Université de Batna 1 El Hadj Lakhdar"]
["U. Batna-1-","Université_de_Batna_1_El_Hadj_Lakhdar","Applications Psychologiques Dans Le Milieu Carcéral","التطبيقات النفسية في الوسط العقابي",null,"Université de Batna 1 El Hadj Lakhdar"]
["U. Batna-1-","Université_de_Batna_1_El_Hadj_Lakhdar","Architecture, Urbanisme Et Transport : Habitat, Paysage Et Mobilité Urbaine","مخبر الهندسة المعمارية و العمران والنقل الحضري: سكن، منظر وحركة حضرية",null,"Université de Batna 1 El Hadj Lakhdar"]
["U. Batna-1-","Université_de_Batna_1_El_Hadj_Lakhdar","Banque Des Tests Psychologiques, Scolaires Et Professionnels","بنك الاختبارات النفسية والمدرسية والمهنية",null,"Université de Batna 1 El Hadj Lakhdar"]
["U. Batna-1-","Université_de_Batna_1_El_Hadj_Lakhdar","Chimie Des Matériaux Et Des Vivants: Activité Et Réactivité","مخبر كيمياء المـواد و الأحياء: الفاعلية و النشاط الكيميائي",null,"Université de Batna 1 El Hadj Lakhdar"]
["U. Batna-1-","Université_de_Batna_1_El_Hadj_Lakhdar","Chimie Et Chimie De L'Environnement","مخبـر الكيمياء وكيمياء البيئة",null,"Université de Batna 1 El Hadj Lakhdar"]
["U. Batna-1-","Université_de_Batna_1_El_Hadj_Lakhdar","Civilizational Comprehensive Understanding Of Islam And Purposes Of Sharia","مخبر الفقه الحضاري ومقاصد الشريعة",null,"Université de Batna 1 El Hadj Lakhdar"]
["U. Batna-1-","Université_de_Batna_1_El_Hadj_Lakhdar","Développement Des Systèmes De Qualité Globale Dans Les Établissements De L`Enseignement Supérieur Et Secondaire","مخبرتطوير نظم الجودة في مؤسسات التعليم العالي والثانوي",null,"Université de Batna 1 El Hadj Lakhdar"]
["U. Batna-1-","Université_de_Batna_1_El_Hadj_Lakhdar","Dialogue Des Civilisations Et Mondialisation ","مخبر حوار الحضارات و العولمة",null,"Université de Batna 1 El Hadj Lakhdar"]
["U. Batna-1-","Université_de_Batna_1_El_Hadj_Lakhdar","Dynamiques Sociales Dans Les Aurès","الديناميات الإجتماعية في الأوراس",null,"Université de Batna 1 El Hadj Lakhdar"]
["U. Batna-1-","Université_de_Batna_1_El_Hadj_Lakhdar","Economie D'Entreprise Et Gestion Appliquée","اقتصاد المؤسسة والتسيير التطبيقي",null,"Université de Batna 1 El Hadj Lakhdar"]
["U. Batna-1-","Université_de_Batna_1_El_Hadj_Lakhdar","Economies D’Investissements Des Énergies Renouvelables Et Stratégies De Financement Des Zones Éloignées","اقتصاديات استثمارات الطاقات المتجددة و استراتيجيات تمويل المناطق النائية",null,"Université de Batna 1 El Hadj Lakhdar"]
["U. Batna-1-","Université_de_Batna_1_El_Hadj_Lakhdar","Encyclopédie Algérienne Facile ","مخبر الموسوعة الجزائرية الميسرة",null,"Université de Batna 1 El Hadj Lakhdar"]
["U. Batna-1-","Université_de_Batna_1_El_Hadj_Lakhdar","Enfant, Ville Et Environnement","مخبر: الطفل، المدينة و البيئة",null,"Université de Batna 1 El Hadj Lakhdar"]
["U. Batna-1-","Université_de_Batna_1_El_Hadj_Lakhdar","Environnement, Santé Et Production Animale","المحيط والصحة والإنتاج الحيواني",null,"Université de Batna 1 El Hadj Lakhdar"]
["U. Batna-1-","Université_de_Batna_1_El_Hadj_Lakhdar","Etude Économique De L'Industrie Locale","مخبر الدراسات الإقتصادية للصناعة المحلية",null,"Université de Batna 1 El Hadj Lakhdar"]
["U. Batna-1-","Université_de_Batna_1_El_Hadj_Lakhdar","Etude Et Modélisation Des Phénomènes Architecturaux Et Urbains De L’Idée À L’Usage","مخبر دراسة و نمدجة الظواهر المعمارية و العمرانية من الفكرة إلى الاستعمال",null,"Université de Batna 1 El Hadj Lakhdar"]
["U. Batna-1-","Université_de_Batna_1_El_Hadj_Lakhdar","Etudes Économiques Maghrébines","مخبر الدراسات للإقتصاديات المغاربية",null,"Université de Batna 1 El Hadj Lakhdar"]
["U. Batna-1-","Université_de_Batna_1_El_Hadj_Lakhdar","Etudes Physico-Chimiques Des Matériaux","مخبر الدراسات الفيزيائية و الكيميائية للمواد",null,"Université de Batna 1 El Hadj Lakhdar"]
["U. Batna-1-","Université_de_Batna_1_El_Hadj_Lakhdar","Imaginaire Oral Entre La Civilisation De L'Oralité D’Un Côté, Et Les Civilisations De L’Écriture Et De L’Image De L’Autre","المتخيل الشفوي بين حضارة المشافهة من جهة، وحضارتي الكتابة والصورة من جهة أخرى",null,"Université de Batna 1 El Hadj Lakhdar"]
["U. Batna-1-","Université_de_Batna_1_El_Hadj_Lakhdar","Management-Transport-Logistique","إدارة - النقل - إمداد",null,"Université de Batna 1 El Hadj Lakhdar"]
["U. Batna-1-","Université_de_Batna_1_El_Hadj_Lakhdar","Mouvement National Algérien Et Révolution De Libération 1930 - 1962 ","مخبر الحركة الوطنية الجزائرية والثورة التحريرية 1962-1830",null,"Université de Batna 1 El Hadj Lakhdar"]
["U. Batna-1-","Université_de_Batna_1_El_Hadj_Lakhdar","Patrimoine Intellectuel Et Littérature En Algérie","الأبحاث في التراث الفكري و الأدبي بالجزائر",null,"Université de Batna 1 El Hadj Lakhdar"]
["U. Batna-1-","Université_de_Batna_1_El_Hadj_Lakhdar","Physique Des Rayonnements Et Leurs Interactions Avec La Matière","مخبر البحث في فيزياء الاشعاعات وتفاعلاتها مع المادة",null,"Université de Batna 1 El Hadj Lakhdar"]
["U. Batna-1-","Université_de_Batna_1_El_Hadj_Lakhdar","Physique Energétique Appliquée","مخبر الفيزياء الطاقوية المطبقة",null,"Université de Batna 1 El Hadj Lakhdar"]
["U. Batna-1-","Université_de_Batna_1_El_Hadj_Lakhdar","Poésie","مخبر الشعرية",null,"Université de Batna 1 El Hadj Lakhdar"]
["U. Batna-1-","Université_de_Batna_1_El_Hadj_Lakhdar","Psychologie De L'Usager De La Route","سيكولوجية مستعملي الطريق",null,"Université de Batna 1 El Hadj Lakhdar"]
["U. Batna-1-","Université_de_Batna_1_El_Hadj_Lakhdar","Sciences Des Aliments","مخبر علوم الأغذية",null,"Université de Batna 1 El Hadj Lakhdar"]
["U. Batna-1-","Université_de_Batna_1_El_Hadj_Lakhdar","Sciences Islamiques En Algérie ","العلوم الإسلامية في الجزائر",null,"Université de Batna 1 El Hadj Lakhdar"]
["U. Batna-1-","Université_de_Batna_1_El_Hadj_Lakhdar","Sécurité Humaine : Actualité, Enjeux Et Perspective","الأمن الإنساني، الواقع، الرهانات والآفاق",null,"Université de Batna 1 El Hadj Lakhdar"]
["U. Batna-1-","Université_de_Batna_1_El_Hadj_Lakhdar","Société Et La Famille","المجتمع والأسرة",null,"Université de Batna 1 El Hadj Lakhdar"]
["U. Batna-1-","Université_de_Batna_1_El_Hadj_Lakhdar","Unité Et Diversité Des Implications De La Sécurité Dans La Région Méditerranéenne","الأمن في منطقة المتوسط: إشكالية وحدة وتعدد المضامين",null,"Université de Batna 1 El Hadj Lakhdar"]
["U. Batna-2-","Université_de_Batna_2_Mustapha_Ben_Boulaid","Applications Des Mathématiques À L’Informatique Et À L’Électronique","مخبر تطبيقات الرياضيات في الإعلام الآلي والإلكترونيك",null,"Université de Batna 2 Mustapha Ben Boulaid"]
["U. Batna-2-","Université_de_Batna_2_Mustapha_Ben_Boulaid","Automatique Avancée Et Analyse Des Systèmes","الآليات المتقدمة و تحليل الأنظمة",null,"Université de Batna 2 Mustapha Ben Boulaid"]
["U. Batna-2-","Université_de_Batna_2_Mustapha_Ben_Boulaid","Automatique Et Productique","مخبـــــــــــــــــــــر: الآليــــــة و الإنتـــــاج الآلــــي",null,"Université de Batna 2 Mustapha Ben Boulaid"]
["U. Batna-2-","Université_de_Batna_2_Mustapha_Ben_Boulaid","Biotechnologie Des Molécules Bioactives Et De La Physiopathologie Cellulaire","بيوتكنولوجيا الجزيئات ذات النشاط البيولوجي و الأمراض الفيزيوخلوية",null,"Université de Batna 2 Mustapha Ben Boulaid"]
["U. Batna-2-","Université_de_Batna_2_Mustapha_Ben_Boulaid","Dimension Interculturelle Dans L'Enseignement Du Français Langue Étrangère","البعد الثقافي في لتدريس اللغة الفرنسية في الجزائر",null,"Université de Batna 2 Mustapha Ben Boulaid"]
["U. Batna-2-","Université_de_Batna_2_Mustapha_Ben_Boulaid","Electronique Avancée","مخبر الإلكترونيات المتطورة",null,"Université de Batna 2 Mustapha Ben Boulaid"]
["U. Batna-2-","Université_de_Batna_2_Mustapha_Ben_Boulaid","Electrotechnique De Batna","مخبر الكهرباء التقنية باتنة",null,"Université de Batna 2 Mustapha Ben Boulaid"]
["U. Batna-2-","Université_de_Batna_2_Mustapha_Ben_Boulaid","Equations Aux Dérivées Partielles Et Applications","المعادلات التفاضلیة الجزئیة وتطبیقاتھا",null,"Université de Batna 2 Mustapha Ben Boulaid"]
["U. Batna-2-","Université_de_Batna_2_Mustapha_Ben_Boulaid","Etudes Des Systèmes Énergétiques Industriels","مخبردراسة الأنظمة الطاقوية الصناعية",null,"Université de Batna 2 Mustapha Ben Boulaid"]
["U. Batna-2-","Université_de_Batna_2_Mustapha_Ben_Boulaid","Gestion Des Risques Liés Aux Infections Associées Aux Soins","مخبر تسيير مخاطر التعفنات المرتبطة بالعلاج",null,"Université de Batna 2 Mustapha Ben Boulaid"]
["U. Batna-2-","Université_de_Batna_2_Mustapha_Ben_Boulaid","Hépatites Virales","مخبر التهاب الكبد الفيروسي",null,"Université de Batna 2 Mustapha Ben Boulaid"]
["U. Batna-2-","Université_de_Batna_2_Mustapha_Ben_Boulaid","Hydraulique Appliquée","مخبر البحث في الري التطبيقي",null,"Université de Batna 2 Mustapha Ben Boulaid"]
["U. Batna-2-","Université_de_Batna_2_Mustapha_Ben_Boulaid","Innovation En Construction Éco-Conception Et Génie Sismique","مخبرتطوير الإبداع في التصميم البيئي للهياكل و ميكانيكا الزلازل",null,"Université de Batna 2 Mustapha Ben Boulaid"]
["U. Batna-2-","Université_de_Batna_2_Mustapha_Ben_Boulaid","Maladies Génétiques Constitutionnelle Ou Acquises (Lab. Associé Avec Crbt)","مخبر بحث مشترك في الأمراض الجينية الموروثة أو المكتسبة",null,"Université de Batna 2 Mustapha Ben Boulaid"]
["U. Batna-2-","Université_de_Batna_2_Mustapha_Ben_Boulaid","Mécanique Des Structures Et Matériaux","مخبر ميكانيك الهياكل و المواد",null,"Université de Batna 2 Mustapha Ben Boulaid"]
["U. Batna-2-","Université_de_Batna_2_Mustapha_Ben_Boulaid","Mobilisation Et Gestion Des Ressources En Eau","تعبئة و تسيير الموارد المائية",null,"Université de Batna 2 Mustapha Ben Boulaid"]
["U. Batna-2-","Université_de_Batna_2_Mustapha_Ben_Boulaid","Physico-Toxicologie, Pathologie Cellulaires Et Moléculaires-Biomolécules","مخبر الفيزيولوجيا، التسمم والأمراض الخلوية والجزيئية- الجزيئات الحيوية",null,"Université de Batna 2 Mustapha Ben Boulaid"]
["U. Batna-2-","Université_de_Batna_2_Mustapha_Ben_Boulaid","Prévention Industrielle","مخبر البحث في الوقاية الصناعية",null,"Université de Batna 2 Mustapha Ben Boulaid"]
["U. Batna-2-","Université_de_Batna_2_Mustapha_Ben_Boulaid","Productique","مخبر البحث في هندسة الإنتاج",null,"Université de Batna 2 Mustapha Ben Boulaid"]
["U. Batna-2-","Université_de_Batna_2_Mustapha_Ben_Boulaid","Risques Naturels Et Aménagement Du Territoire","مخبر البحث في الأخطار الطبيعية وتهيئة الاقليم",null,"Université de Batna 2 Mustapha Ben Boulaid"]
["U. Batna-2-","Université_de_Batna_2_Mustapha_Ben_Boulaid","Sciences Technologiques Des Activités Sportives Éducatives","مخبر علوم وتكنولوجية النشاط الرياضي التربوي",null,"Université de Batna 2 Mustapha Ben Boulaid"]
["U. Batna-2-","Université_de_Batna_2_Mustapha_Ben_Boulaid","Stratégies D'Enseignement De La Littérature : Une Notion En Mouvement","استراتيجيات تعليم الأدب: مفهوم متغير",null,"Université de Batna 2 Mustapha Ben Boulaid"]
["U. Batna-2-","Université_de_Batna_2_Mustapha_Ben_Boulaid","Systèmes De Traction Électriques – Batna","مـخـبـر أنـظـمـة الـجـر الـكـهـربائـيـة",null,"Université de Batna 2 Mustapha Ben Boulaid"]
["U. Batna-2-","Université_de_Batna_2_Mustapha_Ben_Boulaid","Systèmes Et Technologies De L’Information Et De La Communication","مخبر أنـظـمـة و تكنولوجيات المعلومات و الإتصال",null,"Université de Batna 2 Mustapha Ben Boulaid"]
["U. Batna-2-","Université_de_Batna_2_Mustapha_Ben_Boulaid","Systèmes Propulsion - Induction Electromagnétiques","مخبر أنظمة الدفع- التحريض الكهرومغناطيسي",null,"Université de Batna 2 Mustapha Ben Boulaid"]
["U. Batna-2-","Université_de_Batna_2_Mustapha_Ben_Boulaid","Techniques Mathématiques En Vue D'Applications, Aspects Déterministes Et Stochastiques","التقنيات الرياضية من أجل التطبيق و الجوانب الحتمية و الستوكاستيكية",null,"Université de Batna 2 Mustapha Ben Boulaid"]
["U. Béchar","Université_de_Béchar_Mohamed_Tahri","Architecture Et Patrimoine Environnemental","الهندسة المعمارية للتراث والبيئة",null,"Université de Béchar Mohamed Tahri"]
["U. Béchar","Université_de_Béchar_Mohamed_Tahri","Chimie Et Sciences De L'Environnement","الكمياء و علوم البيئة",null,"Université de Béchar Mohamed Tahri"]
["U. Béchar","Université_de_Béchar_Mohamed_Tahri","Commande Analyse Et Optimisation Des Systèmes Électro Énergétiques","مراقبة، تحليل وتحسين نظم الطاقة الكهربائية",null,"Université de Béchar Mohamed Tahri"]
["U. Béchar","Université_de_Béchar_Mohamed_Tahri","Droit Et Développement","القانون والتنمية",null,"Université de Béchar Mohamed Tahri"]
["U. Béchar","Université_de_Béchar_Mohamed_Tahri","Energétique En Zones Arides","مخبر الطقاويات في المناطق الجافة",null,"Université de Béchar Mohamed Tahri"]
["U. Béchar","Université_de_Béchar_Mohamed_Tahri","Etudes Économiques Et Développement Local Dans Le Sud Ouest","الدراسات الاقتصادية والتنمية المحلية في الجنوب الغربي",null,"Université de Béchar Mohamed Tahri"]
["U. Béchar","Université_de_Béchar_Mohamed_Tahri","Etudes Sahariennes","مخبر الدراسات الصحراوية",null,"Université de Béchar Mohamed Tahri"]
["U. Béchar","Université_de_Béchar_Mohamed_Tahri","Fiabilité Du Génie Mécanique","موثوقية الهندسة الميكانيكية",null,"Université de Béchar Mohamed Tahri"]
["U. Béchar","Université_de_Béchar_Mohamed_Tahri","Fiabilités Des Matériaux Et Des Structures En Régions Sahariennes","مخبر كفاءة المواد و المنشآت بالمناطق الصحراوية",null,"Université de Béchar Mohamed Tahri"]
["U. Béchar","Université_de_Béchar_Mohamed_Tahri","Les Études Juridiques Et La Responsabilité Des Professionnels","الدراسات القانونية و مسؤولية المهنيين",null,"Université de Béchar Mohamed Tahri"]
["U. Béchar","Université_de_Béchar_Mohamed_Tahri","Mécanique : Modélisation Et Expérimentation","مخبر الميكانيك للأبحاث التصميمية و التطبيقية",null,"Université de Béchar Mohamed Tahri"]
["U. Béchar","Université_de_Béchar_Mohamed_Tahri","Mécanique Des Structures Lms","مخبر مكانيك المنشآت",null,"Université de Béchar Mohamed Tahri"]
["U. Béchar","Université_de_Béchar_Mohamed_Tahri","Molécules Bioactives Et Séparation Chirale","مخبر الجزيئات الناشطة حيويا و فصل التماكب اليدوي",null,"Université de Béchar Mohamed Tahri"]
["U. Béchar","Université_de_Béchar_Mohamed_Tahri","Physique Et Dispositifs Semi-Conducteurs","مخبر الفيزياء و مركبات أشباه النواقل",null,"Université de Béchar Mohamed Tahri"]
["U. Béchar","Université_de_Béchar_Mohamed_Tahri","Phytochimie Et Synthèse Organique","مخبر كيمياء النبات و التركيب العضوي",null,"Université de Béchar Mohamed Tahri"]
["U. Béchar","Université_de_Béchar_Mohamed_Tahri","Réseaux Intelligents Et Énergies Renouvelables","الشبكات الذكية و الطاقات المتجددة",null,"Université de Béchar Mohamed Tahri"]
["U. Béchar","Université_de_Béchar_Mohamed_Tahri","Traitement De L'Information Et Télécommunication","معالجة المعلومة و الإتصالات السلكية و اللاسلكية",null,"Université de Béchar Mohamed Tahri"]
["U. Béchar","Université_de_Béchar_Mohamed_Tahri","Valorisation Des Ressources Végétales Et Sécurité Alimentaire Des Zones Semi Arides Du Sud Ouest Algérien","تثمين الثروات البيولوجية والسلامة الغذائية للمناطق شبه الجافة بالجنوب الغربي الجزائري",null,"Université de Béchar Mohamed Tahri"]
["U. Béjaia","Université_de_Béjaia_Abderrahmane_Mira","Biochimie Appliquée","مخبر البيوكيمياء التطبيقية",null,"Université de Béjaia Abderrahmane Mira"]
["U. Béjaia","Université_de_Béjaia_Abderrahmane_Mira","Biomathématique, Biophysique, Biochimie Et Scientométrie","مخبر بيوريـاضيــــات بيوفزيــــــــاء بيوكميــــــاء  و قياس العلوم",null,"Université de Béjaia Abderrahmane Mira"]
["U. Béjaia","Université_de_Béjaia_Abderrahmane_Mira","Biotechnologies Végétales Et Ethnobotanique","مخبر البيوتكنولجية النباتية وعلم النباتات الطبية",null,"Université de Béjaia Abderrahmane Mira"]
["U. Béjaia","Université_de_Béjaia_Abderrahmane_Mira","Ecologie Et Environnement","مخبر البيئة و المحيط",null,"Université de Béjaia Abderrahmane Mira"]
["U. Béjaia","Université_de_Béjaia_Abderrahmane_Mira","Ecologie Microbienne","مخبر علم بيئة الجراثيم",null,"Université de Béjaia Abderrahmane Mira"]
["U. Béjaia","Université_de_Béjaia_Abderrahmane_Mira","Economie Et Développement","مخبر الإقتصاد و التنمية",null,"Université de Béjaia Abderrahmane Mira"]
["U. Béjaia","Université_de_Béjaia_Abderrahmane_Mira","Ecosystèmes Marins Et Aquacoles (Lab. Associé Avec Centre National D'Etude Et De Documentation Pour La Péche Et De L'Aquaculture)","مخبر أبحاث في النظم الايكولوجية البحرية وتربية الأحياء المائية",null,"Université de Béjaia Abderrahmane Mira"]
["U. Béjaia","Université_de_Béjaia_Abderrahmane_Mira","Effectivité De La Norme Juridique","مخبر البحث حول فعلية القاعدة القانونية",null,"Université de Béjaia Abderrahmane Mira"]
["U. Béjaia","Université_de_Béjaia_Abderrahmane_Mira","Electrochimie, Corrosion Et Valorisation Énergétique","الإلكتروكيمياء التآكل و التثمين الطاقوي",null,"Université de Béjaia Abderrahmane Mira"]
["U. Béjaia","Université_de_Béjaia_Abderrahmane_Mira","Formation En Langues Appliquées Et Ingénierie Des Langues En Milieu Multilingue","مخبر التكوين و البحث العلمي في اللغات التطبيقية و هندسة اللغات",null,"Université de Béjaia Abderrahmane Mira"]
["U. Béjaia","Université_de_Béjaia_Abderrahmane_Mira","Génie Biologique Des Cancers","مخبر الهندسة البيولوجية للسرطان",null,"Université de Béjaia Abderrahmane Mira"]
["U. Béjaia","Université_de_Béjaia_Abderrahmane_Mira","Génie De La Construction Et Architecture","مخبر هندسة البناء و الهندسة المعمارية",null,"Université de Béjaia Abderrahmane Mira"]
["U. Béjaia","Université_de_Béjaia_Abderrahmane_Mira","Génie De L'Environnement","مخبر هندسة البيئة",null,"Université de Béjaia Abderrahmane Mira"]
["U. Béjaia","Université_de_Béjaia_Abderrahmane_Mira","Génie Électrique","مخبر البحث فى الهندسة الكهربائية",null,"Université de Béjaia Abderrahmane Mira"]
["U. Béjaia","Université_de_Béjaia_Abderrahmane_Mira","Hydraulique Appliquée Et Environnement","مخبر البحث في الري التطبيقي و البيئة",null,"Université de Béjaia Abderrahmane Mira"]
["U. Béjaia","Université_de_Béjaia_Abderrahmane_Mira","Informatique Médicale","مختبرالمعلوماتية الطبية",null,"Université de Béjaia Abderrahmane Mira"]
["U. Béjaia","Université_de_Béjaia_Abderrahmane_Mira","Interprétation Et Analyse Du Discours","التأويل و تحليل الخطاب",null,"Université de Béjaia Abderrahmane Mira"]
["U. Béjaia","Université_de_Béjaia_Abderrahmane_Mira","Les Langues Étrangères De Spécialité En Milieux Socioprofessionnels : Préparation À La Professionnalisation","اللغات الأجنبية للتخصص في الأوساط الإجتماعية و المهنية : لاعداد للأحتراف",null,"Université de Béjaia Abderrahmane Mira"]
["U. Béjaia","Université_de_Béjaia_Abderrahmane_Mira","Maitrise Des Énergies Renouvelables","مخبر ٳﺗﻗﺍﻦ ﺍﻠﻃﺎﻗﺎﺖ ﺍﻠﻤﺘﺠﺩﺩﺓ",null,"Université de Béjaia Abderrahmane Mira"]
["U. Béjaia","Université_de_Béjaia_Abderrahmane_Mira","Management Et Techniques Quantitatives","البحث في التسيير و التقنيات الكمية",null,"Université de Béjaia Abderrahmane Mira"]
["U. Béjaia","Université_de_Béjaia_Abderrahmane_Mira","Matériaux Organiques","مخبر الموارد العضوية",null,"Université de Béjaia Abderrahmane Mira"]
["U. Béjaia","Université_de_Béjaia_Abderrahmane_Mira","Matériaux Polymères Avancées","مخبر المواد البوليميرية المتقدمة",null,"Université de Béjaia Abderrahmane Mira"]
["U. Béjaia","Université_de_Béjaia_Abderrahmane_Mira","Mathématiques Appliquées","مخبر الرياضيات التطبيقية",null,"Université de Béjaia Abderrahmane Mira"]
["U. Béjaia","Université_de_Béjaia_Abderrahmane_Mira","Mécanique, Matériaux Et Énergétique","مخبر الميكانيك و المواد والطاقوية",null,"Université de Béjaia Abderrahmane Mira"]
["U. Béjaia","Université_de_Béjaia_Abderrahmane_Mira","Microbiologie Appliquée","مخبر الميكروبيولوجيا التطبيقية",null,"Université de Béjaia Abderrahmane Mira"]
["U. Béjaia","Université_de_Béjaia_Abderrahmane_Mira","Physico-Chimie Des Matériaux Et Catalyse","مخبر الخصائص الفزيائية و الكيميائية للمواد و الحفز",null,"Université de Béjaia Abderrahmane Mira"]
["U. Béjaia","Université_de_Béjaia_Abderrahmane_Mira","Physique Théorique","الفيزياء النظرية",null,"Université de Béjaia Abderrahmane Mira"]
["U. Béjaia","Université_de_Béjaia_Abderrahmane_Mira","Procédés Membranaires Et Techniques De Séparation Et De Récupération","مخبر طرائق الأغشية و تقنيات الفصل والٳسترجاع",null,"Université de Béjaia Abderrahmane Mira"]
["U. Béjaia","Université_de_Béjaia_Abderrahmane_Mira","Santé Mentale Et Neurosciences","الصحة العقلية و العلوم العصبية",null,"Université de Béjaia Abderrahmane Mira"]
["U. Béjaia","Université_de_Béjaia_Abderrahmane_Mira","Technologie Industrielle Et De L'Information","مخبر التكنولوجيا الصناعية والمعلومات",null,"Université de Béjaia Abderrahmane Mira"]
["U. Béjaia","Université_de_Béjaia_Abderrahmane_Mira","Technologies Des Matériaux Et De Génie Des Procédés","مخبرالتكنولوجيا للموارد و هندسة الطراىق",null,"Université de Béjaia Abderrahmane Mira"]
["U. Béjaia","Université_de_Béjaia_Abderrahmane_Mira","Thérapeutique Cranio-Encephalo-Oto-Cervico-Facial","مخبر البحث العلاجي لجراحة القحف والمخ الوجه و الرقبة",null,"Université de Béjaia Abderrahmane Mira"]
["U. Béjaia","Université_de_Béjaia_Abderrahmane_Mira","Unité De Recherche : Modélisation Et Optimisation Des Systèmes (Remplace Le Lr 2000 \"Modélisation Et Optimisation Des Systèmes\")","وحدة بحث الإعلام الآلي و بحوث العمليات",null,"Université de Béjaia Abderrahmane Mira"]
["U. Béjaia","Université_de_Béjaia_Abderrahmane_Mira","Zoologie Appliquée Et D’Écophysiologie Animale","مخبر علم الحيوان التطبيقي وعلم وظائف الأعضاء للحيوان",null,"Université de Béjaia Abderrahmane Mira"]
["U. Biskra","Université_de_Biskra_Mohamed_Khider","Aménagements Hydrauliques Et Environnement","مخبر تهيئة المحيط و الري",null,"Université de Biskra Mohamed Khider"]
["U. Biskra","Université_de_Biskra_Mohamed_Khider","Changement Social Et Relations Publiques En Algérie","مخبر التغير الإجتماعي والعلاقات العامة في الجزائر",null,"Université de Biskra Mohamed Khider"]
["U. Biskra","Université_de_Biskra_Mohamed_Khider","Chimie Appliquée","مغبر الكيمياء التطبيقية",null,"Université de Biskra Mohamed Khider"]
["U. Biskra","Université_de_Biskra_Mohamed_Khider","Chimie Moléculaire Et Environnement","مخبر الكيمياء الجزيئية والبيئة",null,"Université de Biskra Mohamed Khider"]
["U. Biskra","Université_de_Biskra_Mohamed_Khider","Conception Et Modélisation Des Formes Et Des Ambiances Architecturales Urbaines","مخبر تصميم الأشكال المعمارية و العمرانية و نمذجمة المحيط",null,"Université de Biskra Mohamed Khider"]
["U. Biskra","Université_de_Biskra_Mohamed_Khider","Diversité Des Écosystèmes Et Dynamiques Des Systèmes De Production Agricoles En Zones Arides","مخبر تنوع الأنظمة الإيكولوجية وديناميكية أنظمة الإنتاج الفلاحي في المناطق الجافة",null,"Université de Biskra Mohamed Khider"]
["U. Biskra","Université_de_Biskra_Mohamed_Khider","Droits Et Libertés Aux Systèmes Comparés","الحقوق و الحريات في الأنظمة المقارنة",null,"Université de Biskra Mohamed Khider"]
["U. Biskra","Université_de_Biskra_Mohamed_Khider","Etudes Et Recherche Dans Les Sciences Et Techniques Des Activités Physiques Et Sportives","مخبر دراسات وبحوث في علوم وتقنيات النشاطات البدنية والرياضية",null,"Université de Biskra Mohamed Khider"]
["U. Biskra","Université_de_Biskra_Mohamed_Khider","Etudes Psychologiques Et Sociologiques","مخبر الدراسات النفسية و الاجتماعية",null,"Université de Biskra Mohamed Khider"]
["U. Biskra","Université_de_Biskra_Mohamed_Khider","Finances, Banque Et Management","مالية ، بنوك، وإدارة الأعمال",null,"Université de Biskra Mohamed Khider"]
["U. Biskra","Université_de_Biskra_Mohamed_Khider","Génétique, Biotechnologie Et Valorisation De Bio-Ressources","الوراثة٬ التكنولوجياالحيوية و تثمين الموارد الحيوية",null,"Université de Biskra Mohamed Khider"]
["U. Biskra","Université_de_Biskra_Mohamed_Khider","Génie Civil","الهندسة المدنية",null,"Université de Biskra Mohamed Khider"]
["U. Biskra","Université_de_Biskra_Mohamed_Khider","Génie Civil Et Hydraulique, Développement Durable Et Environnement","مخبر البحث في الهندسة المدنية، الري،التنمية المستدامة و البيئة",null,"Université de Biskra Mohamed Khider"]
["U. Biskra","Université_de_Biskra_Mohamed_Khider","Génie Électrique De Biskra","مخبر الهندسة الكهربائية ببسكرة",null,"Université de Biskra Mohamed Khider"]
["U. Biskra","Université_de_Biskra_Mohamed_Khider","Génie Énergétique Et Matériaux","مخبر الهندسة الطاقوية و المواد",null,"Université de Biskra Mohamed Khider"]
["U. Biskra","Université_de_Biskra_Mohamed_Khider","Génie Mécanique","مخبر الهندسة الميكانيكية",null,"Université de Biskra Mohamed Khider"]
["U. Biskra","Université_de_Biskra_Mohamed_Khider","Hydraulique Souterraine Et Surface","الري الجوفي و السطحي",null,"Université de Biskra Mohamed Khider"]
["U. Biskra","Université_de_Biskra_Mohamed_Khider","Identification, Commande, Contrôle Et Communication","مخبر بحث في التشخيص، التحكم، المراقبة و الاتصال",null,"Université de Biskra Mohamed Khider"]
["U. Biskra","Université_de_Biskra_Mohamed_Khider","Impact De Jurisprudence Sur Législation","أثر الإجتهاد القضائي على حركة التشريع",null,"Université de Biskra Mohamed Khider"]
["U. Biskra","Université_de_Biskra_Mohamed_Khider","Informatique Intelligente","مخبر الإعلام الآلي الذكي",null,"Université de Biskra Mohamed Khider"]
["U. Biskra","Université_de_Biskra_Mohamed_Khider","Langue Et Littérature Algériennes","مخبر أبحاث في اللغة والأدب الجزائري",null,"Université de Biskra Mohamed Khider"]
["U. Biskra","Université_de_Biskra_Mohamed_Khider","Linguistique Et Langue Arabe","اللسانيات واللغة العربية",null,"Université de Biskra Mohamed Khider"]
["U. Biskra","Université_de_Biskra_Mohamed_Khider","Matériaux Semi-Conducteurs Et Métalliques","مخبر المواد نصف الناقلة و المعدنية",null,"Université de Biskra Mohamed Khider"]
["U. Biskra","Université_de_Biskra_Mohamed_Khider","Mathématiques Appliquées","مخبر الرياضيات التطـبـيقية",null,"Université de Biskra Mohamed Khider"]
["U. Biskra","Université_de_Biskra_Mohamed_Khider","Modélisation Des Systèmes Energétiques","نمذجة الأنظمة الطاقوية",null,"Université de Biskra Mohamed Khider"]
["U. Biskra","Université_de_Biskra_Mohamed_Khider","Modélisation Numérique Et Instrumentation En Interaction Sol-Structure","التمثيل العددي و التجهيز في مجال تفاعل تربة-هياكل",null,"Université de Biskra Mohamed Khider"]
["U. Biskra","Université_de_Biskra_Mohamed_Khider","Physique Des Couches Minces Et Applications","مخبر فيزياء الشرائح الرقيقة و تطبيقاتها",null,"Université de Biskra Mohamed Khider"]
["U. Biskra","Université_de_Biskra_Mohamed_Khider","Physique Photonique Et Nanomatériaux Multifonctionnels","مخبر الفيزياء الفوطونية و المواد النانومترية المتعددة الإستخدامات",null,"Université de Biskra Mohamed Khider"]
["U. Biskra","Université_de_Biskra_Mohamed_Khider","Problématique De L'Éducation En Algérie À L'Ombre Des Contraintes Actuelles","مخبر المسألة التربوية في الجزائر في ظل التحديات الراهنة",null,"Université de Biskra Mohamed Khider"]
["U. Biskra","Université_de_Biskra_Mohamed_Khider","Sciences Économiques Et De Gestion","مخبر العلوم الاقتصادية وعلوم التسيير",null,"Université de Biskra Mohamed Khider"]
["U. Biskra","Université_de_Biskra_Mohamed_Khider","Sémiotique Et Pratiques Discursives","السيميائية والممارسات الخطابية",null,"Université de Biskra Mohamed Khider"]
["U. Biskra","Université_de_Biskra_Mohamed_Khider","Systèmes Experts, L'Imagerie Et Leurs Applications Dans L'Ingénierie","مخبر الأنظمة الخبيرة، الصورة و تطبيقاتهما في مجال الهندسة",null,"Université de Biskra Mohamed Khider"]
["U. Biskra","Université_de_Biskra_Mohamed_Khider","Unité De Formation Et La Recherche Dans Les Théories Des Lecteurs Et Ses Méthodes","وحدة التكوين والبحث في نظريات القراءة و مناهجها",null,"Université de Biskra Mohamed Khider"]
["U. Blida-1-","Université_de_Blida_1_Saâd_Dahlab","Analyse Fonctionnelle Des Procédés Chimiques","التحليل الوظيفي للأساليب الكيميائية",null,"Université de Blida 1 Saâd Dahlab"]
["U. Blida-1-","Université_de_Blida_1_Saâd_Dahlab","Applications Énergétiques De L'Hydrogène","مخبر التطبيقات الطاقوية للهدروجين",null,"Université de Blida 1 Saâd Dahlab"]
["U. Blida-1-","Université_de_Blida_1_Saâd_Dahlab","Biotechnologies Des Productions Végétales","تكنولوجيا الأحياء للإنتاج النباتي",null,"Université de Blida 1 Saâd Dahlab"]
["U. Blida-1-","Université_de_Blida_1_Saâd_Dahlab","Biotechnologies Liées À La Reproduction Des Animaux","البحث في البيوتكنولوجيا المتعلقة بالتناسل الحيواني",null,"Université de Blida 1 Saâd Dahlab"]
["U. Blida-1-","Université_de_Blida_1_Saâd_Dahlab","Biotechnologies, Environnement Et Santé","بيوتكنولوجيا البيئة والصحة",null,"Université de Blida 1 Saâd Dahlab"]
["U. Blida-1-","Université_de_Blida_1_Saâd_Dahlab","Cancérologie","مخبر البحث فى السرطان",null,"Université de Blida 1 Saâd Dahlab"]
["U. Blida-1-","Université_de_Blida_1_Saâd_Dahlab","Chimie Des Substances Naturelles Et Biomolécules","مخبر كيمياء المواد الطبيعية والجزيئات الحيوية",null,"Université de Blida 1 Saâd Dahlab"]
["U. Blida-1-","Université_de_Blida_1_Saâd_Dahlab","Chimie Physique Des Interfaces Des Matériaux Appliquées À L'Environnement","الكمياء الفيزيائية لواجهات المواد التطبيقية للبيئة",null,"Université de Blida 1 Saâd Dahlab"]
["U. Blida-1-","Université_de_Blida_1_Saâd_Dahlab","Chimie Physique Moléculaire Et Macromoléculaire","الكيمياء الفيزياء الجزيئات والجزيئات الكبرى",null,"Université de Blida 1 Saâd Dahlab"]
["U. Blida-1-","Université_de_Blida_1_Saâd_Dahlab","Détections Informations Et Communications","الكشف، المعلومات والإتصالات",null,"Université de Blida 1 Saâd Dahlab"]
["U. Blida-1-","Université_de_Blida_1_Saâd_Dahlab","Développement Des Systèmes Informatisés","مخبر تنمـية الأنظمة المعلوماتـية",null,"Université de Blida 1 Saâd Dahlab"]
["U. Blida-1-","Université_de_Blida_1_Saâd_Dahlab","Eau, Environnement Et Développement Durable","الماء البيئة و التنمية المستدامة",null,"Université de Blida 1 Saâd Dahlab"]
["U. Blida-1-","Université_de_Blida_1_Saâd_Dahlab","Environnement Et Technologie Pour L'Architecture Et Le Patrimoine","البيئة والتقنية للهندسة المعمارية والتراث",null,"Université de Blida 1 Saâd Dahlab"]
["U. Blida-1-","Université_de_Blida_1_Saâd_Dahlab","Etudes et Recherche en Technologie Industrielle (Ex: Aéronefs)","مخبر الدراسات و البحث في التكنولوجيا الصناعية (مخبر الطائرات الموجهة)",null,"Université de Blida 1 Saâd Dahlab"]
["U. Blida-1-","Université_de_Blida_1_Saâd_Dahlab","Génie Chimique","مخبر الھندسة الكيماوية",null,"Université de Blida 1 Saâd Dahlab"]
["U. Blida-1-","Université_de_Blida_1_Saâd_Dahlab","Géomatériaux Et Génie Civil","هندسة المواد و الهندسة المدنية",null,"Université de Blida 1 Saâd Dahlab"]
["U. Blida-1-","Université_de_Blida_1_Saâd_Dahlab","Hémopathies Malignes Et Les Hémoglobinopathies","الأورام الخبيثة في الدم والهيموغلوبين",null,"Université de Blida 1 Saâd Dahlab"]
["U. Blida-1-","Université_de_Blida_1_Saâd_Dahlab","Neuroplasticité et Tumeurs Gliales","اللدونة العصبية و الأورام الدبقية في الدماغ",null,"Université de Blida 1 Saâd Dahlab"]
["U. Blida-1-","Université_de_Blida_1_Saâd_Dahlab","Physique Fondamentale Et Appliquée","الفيزياء الأساسية والتطبيقية",null,"Université de Blida 1 Saâd Dahlab"]
["U. Blida-1-","Université_de_Blida_1_Saâd_Dahlab","Physique Théorique & Physique De L'Interaction Rayonnement-Matière","مخبر الفيزياء النظرية وفيزياء تفاعل الإشعاع والمادة",null,"Université de Blida 1 Saâd Dahlab"]
["U. Blida-1-","Université_de_Blida_1_Saâd_Dahlab","Plantes Médicinales Et Aromatiques","مخبر البحث النباتات الطبية و العطرية",null,"Université de Blida 1 Saâd Dahlab"]
["U. Blida-1-","Université_de_Blida_1_Saâd_Dahlab","Protection Et Valorisation Des Ressources Agrobiologiques","مخبر حماية و تثمين الموارد الاقروبيولوجية",null,"Université de Blida 1 Saâd Dahlab"]
["U. Blida-1-","Université_de_Blida_1_Saâd_Dahlab","Sciences Aéronautiques","علوم الطيران",null,"Université de Blida 1 Saâd Dahlab"]
["U. Blida-1-","Université_de_Blida_1_Saâd_Dahlab","Structures","مخبر الهياكل",null,"Université de Blida 1 Saâd Dahlab"]
["U. Blida-1-","Université_de_Blida_1_Saâd_Dahlab","Surface, Interfaces Et Couches Minces","مخبر سطوح٬ سطوح بينية و طبقات رقيقة",null,"Université de Blida 1 Saâd Dahlab"]
["U. Blida-1-","Université_de_Blida_1_Saâd_Dahlab","Systèmes Électriques Et Télécommandes","مخبر الأنظمة الكهربائية و التحكم عن بعد",null,"Université de Blida 1 Saâd Dahlab"]
["U. Blida-1-","Université_de_Blida_1_Saâd_Dahlab","Traitement De Signal Et D'Imagerie","مخبر معالجة الإشارة و الصور",null,"Université de Blida 1 Saâd Dahlab"]
["U. Blida-1-","Université_de_Blida_1_Saâd_Dahlab","Traitement De Surface Et Matériaux","معالجة السطوح و المواد",null,"Université de Blida 1 Saâd Dahlab"]
["U. Blida-2-","Université_de_Blida_2_Lounici_Ali","Crime Et Déviance Entre Culture Et Représentions Sociales","الجريمة و الانحراف بين الثقافة و التمثلات الاجتماعية",null,"Université de Blida 2 Lounici Ali"]
["U. Blida-2-","Université_de_Blida_2_Lounici_Ali","Développement Économique Et Humain En Algérie","مخبر التنمية الاقتصادية و البشرية في الجزائر",null,"Université de Blida 2 Lounici Ali"]
["U. Blida-2-","Université_de_Blida_2_Lounici_Ali","Développement Organisationnel Et Management Des Ressources Humaines","التنمية التنظيمية وإدارة الموارد البشرية",null,"Université de Blida 2 Lounici Ali"]
["U. Blida-2-","Université_de_Blida_2_Lounici_Ali","Droit Et Le Foncier","القانون والعقار",null,"Université de Blida 2 Lounici Ali"]
["U. Blida-2-","Université_de_Blida_2_Lounici_Ali","Enfance Et Éducation Préscolaire","الطفولة والتربية ما قبل التمدرس",null,"Université de Blida 2 Lounici Ali"]
["U. Blida-2-","Université_de_Blida_2_Lounici_Ali","Entreprenariat, La Gestion Des Ressources Humaines Et Le Développement Durable","المقاولة، تسيير الموارد البشرية و التنمية المستدامة",null,"Université de Blida 2 Lounici Ali"]
["U. Blida-2-","Université_de_Blida_2_Lounici_Ali","Etude De La Population, De La Santé Et Du Développement Durable En Algérie","مخبر الدراسات السكانية، الصحة و التنمية المستدامة في الجزائر",null,"Université de Blida 2 Lounici Ali"]
["U. Blida-2-","Université_de_Blida_2_Lounici_Ali","Etudes Littératures Et Critiques","الدراسات الأدبية والنقدية",null,"Université de Blida 2 Lounici Ali"]
["U. Blida-2-","Université_de_Blida_2_Lounici_Ali","Gestion Des Collectivités Locales Et Leur Rôle Dans La Réalisation De Développement","تسيير الجماعات المحلية و دورها في تحقيق التنمية",null,"Université de Blida 2 Lounici Ali"]
["U. Blida-2-","Université_de_Blida_2_Lounici_Ali","Gouvernance Et Développement Durable","الحوكمة و التنمية المستدامة",null,"Université de Blida 2 Lounici Ali"]
["U. Blida-2-","Université_de_Blida_2_Lounici_Ali","Innovation Et Changement Des Organisations Et Des Institutions","مخبر البحث حول الإبداع و تغير المنظمات و المؤسسات",null,"Université de Blida 2 Lounici Ali"]
["U. Blida-2-","Université_de_Blida_2_Lounici_Ali","Langage, Cognition Et Interaction","اللغة و المعرفة و التفاعل",null,"Université de Blida 2 Lounici Ali"]
["U. Blida-2-","Université_de_Blida_2_Lounici_Ali","Langue Arabe Et Sa Littérature","مخبر اللّغة العربية وآدابها",null,"Université de Blida 2 Lounici Ali"]
["U. Blida-2-","Université_de_Blida_2_Lounici_Ali","Les Défis Du Système Fiscal Algérien Dans Le Cadre Des Changements Économiques","تحديات النظام الضريبي الجزائري في ظل التحولات الاقتصادية",null,"Université de Blida 2 Lounici Ali"]
["U. Blida-2-","Université_de_Blida_2_Lounici_Ali","Numérisation Et La Loi En Algérie","الرقمنة و القانون في الجزائر",null,"Université de Blida 2 Lounici Ali"]
["U. Blida-2-","Université_de_Blida_2_Lounici_Ali","Psychométrie Et D'Études Psychologiques","القياس والدراسات النفسية",null,"Université de Blida 2 Lounici Ali"]
["U. Blida-2-","Université_de_Blida_2_Lounici_Ali","Santé Psychologique-Education-Douance Et Créativité","الصحة النفسية - التربية - الموهبة والإبداع",null,"Université de Blida 2 Lounici Ali"]
["U. Bordj Bou Arreridj","Université_de_Bordj_Bou_Arréridj_Mohamed_Bachir_El_Ibrahimi","Caractérisation Et Valorisation Des Ressources Naturelles","مخبر تشخيص و تثمين الموارد الطبيعية",null,"Université de Bordj Bou Arréridj Mohamed Bachir El Ibrahimi"]
["U. Bordj Bou Arreridj","Université_de_Bordj_Bou_Arréridj_Mohamed_Bachir_El_Ibrahimi","Electronique Et Des Télécommunications Avancées","الإلكترونيك و الإتصالات المتقدمة",null,"Université de Bordj Bou Arréridj Mohamed Bachir El Ibrahimi"]
["U. Bordj Bou Arreridj","Université_de_Bordj_Bou_Arréridj_Mohamed_Bachir_El_Ibrahimi","Études Économiques Sur Les Zones Industrielles Et Le Nouveau Rôle De L'Université, \"Le Cas De Bordj Bou Arreridj\"","دراسات اقتصادية حول المناطق الصناعية في ظل الدور الجديد للجامعة \"حالة برج بوعريريج\"",null,"Université de Bordj Bou Arréridj Mohamed Bachir El Ibrahimi"]
["U. Bordj Bou Arreridj","Université_de_Bordj_Bou_Arréridj_Mohamed_Bachir_El_Ibrahimi","Etudes Et Recherche En Développement Rural Lerdr","مخبر الدراسات والبحوث في التنمية الريفية",null,"Université de Bordj Bou Arréridj Mohamed Bachir El Ibrahimi"]
["U. Bordj Bou Arreridj","Université_de_Bordj_Bou_Arréridj_Mohamed_Bachir_El_Ibrahimi","La Cyber Justice","العدالة السيبرانية",null,"Université de Bordj Bou Arréridj Mohamed Bachir El Ibrahimi"]
["U. Bordj Bou Arreridj","Université_de_Bordj_Bou_Arréridj_Mohamed_Bachir_El_Ibrahimi","Matériaux Et Systèmes Électroniques","المواد و الأنظمة الإليكترونية",null,"Université de Bordj Bou Arréridj Mohamed Bachir El Ibrahimi"]
["U. Bordj Bou Arreridj","Université_de_Bordj_Bou_Arréridj_Mohamed_Bachir_El_Ibrahimi","Physique Des Matériaux, Rayonnements Et Nanostructures","فيزياء المواد- الإشعاعات و البنية النانومترية",null,"Université de Bordj Bou Arréridj Mohamed Bachir El Ibrahimi"]
["U. Bouira","Université_de_Bouira_Akli_Mohand_Oulhadj","Education, Travail Et Orientation","مخبر التربية ، العمل والتوجيه",null,"Université de Bouira Akli Mohand Oulhadj"]
["U. Bouira","Université_de_Bouira_Akli_Mohand_Oulhadj","Etat Et Le Crime Organisé : Approches Des Droits Juridiques Humains Aux Démontions Sociaux Économiques Le Blanchiment D'Argent (Étude De Cas)","الدولة والإجرام المنظم مقاربة قانونية و حقوقية بأبعاد اقتصادية و إجتماعية جريمة تبييض الأموال نمودجا",null,"Université de Bouira Akli Mohand Oulhadj"]
["U. Bouira","Université_de_Bouira_Akli_Mohand_Oulhadj","Etude Théorique Et Pratique Approfondie À L'Lmd À L'Université Algérienne En Vue De Créer Des Pôles Universitaires Pour Un Développement Intégré","دراسة نظرية وتطبيقية معمقة لتطبيق النظام التعليمي الجديد LMD في الجامعة الجزائرية بهدف تكوين اقطاب جامعية تنموية مندمجة",null,"Université de Bouira Akli Mohand Oulhadj"]
["U. Bouira","Université_de_Bouira_Akli_Mohand_Oulhadj","Etudes Littéraires, Linguistiques Et Didactiques Amazighes","مخبر الأبحاث الأدبية واللسانية والتعليمية الأمازيغية",null,"Université de Bouira Akli Mohand Oulhadj"]
["U. Bouira","Université_de_Bouira_Akli_Mohand_Oulhadj","Gestion Et Valorisation Des Ressources Naturelles Et Assurances Qualité","مخبر تسيير و تثمين الموارد الطبيعية و ضمان النوعية",null,"Université de Bouira Akli Mohand Oulhadj"]
["U. Bouira","Université_de_Bouira_Akli_Mohand_Oulhadj","Informatique, Mathématique Et Physique Pour L'Agriculture Et Les Forets","مخبر الإعلام الآلي٬ الرياضيات والفيزياء من أجل الفلاحة والغابات",null,"Université de Bouira Akli Mohand Oulhadj"]
["U. Bouira","Université_de_Bouira_Akli_Mohand_Oulhadj","La Langue Arabe Scientifique et Didactique","اللغة العربیة العلمیة والتعلیمیة",null,"Université de Bouira Akli Mohand Oulhadj"]
["U. Bouira","Université_de_Bouira_Akli_Mohand_Oulhadj","Les Pme Dans Le Développement Local, Cas Wilaya De Bouira","المؤسسات الصغيرة و المتوسطة في تطوير المحلي٬حالة منطقة البويرة",null,"Université de Bouira Akli Mohand Oulhadj"]
["U. Bouira","Université_de_Bouira_Akli_Mohand_Oulhadj","Les Politiques De Développement Et Les Études Prospectives","السياسات التنموية و الدراسات الإستشراقية",null,"Université de Bouira Akli Mohand Oulhadj"]
["U. Bouira","Université_de_Bouira_Akli_Mohand_Oulhadj","Matériaux Et Développement Durable","مخبر المواد و التنمية المستدامة",null,"Université de Bouira Akli Mohand Oulhadj"]
["U. Bouira","Université_de_Bouira_Akli_Mohand_Oulhadj","Pluridisciplinaire Des Sciences De L’Homme, Environnement Et Société","مخبر متعدد التخصصات في علوم الإنسان و البيئة و المجتمع",null,"Université de Bouira Akli Mohand Oulhadj"]
["U. Bouira","Université_de_Bouira_Akli_Mohand_Oulhadj","Procédés Pour Matériaux, Énergie, Eau Et Environnement","الطرائق للمواد، الطاقة، المياه و البيئة",null,"Université de Bouira Akli Mohand Oulhadj"]
["U. Bouira","Université_de_Bouira_Akli_Mohand_Oulhadj","Questions De Littérature Maghrébine","قضايا الأدب المغاربي",null,"Université de Bouira Akli Mohand Oulhadj"]
["U. Bouira","Université_de_Bouira_Akli_Mohand_Oulhadj","Sciences Modernes Des Activités Physiques Et Sportives","العلـوم الحديثة في الأنشطة البدنية والرياضية",null,"Université de Bouira Akli Mohand Oulhadj"]
["U. Boumerdès","Université_de_Boumerdès_M_hamed_Bougara","Automatique Appliquée","التحكم الآلي التطبيقي",null,"Université de Boumerdès M hamed Bougara"]
["U. Boumerdès","Université_de_Boumerdès_M_hamed_Bougara","Conservation Et Valorisation Des Ressources Biologiques","حفظ وتثمين الموارد البيولوجية",null,"Université de Boumerdès M hamed Bougara"]
["U. Boumerdès","Université_de_Boumerdès_M_hamed_Bougara","Dynamique Des Moteurs Et Vibroacoustique","ديناميكية المحركات ، اهتزازها و صوتها",null,"Université de Boumerdès M hamed Bougara"]
["U. Boumerdès","Université_de_Boumerdès_M_hamed_Bougara","Electrification Des Entreprises Industrielles","مخبر البحث في كھربة المؤسسات الصناعیة",null,"Université de Boumerdès M hamed Bougara"]
["U. Boumerdès","Université_de_Boumerdès_M_hamed_Bougara","Energétique, Mécanique Et Ingénieries","مخبر الطاقوية٬ المكانيك و الهندسة",null,"Université de Boumerdès M hamed Bougara"]
["U. Boumerdès","Université_de_Boumerdès_M_hamed_Bougara","Etudes Politiques Et Internationales","الدراسات السياسية والدولية",null,"Université de Boumerdès M hamed Bougara"]
["U. Boumerdès","Université_de_Boumerdès_M_hamed_Bougara","Fiabilité Des Équipements Pétroliers Et Matériaux","مخبر نجاعة المعدات البترولية و المواد",null,"Université de Boumerdès M hamed Bougara"]
["U. Boumerdès","Université_de_Boumerdès_M_hamed_Bougara","Génie Mécanique Des Solides Et Systèmes","مختبر ميكانيك المواد الصلبة و الأنظمة",null,"Université de Boumerdès M hamed Bougara"]
["U. Boumerdès","Université_de_Boumerdès_M_hamed_Bougara","Génie Physique Des Hydrocarbures","الهندسة الفيزيائية و المحروقات",null,"Université de Boumerdès M hamed Bougara"]
["U. Boumerdès","Université_de_Boumerdès_M_hamed_Bougara","Informatique, De Modélisation, D'Optimisation Et Des Systèmes Électroniques","مخبر الإعلام الآلي، نمذجة، توسعة والأنظمة الإلكترونية",null,"Université de Boumerdès M hamed Bougara"]
["U. Boumerdès","Université_de_Boumerdès_M_hamed_Bougara","L’Avenir De L’Économie Algérienne Hors Les Hydrocarbures","مخبر مستقبل الإقتصاد الجزائري خارج المحرقات",null,"Université de Boumerdès M hamed Bougara"]
["U. Boumerdès","Université_de_Boumerdès_M_hamed_Bougara","Les Mécanismes Juridiques pour un Développement Durable","الآليات القانونية للتنمية المستدامة",null,"Université de Boumerdès M hamed Bougara"]
["U. Boumerdès","Université_de_Boumerdès_M_hamed_Bougara","Performance Des Entreprises Économiques Algériennes Dans Le Cadre De La Dynamique Économique Internationale","أداء المؤسسات الإقتصادية الجزائرية في ظل الحركية الإقتصادية الدولية",null,"Université de Boumerdès M hamed Bougara"]
["U. Boumerdès","Université_de_Boumerdès_M_hamed_Bougara","Physique De La Terre","فيزياء الأرض",null,"Université de Boumerdès M hamed Bougara"]
["U. Boumerdès","Université_de_Boumerdès_M_hamed_Bougara","Ressources Minérales Et Énergétiques","مخبر الموارد المعدنية و الطاقوية",null,"Université de Boumerdès M hamed Bougara"]
["U. Boumerdès","Université_de_Boumerdès_M_hamed_Bougara","Revêtement, Matériaux Et Environnement","مخبر البحث التلبيس المواد و البيئة",null,"Université de Boumerdès M hamed Bougara"]
["U. Boumerdès","Université_de_Boumerdès_M_hamed_Bougara","Signaux Et Systèmes","مخبر إشارات و أنظمة",null,"Université de Boumerdès M hamed Bougara"]
["U. Boumerdès","Université_de_Boumerdès_M_hamed_Bougara","Synthèse Pétrochimique","مخبر التركيب البيتروكيمياء",null,"Université de Boumerdès M hamed Bougara"]
["U. Boumerdès","Université_de_Boumerdès_M_hamed_Bougara","Technologie Alimentaire","مخبر بحث التكنولوجيا الغذائية",null,"Université de Boumerdès M hamed Bougara"]
["U. Boumerdès","Université_de_Boumerdès_M_hamed_Bougara","Technologies Des Hydrocarbures","مخبر تكنولوجيا المحروقات",null,"Université de Boumerdès M hamed Bougara"]
["U. Boumerdès","Université_de_Boumerdès_M_hamed_Bougara","Technologies Douces, Valorisation, Physico-Chimie Des Matériaux Biologiques Et Biodiversité","التكنولوجية اللينة٬تثمين ٬فيزيو كيميائية الموادالبيولوجية و التنوع البيولوجي",null,"Université de Boumerdès M hamed Bougara"]
["U. Boumerdès","Université_de_Boumerdès_M_hamed_Bougara","Traitement Et Mise En Forme Des Polymères Fibraux","مخبر البحث معالجة و تشكيل المركبات الكيميائية الليفية",null,"Université de Boumerdès M hamed Bougara"]
["U. Boumerdès","Université_de_Boumerdès_M_hamed_Bougara","Unité De Recherche : Matériaux, Procédés Et Environnement (Remplace Le Lr 2000 \"Matériaux Minéraux Et Composites\")","وحدة بحث : مواد،طرائق صناعية والبيئة",null,"Université de Boumerdès M hamed Bougara"]
["U. Chlef","Université_de_Chlef_Hassiba_Benbouali","Aps, Société, Éducation Et Santé","النشاط البدني و الرياضي، المجتمع، التربية و الصحة",null,"Université de Chlef Hassiba Benbouali"]
["U. Chlef","Université_de_Chlef_Hassiba_Benbouali","Biologie Moléculaire, Génomique Et Bioinformatique","مخبر البيولوجية الجزيئية ،علوم الجينوم و الإعلام الآلي",null,"Université de Chlef Hassiba Benbouali"]
["U. Chlef","Université_de_Chlef_Hassiba_Benbouali","Bioressources Naturelles Locales","مخبر الموارد الحيوية الطبيعية المحلية",null,"Université de Chlef Hassiba Benbouali"]
["U. Chlef","Université_de_Chlef_Hassiba_Benbouali","Chimie Végétale – Eau – Énergie","الكيمياء النباتية - الموارد المائية و الطاقة",null,"Université de Chlef Hassiba Benbouali"]
["U. Chlef","Université_de_Chlef_Hassiba_Benbouali","Contrôle, Essai, Mesure Et Simulation Mécanique","الضبط و الاختبار و القياس و المحاكاة في ميدان الميكانيك",null,"Université de Chlef Hassiba Benbouali"]
["U. Chlef","Université_de_Chlef_Hassiba_Benbouali","Développement De La Compétitivité Des Pme Algériennes Dans Les Industries Locales De Substitution","تطوير تنافسية المؤسسات الصغيرة والمتوسطة الجزائرية في الصناعات المحلية البديلة",null,"Université de Chlef Hassiba Benbouali"]
["U. Chlef","Université_de_Chlef_Hassiba_Benbouali","Didactique Des Langues Et Analyse Du Discours","تعليمية اللغات وتحليل الخطاب",null,"Université de Chlef Hassiba Benbouali"]
["U. Chlef","Université_de_Chlef_Hassiba_Benbouali","Droit Et Sécurité Humanitaire","القانون و الأمن الإنساني",null,"Université de Chlef Hassiba Benbouali"]
["U. Chlef","Université_de_Chlef_Hassiba_Benbouali","Droit Privé Comparé","القانون الخاص المقارن",null,"Université de Chlef Hassiba Benbouali"]
["U. Chlef","Université_de_Chlef_Hassiba_Benbouali","Eau Et Environnement","ماء و بيئة",null,"Université de Chlef Hassiba Benbouali"]
["U. Chlef","Université_de_Chlef_Hassiba_Benbouali","Génie Électrique Et Énergies Renouvelables","مخبر الهندسة الكهربائية و الطاقات المتجددة",null,"Université de Chlef Hassiba Benbouali"]
["U. Chlef","Université_de_Chlef_Hassiba_Benbouali","Géomatériaux","مخبر هندسة المواد",null,"Université de Chlef Hassiba Benbouali"]
["U. Chlef","Université_de_Chlef_Hassiba_Benbouali","Histoire De L’Homme Et De L’Urbanisation Et Le Patrimoine Dans La Région Du Bassin De Chlef","تاريخ الإنسان والعمران والتراث في منطقة حوض الشلف",null,"Université de Chlef Hassiba Benbouali"]
["U. Chlef","Université_de_Chlef_Hassiba_Benbouali","Innovation, Performance Motrice","مخبر الابداع و الأداء الحركي",null,"Université de Chlef Hassiba Benbouali"]
["U. Chlef","Université_de_Chlef_Hassiba_Benbouali","Mathématiques Et Applications","الرياضيــات و تطـبيقاتهـا",null,"Université de Chlef Hassiba Benbouali"]
["U. Chlef","Université_de_Chlef_Hassiba_Benbouali","Mécanique Et Énergétique","مخبر الميكانيك و الطاقويات",null,"Université de Chlef Hassiba Benbouali"]
["U. Chlef","Université_de_Chlef_Hassiba_Benbouali","Mondialisation Et Ses Retombées Sur Les Économies Des Pays Nord-Africains Et Études De La Possibilité De Construire Une Union Nord-Africaine","العولمة و إنعكاساتها على اقتصاديات دول الشمال الإفريقي و اختبار مدى إمكانية إنشاء اتحاد اقتصادي لها",null,"Université de Chlef Hassiba Benbouali"]
["U. Chlef","Université_de_Chlef_Hassiba_Benbouali","Physique Théorique Et De Physique Des Matériaux","مخبر الفيزياء النظرية و فيزياء المواد",null,"Université de Chlef Hassiba Benbouali"]
["U. Chlef","Université_de_Chlef_Hassiba_Benbouali","Production Et Protection Des Cultures Dans La Région De Chlef (Ex: Développement, Conditionnement, Stockage Et Transformation Des Céréales : Cas Du Blé)","مخبر إنتاج و حماية المحاصيل لمنطقة الشلف",null,"Université de Chlef Hassiba Benbouali"]
["U. Chlef","Université_de_Chlef_Hassiba_Benbouali","Réforme Des Politiques Arabes Sous Contraintes De La Mondialisation","إصلاح السياسات العربية في ظل تحديات العولمة",null,"Université de Chlef Hassiba Benbouali"]
["U. Chlef","Université_de_Chlef_Hassiba_Benbouali","Rhéologie Et Mécanique","الريولوجيا و الميكانيك",null,"Université de Chlef Hassiba Benbouali"]
["U. Chlef","Université_de_Chlef_Hassiba_Benbouali","Sciences Des Matériaux Et Environnement","مخبر علوم المادة و البيئة",null,"Université de Chlef Hassiba Benbouali"]
["U. Chlef","Université_de_Chlef_Hassiba_Benbouali","Société, Problèmes Du Développement Local En Algérie","المجتمع ومشاكل التنمية المحليــة في الجزائر",null,"Université de Chlef Hassiba Benbouali"]
["U. Chlef","Université_de_Chlef_Hassiba_Benbouali","Structures, Géotechnique Et Risques","مخبر الھیاكل ، الجیوتقنیة و الأخطار",null,"Université de Chlef Hassiba Benbouali"]
["U. Chlef","Université_de_Chlef_Hassiba_Benbouali","Systèmes Financiers Et Bancaires Et Les Politiques Macro-Économique Face Aux Fluctuations Internationales","الأنظمة المالية و المصرفية و السياسات الإقتصادية الكلية في ظل التحولات العالمية",null,"Université de Chlef Hassiba Benbouali"]
["U. Chlef","Université_de_Chlef_Hassiba_Benbouali","Technologie De L'Information Et De La Communication Dans L'Enseignement Des Langues Étrangères Et Traduction","تكنولوجيات الإعلام و الإتصال في تعليم اللغات الأجنبية و الترجمة",null,"Université de Chlef Hassiba Benbouali"]
["U. Chlef","Université_de_Chlef_Hassiba_Benbouali","Théorie De La Langue Fonctionnelle","نظرية اللغة الوظيفية",null,"Université de Chlef Hassiba Benbouali"]
["U. Constantine-1-","Université_de_Constantine_1_Frères_Mentouri","Aménagement Du Territoire","التهيئة الإقليمية",null,"Université de Constantine 1 Frères Mentouri"]
["U. Constantine-1-","Université_de_Constantine_1_Frères_Mentouri","Automatique Et Robotique","الآلية و الروبوتيك",null,"Université de Constantine 1 Frères Mentouri"]
["U. Constantine-1-","Université_de_Constantine_1_Frères_Mentouri","Biochimie Appliquée","مخبرالبحث في الكيمياء الحيوية التطبيقية",null,"Université de Constantine 1 Frères Mentouri"]
["U. Constantine-1-","Université_de_Constantine_1_Frères_Mentouri","Biochimie Génétique Et Biotechnologie Végétale","الكيمياء الحيوية الوراثية و البيوتكنولوجية النباتية",null,"Université de Constantine 1 Frères Mentouri"]
["U. Constantine-1-","Université_de_Constantine_1_Frères_Mentouri","Biologie Et Environnement","مخبر البيولوجيا و البيئة",null,"Université de Constantine 1 Frères Mentouri"]
["U. Constantine-1-","Université_de_Constantine_1_Frères_Mentouri","Biologie Moléculaire Et Cellulaire","بيولوجيا الجزيئية و الخلوية",null,"Université de Constantine 1 Frères Mentouri"]
["U. Constantine-1-","Université_de_Constantine_1_Frères_Mentouri","Biosystématique Et Ecologie Des Arthropodes","التصنيف الحيوي والبيئي لمفصليات الارجل",null,"Université de Constantine 1 Frères Mentouri"]
["U. Constantine-1-","Université_de_Constantine_1_Frères_Mentouri","Biotechnologie Et Qualité Des Aliments","البيوتكنولوجيا وجودة الأغذية",null,"Université de Constantine 1 Frères Mentouri"]
["U. Constantine-1-","Université_de_Constantine_1_Frères_Mentouri","Céramiques","مختبر الخزفيات",null,"Université de Constantine 1 Frères Mentouri"]
["U. Constantine-1-","Université_de_Constantine_1_Frères_Mentouri","Chimie Des Matériaux Constantine","مخبر كيمياء المواد قسنطينة",null,"Université de Constantine 1 Frères Mentouri"]
["U. Constantine-1-","Université_de_Constantine_1_Frères_Mentouri","Couche Mince Et Interfaces","مخبر الشرائح الرقيقة و السطوح البينية",null,"Université de Constantine 1 Frères Mentouri"]
["U. Constantine-1-","Université_de_Constantine_1_Frères_Mentouri","Cristallographie","مخبر علم البلورات",null,"Université de Constantine 1 Frères Mentouri"]
["U. Constantine-1-","Université_de_Constantine_1_Frères_Mentouri","Des Contrats Et Droit Des Affaires","العقود و قانون العمل",null,"Université de Constantine 1 Frères Mentouri"]
["U. Constantine-1-","Université_de_Constantine_1_Frères_Mentouri","Développement Et Valorisation Des Ressources Phytogénétiques","تطوير وتثمين الموارد الوراثية النباتية",null,"Université de Constantine 1 Frères Mentouri"]
["U. Constantine-1-","Université_de_Constantine_1_Frères_Mentouri","Electromagnétisme Et Télécommunication","مخبر الكهرومغناطيسى و الإتصالات",null,"Université de Constantine 1 Frères Mentouri"]
["U. Constantine-1-","Université_de_Constantine_1_Frères_Mentouri","Electrotechnique De Constantine","مخبر الإليكتروتقني لقسنطينة",null,"Université de Constantine 1 Frères Mentouri"]
["U. Constantine-1-","Université_de_Constantine_1_Frères_Mentouri","Energétique Appliquée Et De Pollution","مخبر الطاقوية المطبقة والتلوث",null,"Université de Constantine 1 Frères Mentouri"]
["U. Constantine-1-","Université_de_Constantine_1_Frères_Mentouri","Energies Renouvelables Et Développement Durable","مخبر الطاقات المتجددة والتنمية المستدامة",null,"Université de Constantine 1 Frères Mentouri"]
["U. Constantine-1-","Université_de_Constantine_1_Frères_Mentouri","Equations Différentielles","مخبر المعدلات الثفاضلية",null,"Université de Constantine 1 Frères Mentouri"]
["U. Constantine-1-","Université_de_Constantine_1_Frères_Mentouri","Etude Des Matériaux Electroniques Pour Applications Médicales","المواد الإلكترونية للتطبيق الطبي",null,"Université de Constantine 1 Frères Mentouri"]
["U. Constantine-1-","Université_de_Constantine_1_Frères_Mentouri","Etude Et Recherche Sur Le Maghreb Et La Méditerranée","الدراسات و البحوث حول المغرب و البحر الأبيض المتوسط",null,"Université de Constantine 1 Frères Mentouri"]
["U. Constantine-1-","Université_de_Constantine_1_Frères_Mentouri","Etude Sur Le Patrimoine","مخبر الدراسات التراثية",null,"Université de Constantine 1 Frères Mentouri"]
["U. Constantine-1-","Université_de_Constantine_1_Frères_Mentouri","Etudes Du Language","مختبر الدراسات اللغوية",null,"Université de Constantine 1 Frères Mentouri"]
["U. Constantine-1-","Université_de_Constantine_1_Frères_Mentouri","Génie Climatique De Constantine","مخبر هندسة التكييف",null,"Université de Constantine 1 Frères Mentouri"]
["U. Constantine-1-","Université_de_Constantine_1_Frères_Mentouri","Génie Électrique De Constantine","مخبر الهندسة الكهربائية لقسنطينة",null,"Université de Constantine 1 Frères Mentouri"]
["U. Constantine-1-","Université_de_Constantine_1_Frères_Mentouri","Génie Microbiologie Et Applications","الهندسة المكروبيولوجيا و تطبيقاتها",null,"Université de Constantine 1 Frères Mentouri"]
["U. Constantine-1-","Université_de_Constantine_1_Frères_Mentouri","Géologie Et Environnement","مخبر الجيولوجيا والبيئة",null,"Université de Constantine 1 Frères Mentouri"]
["U. Constantine-1-","Université_de_Constantine_1_Frères_Mentouri","Gestion De La Santé Et Productions Animales","مخبر تسيير الصحة و الإنتاج الحيواني",null,"Université de Constantine 1 Frères Mentouri"]
["U. Constantine-1-","Université_de_Constantine_1_Frères_Mentouri","Hyperfréquence Et Semi-Conducteurs","مخبر المدبدبات السريعة و النصف نواقل",null,"Université de Constantine 1 Frères Mentouri"]
["U. Constantine-1-","Université_de_Constantine_1_Frères_Mentouri","Ingénierie Des Transports Et Environnement","هندسة النقل و البيئة",null,"Université de Constantine 1 Frères Mentouri"]
["U. Constantine-1-","Université_de_Constantine_1_Frères_Mentouri","Langues Et Traduction","مخبر اللغات والترجمة",null,"Université de Constantine 1 Frères Mentouri"]
["U. Constantine-1-","Université_de_Constantine_1_Frères_Mentouri","Matériaux Et Durabilité Des Constructions","المواد ووتبات البنايات",null,"Université de Constantine 1 Frères Mentouri"]
["U. Constantine-1-","Université_de_Constantine_1_Frères_Mentouri","Mathématiques Appliquées Et Modélisation","الرياضيات التطبيقية و النمذجة",null,"Université de Constantine 1 Frères Mentouri"]
["U. Constantine-1-","Université_de_Constantine_1_Frères_Mentouri","Mathématiques Et Sciences De La Décision","مخبر الرياضيات و علوم القرار",null,"Université de Constantine 1 Frères Mentouri"]
["U. Constantine-1-","Université_de_Constantine_1_Frères_Mentouri","Mécanique","مخببر الميكانيك",null,"Université de Constantine 1 Frères Mentouri"]
["U. Constantine-1-","Université_de_Constantine_1_Frères_Mentouri","Mécanique Des Sols Et Des Structures","مـــخــبــر مكـــــانـيـــــــك الــتــربـة و الهــيــاكــل",null,"Université de Constantine 1 Frères Mentouri"]
["U. Constantine-1-","Université_de_Constantine_1_Frères_Mentouri","Méthodologie Mathématiques Dans L'Etudes Et La Résolution D'Équations","منهجيات الرياضيات في دراسة وحل المعادلات",null,"Université de Constantine 1 Frères Mentouri"]
["U. Constantine-1-","Université_de_Constantine_1_Frères_Mentouri","Microstructure Et Défauts Dans Les Matériaux","البنية المجهرية و العيوب",null,"Université de Constantine 1 Frères Mentouri"]
["U. Constantine-1-","Université_de_Constantine_1_Frères_Mentouri","Microsystèmes Et Instrumentation","مخبر مكرو الأنظمة و أجهزة القياسات",null,"Université de Constantine 1 Frères Mentouri"]
["U. Constantine-1-","Université_de_Constantine_1_Frères_Mentouri","Modélisation Des Dispositifs À Énergie Renouvelable Et Nanométriques","نمذجة أجهزة الطاقة المتجددة و الاجهزة النانوميترية",null,"Université de Constantine 1 Frères Mentouri"]
["U. Constantine-1-","Université_de_Constantine_1_Frères_Mentouri","Modélisation Mathématique Et Simulation","النمودج الرياضي و التحاكي",null,"Université de Constantine 1 Frères Mentouri"]
["U. Constantine-1-","Université_de_Constantine_1_Frères_Mentouri","Mycologie, De Biotechnologies Et De L’Activité Microbienne","مخبر الميكولوجيا ، البيوتكنولوجيا و النشاط الميكروبي",null,"Université de Constantine 1 Frères Mentouri"]
["U. Constantine-1-","Université_de_Constantine_1_Frères_Mentouri","Narrative Arabe","مخبر السرد العربي",null,"Université de Constantine 1 Frères Mentouri"]
["U. Constantine-1-","Université_de_Constantine_1_Frères_Mentouri","Nutrition Et Technologie Alimentaire","مخبر التغذي و التكنولوجيات الغذائية",null,"Université de Constantine 1 Frères Mentouri"]
["U. Constantine-1-","Université_de_Constantine_1_Frères_Mentouri","Obtention De Substances Thérapeutiques","التحصيل على المواد العلاجية",null,"Université de Constantine 1 Frères Mentouri"]
["U. Constantine-1-","Université_de_Constantine_1_Frères_Mentouri","Pathologie Animale, Développement Des Élevages Et Surveillance De La Chaîne Alimentaire Des Denrées Animales","علم أمراض الحيوان، تطوير الدواجن و مراقبة السلسلة الغدائية للمأكولات الحيوانية أو من أصل حيواني",null,"Université de Constantine 1 Frères Mentouri"]
["U. Constantine-1-","Université_de_Constantine_1_Frères_Mentouri","Pharmacologie Et Toxicologie","علم الصيدلة و علم التسمم",null,"Université de Constantine 1 Frères Mentouri"]
["U. Constantine-1-","Université_de_Constantine_1_Frères_Mentouri","Physicochimie Analytique Et Cristallochimie De Matériaux Organométalliques Et Biomoléculaires","مخبر الفيزيوكيمياء التحليلية والكيميوبلورية للمواد العضوومعدنية و البيوجزيئية",null,"Université de Constantine 1 Frères Mentouri"]
["U. Constantine-1-","Université_de_Constantine_1_Frères_Mentouri","Physique Énergétique","مخبر الفيزياء الطاقوية",null,"Université de Constantine 1 Frères Mentouri"]
["U. Constantine-1-","Université_de_Constantine_1_Frères_Mentouri","Physique Mathématique Et Physique Subatomique","فيزياء الرياضية و فيزياء دون المادة",null,"Université de Constantine 1 Frères Mentouri"]
["U. Constantine-1-","Université_de_Constantine_1_Frères_Mentouri","Physique Théorique","مخبر الفيزياء النظرية",null,"Université de Constantine 1 Frères Mentouri"]
["U. Constantine-1-","Université_de_Constantine_1_Frères_Mentouri","Pollution Et Traitement Des Eaux","التلوث و معالجة المياه",null,"Université de Constantine 1 Frères Mentouri"]
["U. Constantine-1-","Université_de_Constantine_1_Frères_Mentouri","Produits Naturels D'Origine Végétale Et De Synthèse Organique","المواد الطبيعية من أصل نباتي و الأصطناع العضوي",null,"Université de Constantine 1 Frères Mentouri"]
["U. Constantine-1-","Université_de_Constantine_1_Frères_Mentouri","Science Du Langage, Discours Et Didactique","مخبر العلوم اللغوية الخطاب والتعليمية",null,"Université de Constantine 1 Frères Mentouri"]
["U. Constantine-1-","Université_de_Constantine_1_Frères_Mentouri","Sciences Du Territoire, Ressources Naturelles Et Environnement","علومالإقليم والموارد الطبيعية والبيئة",null,"Université de Constantine 1 Frères Mentouri"]
["U. Constantine-1-","Université_de_Constantine_1_Frères_Mentouri","Sciences Et Technologies De L'Environnement","مخبر علوم و تكنولوجيا البيئة",null,"Université de Constantine 1 Frères Mentouri"]
["U. Constantine-1-","Université_de_Constantine_1_Frères_Mentouri","Signaux Et Systèmes De Communication","الإشارات و جمل الإتصالات",null,"Université de Constantine 1 Frères Mentouri"]
["U. Constantine-1-","Université_de_Constantine_1_Frères_Mentouri","Synthèse De Molécules D’Intérêts Biologiques","اصطناع مركبات ذات فعالـــية بيولوجيــــة",null,"Université de Constantine 1 Frères Mentouri"]
["U. Constantine-1-","Université_de_Constantine_1_Frères_Mentouri","Techniques Innovantes De Préservation De L'Environnement","مـخـبـر التـقـنـيـات الـحـديـثة لـحـفـظ الـمحـيـط",null,"Université de Constantine 1 Frères Mentouri"]
["U. Constantine-1-","Université_de_Constantine_1_Frères_Mentouri","Thermodynamiques Et Traitement De Surfaces Des Matériaux","الحركية الحرارية و معالجة سطوح المواد",null,"Université de Constantine 1 Frères Mentouri"]
["U. Constantine-1-","Université_de_Constantine_1_Frères_Mentouri","Traitement Du Signal","معالجة الإشارة",null,"Université de Constantine 1 Frères Mentouri"]
["U. Constantine-1-","Université_de_Constantine_1_Frères_Mentouri","Unité De Recherche : Chimie De L'Environnement Et Moléculaire Structurale (Remplace Le Lr 2000 \"Chimie Moléculaire Et Contrôle De L'Environnement Et Mesures Physico-Chimiques\")","وحدة البحث: كيمياء المحيط و الجزيئية التركبية",null,"Université de Constantine 1 Frères Mentouri"]
["U. Constantine-1-","Université_de_Constantine_1_Frères_Mentouri","Unité De Recherche : Sciences Des Matériaux Et Applications (Remplace Lr2000 \"Transformations De Phases\")","وحدة بحث علوم المواد و تطبيقاتها",null,"Université de Constantine 1 Frères Mentouri"]
["U. Constantine-1-","Université_de_Constantine_1_Frères_Mentouri","Unité De Recherche : Valorisation Des Ressources Naturelles, Molécules Bioactives Et Analyses Physico-Chimiques Et Biologiques (Fusion: Lr2000 Valorisation Des Ressources Naturelles + Lr2002 Phytochimie Et Analyses)","تثمين الموارد الطبيعية الجزيئات الفعالة بيولوجيا والتحاليل الفيزيوكيميائية والبيولوجية",null,"Université de Constantine 1 Frères Mentouri"]
["U. Constantine-2-","Université_de_Constantine_2_Abdelhamid_Mehri","Analyse Des Processus Sociaux Et Institutionnels","تحليل التحولات الإجتماعية و المؤسساتية",null,"Université de Constantine 2 Abdelhamid Mehri"]
["U. Constantine-2-","Université_de_Constantine_2_Abdelhamid_Mehri","Economie Et Management","مخبـــر الإقتصاد و إدارة الأعمـــال",null,"Université de Constantine 2 Abdelhamid Mehri"]
["U. Constantine-2-","Université_de_Constantine_2_Abdelhamid_Mehri","Education, Formation Et Développement","تربية٬ تكوين و تنمية",null,"Université de Constantine 2 Abdelhamid Mehri"]
["U. Constantine-2-","Université_de_Constantine_2_Abdelhamid_Mehri","Etude Et De Recherche Socio-Historique Sur Les Mouvements Migratoires","مخبر الدراسات و الأبحاث السوسيوتاريخية حول حركات الهجرة",null,"Université de Constantine 2 Abdelhamid Mehri"]
["U. Constantine-2-","Université_de_Constantine_2_Abdelhamid_Mehri","Etude Et Recherche Sur L'Information Et La Documentation Scientifique Et Technologique","مخبر الدراسات والبحث حول الإعلام والتوثيق العلمي والتكنولوجي",null,"Université de Constantine 2 Abdelhamid Mehri"]
["U. Constantine-2-","Université_de_Constantine_2_Abdelhamid_Mehri","Etudes Et Recherche Sur Civilisation Du Maghreb Islamique","مخبر البحوث و الدراسات في حضارة المغرب الإسلامي",null,"Université de Constantine 2 Abdelhamid Mehri"]
["U. Constantine-2-","Université_de_Constantine_2_Abdelhamid_Mehri","Etudes Et Recherches En Marketing","الدراسات والبحوث التسويقية",null,"Université de Constantine 2 Abdelhamid Mehri"]
["U. Constantine-2-","Université_de_Constantine_2_Abdelhamid_Mehri","Etudes Historiques Et Philosophiques","مخبر الدراسات التاريخية والفلسفية",null,"Université de Constantine 2 Abdelhamid Mehri"]
["U. Constantine-2-","Université_de_Constantine_2_Abdelhamid_Mehri","Expertise Et D’Analyse De La Performance Sportive","خبـــــــرة وتحليــــــــل التفــــــــوق الرياضـــــــــــي",null,"Université de Constantine 2 Abdelhamid Mehri"]
["U. Constantine-2-","Université_de_Constantine_2_Abdelhamid_Mehri","Formation En Psychopathologie Et Psychothérapie","مخبر البحث والتكوين في العلاج النفسي وعلم النفس الرضي",null,"Université de Constantine 2 Abdelhamid Mehri"]
["U. Constantine-2-","Université_de_Constantine_2_Abdelhamid_Mehri","Grand Maghreb : Economie Et Société","مخبر المغرب العربي الكبير : الإقتصاد والمجتمع",null,"Université de Constantine 2 Abdelhamid Mehri"]
["U. Constantine-2-","Université_de_Constantine_2_Abdelhamid_Mehri","Histoire, Patrimoine Et Société","التاريخ التراث و المجتمع",null,"Université de Constantine 2 Abdelhamid Mehri"]
["U. Constantine-2-","Université_de_Constantine_2_Abdelhamid_Mehri","Informatique Répartie","مخبرالأبحاث في الإعلام الآلي الموزع",null,"Université de Constantine 2 Abdelhamid Mehri"]
["U. Constantine-2-","Université_de_Constantine_2_Abdelhamid_Mehri","Modélisation Et Implémentation Des Systèmes Complexes","تصميم وٍانجاز الأنظمة المعقدة",null,"Université de Constantine 2 Abdelhamid Mehri"]
["U. Constantine-2-","Université_de_Constantine_2_Abdelhamid_Mehri","Nouvelle Technologie De L'Information Et Le Développement National","مخبر تكنولوجيا المعلومات ودورها في التنمية الوطنية",null,"Université de Constantine 2 Abdelhamid Mehri"]
["U. Constantine-2-","Université_de_Constantine_2_Abdelhamid_Mehri","Philosophie Des Sciences Humaines","المنطق اليوناني والفكر العربي الاسلامي(قراءة حداثية لبعض القراءات التراثية للمنطق اليوناني)",null,"Université de Constantine 2 Abdelhamid Mehri"]
["U. Constantine-2-","Université_de_Constantine_2_Abdelhamid_Mehri","Pratique Psychologiques Et Educatives","مخبر التطبيقات النفسية والتربوية",null,"Université de Constantine 2 Abdelhamid Mehri"]
["U. Constantine-2-","Université_de_Constantine_2_Abdelhamid_Mehri","Psychologie De L’Adolescent","علم النفس المراهق",null,"Université de Constantine 2 Abdelhamid Mehri"]
["U. Constantine-2-","Université_de_Constantine_2_Abdelhamid_Mehri","Psychologie Du Travail Et Management Des Organisations","مخبر علم النفس العمل وإدارة المنظمات",null,"Université de Constantine 2 Abdelhamid Mehri"]
["U. Constantine-2-","Université_de_Constantine_2_Abdelhamid_Mehri","Psychopathologie : Violence Corporelle & Traumatisme Psychique","مخبر علم النفس المرضي العنف الجسدي و الصدمة النفسية",null,"Université de Constantine 2 Abdelhamid Mehri"]
["U. Constantine-2-","Université_de_Constantine_2_Abdelhamid_Mehri","Sociologie Économique Et Des Mouvements Sociaux","علم الاجتماع الاقتصادي والحركات الاجتماعية",null,"Université de Constantine 2 Abdelhamid Mehri"]
["U. Constantine-2-","Université_de_Constantine_2_Abdelhamid_Mehri","Violence Et Education À La Citoyenneté","الـعنف و التربية عـلى الــــمواطنة",null,"Université de Constantine 2 Abdelhamid Mehri"]
["U. Constantine-3-","Université_de_Constantine_3_Salah_Boubnider","Alimentation, Nutrition Et Santé","التغدية التغدي و الصحة",null,"Université de Constantine 3 Salah Boubnider"]
["U. Constantine-3-","Université_de_Constantine_3_Salah_Boubnider","Architecture Bioclimatique Et Environnement","الهندسة المناخية و البيئة",null,"Université de Constantine 3 Salah Boubnider"]
["U. Constantine-3-","Université_de_Constantine_3_Salah_Boubnider","Architecture De L'Urbanisme : Espace Technique Et Société","من الهندسة المعمارية إلى التعمير: مجال، تقنية  و مجتمع",null,"Université de Constantine 3 Salah Boubnider"]
["U. Constantine-3-","Université_de_Constantine_3_Salah_Boubnider","Architecture, Ville, Métiers Et Formation","عمارة، مدينة، مهن وتكوين",null,"Université de Constantine 3 Salah Boubnider"]
["U. Constantine-3-","Université_de_Constantine_3_Salah_Boubnider","Biologie Et Génétique Moléculaire","مخبرالبيولوجيا والوراثة الجزيئية",null,"Université de Constantine 3 Salah Boubnider"]
["U. Constantine-3-","Université_de_Constantine_3_Salah_Boubnider","Diabète Sucré","داء السكر السكري المظاهر الوبائية الطبيعية البيولوجية و العلاجية",null,"Université de Constantine 3 Salah Boubnider"]
["U. Constantine-3-","Université_de_Constantine_3_Salah_Boubnider","Energie Et Environnement","الطاقة و البيئة",null,"Université de Constantine 3 Salah Boubnider"]
["U. Constantine-3-","Université_de_Constantine_3_Salah_Boubnider","Ingénierie Des Procédés De L'Environnement","الهندسة الإجرائية للبيئة",null,"Université de Constantine 3 Salah Boubnider"]
["U. Constantine-3-","Université_de_Constantine_3_Salah_Boubnider","Maladies Métaboliques Etudes Cliniques Biologiques, Fonctionnelles Et Génétiques","مخبر بحث في الأمراض الأيضية  :الدراسات الطبية٬بيولوجيا وضيفية ووراثية",null,"Université de Constantine 3 Salah Boubnider"]
["U. Constantine-3-","Université_de_Constantine_3_Salah_Boubnider","Médecine Préventive Des Affections Chroniques","الــــطــــب الـــو قــائـــي لـلأمــراض الــمـــزمنة",null,"Université de Constantine 3 Salah Boubnider"]
["U. Constantine-3-","Université_de_Constantine_3_Salah_Boubnider","Risques Professionnels Et Santé","مخبر الأخطار المهنية و الصحة",null,"Université de Constantine 3 Salah Boubnider"]
["U. Constantine-3-","Université_de_Constantine_3_Salah_Boubnider","Sociologie De La Communication Recherche Et Traduction","مخبر علم إجتماع الإتصال للبحث والترجمة",null,"Université de Constantine 3 Salah Boubnider"]
["U. Constantine-3-","Université_de_Constantine_3_Salah_Boubnider","Urbanisme Et Environnement","مخبر العمران والبـــيئة",null,"Université de Constantine 3 Salah Boubnider"]
["U. Constantine-3-","Université_de_Constantine_3_Salah_Boubnider","Villes Et Santé","المدينة و الصحة",null,"Université de Constantine 3 Salah Boubnider"]
["U. Djelfa","Université_de_Djelfa_Ziane_Achour","Automatique Appliquée Et Diagnostic Industriel","مخبر الأتمتة التطبيقية والتشخيص الصناعي",null,"Université de Djelfa Ziane Achour"]
["U. Djelfa","Université_de_Djelfa_Ziane_Achour","Chimie Organique Et Substances Naturelles","مخبر الكيمياء العضوية و العينات الطبيعية",null,"Université de Djelfa Ziane Achour"]
["U. Djelfa","Université_de_Djelfa_Ziane_Achour","Développement En Mécanique Et Matériaux","مخبر التطوير في الميكانيك والمواد",null,"Université de Djelfa Ziane Achour"]
["U. Djelfa","Université_de_Djelfa_Ziane_Achour","Développement, Démocratie Et Droit De L'Homme En Algérie","التنمية الديمقراطية وحقوق الإنسان في الجزائر",null,"Université de Djelfa Ziane Achour"]
["U. Djelfa","Université_de_Djelfa_Ziane_Achour","Droit De L’Environnement","مخبر قانون البيئة",null,"Université de Djelfa Ziane Achour"]
["U. Djelfa","Université_de_Djelfa_Ziane_Achour","Exploration Et Valorisation Des Écosystèmes Steppiques","استكشاف وتـثـمين الأنظمة البـيئية السهبية",null,"Université de Djelfa Ziane Achour"]
["U. Djelfa","Université_de_Djelfa_Ziane_Achour","Les Méthodes Quantitatives Dans Les Sciences Économiques Et Les Sciences Managériales Et Ses Applications Pour Le Développement Durable","الطرق الكمية في العلوم الاقتصادية و علوم إدارة الأعمال و تطبيقاتها من أجل التنمية المستدامة",null,"Université de Djelfa Ziane Achour"]
["U. Djelfa","Université_de_Djelfa_Ziane_Achour","Modélisation Simulation Et Optimisation Des Systèmes Complexes Réels","نمذجة و محاكاة و تحسين الأنظمة المركبة الحقيقية",null,"Université de Djelfa Ziane Achour"]
["U. Djelfa","Université_de_Djelfa_Ziane_Achour","Politique De Développement Rural Dans La Steppe","سياسة التنمية الريفية في السهوب",null,"Université de Djelfa Ziane Achour"]
["U. Djelfa","Université_de_Djelfa_Ziane_Achour","Réformes Du Système Constitutionnel Et La Bonne Gouvernance","إصلاح النظام الدستوري الجزائري و متطلبات الحكم الراشد",null,"Université de Djelfa Ziane Achour"]
["U. Djelfa","Université_de_Djelfa_Ziane_Achour","Sciences Et Informatique Des Matériaux","مخبر علوم ومعلوماتية المواد",null,"Université de Djelfa Ziane Achour"]
["U. Djelfa","Université_de_Djelfa_Ziane_Achour","Staps - Système Sportif En Algérie","مخبر المنظومة الرياضية في الجزائر",null,"Université de Djelfa Ziane Achour"]
["U. Djelfa","Université_de_Djelfa_Ziane_Achour","Stratégies De Prévention Et De Lutte Contre La Drogue En Algérie","مخبرإستراتيجيات الوقاية و مكافحة المخدرات في الجزائر",null,"Université de Djelfa Ziane Achour"]
["U. Ghardaia","Université_de_Ghardaïa","Analyse De Discours Et Des Études Lexicales Et Littéraires Comparées","تحليل الخطاب و الدراسات المعجمية و الأدبية المقارنة",null,"Université de Ghardaïa"]
["U. Ghardaia","Université_de_Ghardaïa","Applications Quantitatives et Qualitatives pour la Promotion Economique, Sociale et Environnementale des Entreprises Algériennes","التطبيقات الكمية و النوعية للارتقاء الاقتصادي \nو الاجتماعي و البيئي بالمؤسسات الجزائرية",null,"Université de Ghardaïa"]
["U. Ghardaia","Université_de_Ghardaïa","Développement Managérial Pour Promouvoir Les Entreprises Économiques Dans La Wilaya De Ghardaia","التنمية الإدارية للإرتقاء بالمؤسسات الإقتصادية بولاية غرداية",null,"Université de Ghardaïa"]
["U. Ghardaia","Université_de_Ghardaïa","Histoire Et Civilisation Musulmane","مخبر الجنوب الجزائري للبحث في التاريخ والحضارة الاسلامية",null,"Université de Ghardaïa"]
["U. Ghardaia","Université_de_Ghardaïa","Interdisciplinaire, Tourisme, Territoires, Sociétés","مخبر البحث في السياحة، الإقليم و المؤسسات",null,"Université de Ghardaïa"]
["U. Ghardaia","Université_de_Ghardaïa","Matériaux, Technologie Des Systèmes Énergétiques Et Environnement","مواد، تكنولوجيا أنظمة الطاقة و البيئة",null,"Université de Ghardaïa"]
["U. Ghardaia","Université_de_Ghardaïa","Mathématiques Et Sciences Appliquées","مخبر الرياضيات و العلوم التطبيقية",null,"Université de Ghardaïa"]
["U. Ghardaia","Université_de_Ghardaïa","Patrimoine Culturel, Linguistique Et Littérature Dans Les Régions Du Sud Algérien","مخبر التراث الثقافي واللغوي و الأدبي بالجنوب الجزائري",null,"Université de Ghardaïa"]
["U. Jijel","Université_de_Jijel_Mohammed_Seddik_Ben_Yahia","Analyse, Optimisation et Traitement de l’Information","تحليل، تحسين و معالجة المعلومة",null,"Université de Jijel Mohammed Seddik Ben Yahia"]
["U. Jijel","Université_de_Jijel_Mohammed_Seddik_Ben_Yahia","Automatique De Jijel","مخبر الآلية بجيجل",null,"Université de Jijel Mohammed Seddik Ben Yahia"]
["U. Jijel","Université_de_Jijel_Mohammed_Seddik_Ben_Yahia","Biologie Moléculaire Et Cellulaire","مخبر البیولوجیا الجزیئیة و الخلویة",null,"Université de Jijel Mohammed Seddik Ben Yahia"]
["U. Jijel","Université_de_Jijel_Mohammed_Seddik_Ben_Yahia","Biotechnologie, Environnement Et Santé","مخبر البيوتكنولوجيا، المحيط و الصحة",null,"Université de Jijel Mohammed Seddik Ben Yahia"]
["U. Jijel","Université_de_Jijel_Mohammed_Seddik_Ben_Yahia","Cadre Bati Et Environnement","مخبر بحث البناء والمحيط",null,"Université de Jijel Mohammed Seddik Ben Yahia"]
["U. Jijel","Université_de_Jijel_Mohammed_Seddik_Ben_Yahia","Droit Bancaire Et Financier","مخبر الدراسات في القانون البنكي والمالي",null,"Université de Jijel Mohammed Seddik Ben Yahia"]
["U. Jijel","Université_de_Jijel_Mohammed_Seddik_Ben_Yahia","Économie D’Organisations Et Développement Durable","اقتصاد المنظمات والتنمية المستدامة",null,"Université de Jijel Mohammed Seddik Ben Yahia"]
["U. Jijel","Université_de_Jijel_Mohammed_Seddik_Ben_Yahia","Electrotechnique Et D'Électronique Industrielle","مخبر الالكتروتقني و الالكترونيك الصناعي",null,"Université de Jijel Mohammed Seddik Ben Yahia"]
["U. Jijel","Université_de_Jijel_Mohammed_Seddik_Ben_Yahia","Energétique Appliquée Et Matériaux","مخبر الطاقوية التطبيقية و المواد",null,"Université de Jijel Mohammed Seddik Ben Yahia"]
["U. Jijel","Université_de_Jijel_Mohammed_Seddik_Ben_Yahia","Energies Renouvelables","مخبر الطاقات المتجددة",null,"Université de Jijel Mohammed Seddik Ben Yahia"]
["U. Jijel","Université_de_Jijel_Mohammed_Seddik_Ben_Yahia","Essais Non-Destructifs","الفحص غير التهديمي",null,"Université de Jijel Mohammed Seddik Ben Yahia"]
["U. Jijel","Université_de_Jijel_Mohammed_Seddik_Ben_Yahia","Etudes Des Interactions Matériaux Et Environnement","مخبر التفاعلالات بين المواد والمحيط",null,"Université de Jijel Mohammed Seddik Ben Yahia"]
["U. Jijel","Université_de_Jijel_Mohammed_Seddik_Ben_Yahia","Etudes Des Matériaux","مخبر دراسة المواد",null,"Université de Jijel Mohammed Seddik Ben Yahia"]
["U. Jijel","Université_de_Jijel_Mohammed_Seddik_Ben_Yahia","Génie Civil Et Environnement","مخبر الهندسة المدنية و البيئة",null,"Université de Jijel Mohammed Seddik Ben Yahia"]
["U. Jijel","Université_de_Jijel_Mohammed_Seddik_Ben_Yahia","Génie Géologique","مخبر الهندسة الجيولوجية",null,"Université de Jijel Mohammed Seddik Ben Yahia"]
["U. Jijel","Université_de_Jijel_Mohammed_Seddik_Ben_Yahia","Langue Et Analyse Du Discours","اللغة و تحليل الخطاب",null,"Université de Jijel Mohammed Seddik Ben Yahia"]
["U. Jijel","Université_de_Jijel_Mohammed_Seddik_Ben_Yahia","Matériaux : Élaborations-Propriétés-Applications","مخبر المواد: إعدادات-خصائص-تطبيقات",null,"Université de Jijel Mohammed Seddik Ben Yahia"]
["U. Jijel","Université_de_Jijel_Mohammed_Seddik_Ben_Yahia","Mathématiques Et Applications Des Mathématiques","مخبر الرياضيات و تطبيقات الرياضيات",null,"Université de Jijel Mohammed Seddik Ben Yahia"]
["U. Jijel","Université_de_Jijel_Mohammed_Seddik_Ben_Yahia","Mathématiques Pures Et Appliquées","مخبر الرياضيات المجردة و المطبقة",null,"Université de Jijel Mohammed Seddik Ben Yahia"]
["U. Jijel","Université_de_Jijel_Mohammed_Seddik_Ben_Yahia","Mécatronique De Jijel","مخبر الميكاترونيك",null,"Université de Jijel Mohammed Seddik Ben Yahia"]
["U. Jijel","Université_de_Jijel_Mohammed_Seddik_Ben_Yahia","Pharmacologie Et Phytochimie","مخبر الصيدلة و الكيمياء النباتية",null,"Université de Jijel Mohammed Seddik Ben Yahia"]
["U. Jijel","Université_de_Jijel_Mohammed_Seddik_Ben_Yahia","Physique De La Matière Condensée Et Nanomatériaux","مخبر فيزياء المادة المكثفة والمواد النانومترية",null,"Université de Jijel Mohammed Seddik Ben Yahia"]
["U. Jijel","Université_de_Jijel_Mohammed_Seddik_Ben_Yahia","Physique De Rayonnement Et Applications","مــــخبر فيزياء الإشعاع وتطبيقاته",null,"Université de Jijel Mohammed Seddik Ben Yahia"]
["U. Jijel","Université_de_Jijel_Mohammed_Seddik_Ben_Yahia","Physique Théorique","مخبرالفيزياء النظرية",null,"Université de Jijel Mohammed Seddik Ben Yahia"]
["U. Jijel","Université_de_Jijel_Mohammed_Seddik_Ben_Yahia","Pluridisciplinaire Des Sciences Humaines Et Sociales Appliquées Pour Le Développement","المختبر المتعددة التخصصات في العلوم الإنسانية والاجتماعية التطبيقية من أجل التنمية",null,"Université de Jijel Mohammed Seddik Ben Yahia"]
["U. Jijel","Université_de_Jijel_Mohammed_Seddik_Ben_Yahia","Protection Et La Promotion De La Famille Et Des Droits De La Femme Et De L’Enfant","حماية وترقية الأسرة وحقوق المرأة والطفل",null,"Université de Jijel Mohammed Seddik Ben Yahia"]
["U. Jijel","Université_de_Jijel_Mohammed_Seddik_Ben_Yahia","Psychologie Et Éducation Et Questions De Société","علم النفس والتربية وقضايا المجتمع",null,"Université de Jijel Mohammed Seddik Ben Yahia"]
["U. Jijel","Université_de_Jijel_Mohammed_Seddik_Ben_Yahia","Sociolinguistique, Socio-Didactique Et Socio-Littérature","مخبر البحث في الدراسات السوسيو - لغوية، السوسيو- تعليمية والسوسيو - أدبية",null,"Université de Jijel Mohammed Seddik Ben Yahia"]
["U. Jijel","Université_de_Jijel_Mohammed_Seddik_Ben_Yahia","Toxicologie Moléculaire","مخبر علم السموم الجزيئية",null,"Université de Jijel Mohammed Seddik Ben Yahia"]
["U. Khemis Miliana","Université_de_Khemis_Miliana_Djilali_Bounaama","Développement Local Et Entrepreneuriat Dans La Wilaya De Ain-Defla","التنمية المحلية و المقاولتية في ولاية عين الدفلى",null,"Université de Khemis Miliana Djilali Bounaama"]
["U. Khemis Miliana","Université_de_Khemis_Miliana_Djilali_Bounaama","Eau, Roche Et Plante","الماء ٬ الصخور و النباتات",null,"Université de Khemis Miliana Djilali Bounaama"]
["U. Khemis Miliana","Université_de_Khemis_Miliana_Djilali_Bounaama","Economie Numérique En Algérie","الاقتصاد الرقمي في الجزائر",null,"Université de Khemis Miliana Djilali Bounaama"]
["U. Khemis Miliana","Université_de_Khemis_Miliana_Djilali_Bounaama","Energie Et Des Systèmes Intelligents","مخبر الطاقة و الأنظمة الذكية",null,"Université de Khemis Miliana Djilali Bounaama"]
["U. Khemis Miliana","Université_de_Khemis_Miliana_Djilali_Bounaama","Fluides Industriels Mesures Et Applications","الموانع الصناعية٬قياسات و تطبيقات",null,"Université de Khemis Miliana Djilali Bounaama"]
["U. Khemis Miliana","Université_de_Khemis_Miliana_Djilali_Bounaama","Industrie, Évolution Organisationnelle Des Entreprises Et Innovation","الصناعة، التطور التنظيمي للمؤسسات والإبداع",null,"Université de Khemis Miliana Djilali Bounaama"]
["U. Khemis Miliana","Université_de_Khemis_Miliana_Djilali_Bounaama","La Sécurité Nationale Algérienne \"Enjeux Défis\"","مخبر الأمن القومي الجزائري \"الرهانات والتحديات\"",null,"Université de Khemis Miliana Djilali Bounaama"]
["U. Khemis Miliana","Université_de_Khemis_Miliana_Djilali_Bounaama","Les Institutions Algériennes À Travers Les Âges Et Leurs Rôles Dans Le Développement National","المؤسسات الجزائرية عبر التاريخ ودورها في التنمية الوطنية",null,"Université de Khemis Miliana Djilali Bounaama"]
["U. Khemis Miliana","Université_de_Khemis_Miliana_Djilali_Bounaama","Médias, Opinion Publique Et Industrie Des Valeurs","الإعلام و الرأي العام و صناعة القيم",null,"Université de Khemis Miliana Djilali Bounaama"]
["U. Khemis Miliana","Université_de_Khemis_Miliana_Djilali_Bounaama","Organisation De L'État Civil","نظام الحالة المدنية",null,"Université de Khemis Miliana Djilali Bounaama"]
["U. Khemis Miliana","Université_de_Khemis_Miliana_Djilali_Bounaama","Production Agricole Et Valorisation Durable De La Ressource Naturelle","الإنتاج الفلاحى والتثمين المستدام للموارد الطبيعية",null,"Université de Khemis Miliana Djilali Bounaama"]
["U. Khemis Miliana","Université_de_Khemis_Miliana_Djilali_Bounaama","Régime Juridique Des Contrats Et Des Actes Dans Le Droit Privé","النظام القانوني للعقود و التصرفات في القانون الخاص",null,"Université de Khemis Miliana Djilali Bounaama"]
["U. Khemis Miliana","Université_de_Khemis_Miliana_Djilali_Bounaama","Sport De La Santé Et De La Performance","الرياضة، الصحة و الأداء",null,"Université de Khemis Miliana Djilali Bounaama"]
["U. Khemis Miliana","Université_de_Khemis_Miliana_Djilali_Bounaama","Valorisation Des Substances Naturelles","مخبر تثمين المواد الطبيعية",null,"Université de Khemis Miliana Djilali Bounaama"]
["U. Khenchela","Université_de_Khenchela_Abbas_Laghrour","Biotechnologie, Eau, Environnement Et Santé","بيوتكنولوجيا، ماء، محيط و صحة",null,"Université de Khenchela Abbas Laghrour"]
["U. Khenchela","Université_de_Khenchela_Abbas_Laghrour","Capteurs, Instrumentations Et Procédés","مخبر المجسات والالات و التسق",null,"Université de Khenchela Abbas Laghrour"]
["U. Khenchela","Université_de_Khenchela_Abbas_Laghrour","Incubateurs D'Entreprises Et Développement Local","حاضنة المؤسسات و التنمية المحلية",null,"Université de Khenchela Abbas Laghrour"]
["U. Khenchela","Université_de_Khenchela_Abbas_Laghrour","Ingénierie Des Connaissances Et Sécurité Informatique","مخبر بحث هندسة المعارف و الأمن المعلوماتي",null,"Université de Khenchela Abbas Laghrour"]
["U. Khenchela","Université_de_Khenchela_Abbas_Laghrour","Ingénierie Et Sciences Des Matériaux Avancés","هندسة وعلوم المواد المتقدمة",null,"Université de Khenchela Abbas Laghrour"]
["U. Khenchela","Université_de_Khenchela_Abbas_Laghrour","Recherche Juridiques, Politiques Et Charia","مخبر البحوث القانونية، السياسية والشرعية",null,"Université de Khenchela Abbas Laghrour"]
["U. Khenchela","Université_de_Khenchela_Abbas_Laghrour","Structures, Propriétés Et Interactions Inter Atomiques","مخبر البنايات و الخصائص و التجاذبات البين ذرية",null,"Université de Khenchela Abbas Laghrour"]
["U. Formation Continue","Université_de_la_Formation_Continue","Ingénierie Pédagogique Moderne De L’Enseignement Et La Formation Continue, Conformément À La Stratégie Nationale De Développement Des Ressources Humaines","الهندسة البيداغوجية الحديثة للتعليم والتكوين المتواصل وفق الإستراتيجية الوطنية لتنمية للموارد البشرية",null,"Université de la Formation Continue"]
["U. Laghouat","Université_de_Laghouat_Amar_Telidji","Analyse Et De Commande Des Systèmes D'Énergie Et Réseaux Électriques","التحليل والتحكم في أنظمة الطاقة والشبكات الكهربائية",null,"Université de Laghouat Amar Telidji"]
["U. Laghouat","Université_de_Laghouat_Amar_Telidji","Autonomisation Sociale Et Développement Durable Dans L'Environnement Désertique","التمكين الاجتماعي و التنمية المستدامة في البيئة الصحراوية",null,"Université de Laghouat Amar Telidji"]
["U. Laghouat","Université_de_Laghouat_Amar_Telidji","Counseling Psychologique Et Développement Des Outils De Mesures Dans Le Milieu Scolaire","مخبر الإرشاد النفسي وتطوير أدوات القياس في الوسط المدرسي",null,"Université de Laghouat Amar Telidji"]
["U. Laghouat","Université_de_Laghouat_Amar_Telidji","Droit Et Sciences Politiques","الحقوق والعلوم السياسية",null,"Université de Laghouat Amar Telidji"]
["U. Laghouat","Université_de_Laghouat_Amar_Telidji","Etude Du Développement Économique","مخبر دراسات التنمية الاقتصادية",null,"Université de Laghouat Amar Telidji"]
["U. Laghouat","Université_de_Laghouat_Amar_Telidji","Etude Et Développement Des Matériaux Semi-Conducteurs Et Diélectriques","دراسة و تطوير المواد نصف النواقل و الكهربائية العازلة",null,"Université de Laghouat Amar Telidji"]
["U. Laghouat","Université_de_Laghouat_Amar_Telidji","Etudes Islamiques Et Linguistiques","مخبر الدراسات الإسلامية واللغوية",null,"Université de Laghouat Amar Telidji"]
["U. Laghouat","Université_de_Laghouat_Amar_Telidji","Génie Civil","مخبر البحث للهندسة المدنية",null,"Université de Laghouat Amar Telidji"]
["U. Laghouat","Université_de_Laghouat_Amar_Telidji","Génie Des Procédés","مخبر هندسة الطرائق",null,"Université de Laghouat Amar Telidji"]
["U. Laghouat","Université_de_Laghouat_Amar_Telidji","Informatique Et Mathématiques","الإعلام الآلي و الرياضيات",null,"Université de Laghouat Amar Telidji"]
["U. Laghouat","Université_de_Laghouat_Amar_Telidji","Langue Arabe Et Sa Littérature","مخبر اللغة العربية و أدابها",null,"Université de Laghouat Amar Telidji"]
["U. Laghouat","Université_de_Laghouat_Amar_Telidji","Les Dimensions Des Savoirs Et Des Perceptions Pratiques Des Sciences De L’Entraînement Sportif Visions Et Approches Pluridisciplinaires","الأبعاد المعرفية والتصورات التطبيقية لعلوم التدريب الرياضي من خلال مقاربات متعددة",null,"Université de Laghouat Amar Telidji"]
["U. Laghouat","Université_de_Laghouat_Amar_Telidji","Linguistique Contrastive Et Caractères Des Langues","مخبر اللسانيات التقابلية وخصائص اللغات",null,"Université de Laghouat Amar Telidji"]
["U. Laghouat","Université_de_Laghouat_Amar_Telidji","Linguistique Pragmatique Et Analyse De Discours Littéraire","اللسانيات التداولية وتحليل الخطاب الأدبي",null,"Université de Laghouat Amar Telidji"]
["U. Laghouat","Université_de_Laghouat_Amar_Telidji","Matériaux Et Réhabilitation De Structures","مخبر المواد وإعادة تأھيل الھياكل",null,"Université de Laghouat Amar Telidji"]
["U. Laghouat","Université_de_Laghouat_Amar_Telidji","Mathématiques Pures Et Appliquées","مخبر الرياضياث البحتة و التطبيقية",null,"Université de Laghouat Amar Telidji"]
["U. Laghouat","Université_de_Laghouat_Amar_Telidji","Mécanique","مخبر الميكانيك",null,"Université de Laghouat Amar Telidji"]
["U. Laghouat","Université_de_Laghouat_Amar_Telidji","Physico-Chimie Des Matériaux","مخبر فيزياء وكيمياء المواد",null,"Université de Laghouat Amar Telidji"]
["U. Laghouat","Université_de_Laghouat_Amar_Telidji","Physique Des Matériaux","مخبر فيزياء المواد",null,"Université de Laghouat Amar Telidji"]
["U. Laghouat","Université_de_Laghouat_Amar_Telidji","Ressources En Eau, Sols Et Environnement","مـخـبــر البحث في المــوارد المــائية٬ التـــربــة و البيــــئـــة",null,"Université de Laghouat Amar Telidji"]
["U. Laghouat","Université_de_Laghouat_Amar_Telidji","Santé Psychique","مخبر الصحة النفسية",null,"Université de Laghouat Amar Telidji"]
["U. Laghouat","Université_de_Laghouat_Amar_Telidji","Sciences Du Langage","علوم اللسان",null,"Université de Laghouat Amar Telidji"]
["U. Laghouat","Université_de_Laghouat_Amar_Telidji","Sciences Économiques Et Gestion","مخبر العلوم الإقتصادية والتسيير",null,"Université de Laghouat Amar Telidji"]
["U. Laghouat","Université_de_Laghouat_Amar_Telidji","Sciences Fondamentales","مخـــبر العلـــوم الأســاسيــة",null,"Université de Laghouat Amar Telidji"]
["U. Laghouat","Université_de_Laghouat_Amar_Telidji","Semi-Conducteurs Et Matériaux Fonctionnels","مخبر شبه المواصلات و المواد الوظيفية",null,"Université de Laghouat Amar Telidji"]
["U. Laghouat","Université_de_Laghouat_Amar_Telidji","Télécommunications, Signaux Et Systèmes","مخبر الإتـصـالات الإشارات و الأنـظـمة",null,"Université de Laghouat Amar Telidji"]
["U. M'sila","Université_de_M_sila__Mohamed_Boudiaf","Analyse Des Signaux Et Systèmes","تحليل الإشارات والأنظمة",null,"Université de M sila  Mohamed Boudiaf"]
["U. M'sila","Université_de_M_sila__Mohamed_Boudiaf","Analyse Fonctionnelle Et Géométrie Des Espaces","التحليل الدالي وهندسة الفضاءات",null,"Université de M sila  Mohamed Boudiaf"]
["U. M'sila","Université_de_M_sila__Mohamed_Boudiaf","Apprentissage Et Contrôle Moteur","مخبر التعلم والتحكم الحركي",null,"Université de M sila  Mohamed Boudiaf"]
["U. M'sila","Université_de_M_sila__Mohamed_Boudiaf","Communication Et Société","الإتصال والمجتمع",null,"Université de M sila  Mohamed Boudiaf"]
["U. M'sila","Université_de_M_sila__Mohamed_Boudiaf","Développement Des Géo-Matériaux","تنمية الجيو مواد",null,"Université de M sila  Mohamed Boudiaf"]
["U. M'sila","Université_de_M_sila__Mohamed_Boudiaf","Etude Linguistique Théorique Et Pratique","الدراسة اللغوية النظرية والتطبيقية",null,"Université de M sila  Mohamed Boudiaf"]
["U. M'sila","Université_de_M_sila__Mohamed_Boudiaf","Etudes Anthropologiques Et Problématiques Sociaux","الدراسات الأنثروبولوجية و المشكلات الإجتماعية",null,"Université de M sila  Mohamed Boudiaf"]
["U. M'sila","Université_de_M_sila__Mohamed_Boudiaf","Etudes Et De Recherches En Droit, Famille Et Développement Administratif","مخبر الدراسات و البحوث في القانون و الأسرة و التنمية الإدارية",null,"Université de M sila  Mohamed Boudiaf"]
["U. M'sila","Université_de_M_sila__Mohamed_Boudiaf","Études Et Des Recherches Islamique Et Juridique Et Économie Islamique","الدراسات والبحوث الإسلامية والقانونية والاقتصاد الإسلامي",null,"Université de M sila  Mohamed Boudiaf"]
["U. M'sila","Université_de_M_sila__Mohamed_Boudiaf","Etudes Et Recherche Sur La Révolution Algérienne","مخبر الدراسات والبحث في الثورة الجزائرية",null,"Université de M sila  Mohamed Boudiaf"]
["U. M'sila","Université_de_M_sila__Mohamed_Boudiaf","Etudes Historiques, De Sociologie Et Des Changements Sociaux Et Économiques","مخبر الدراسات التاريخية و السوسيولوجيا للتغييرات الإجتماعية و الاقتصادية",null,"Université de M sila  Mohamed Boudiaf"]
["U. M'sila","Université_de_M_sila__Mohamed_Boudiaf","Génie Électrique","الهندسة الكهربائية",null,"Université de M sila  Mohamed Boudiaf"]
["U. M'sila","Université_de_M_sila__Mohamed_Boudiaf","Life Skills","المهارات الحياتية",null,"Université de M sila  Mohamed Boudiaf"]
["U. M'sila","Université_de_M_sila__Mohamed_Boudiaf","Matériaux Et Mécanique Des Structures","مخبر المواد وميكانيك المنشآت",null,"Université de M sila  Mohamed Boudiaf"]
["U. M'sila","Université_de_M_sila__Mohamed_Boudiaf","Matériaux Inorganiques","مخبر المواد غير العضوية",null,"Université de M sila  Mohamed Boudiaf"]
["U. M'sila","Université_de_M_sila__Mohamed_Boudiaf","Mathématiques Pures Et Appliquées","مخبر الرياضيات البحتة و التطبيقية",null,"Université de M sila  Mohamed Boudiaf"]
["U. M'sila","Université_de_M_sila__Mohamed_Boudiaf","Nouvelles Sciences Politiques","مخبر أبحاث العلوم السياسية الجديدة",null,"Université de M sila  Mohamed Boudiaf"]
["U. M'sila","Université_de_M_sila__Mohamed_Boudiaf","Physique Des Matériaux Et Ses Applications","فيزياء المواد وتطبيقاتها",null,"Université de M sila  Mohamed Boudiaf"]
["U. M'sila","Université_de_M_sila__Mohamed_Boudiaf","Physique Et Chimie Des Matériaux","فيزياء و كيمياء المواد",null,"Université de M sila  Mohamed Boudiaf"]
["U. M'sila","Université_de_M_sila__Mohamed_Boudiaf","Planification Des Ressources Humaines Et L'Amélioration Des Performances","تخطيط الموارد البشرية ورفع مستوى الأداء",null,"Université de M sila  Mohamed Boudiaf"]
["U. M'sila","Université_de_M_sila__Mohamed_Boudiaf","Poésie Algérienne","الشعرية الجزائرية",null,"Université de M sila  Mohamed Boudiaf"]
["U. M'sila","Université_de_M_sila__Mohamed_Boudiaf","Programmes Des Activités Physiques Et Sportives Adaptées","مخبر برامج الأنشطة البدنية والرياضية المكيفة",null,"Université de M sila  Mohamed Boudiaf"]
["U. M'sila","Université_de_M_sila__Mohamed_Boudiaf","Sémiologie De Théâtre Entre La Théorie Et Le Pratique","سيميولوجيا المسرح بين النظرية والتطبيق",null,"Université de M sila  Mohamed Boudiaf"]
["U. M'sila","Université_de_M_sila__Mohamed_Boudiaf","Sociologie De La Qualité Du Service Public","سوسيولوجية جودة الخدمة العمومية",null,"Université de M sila  Mohamed Boudiaf"]
["U. M'sila","Université_de_M_sila__Mohamed_Boudiaf","Stratégies Et Politiques Economiques En Algérie","الاستراتيجيات والسياسات الاقتصادية في الجزائر",null,"Université de M sila  Mohamed Boudiaf"]
["U. M'sila","Université_de_M_sila__Mohamed_Boudiaf","Technique Urbaine Et Environnement","مخبر التقنيات العمرانية و المحيط",null,"Université de M sila  Mohamed Boudiaf"]
["U. M'sila","Université_de_M_sila__Mohamed_Boudiaf","Ville, Environnement, Société Et Développement Durable","المدينة ، البيئة، المجتمع و التنمية المستدامة",null,"Université de M sila  Mohamed Boudiaf"]
["U. Mascara","Université_de_Mascara_Mustapha_Stambouli","Analyse, Prospective Et Développement Des Emplois Et Des Compétences","تحليل و استشراف و تطوير الوظائف و الكفاءات",null,"Université de Mascara Mustapha Stambouli"]
["U. Mascara","Université_de_Mascara_Mustapha_Stambouli","Bioconversion, Génie Microbiologique Et Sécurité Sanitaire","التحويل البيولوجي ٬ الهندسة الميكروبيولوجية و الأمن الصحي",null,"Université de Mascara Mustapha Stambouli"]
["U. Mascara","Université_de_Mascara_Mustapha_Stambouli","Chimie Organique, Macromoléculaire Et Des Matériaux","الكيمياء العضوية،الجزيئات الكبيرة و المواد",null,"Université de Mascara Mustapha Stambouli"]
["U. Mascara","Université_de_Mascara_Mustapha_Stambouli","Chimie Physique Des Macromolécules Et Interfaces Biologiques","مخبر الكيمياء الفيزيائية للبيوجزيئات و الوصلات البيولوجية",null,"Université de Mascara Mustapha Stambouli"]
["U. Mascara","Université_de_Mascara_Mustapha_Stambouli","Génie Des Procédés Et Chimie Des Solutions","مخبر هندسة الطرائق و كيمياء المحاليل",null,"Université de Mascara Mustapha Stambouli"]
["U. Mascara","Université_de_Mascara_Mustapha_Stambouli","Géo-Environnement Et Développement Des Espaces","علم المحيط وتنمية المساحات",null,"Université de Mascara Mustapha Stambouli"]
["U. Mascara","Université_de_Mascara_Mustapha_Stambouli","Géomatique, Écologie Et Environnement","الإعلام الجغرافي الآلي، البیئة والمحیط",null,"Université de Mascara Mustapha Stambouli"]
["U. Mascara","Université_de_Mascara_Mustapha_Stambouli","Ingénierie Des Programmes De Langue Dans Les Filières De Spécialité","هندسة برامج اللغات في شعب التخصص",null,"Université de Mascara Mustapha Stambouli"]
["U. Mascara","Université_de_Mascara_Mustapha_Stambouli","Législation En Droit Économique","مخبر البحث في تشريعات القانون الإقتصادى",null,"Université de Mascara Mustapha Stambouli"]
["U. Mascara","Université_de_Mascara_Mustapha_Stambouli","Linguistique Arabe Et Analyse Des Textes","اللسانيات العربية وتحليل النصوص",null,"Université de Mascara Mustapha Stambouli"]
["U. Mascara","Université_de_Mascara_Mustapha_Stambouli","Management Des Collectivités Locales Et Développement Local","تسيير الجماعات المحلية و التنمية المحلية",null,"Université de Mascara Mustapha Stambouli"]
["U. Mascara","Université_de_Mascara_Mustapha_Stambouli","Matériaux, Applications Et Environnement","المواد والتطبيقات والبيئة",null,"Université de Mascara Mustapha Stambouli"]
["U. Mascara","Université_de_Mascara_Mustapha_Stambouli","Méthodologies De La Critique Moderne Et L’Analyse Du Discours","مخبر المناهج النقدية المعاصرة وتحليل الخطاب",null,"Université de Mascara Mustapha Stambouli"]
["U. Mascara","Université_de_Mascara_Mustapha_Stambouli","Outils Juridiques De La Politique Foncière","الأدوات القانونية للسياسة العقارية",null,"Université de Mascara Mustapha Stambouli"]
["U. Mascara","Université_de_Mascara_Mustapha_Stambouli","Physique Quantique De La Matière Et Modélisations Mathématiques","مخبر الفيزياء الكمية للمادة و تشكيل النماذج الرياضية",null,"Université de Mascara Mustapha Stambouli"]
["U. Mascara","Université_de_Mascara_Mustapha_Stambouli","Pme, Recherches Et Innovation","مخبر المؤسسات الصغيرة و المتوسطة بحث و ابداع",null,"Université de Mascara Mustapha Stambouli"]
["U. Mascara","Université_de_Mascara_Mustapha_Stambouli","Recherches Sociologiques Et Historiques","البحوث الإجتماعية والتاريخية",null,"Université de Mascara Mustapha Stambouli"]
["U. Mascara","Université_de_Mascara_Mustapha_Stambouli","Sciences Et Techniques De L'Eau","مخبر علوم و تقنيات المياه",null,"Université de Mascara Mustapha Stambouli"]
["U. Mascara","Université_de_Mascara_Mustapha_Stambouli","Systèmes Biologiques Et La Géomatique","مخبر البحث حول الأنظمة البيولوجية و الجيوماتيك",null,"Université de Mascara Mustapha Stambouli"]
["U. Médéa","Université_de_Médéa_Yahia_Farès","Biomatériaux Et Phénomènes De Transport","مخبر بيو المواد و ظواهر النقل",null,"Université de Médéa Yahia Farès"]
["U. Médéa","Université_de_Médéa_Yahia_Farès","Développement Local Durable","التنمية المحلية المستدامة",null,"Université de Médéa Yahia Farès"]
["U. Médéa","Université_de_Médéa_Yahia_Farès","Didactique De La Langue Et Des Textes","مخبر تعليمية اللغة و النصوص",null,"Université de Médéa Yahia Farès"]
["U. Médéa","Université_de_Médéa_Yahia_Farès","Économie Appliquée Au Développement","الاقتصاد التطبيقي في التنمية",null,"Université de Médéa Yahia Farès"]
["U. Médéa","Université_de_Médéa_Yahia_Farès","Électrotechnique Et Automatique","الكهروتقنية و الآليات",null,"Université de Médéa Yahia Farès"]
["U. Médéa","Université_de_Médéa_Yahia_Farès","Etudes Historiques De La Méditerranée À Travers Les Âges","الدراسات التاريخية المتوسطية عبر العصور",null,"Université de Médéa Yahia Farès"]
["U. Médéa","Université_de_Médéa_Yahia_Farès","Études Terminologiques Et Lexicographiques","الدراسات المصطلحية والمعجمية",null,"Université de Médéa Yahia Farès"]
["U. Médéa","Université_de_Médéa_Yahia_Farès","Langue Et Art De La Communication","اللغة وفن التواصل",null,"Université de Médéa Yahia Farès"]
["U. Médéa","Université_de_Médéa_Yahia_Farès","Macroéconomie Et Finance Internationale","الاقتصاد الكلي و المالية الدولية",null,"Université de Médéa Yahia Farès"]
["U. Médéa","Université_de_Médéa_Yahia_Farès","Matériaux Et Environnement (Ex: Procédés De Traitement Et Recyclage Des Rejets)","مخبر المواد و البيئة",null,"Université de Médéa Yahia Farès"]
["U. Médéa","Université_de_Médéa_Yahia_Farès","Mécanique, Physique Et Modélisation Mathématique","مخبر الميكانيك، الفيزياء والنمذجة الرياضية",null,"Université de Médéa Yahia Farès"]
["U. Médéa","Université_de_Médéa_Yahia_Farès","Physique Des Techniques Expérimentales Et Ses Applications","مخبر فيزياء التقنيات التجريبية وتطبيقاتها ",null,"Université de Médéa Yahia Farès"]
["U. Médéa","Université_de_Médéa_Yahia_Farès","Psychologie Et Sociologie","البحوث النفسية و الاجتماعية",null,"Université de Médéa Yahia Farès"]
["U. Médéa","Université_de_Médéa_Yahia_Farès","Souveraineté Et Mondialisation","مخبر السيادة والعولمة",null,"Université de Médéa Yahia Farès"]
["U. Médéa","Université_de_Médéa_Yahia_Farès","Systèmes Électroniques Avancés","مخبر الأنظمة الإلكترونية المتقدمة",null,"Université de Médéa Yahia Farès"]
["U. Mostaganem","Université_de_Mostaganem_Abdelhamid_Ibn_Badis","Analyse Des Données Quantitatives Et Qualitatives Des Comportements Psychologiques Et Sociaux","تحليل المعطيات الكمية و الكيفية للسلوكات النفسية و الإجتماعية",null,"Université de Mostaganem Abdelhamid Ibn Badis"]
["U. Mostaganem","Université_de_Mostaganem_Abdelhamid_Ibn_Badis","Biodiversité Et Conservation Des Eaux Et Des Sols","التنوع البيولوجي و الحفاظ على المياه و التربة",null,"Université de Mostaganem Abdelhamid Ibn Badis"]
["U. Mostaganem","Université_de_Mostaganem_Abdelhamid_Ibn_Badis","Construction, Transport Et Protection De L'Environnement","البناء ، النقل و حماية البيئة",null,"Université de Mostaganem Abdelhamid Ibn Badis"]
["U. Mostaganem","Université_de_Mostaganem_Abdelhamid_Ibn_Badis","Dialogue Des Civilisations Et De La Diversité Culturelle Et Philosophie De La Paix","حوار الحضارات والتنوع الثقافي وفلسفة السلم",null,"Université de Mostaganem Abdelhamid Ibn Badis"]
["U. Mostaganem","Université_de_Mostaganem_Abdelhamid_Ibn_Badis","Didactique Des Projets De Formation Et Conception De Curricula","تعليمة مشاريع التكوين و تصور المناهج الدراسية",null,"Université de Mostaganem Abdelhamid Ibn Badis"]
["U. Mostaganem","Université_de_Mostaganem_Abdelhamid_Ibn_Badis","Dimensions Socio Pragmatique Et Pragma Linguistique Dans Les Manuels Scolaires De Langues Étrangères En Algérie","البعد السوسيو تداولي والتداول اللساني في مناهج التعليم للغات الأجنبية في الجزائر",null,"Université de Mostaganem Abdelhamid Ibn Badis"]
["U. Mostaganem","Université_de_Mostaganem_Abdelhamid_Ibn_Badis","Droit Constitutionnel Et La Bonne Gouvernance","القانون الدستوري و الحكم الراشد",null,"Université de Mostaganem Abdelhamid Ibn Badis"]
["U. Mostaganem","Université_de_Mostaganem_Abdelhamid_Ibn_Badis","Droit De L'Homme Et Libertés Publiques","حقوق الإنسان و الحريات العامة",null,"Université de Mostaganem Abdelhamid Ibn Badis"]
["U. Mostaganem","Université_de_Mostaganem_Abdelhamid_Ibn_Badis","Droit De Travail Et L’Emploi","قانون العمل والتشغيل",null,"Université de Mostaganem Abdelhamid Ibn Badis"]
["U. Mostaganem","Université_de_Mostaganem_Abdelhamid_Ibn_Badis","Droit Foncier Et Environnement","القانون العقاري و البيئة",null,"Université de Mostaganem Abdelhamid Ibn Badis"]
["U. Mostaganem","Université_de_Mostaganem_Abdelhamid_Ibn_Badis","Droit International Du Développement Durable","مخبر القانون الدولي للتنمية المستدامة",null,"Université de Mostaganem Abdelhamid Ibn Badis"]
["U. Mostaganem","Université_de_Mostaganem_Abdelhamid_Ibn_Badis","Dynamique Macro-Économique Et Changements Structurels","ديناميكية الإقتصاد الكلي والتغيرات الهيكيلة",null,"Université de Mostaganem Abdelhamid Ibn Badis"]
["U. Mostaganem","Université_de_Mostaganem_Abdelhamid_Ibn_Badis","Elaboration Et Caractérisation Physico Mécanique Et Métallurgique Des Matériaux","تطوير وتوصيف فزيائي ميكانيكي و سبائكي للمواد",null,"Université de Mostaganem Abdelhamid Ibn Badis"]
["U. Mostaganem","Université_de_Mostaganem_Abdelhamid_Ibn_Badis","Electromagnétisme Et Optique Guidée","الهرومغناطيس و الضوئيات المفيدة",null,"Université de Mostaganem Abdelhamid Ibn Badis"]
["U. Mostaganem","Université_de_Mostaganem_Abdelhamid_Ibn_Badis","Environnement Linguistique Et Usages De La Langue Française En Algérie : Une Observation Quantitative","المحيط اللغوي وإستعمالات اللغة الفرنسية في الجزائر: معالجة كمية",null,"Université de Mostaganem Abdelhamid Ibn Badis"]
["U. Mostaganem","Université_de_Mostaganem_Abdelhamid_Ibn_Badis","Esthétiques Visuelles Dans Les Pratiques Artistiques Algériennes","الجماليات البصرية في الممارسات الفنية الجزائرية",null,"Université de Mostaganem Abdelhamid Ibn Badis"]
["U. Mostaganem","Université_de_Mostaganem_Abdelhamid_Ibn_Badis","Etudes Du Genres, Langues Et Diversités Sociolinguistiques","دراسات النوع البشري اللغات والتنوع السوسيولغوي",null,"Université de Mostaganem Abdelhamid Ibn Badis"]
["U. Mostaganem","Université_de_Mostaganem_Abdelhamid_Ibn_Badis","Etudes En Communication, Information Et Analyse Du Discours","مخبر الدراسات الاتصالية والإعلامية وتحليل الخطاب",null,"Université de Mostaganem Abdelhamid Ibn Badis"]
["U. Mostaganem","Université_de_Mostaganem_Abdelhamid_Ibn_Badis","Etudes Linguistiques Et Littéraires En Algérie, De La Période Turque À La Fin Du Xxe Siècle","الدراسات اللغوية والأدبية في الجزائر، من العهد التركي إلى نهاية القرن العشرين",null,"Université de Mostaganem Abdelhamid Ibn Badis"]
["U. Mostaganem","Université_de_Mostaganem_Abdelhamid_Ibn_Badis","Le Sacré, Expressions Et Représentations","المقدس ، تعبيرات و تمثلات",null,"Université de Mostaganem Abdelhamid Ibn Badis"]
["U. Mostaganem","Université_de_Mostaganem_Abdelhamid_Ibn_Badis","Matériaux Et Procédés De Construction","مخبر مواد و طرق البناء",null,"Université de Mostaganem Abdelhamid Ibn Badis"]
["U. Mostaganem","Université_de_Mostaganem_Abdelhamid_Ibn_Badis","Mathématiques Pures Et Appliquées","الرياضيات البحتة و التطبيقية",null,"Université de Mostaganem Abdelhamid Ibn Badis"]
["U. Mostaganem","Université_de_Mostaganem_Abdelhamid_Ibn_Badis","Microbiologie Et Biologie Végétale","مخبر الميكروبيولوجيا وبيولوجيا النبات",null,"Université de Mostaganem Abdelhamid Ibn Badis"]
["U. Mostaganem","Université_de_Mostaganem_Abdelhamid_Ibn_Badis","Micro-Organismes Bénéfiques, Des Aliments Fonctionnels Et De La Santé","الكائنات الحية الدقيقة النافعة ، والأغديةالوظيفية والصحة",null,"Université de Mostaganem Abdelhamid Ibn Badis"]
["U. Mostaganem","Université_de_Mostaganem_Abdelhamid_Ibn_Badis","Modélisation Numérique Et Expérimentale Des Phénomènes Mécaniques","مخبر النمذجة العددية والتجريبية للظواهر الميكانيكية",null,"Université de Mostaganem Abdelhamid Ibn Badis"]
["U. Mostaganem","Université_de_Mostaganem_Abdelhamid_Ibn_Badis","Néo-Khaldounisme, Institutions Sociales Et Pouvoir","الخـلـدونيــــة الجــــــديدة والمؤسسات العمرانية والسلطة",null,"Université de Mostaganem Abdelhamid Ibn Badis"]
["U. Mostaganem","Université_de_Mostaganem_Abdelhamid_Ibn_Badis","Optimisation Des Programmes D'Activité Physique Et Sportive : Enseignement Et Entraînement","تقويم برامج النشاطات البدنية و الرياضية  : التعليم و التدريب",null,"Université de Mostaganem Abdelhamid Ibn Badis"]
["U. Mostaganem","Université_de_Mostaganem_Abdelhamid_Ibn_Badis","Pharmacognosie Et Api-Phytothérapie","مختبر العقاقير و العلاج بالنباتات الطبية",null,"Université de Mostaganem Abdelhamid Ibn Badis"]
["U. Mostaganem","Université_de_Mostaganem_Abdelhamid_Ibn_Badis","Philosophie Et Sciences Humaines : Approches Cognitives Et Méthodologiques","الفلسفة والعلوم الإنسانية: المقاربات المعرفية والمنهجية",null,"Université de Mostaganem Abdelhamid Ibn Badis"]
["U. Mostaganem","Université_de_Mostaganem_Abdelhamid_Ibn_Badis","Physiologie Animale Appliquée","فيزيولوجيا الحيوان التطبيقية",null,"Université de Mostaganem Abdelhamid Ibn Badis"]
["U. Mostaganem","Université_de_Mostaganem_Abdelhamid_Ibn_Badis","Politique Industrielle Et Développement Des Échanges Extérieurs","السياسات الصناعية وتنمية المبادلات الخارجية",null,"Université de Mostaganem Abdelhamid Ibn Badis"]
["U. Mostaganem","Université_de_Mostaganem_Abdelhamid_Ibn_Badis","Politiques De Développement Et Transition Énergétique En Algérie","السيـاسـات التنمـويـة والانتـقـال الطـاقـوي فــي الجـزائـر",null,"Université de Mostaganem Abdelhamid Ibn Badis"]
["U. Mostaganem","Université_de_Mostaganem_Abdelhamid_Ibn_Badis","Protection Des Végétaux","حماية النباتات",null,"Université de Mostaganem Abdelhamid Ibn Badis"]
["U. Mostaganem","Université_de_Mostaganem_Abdelhamid_Ibn_Badis","Protection, Valorisation Des Ressources Marines Littorales Et Systématique Moléculaire","حماية، تثمين و التصنيف الجزيئي للموارد البحرية الساحلية",null,"Université de Mostaganem Abdelhamid Ibn Badis"]
["U. Mostaganem","Université_de_Mostaganem_Abdelhamid_Ibn_Badis","Sciences Appliquées Au Mouvement Humain","مخبر بحت في العلوم المطبقة في حركة الإنسان",null,"Université de Mostaganem Abdelhamid Ibn Badis"]
["U. Mostaganem","Université_de_Mostaganem_Abdelhamid_Ibn_Badis","Sciences Et Techniques De L'Environnement Et De La Valorisation","العلوم و تقنيات البيئة و التثمين",null,"Université de Mostaganem Abdelhamid Ibn Badis"]
["U. Mostaganem","Université_de_Mostaganem_Abdelhamid_Ibn_Badis","Sciences Et Techniques De Production Animale","علوم و تقنيات الإنتاج الحيواني",null,"Université de Mostaganem Abdelhamid Ibn Badis"]
["U. Mostaganem","Université_de_Mostaganem_Abdelhamid_Ibn_Badis","Signaux Et Systèmes","إشـــــــارات و أنظمة",null,"Université de Mostaganem Abdelhamid Ibn Badis"]
["U. Mostaganem","Université_de_Mostaganem_Abdelhamid_Ibn_Badis","Stratégie De Transition Pour Une Économie Verte","إستراتيجية التحول إلى اقتصاد أخضر",null,"Université de Mostaganem Abdelhamid Ibn Badis"]
["U. Mostaganem","Université_de_Mostaganem_Abdelhamid_Ibn_Badis","Structure, Élaboration Et Applications Des Matériaux Moléculaires","مخبربنية وتحضير و تطبيقات المواد الجزيئية",null,"Université de Mostaganem Abdelhamid Ibn Badis"]
["U. Mostaganem","Université_de_Mostaganem_Abdelhamid_Ibn_Badis","Technologie Alimentaire Et Nutrition","مخبر التكنولوجيا الغذائية و التغذية",null,"Université de Mostaganem Abdelhamid Ibn Badis"]
["U. Mostaganem","Université_de_Mostaganem_Abdelhamid_Ibn_Badis","Technologie Et Propriétés Du Solide","التكنولوجيا وخصائص المادة الصلبة",null,"Université de Mostaganem Abdelhamid Ibn Badis"]
["U. Mostaganem","Université_de_Mostaganem_Abdelhamid_Ibn_Badis","Valorisation Des Matériaux","تثمينين المواد",null,"Université de Mostaganem Abdelhamid Ibn Badis"]
["U. Ouargla","Université_de_Ouargla_Kasdi_Merbah","Applications Quantitatives En Sciences Économiques Et Financières","مخبر التطبيقات الكمية في العلوم الاقتصادية والمالية",null,"Université de Ouargla Kasdi Merbah"]
["U. Ouargla","Université_de_Ouargla_Kasdi_Merbah","Biogéochimie Des Milieux Désertiques","بيوجيوكيمياء الأوساط الصحراوية",null,"Université de Ouargla Kasdi Merbah"]
["U. Ouargla","Université_de_Ouargla_Kasdi_Merbah","Bioressources Sahariennes Préservation Et Valorisation","مخبر الموارد الحيوية الصحراوية : المحافظة و تثمين",null,"Université de Ouargla Kasdi Merbah"]
["U. Ouargla","Université_de_Ouargla_Kasdi_Merbah","Critique Et Sa Terminologie","النقد العربي ومصطلحاته",null,"Université de Ouargla Kasdi Merbah"]
["U. Ouargla","Université_de_Ouargla_Kasdi_Merbah","Développement Des Énergies Nouvelles Et Renouvelables Dans Les Zones Arides Et Sahariennes","مخبر تطوير الطاقات الجديدة و المتجددة في المناطق الجافة و الصحراوية",null,"Université de Ouargla Kasdi Merbah"]
["U. Ouargla","Université_de_Ouargla_Kasdi_Merbah","Dynamique, Interaction Et Réactivité Des Systèmes","ديناميك، التأثيرات وتفاعلية الأنظمة",null,"Université de Ouargla Kasdi Merbah"]
["U. Ouargla","Université_de_Ouargla_Kasdi_Merbah","Economie Des Organisations Et L'Environnement Naturel Econature","مخبر إقتصاد المنظمات والبيئة الطبيعية",null,"Université de Ouargla Kasdi Merbah"]
["U. Ouargla","Université_de_Ouargla_Kasdi_Merbah","English Language, Littérature","لغة و ادب إنجليزي و ترجمة و إنتاج المعرفة",null,"Université de Ouargla Kasdi Merbah"]
["U. Ouargla","Université_de_Ouargla_Kasdi_Merbah","Exigences Pour La Réhabilitation Et Le Développement Des Économies En Développement Dans L'Ouverture De L'Économie Mondial","متطلبات تأهيل وتنمية الاقتصاديات النامية في ظل الإنفتاح الاقتصادي العالمي",null,"Université de Ouargla Kasdi Merbah"]
["U. Ouargla","Université_de_Ouargla_Kasdi_Merbah","Exploitation Et Valorisation Des Ressources Naturelles En Zones Arides","استغلال وثتمين الموارد الطبيعية في المناطق الجافة",null,"Université de Ouargla Kasdi Merbah"]
["U. Ouargla","Université_de_Ouargla_Kasdi_Merbah","Financement, Finance Des Marchés Et Finance D'Entreprise","التمويل مالية الأسواق ومالية المؤسسة",null,"Université de Ouargla Kasdi Merbah"]
["U. Ouargla","Université_de_Ouargla_Kasdi_Merbah","Français Des Écrits Universitaires","فرنسية الكتابات الجامعية",null,"Université de Ouargla Kasdi Merbah"]
["U. Ouargla","Université_de_Ouargla_Kasdi_Merbah","Génie De L’Eau Et De L’Environnement En Milieu Saharien","هندسة المياه والبيئة في الوسط الصحراوي",null,"Université de Ouargla Kasdi Merbah"]
["U. Ouargla","Université_de_Ouargla_Kasdi_Merbah","Génie Des Procédés","مخبر هندسة الطرائق",null,"Université de Ouargla Kasdi Merbah"]
["U. Ouargla","Université_de_Ouargla_Kasdi_Merbah","Génie Électrique","مخبر الهندسة الكهربائية",null,"Université de Ouargla Kasdi Merbah"]
["U. Ouargla","Université_de_Ouargla_Kasdi_Merbah","Géologie De Sahara","مخبر جيولوجيا الصحراء",null,"Université de Ouargla Kasdi Merbah"]
["U. Ouargla","Université_de_Ouargla_Kasdi_Merbah","Intelligence Artificielle Et Des Technologies De L'Information","الذكاء الإصطناعي و تكنولوجيا المعلومات",null,"Université de Ouargla Kasdi Merbah"]
["U. Ouargla","Université_de_Ouargla_Kasdi_Merbah","La Neuropsychologie Et Troubles : Cognitives Et Socio-Affectives","علم النفس العصبي و الإطرابات : المعرفة ’ السوسيو عاطفة",null,"Université de Ouargla Kasdi Merbah"]
["U. Ouargla","Université_de_Ouargla_Kasdi_Merbah","Le Rôle De L'Université Et Les Entreprises Économiques Dans Le Développement Local Durable","مخبر دور الجامعة والمؤسسة في التنمية المحلية المستدامة",null,"Université de Ouargla Kasdi Merbah"]
["U. Ouargla","Université_de_Ouargla_Kasdi_Merbah","Les Réservoirs Souterrains Pétroliers, Gaziers Et Aquifères","المكامن الجوفية البترولية٬ الغازية والمائية",null,"Université de Ouargla Kasdi Merbah"]
["U. Ouargla","Université_de_Ouargla_Kasdi_Merbah","Linguistique Textuelle Et L’Analyse De Discours","اللسانيات النصية وتحليل الخطاب",null,"Université de Ouargla Kasdi Merbah"]
["U. Ouargla","Université_de_Ouargla_Kasdi_Merbah","Mathématiques Appliquées","مخبر الرياضيات التطبيقية",null,"Université de Ouargla Kasdi Merbah"]
["U. Ouargla","Université_de_Ouargla_Kasdi_Merbah","Patrimoine Linguistique Et Littéraire Dans Le Sud-Est Algérien","التراث اللغوي و الأدبي في الجنوب الشرقي الجزائري",null,"Université de Ouargla Kasdi Merbah"]
["U. Ouargla","Université_de_Ouargla_Kasdi_Merbah","Performance Des Entreprises Et Des Économies Dans Le Cadre De La Mondialisation","أداء المؤسسات و الإقتصاديات في ظل العولمة",null,"Université de Ouargla Kasdi Merbah"]
["U. Ouargla","Université_de_Ouargla_Kasdi_Merbah","Phœniciculture","مخبر البحث في زراعة النخيل",null,"Université de Ouargla Kasdi Merbah"]
["U. Ouargla","Université_de_Ouargla_Kasdi_Merbah","Pratiques Psychologiques Éducatives Dans L'Enseignement","الممارسات النفسية و التربوية في عملية التعلم و التعليم الصفي",null,"Université de Ouargla Kasdi Merbah"]
["U. Ouargla","Université_de_Ouargla_Kasdi_Merbah","Protection Des Écosystèmes En Zones Arides Et Semi-Arides","مخبر المحافظة على الأنظمة الایكولوجیة في المناطق الجافة و الشبه جافة",null,"Université de Ouargla Kasdi Merbah"]
["U. Ouargla","Université_de_Ouargla_Kasdi_Merbah","Psychologie Et Qualité De Vie","مخبر علم النفس وجودة الحياة",null,"Université de Ouargla Kasdi Merbah"]
["U. Ouargla","Université_de_Ouargla_Kasdi_Merbah","Qualité Des Programmes En Éducation Spécialisée Et L'Enseignement Adapté","مخبر جودة البرامج في التربية الخاصة والتعليم المكيف",null,"Université de Ouargla Kasdi Merbah"]
["U. Ouargla","Université_de_Ouargla_Kasdi_Merbah","Rayonnement Et Plasmas, Physique De Surface","مخبر الإشعاع و البلازما و فيزياء السطوح",null,"Université de Ouargla Kasdi Merbah"]
["U. Ouargla","Université_de_Ouargla_Kasdi_Merbah","Science Et Technologie Des Activités Physiques Et Sportives","علوم وتقنيات النشاطات البدنية والرياضية",null,"Université de Ouargla Kasdi Merbah"]
["U. Ouargla","Université_de_Ouargla_Kasdi_Merbah","Transformation Des Construits Sociaux Et Son Impact Sur L'Identité Et L'Action Sociale Dans Les Sociétés En Transition","تحول التشكلات الاجتماعية و أثرها على الهوية و الفعل الاجتماعي للمجتمعات في طريق النمو",null,"Université de Ouargla Kasdi Merbah"]
["U. Ouargla","Université_de_Ouargla_Kasdi_Merbah","Transition Politico-Économique Et Social Dont Le Cas De L'Algérie","التحول السياسي و الاقتصادي والاجتماعي في التجربة الجزائرية",null,"Université de Ouargla Kasdi Merbah"]
["U. Ouargla","Université_de_Ouargla_Kasdi_Merbah","Valorisation Et Promotion Des Ressources Sahariennes","تثمين و ترقية الموارد الصحراوية",null,"Université de Ouargla Kasdi Merbah"]
["U. Oum El Bouaghi","Université_de_Oum_El_Bouaghi_Larbi_Ben_M_hidi","Biomolécules Végétales Et Amélioration Des Plantes","مخبر الجزيئات الحيوية النباتية وتحسين النبات",null,"Université de Oum El Bouaghi Larbi Ben M hidi"]
["U. Oum El Bouaghi","Université_de_Oum_El_Bouaghi_Larbi_Ben_M_hidi","Chimie Appliquée Et Technologie Des Matériaux","الكيمياء التطبيقية و تكنولوجيا المواد",null,"Université de Oum El Bouaghi Larbi Ben M hidi"]
["U. Oum El Bouaghi","Université_de_Oum_El_Bouaghi_Larbi_Ben_M_hidi","Composants Actifs Et Matériaux","مخبــــــــــــــــــــر المركبات النشيطة و المواد",null,"Université de Oum El Bouaghi Larbi Ben M hidi"]
["U. Oum El Bouaghi","Université_de_Oum_El_Bouaghi_Larbi_Ben_M_hidi","Comptabilité, Finance, Fiscalité Et Assurance","مخبر المحاسبة،المالية،الجباية و التأمين",null,"Université de Oum El Bouaghi Larbi Ben M hidi"]
["U. Oum El Bouaghi","Université_de_Oum_El_Bouaghi_Larbi_Ben_M_hidi","Computer Science’S Complex Systems","مخبر البحث في الأنظمة المعلوماتية المركبة",null,"Université de Oum El Bouaghi Larbi Ben M hidi"]
["U. Oum El Bouaghi","Université_de_Oum_El_Bouaghi_Larbi_Ben_M_hidi","Didactique De La Langue Arabe Et Du Texte Littéraire Dans Le Système D’Enseignement Algérien : (Objectif Et Réalité)","تعليمية اللغة العربية و النص الأدبي في النظام التعليمي الجزائري - الواقع و المأمول \n",null,"Université de Oum El Bouaghi Larbi Ben M hidi"]
["U. Oum El Bouaghi","Université_de_Oum_El_Bouaghi_Larbi_Ben_M_hidi","Génie Électrique Automatique","الهندسة الكهربائية و الآلية",null,"Université de Oum El Bouaghi Larbi Ben M hidi"]
["U. Oum El Bouaghi","Université_de_Oum_El_Bouaghi_Larbi_Ben_M_hidi","Innovation Et Ingénierie Financières","الابتكار و الهندسة المالية",null,"Université de Oum El Bouaghi Larbi Ben M hidi"]
["U. Oum El Bouaghi","Université_de_Oum_El_Bouaghi_Larbi_Ben_M_hidi","Matériaux Et Structures Des Systèmes Electromécaniques Et Leurs Fiabilités","مخبـــــر المواد وبنية الأنظمة الإلكتروميكانيكية وو ثوقيتها",null,"Université de Oum El Bouaghi Larbi Ben M hidi"]
["U. Oum El Bouaghi","Université_de_Oum_El_Bouaghi_Larbi_Ben_M_hidi","Ressources Naturelles Et Aménagement Des Milieux Sensibles","الموارد الطبيعية وتهيئة الأوساط الحساسة",null,"Université de Oum El Bouaghi Larbi Ben M hidi"]
["U. Oum El Bouaghi","Université_de_Oum_El_Bouaghi_Larbi_Ben_M_hidi","Sciences Analytiques Matériaux Et Environnement","العلوم التحليلية المواد و المحيط",null,"Université de Oum El Bouaghi Larbi Ben M hidi"]
["U. Oum El Bouaghi","Université_de_Oum_El_Bouaghi_Larbi_Ben_M_hidi","Systèmes Dynamiques Et Contrôle","مخبر أنطمة التحريك والمراقبة",null,"Université de Oum El Bouaghi Larbi Ben M hidi"]
["U. Saida","Université_de_Saida_Tahar_Moulay","Bio Toxicologie, Pharmacognosie Et Valorisation Biologiques Des Plantes","علم التسمم البيولوجي التداوي بالأعشاب و التثمين البيولوجي للنبات",null,"Université de Saida Tahar Moulay"]
["U. Saida","Université_de_Saida_Tahar_Moulay","Développement Dans Les Sciences Sociales Et Sciences Humaines","مخبر تطوير للبحث في العلوم الاجتماعية والإنسانية",null,"Université de Saida Tahar Moulay"]
["U. Saida","Université_de_Saida_Tahar_Moulay","Didactique Du Fos (Français Sur Objectifs Spécifiques)","تعلمية اللغة الفرنسية بآهداف خاصة",null,"Université de Saida Tahar Moulay"]
["U. Saida","Université_de_Saida_Tahar_Moulay","Etudes Juridiques Comparées","الدراسات القانونية المقارنة",null,"Université de Saida Tahar Moulay"]
["U. Saida","Université_de_Saida_Tahar_Moulay","Etudes Physico-Chimiques","مخبر الدراسات الفيزيائية والكيميائية",null,"Université de Saida Tahar Moulay"]
["U. Saida","Université_de_Saida_Tahar_Moulay","Génie Électrotechnique","مخبر الهندسة الإلكتروتقنية",null,"Université de Saida Tahar Moulay"]
["U. Saida","Université_de_Saida_Tahar_Moulay","Géométrie, Analyse, Contrôle Et Applications","هـنـدسـة تحليل مراقبة و تطبيقات",null,"Université de Saida Tahar Moulay"]
["U. Saida","Université_de_Saida_Tahar_Moulay","Gestion Des Connaissances Et Données Complexes","تسيير المعلومات و المعطيات المعقدة",null,"Université de Saida Tahar Moulay"]
["U. Saida","Université_de_Saida_Tahar_Moulay","Linguistique Et Traduction","مخبر اللّسانيات والتّرجمة",null,"Université de Saida Tahar Moulay"]
["U. Saida","Université_de_Saida_Tahar_Moulay","Management Et Évaluation De Performance Des Entreprises","إدارة و تقييم أداء المؤسسات",null,"Université de Saida Tahar Moulay"]
["U. Saida","Université_de_Saida_Tahar_Moulay","Modèles Stochastiques, Statistiques Et Applications","النماذج العشوائية والإحصاء والتطبيقاته",null,"Université de Saida Tahar Moulay"]
["U. Saida","Université_de_Saida_Tahar_Moulay","Modélisation Et Méthodes De Calculs","مخبر تشكيل النماذج و طرق الحساب",null,"Université de Saida Tahar Moulay"]
["U. Saida","Université_de_Saida_Tahar_Moulay","Protection Des Droits De L'Homme Entre Les Textes Internationaux Et Nationaux Et Leurs Effectivités En Algérie","مخبر حماية حقوق الإنسان بين النصوص الدولية والنصوص الوطنية وواقعها في الجزائر",null,"Université de Saida Tahar Moulay"]
["U. Saida","Université_de_Saida_Tahar_Moulay","Ressources Hydriques Et Environnement","الموارد المائية والبيئة",null,"Université de Saida Tahar Moulay"]
["U. Saida","Université_de_Saida_Tahar_Moulay","Sociolinguistique Et Analyse De Discours","السوسيولسانيات و تحليل الخطاب",null,"Université de Saida Tahar Moulay"]
["U. Saida","Université_de_Saida_Tahar_Moulay","Technologies Des Communications","تكنولوجيا الإتصالات",null,"Université de Saida Tahar Moulay"]
["U. Saida","Université_de_Saida_Tahar_Moulay","Traduction Et Interprétation Au Sein De La Communication Multilingue","الترجمة و التأويل في ظل التواصل متعددة اللغات",null,"Université de Saida Tahar Moulay"]
["U. Sétif-1-","Université_de_Sétif_1_Ferhat_Abbes","Amélioration Et Développement De La Production Végétale Et Animale","مخبر تحسين و تطوير الإنتاج النباتي و الحيواني",null,"Université de Sétif 1 Ferhat Abbes"]
["U. Sétif-1-","Université_de_Sétif_1_Ferhat_Abbes","Architecture Et Urbanisme (Architecture Méditerranéenne)","مخبر الهندسة المعمارية للبحر الأبيض المتوسط",null,"Université de Sétif 1 Ferhat Abbes"]
["U. Sétif-1-","Université_de_Sétif_1_Ferhat_Abbes","Automatique","مخبـــــــــــــــــــــــر الآليـــــــــــــــــــــــــة",null,"Université de Sétif 1 Ferhat Abbes"]
["U. Sétif-1-","Université_de_Sétif_1_Ferhat_Abbes","Biochimie Appliquée : Inflammation Et Activités Pharmaco-Biologiques Des Substances Naturelles","مخبر البيوكيمياء التطبيقية :حروق و نشاطات الصيدلانية البيولوجية من المواد الطبيعية",null,"Université de Sétif 1 Ferhat Abbes"]
["U. Sétif-1-","Université_de_Sétif_1_Ferhat_Abbes","Chimie Ingénierie Moléculaire Et Nano Structures","الكيمياء، الهندسة الجزيئية و المواد النانومترية",null,"Université de Sétif 1 Ferhat Abbes"]
["U. Sétif-1-","Université_de_Sétif_1_Ferhat_Abbes","Croissance Et Caractérisation De Nouveaux Semi-Conducteurs","نمو و تخصيص نصف النواقل الجديدة",null,"Université de Sétif 1 Ferhat Abbes"]
["U. Sétif-1-","Université_de_Sétif_1_Ferhat_Abbes","Dosage Analyse Et Caractérisation En Haute Résolution","معايرة وتحليل وخصوصيتها بدقة عالية",null,"Université de Sétif 1 Ferhat Abbes"]
["U. Sétif-1-","Université_de_Sétif_1_Ferhat_Abbes","Elaboration Des Nouveaux Matériaux Et Leur Caractérisation","تحضير مواد جديدة و تخصيصها",null,"Université de Sétif 1 Ferhat Abbes"]
["U. Sétif-1-","Université_de_Sétif_1_Ferhat_Abbes","Electrochimie Des Matériaux Moléculaires Et Complexes","مخبر كهروكيمياء المواد الجزيئية و المعقدات",null,"Université de Sétif 1 Ferhat Abbes"]
["U. Sétif-1-","Université_de_Sétif_1_Ferhat_Abbes","Electrochimie Et Matériaux","الكهروكيمياء و المواد",null,"Université de Sétif 1 Ferhat Abbes"]
["U. Sétif-1-","Université_de_Sétif_1_Ferhat_Abbes","Electrochimie, Ingénierie Moléculaire Et Catalyses Redox","مخبر الإلكتروكيمياء و الهندسة الجزيئية والحفز ريدوكس",null,"Université de Sétif 1 Ferhat Abbes"]
["U. Sétif-1-","Université_de_Sétif_1_Ferhat_Abbes","Electronique De Puissance Et Commande Industrielle","إلـكـــترونــيــك الإسـتطــاعة و التحكــم الصـناعـــي",null,"Université de Sétif 1 Ferhat Abbes"]
["U. Sétif-1-","Université_de_Sétif_1_Ferhat_Abbes","Energétique Et Électrochimie Du Solide","الطاقوية و كهروكيمياء المواد الصلبة",null,"Université de Sétif 1 Ferhat Abbes"]
["U. Sétif-1-","Université_de_Sétif_1_Ferhat_Abbes","Etudes Des Surfaces Et Interfaces Des Matériaux Solides","مخبر دراسة السطوح و السطوح البينية للمواد الصلبة",null,"Université de Sétif 1 Ferhat Abbes"]
["U. Sétif-1-","Université_de_Sétif_1_Ferhat_Abbes","Evaluation Des Marchés Des Capitaux Algériens Dans La Perspective De Leur Développement Dans Le Cadre De La Globalisation","تقييم أسواق رؤوس الأموال الجزائرية وأفاق تطويرها في ظل العولمة",null,"Université de Sétif 1 Ferhat Abbes"]
["U. Sétif-1-","Université_de_Sétif_1_Ferhat_Abbes","Génie Des Procédés Chimiques","هندســة الطـرائق الكيميـائية",null,"Université de Sétif 1 Ferhat Abbes"]
["U. Sétif-1-","Université_de_Sétif_1_Ferhat_Abbes","Habitat Et Environnement","الإسكان والبيئة",null,"Université de Sétif 1 Ferhat Abbes"]
["U. Sétif-1-","Université_de_Sétif_1_Ferhat_Abbes","Instrumentation Scientifique","مخبر الوسائل العلمية",null,"Université de Sétif 1 Ferhat Abbes"]
["U. Sétif-1-","Université_de_Sétif_1_Ferhat_Abbes","Maladies Cardiovasculaires Génétiques Et Nutritionnelles","مخبر الأمراض القلب و الأوعية الدموية  الوراثية و الغذائية",null,"Université de Sétif 1 Ferhat Abbes"]
["U. Sétif-1-","Université_de_Sétif_1_Ferhat_Abbes","Matériaux Non Métalliques","المواد اللمعدنية",null,"Université de Sétif 1 Ferhat Abbes"]
["U. Sétif-1-","Université_de_Sétif_1_Ferhat_Abbes","Mathématiques Appliquées","مخبر الرياضيات التطبيقية",null,"Université de Sétif 1 Ferhat Abbes"]
["U. Sétif-1-","Université_de_Sétif_1_Ferhat_Abbes","Mathématiques Fondamentales Et Numériques","الرياضيات الأساسية و العددية",null,"Université de Sétif 1 Ferhat Abbes"]
["U. Sétif-1-","Université_de_Sétif_1_Ferhat_Abbes","Mécanique De Précision Appliquée","مخبر ميكانيك الدقة التطبيقية",null,"Université de Sétif 1 Ferhat Abbes"]
["U. Sétif-1-","Université_de_Sétif_1_Ferhat_Abbes","Microbiologie Appliquée","مخبر علم الأحياء الدقيقة التطبيقي",null,"Université de Sétif 1 Ferhat Abbes"]
["U. Sétif-1-","Université_de_Sétif_1_Ferhat_Abbes","Optique Appliquée","مخــبــر الـبــصـريـات الــتــطـبـيــقـيـة",null,"Université de Sétif 1 Ferhat Abbes"]
["U. Sétif-1-","Université_de_Sétif_1_Ferhat_Abbes","Optoélectronique Et Composants","مخبر الإلكتروبصريات ومكوناتها",null,"Université de Sétif 1 Ferhat Abbes"]
["U. Sétif-1-","Université_de_Sétif_1_Ferhat_Abbes","Partenariat Et Investissement Dans Les Petites Et Moyennes Entreprises Euro-Maghreb – Etude Économique Et Juridique","الشراكة والإستثمار في المؤسسات الصغيرة والمتوسطة في المحيط الأورومغاربي - دراسة اقتصادية قانونية",null,"Université de Sétif 1 Ferhat Abbes"]
["U. Sétif-1-","Université_de_Sétif_1_Ferhat_Abbes","Physico-Chimie Des Hauts Polymères","مخبـر الكيميـاء الفيزيائيـة للمبلمـرات العليـا",null,"Université de Sétif 1 Ferhat Abbes"]
["U. Sétif-1-","Université_de_Sétif_1_Ferhat_Abbes","Physique Et Mécanique Des Matériaux Métalliques","مخـبـر فزيـاء و مـيــكانـيكـ الــمـواد الــمــعـدنـيـة",null,"Université de Sétif 1 Ferhat Abbes"]
["U. Sétif-1-","Université_de_Sétif_1_Ferhat_Abbes","Physique Quantique Et Systèmes Dynamiques","الفيزياء الكمية و الأنظمة الديناميكية",null,"Université de Sétif 1 Ferhat Abbes"]
["U. Sétif-1-","Université_de_Sétif_1_Ferhat_Abbes","Phytothérapie Appliquée Aux Maladies Chroniques","مخبر العلاج الطبيعي المطبق على الأمراض المزمنة",null,"Université de Sétif 1 Ferhat Abbes"]
["U. Sétif-1-","Université_de_Sétif_1_Ferhat_Abbes","Préparations, Modifications Et Applications Des Matériaux Polymériques Multiphasiques","مخبر تحضير’ تعديل و تطبيق المواد المبلمرة المتعددة الأطوار",null,"Université de Sétif 1 Ferhat Abbes"]
["U. Sétif-1-","Université_de_Sétif_1_Ferhat_Abbes","Projet Urbain, Ville Et Territoire","المشروع الحضري، المدينة و الإقليم",null,"Université de Sétif 1 Ferhat Abbes"]
["U. Sétif-1-","Université_de_Sétif_1_Ferhat_Abbes","Qualité De L'Énergie Dans Les Réseaux Électriques","نوعية الطاقة في الشبكات الكهربائية",null,"Université de Sétif 1 Ferhat Abbes"]
["U. Sétif-1-","Université_de_Sétif_1_Ferhat_Abbes","Réseaux Et Systèmes Distribués","مخبر: الشبكات و الأنظمة الموزعة",null,"Université de Sétif 1 Ferhat Abbes"]
["U. Sétif-1-","Université_de_Sétif_1_Ferhat_Abbes","Santé Et Environnement Dans Les Hauts Plateaux Sétifiens","مخبر الصحة والبيئة في الهضاب العليا السطائفية",null,"Université de Sétif 1 Ferhat Abbes"]
["U. Sétif-1-","Université_de_Sétif_1_Ferhat_Abbes","Systèmes Intelligents","مخبر الأنظمة الذكية",null,"Université de Sétif 1 Ferhat Abbes"]
["U. Sétif-1-","Université_de_Sétif_1_Ferhat_Abbes","Systèmes Photoniques Et Optique Non Linéaire","الأنظمة الفطونية والبصريات اللاخطية",null,"Université de Sétif 1 Ferhat Abbes"]
["U. Sétif-1-","Université_de_Sétif_1_Ferhat_Abbes","Unité De Recherche : Matériaux Émergents","المواد البارزة",null,"Université de Sétif 1 Ferhat Abbes"]
["U. Sétif-1-","Université_de_Sétif_1_Ferhat_Abbes","Valorisation Des Ressources Biologiques Naturelles","مخـــــبر تثمــــين المـــوارد البيــــــــولوجية الطبيعية",null,"Université de Sétif 1 Ferhat Abbes"]
["U. Sétif-2-","Université_de_Sétif_2_Mohamed_Lamine_Debaghine","Acculturation Arabe Dans La Littérature Et La Critique","المثاقفة العربية في الأدب ونقده",null,"Université de Sétif 2 Mohamed Lamine Debaghine"]
["U. Sétif-2-","Université_de_Sétif_2_Mohamed_Lamine_Debaghine","Approche Pragmatique Et Stratégies Du Discours","المقاربة التداولية و استراتجيات الخطاب",null,"Université de Sétif 2 Mohamed Lamine Debaghine"]
["U. Sétif-2-","Université_de_Sétif_2_Mohamed_Lamine_Debaghine","Dictionnaire Des Termes Linguistiques Et Rhétorique Dans L'Héritage Arabe Jusqu'À La Fin Du 7Éme Siècle H","معجم المصطلحات اللغوية والبلاغية في التراث العربي حتى نهاية القرن 7 هجري",null,"Université de Sétif 2 Mohamed Lamine Debaghine"]
["U. Sétif-2-","Université_de_Sétif_2_Mohamed_Lamine_Debaghine","Esthétiques Dans Les Études Littéraires Et Critiques","الجماليات في الدراسات الأدبية و النقدية",null,"Université de Sétif 2 Mohamed Lamine Debaghine"]
["U. Sétif-2-","Université_de_Sétif_2_Mohamed_Lamine_Debaghine","Etudes Et Recherche Sur Massacres Coloniaux","دراسات و أبحاث حول مجازر الإستعمارية",null,"Université de Sétif 2 Mohamed Lamine Debaghine"]
["U. Sétif-2-","Université_de_Sétif_2_Mohamed_Lamine_Debaghine","Etudes Et Recherches Sur Les Droits De L'Homme","البحوث والدراسات في حقوق الإنسان",null,"Université de Sétif 2 Mohamed Lamine Debaghine"]
["U. Sétif-2-","Université_de_Sétif_2_Mohamed_Lamine_Debaghine","L’Application Des Nouvelles Technologies Sur Le Droit","تطبيق التكنولوجيات الحديثة على القانون",null,"Université de Sétif 2 Mohamed Lamine Debaghine"]
["U. Sétif-2-","Université_de_Sétif_2_Mohamed_Lamine_Debaghine","Méthodes Critiques Contemporaines Et Analyse Du Discours","مخبر مناهج النقد المعاصر وتحليل الخطاب",null,"Université de Sétif 2 Mohamed Lamine Debaghine"]
["U. Sétif-2-","Université_de_Sétif_2_Mohamed_Lamine_Debaghine","Narratologie Et Systèmes Culturels","السرديات و الإنسياق الثقافي",null,"Université de Sétif 2 Mohamed Lamine Debaghine"]
["U. Sétif-2-","Université_de_Sétif_2_Mohamed_Lamine_Debaghine","Patrimoine Et Études Archéologiques","التراث و الدراسات الأثرية",null,"Université de Sétif 2 Mohamed Lamine Debaghine"]
["U. Sétif-2-","Université_de_Sétif_2_Mohamed_Lamine_Debaghine","Psychologie Clinique","مخبر علم النفس الاكلينيكي",null,"Université de Sétif 2 Mohamed Lamine Debaghine"]
["U. Sétif-2-","Université_de_Sétif_2_Mohamed_Lamine_Debaghine","Sciences Des Activités Physiques Sportives Et Santé Publique","علوم الأنشطة البدنية الرياضية والصحة العمومية",null,"Université de Sétif 2 Mohamed Lamine Debaghine"]
["U. Sétif-2-","Université_de_Sétif_2_Mohamed_Lamine_Debaghine","Société Algérienne Contemporaine","مخبر المجتمع الجزائري المعاصر",null,"Université de Sétif 2 Mohamed Lamine Debaghine"]
["U. Sétif-2-","Université_de_Sétif_2_Mohamed_Lamine_Debaghine","Unité De Recherche : Dèveloppement Des Ressources Humaines","وحدة البحث : تنمية الموارد البشرية",null,"Université de Sétif 2 Mohamed Lamine Debaghine"]
["U. Sidi Bel Abbès","Université_de_Sidi_Bel_Abbès_Djilali_Liabès","Algérie Moderne Et Contemporaine Histoire Et Société","الجزائر: تاريخ ومجتمع في العصر الحديث والمعاصر",null,"Université de Sidi Bel Abbès Djilali Liabès"]
["U. Sidi Bel Abbès","Université_de_Sidi_Bel_Abbès_Djilali_Liabès","Analyse Et Contrôle Des Équations Aux Dérivées Partielles","تحليل وتحكم في المعادلات التفاضلية الجزئية",null,"Université de Sidi Bel Abbès Djilali Liabès"]
["U. Sidi Bel Abbès","Université_de_Sidi_Bel_Abbès_Djilali_Liabès","Application Of Plasmas, Electrostatics And Electromagnetic Compatibility","تطبيقات البلازما، الكهرباء الساكنة و التوافق الكهرومغناطيسي",null,"Université de Sidi Bel Abbès Djilali Liabès"]
["U. Sidi Bel Abbès","Université_de_Sidi_Bel_Abbès_Djilali_Liabès","Biodiversité Végétale : Conservation Et Valorisation","التنوع النباتي : محافظۃ و تٽمين",null,"Université de Sidi Bel Abbès Djilali Liabès"]
["U. Sidi Bel Abbès","Université_de_Sidi_Bel_Abbès_Djilali_Liabès","Biomathématiques","مخبررياضيات البيولوجيا",null,"Université de Sidi Bel Abbès Djilali Liabès"]
["U. Sidi Bel Abbès","Université_de_Sidi_Bel_Abbès_Djilali_Liabès","Biotoxicologie","بيوتوكسيكولوجيا",null,"Université de Sidi Bel Abbès Djilali Liabès"]
["U. Sidi Bel Abbès","Université_de_Sidi_Bel_Abbès_Djilali_Liabès","Chimie Organique Physique Et Macromoléculaire","مخبر الكيمياء العضوية الفيزياء و الجزيئات الكبيرة",null,"Université de Sidi Bel Abbès Djilali Liabès"]
["U. Sidi Bel Abbès","Université_de_Sidi_Bel_Abbès_Djilali_Liabès","Critique, Études Littéraires Et Linguistique","مخبر النقد و الدراسات الأدبية و اللسانية",null,"Université de Sidi Bel Abbès Djilali Liabès"]
["U. Sidi Bel Abbès","Université_de_Sidi_Bel_Abbès_Djilali_Liabès","Eco-Développement Des Espaces","مخبر بحث التنمية البيئية للفضاءات",null,"Université de Sidi Bel Abbès Djilali Liabès"]
["U. Sidi Bel Abbès","Université_de_Sidi_Bel_Abbès_Djilali_Liabès","Elaboration Et Caractérisation Des Matériaux","إنجاز و تبيان خصائص المواد",null,"Université de Sidi Bel Abbès Djilali Liabès"]
["U. Sidi Bel Abbès","Université_de_Sidi_Bel_Abbès_Djilali_Liabès","Electromagnétisme Photonique Et Optronique","الإلكترونيك و الرادار و الإتصالات اللاسلكية و الابترونيك",null,"Université de Sidi Bel Abbès Djilali Liabès"]
["U. Sidi Bel Abbès","Université_de_Sidi_Bel_Abbès_Djilali_Liabès","Environnement Et Santé","مخبر البيئة و الصحة",null,"Université de Sidi Bel Abbès Djilali Liabès"]
["U. Sidi Bel Abbès","Université_de_Sidi_Bel_Abbès_Djilali_Liabès","Etude Des Matériaux Et Instrumentations Optiques","مخبر دراسة المواد و الوسائل الضوئية",null,"Université de Sidi Bel Abbès Djilali Liabès"]
["U. Sidi Bel Abbès","Université_de_Sidi_Bel_Abbès_Djilali_Liabès","Études Orientales De Civilisation De L'Occident Musulman","مخبر البحوث و الدراسات الإستشراقية في حضارة الغرب الإسلامي",null,"Université de Sidi Bel Abbès Djilali Liabès"]
["U. Sidi Bel Abbès","Université_de_Sidi_Bel_Abbès_Djilali_Liabès","Evolutionary Engineering And Distributed Information Systems","هندسة تطورية وأنظمة توزيع الإعلام",null,"Université de Sidi Bel Abbès Djilali Liabès"]
["U. Sidi Bel Abbès","Université_de_Sidi_Bel_Abbès_Djilali_Liabès","Génie Civil Et Environnement","مخبر الهندسة المدنية و البيئة",null,"Université de Sidi Bel Abbès Djilali Liabès"]
["U. Sidi Bel Abbès","Université_de_Sidi_Bel_Abbès_Djilali_Liabès","Intelligent Control & Electrical Power Systems","المراقبة الذكية ونظام الاستطاعة الكهربائية",null,"Université de Sidi Bel Abbès Djilali Liabès"]
["U. Sidi Bel Abbès","Université_de_Sidi_Bel_Abbès_Djilali_Liabès","Interaction Réseau Électrique Convertisseurs-Machines","تفاعل الشبكات الكهربائية- المحوّلات -الآلات",null,"Université de Sidi Bel Abbès Djilali Liabès"]
["U. Sidi Bel Abbès","Université_de_Sidi_Bel_Abbès_Djilali_Liabès","L’Activité Immobilière","النشاط العقاري",null,"Université de Sidi Bel Abbès Djilali Liabès"]
["U. Sidi Bel Abbès","Université_de_Sidi_Bel_Abbès_Djilali_Liabès","L’Algérie Et Le Bassin Occidental De La Méditerranée","مخبر الجزائر و الحوض الغربي للبحر الأبيض الـمتوسط",null,"Université de Sidi Bel Abbès Djilali Liabès"]
["U. Sidi Bel Abbès","Université_de_Sidi_Bel_Abbès_Djilali_Liabès","Le Texte Théâtral Algérien Réassemblage Et Étude (Dans Les Dimensions Idéologiques Et Esthétiques)","النص المسرحي الجزائري جمع ودراسة في الأبعاد الفكرية والجمالية",null,"Université de Sidi Bel Abbès Djilali Liabès"]
["U. Sidi Bel Abbès","Université_de_Sidi_Bel_Abbès_Djilali_Liabès","Management De L’Innovation Et Marketing","إدارة الابتكار و التسويق",null,"Université de Sidi Bel Abbès Djilali Liabès"]
["U. Sidi Bel Abbès","Université_de_Sidi_Bel_Abbès_Djilali_Liabès","Management Des Entreprises","مخبرتسيير المؤسسات",null,"Université de Sidi Bel Abbès Djilali Liabès"]
["U. Sidi Bel Abbès","Université_de_Sidi_Bel_Abbès_Djilali_Liabès","Matériaux Appliqués","مخبر المواد التطبيقية",null,"Université de Sidi Bel Abbès Djilali Liabès"]
["U. Sidi Bel Abbès","Université_de_Sidi_Bel_Abbès_Djilali_Liabès","Matériaux Avancés Et Physico-Chimie Pour L'Environnement Et La Santé","مختبر للمواد المتقدمة والكيمياء الفيزيائية للبيئة والصحة",null,"Université de Sidi Bel Abbès Djilali Liabès"]
["U. Sidi Bel Abbès","Université_de_Sidi_Bel_Abbès_Djilali_Liabès","Matériaux Et Catalyse","مختبر المواد و الحفز",null,"Université de Sidi Bel Abbès Djilali Liabès"]
["U. Sidi Bel Abbès","Université_de_Sidi_Bel_Abbès_Djilali_Liabès","Matériaux Et Hydrologie","مخبر المياه و الهدروميكانيك",null,"Université de Sidi Bel Abbès Djilali Liabès"]
["U. Sidi Bel Abbès","Université_de_Sidi_Bel_Abbès_Djilali_Liabès","Matériaux Et Systèmes Réactifs","مخبرالمواد والأنظمة التفاعلية",null,"Université de Sidi Bel Abbès Djilali Liabès"]
["U. Sidi Bel Abbès","Université_de_Sidi_Bel_Abbès_Djilali_Liabès","Matériaux Magnétiques","المواد المغناطيسية",null,"Université de Sidi Bel Abbès Djilali Liabès"]
["U. Sidi Bel Abbès","Université_de_Sidi_Bel_Abbès_Djilali_Liabès","Mathématiques","مخبر الرياضيات",null,"Université de Sidi Bel Abbès Djilali Liabès"]
["U. Sidi Bel Abbès","Université_de_Sidi_Bel_Abbès_Djilali_Liabès","Matière Condensée Et Développement Durable","مخبر المواد المكثفة و التنمية المستدامة",null,"Université de Sidi Bel Abbès Djilali Liabès"]
["U. Sidi Bel Abbès","Université_de_Sidi_Bel_Abbès_Djilali_Liabès","Mécanique Des Structures Et Des Solides","ميكانيك الهياكل و الأجسام الصلبة",null,"Université de Sidi Bel Abbès Djilali Liabès"]
["U. Sidi Bel Abbès","Université_de_Sidi_Bel_Abbès_Djilali_Liabès","Mécanique Physique Des Matériaux","مخبر الميكانيك فيزياء المواد",null,"Université de Sidi Bel Abbès Djilali Liabès"]
["U. Sidi Bel Abbès","Université_de_Sidi_Bel_Abbès_Djilali_Liabès","Microbiologie Moléculaire, Proteomics Et Santé","ميكروبيولوجيا الجزﺌية الصحة و الدراسة البروتينة",null,"Université de Sidi Bel Abbès Djilali Liabès"]
["U. Sidi Bel Abbès","Université_de_Sidi_Bel_Abbès_Djilali_Liabès","Micro-Électronique Appliquée","مخبر المكروالكترونيك التطبيقية",null,"Université de Sidi Bel Abbès Djilali Liabès"]
["U. Sidi Bel Abbès","Université_de_Sidi_Bel_Abbès_Djilali_Liabès","Microscopie, Microanalyse De La Matière Et Spectroscopie Moléculaire","مخبر المجهريات، ميكروتحليل المادة والتحليل الطيفي للجزيئات",null,"Université de Sidi Bel Abbès Djilali Liabès"]
["U. Sidi Bel Abbès","Université_de_Sidi_Bel_Abbès_Djilali_Liabès","Modélisation Et Simulation Multi Échelles","مخبر النمذجة والمحاكات متعدد القياسات",null,"Université de Sidi Bel Abbès Djilali Liabès"]
["U. Sidi Bel Abbès","Université_de_Sidi_Bel_Abbès_Djilali_Liabès","Pensée Islamique En Algérie","مخبر البحوث ودراسات الفكر الإسلامي في الجزائر",null,"Université de Sidi Bel Abbès Djilali Liabès"]
["U. Sidi Bel Abbès","Université_de_Sidi_Bel_Abbès_Djilali_Liabès","Physico-Chimie Des Matériaux Avancés","مختبر الكيمياء الفيزيائية للمواد المتقدمة",null,"Université de Sidi Bel Abbès Djilali Liabès"]
["U. Sidi Bel Abbès","Université_de_Sidi_Bel_Abbès_Djilali_Liabès","Physique Computationnelle Des Matériaux","مخبر فيزياء الحاسوبية للمواد",null,"Université de Sidi Bel Abbès Djilali Liabès"]
["U. Sidi Bel Abbès","Université_de_Sidi_Bel_Abbès_Djilali_Liabès","Renouveau De La Recherche Dans La Didactique De La Langue Arabe Dans Le Système Éducatif Algérien","تجديد البحث في تعليمية اللغة العربية في المنظومة التربوية الجزائرية",null,"Université de Sidi Bel Abbès Djilali Liabès"]
["U. Sidi Bel Abbès","Université_de_Sidi_Bel_Abbès_Djilali_Liabès","Réseaux De Communication, Architecture Et Multimédia","شبكة الإتصالات، هندسة الكمبيوتر و متعدد الأخبار",null,"Université de Sidi Bel Abbès Djilali Liabès"]
["U. Sidi Bel Abbès","Université_de_Sidi_Bel_Abbès_Djilali_Liabès","Services Publics Et Développement","المرافق العمومية و التنمية",null,"Université de Sidi Bel Abbès Djilali Liabès"]
["U. Sidi Bel Abbès","Université_de_Sidi_Bel_Abbès_Djilali_Liabès","Simulation Et Modélisation En Sciences Des Matériaux","مختبرالنمذجة والمحاكاة في علوم المواد",null,"Université de Sidi Bel Abbès Djilali Liabès"]
["U. Sidi Bel Abbès","Université_de_Sidi_Bel_Abbès_Djilali_Liabès","Statistique Et Processus Stochastiques","مخبر الإحصاء و العمليات العشوائية",null,"Université de Sidi Bel Abbès Djilali Liabès"]
["U. Sidi Bel Abbès","Université_de_Sidi_Bel_Abbès_Djilali_Liabès","Structures Et Matériaux Avancées Dans Le Génie Civil Et Travaux Publics","مخبر الهياكل و المواد المتقدمة في الهندسة المدنية و الأشغال العمومية",null,"Université de Sidi Bel Abbès Djilali Liabès"]
["U. Sidi Bel Abbès","Université_de_Sidi_Bel_Abbès_Djilali_Liabès","Synthèse De L'Information Environnementale","حـوصلة المعلـومـات البيئيـة",null,"Université de Sidi Bel Abbès Djilali Liabès"]
["U. Sidi Bel Abbès","Université_de_Sidi_Bel_Abbès_Djilali_Liabès","Télécommunications Et Traitement Numérique Du Signal","الاتصالات و المعالجة الرقمية للإشارة",null,"Université de Sidi Bel Abbès Djilali Liabès"]
["U. Souk Ahras","Université_de_Souk_Ahras_Mohammed_Chérif_Messaadia","Ecosystèmes Aquatiques Et Terrestres","مخبر الأنظمة البيئية المائية و الأرضية",null,"Université de Souk Ahras Mohammed Chérif Messaadia"]
["U. Souk Ahras","Université_de_Souk_Ahras_Mohammed_Chérif_Messaadia","Electrotechnique Et Énergies Renouvelables","مخبر الالكتروتقني و الطاقات المتجددة",null,"Université de Souk Ahras Mohammed Chérif Messaadia"]
["U. Souk Ahras","Université_de_Souk_Ahras_Mohammed_Chérif_Messaadia","Etudes Linguistiques Et Littéraires","مخبرالدراسا ت اللغوية والأدبية",null,"Université de Souk Ahras Mohammed Chérif Messaadia"]
["U. Souk Ahras","Université_de_Souk_Ahras_Mohammed_Chérif_Messaadia","Finance, Comptabilité, Fiscalité Et Assurance","المالية ٬المحاسبة ’الجباية ’و التأمين",null,"Université de Souk Ahras Mohammed Chérif Messaadia"]
["U. Souk Ahras","Université_de_Souk_Ahras_Mohammed_Chérif_Messaadia","Gestion, Maintenance Et Réhabilitation Des Infrastructures Urbaines","تطبيقات تسييــر٬ صيانــة و إعادة تأهيــــل المنشآت القاعديــــة للمدينـــــــــة",null,"Université de Souk Ahras Mohammed Chérif Messaadia"]
["U. Souk Ahras","Université_de_Souk_Ahras_Mohammed_Chérif_Messaadia","Informatique Et Mathématiques","مخبر الإعلام الالي والرياضيات",null,"Université de Souk Ahras Mohammed Chérif Messaadia"]
["U. Souk Ahras","Université_de_Souk_Ahras_Mohammed_Chérif_Messaadia","Physique De La Matière Et Du Rayonnement","المخبر لفيزياء المادة و الإشعاع",null,"Université de Souk Ahras Mohammed Chérif Messaadia"]
["U. Souk Ahras","Université_de_Souk_Ahras_Mohammed_Chérif_Messaadia","Productions Animales, Biotechnologie Et Santé","إنتاج حيواني بيوتكنولوجيا و الصحة",null,"Université de Souk Ahras Mohammed Chérif Messaadia"]
["U. Souk Ahras","Université_de_Souk_Ahras_Mohammed_Chérif_Messaadia","Recherche Et Études Économiques","مخبر البحوث والدراسات الاقتصادیة",null,"Université de Souk Ahras Mohammed Chérif Messaadia"]
["U. Souk Ahras","Université_de_Souk_Ahras_Mohammed_Chérif_Messaadia","Sciences Et Technique De L'Eau Et Environnement","مخبر علوم وتقنيات الماء والبيئة",null,"Université de Souk Ahras Mohammed Chérif Messaadia"]
["U. Souk Ahras","Université_de_Souk_Ahras_Mohammed_Chérif_Messaadia","Sciences Et Techniques Du Vivant","مخبر علوم وتقنيات الأحياء",null,"Université de Souk Ahras Mohammed Chérif Messaadia"]
["U. Tébessa","Université_de_Tébessa_Larbi_Tébessi","Eau Et Environnement","مخبر المياه و البيئة",null,"Université de Tébessa Larbi Tébessi"]
["U. Tébessa","Université_de_Tébessa_Larbi_Tébessi","Entreprenariat et Management des Organisations","المقاولاتية وإدارة المنظمات",null,"Université de Tébessa Larbi Tébessi"]
["U. Tébessa","Université_de_Tébessa_Larbi_Tébessi","Environnement","مخبر المحيط",null,"Université de Tébessa Larbi Tébessi"]
["U. Tébessa","Université_de_Tébessa_Larbi_Tébessi","Environnement Sédimentaire, Ressources Minérales Et Hydriques De L’Algérie Orientale","البيئة الرسوبية و الثروات المعدنية و المائية في شرق الجزائر",null,"Université de Tébessa Larbi Tébessi"]
["U. Tébessa","Université_de_Tébessa_Larbi_Tébessi","Etudes des Médias et de la Société","مخبر البحث في دراسات الإعلام والمجتمع",null,"Université de Tébessa Larbi Tébessi"]
["U. Tébessa","Université_de_Tébessa_Larbi_Tébessi","Études En Numérisation Et Industrie De L'Information Électronique Dans Les Bibliothèques, Les Archives Et La Documentation","الدراسات في الرقمنة وصناعة المعلومات الإلكترونية بالمكتبات، الأرشيف والتوثيق",null,"Université de Tébessa Larbi Tébessi"]
["U. Tébessa","Université_de_Tébessa_Larbi_Tébessi","Etudes Environnementales Et Développement Durable","الدراسات البيئية والتنمية المستدامة",null,"Université de Tébessa Larbi Tébessi"]
["U. Tébessa","Université_de_Tébessa_Larbi_Tébessi","Etudes Humaines Et Littéraires","مخبر الدراسات الإنسانية والأدبية",null,"Université de Tébessa Larbi Tébessi"]
["U. Tébessa","Université_de_Tébessa_Larbi_Tébessi","Génie Civil Appliqué","مخبر الهندسة المدنية التطبيقية",null,"Université de Tébessa Larbi Tébessi"]
["U. Tébessa","Université_de_Tébessa_Larbi_Tébessi","Génie Électrique","مخبر الهندسة الكهربائية",null,"Université de Tébessa Larbi Tébessi"]
["U. Tébessa","Université_de_Tébessa_Larbi_Tébessi","Matériaux Organiques Et Hétérochimie","مخبر المواد العضويه و الهيتروكيمياء",null,"Université de Tébessa Larbi Tébessi"]
["U. Tébessa","Université_de_Tébessa_Larbi_Tébessi","Mathématiques, Informatiques Et Systèmes","مخبر الرياضيات ،الإعلام الآلي والنظم ",null,"Université de Tébessa Larbi Tébessi"]
["U. Tébessa","Université_de_Tébessa_Larbi_Tébessi","Mines","مخبر المناجم",null,"Université de Tébessa Larbi Tébessi"]
["U. Tébessa","Université_de_Tébessa_Larbi_Tébessi","Molécules Bioactives Et Applications","مخبر الجزيئات النشطة حيويا وتطبيقاتها",null,"Université de Tébessa Larbi Tébessi"]
["U. Tébessa","Université_de_Tébessa_Larbi_Tébessi","Physique Appliquée Et Théorique","مخبر الفيزياء التطبيقية و النظرية",null,"Université de Tébessa Larbi Tébessi"]
["U. Tiaret","Université_de_Tiaret_Ibn_Khaldoun","Agro-Biotechnologie Et Nutrition En Zones Semi-Arides","مخبر البحث في الزراعة والتكنولوجيا الحيوية و التغذية في المناطق شبه الجافة",null,"Université de Tiaret Ibn Khaldoun"]
["U. Tiaret","Université_de_Tiaret_Ibn_Khaldoun","Amélioration Et Valorisation Des Productions Animales Locales","تحسين منتوج السلالات الحيوانية المحلية",null,"Université de Tiaret Ibn Khaldoun"]
["U. Tiaret","Université_de_Tiaret_Ibn_Khaldoun","Développement De L'Entreprise Économique Algérienne","تطوير المؤسسة الاقتصادية الجزائرية",null,"Université de Tiaret Ibn Khaldoun"]
["U. Tiaret","Université_de_Tiaret_Ibn_Khaldoun","Discours Argumentatif Ses Origines, Ses Références Et Ses Perspectives En Algérie","الخطاب الحجاجي أصوله ومرجعياته وآفاقه في الجزائر",null,"Université de Tiaret Ibn Khaldoun"]
["U. Tiaret","Université_de_Tiaret_Ibn_Khaldoun","Etude Grammaticale Et Langagière Entre Tradition Et Modérnité En Algérie","الدراسات النحوية واللغوية بين التراث والحداثة في الجزائر",null,"Université de Tiaret Ibn Khaldoun"]
["U. Tiaret","Université_de_Tiaret_Ibn_Khaldoun","Etudes Historiques Et Archéologiques De L’Afrique Du Nord","الدراسات التاريخية و الإثرية في شمال إفريقيا",null,"Université de Tiaret Ibn Khaldoun"]
["U. Tiaret","Université_de_Tiaret_Ibn_Khaldoun","Études Juridiques","الدراسات القانونية",null,"Université de Tiaret Ibn Khaldoun"]
["U. Tiaret","Université_de_Tiaret_Ibn_Khaldoun","Génie Électrique Et Des Plasmas","مخبر الهندسة الكهربائية و البلازما",null,"Université de Tiaret Ibn Khaldoun"]
["U. Tiaret","Université_de_Tiaret_Ibn_Khaldoun","Génie Énergétique Et Génie Informatique","مخبر الهندسة الطاقوية وهندسة الإعلام الآلي",null,"Université de Tiaret Ibn Khaldoun"]
["U. Tiaret","Université_de_Tiaret_Ibn_Khaldoun","Génie Physique","مخبر الهندسة الفيزيائية",null,"Université de Tiaret Ibn Khaldoun"]
["U. Tiaret","Université_de_Tiaret_Ibn_Khaldoun","Géomatique Et Développement Durable","الإعلام الجغرافي الآلي و التنمية المستدامة",null,"Université de Tiaret Ibn Khaldoun"]
["U. Tiaret","Université_de_Tiaret_Ibn_Khaldoun","Hygiène Et De Pathologie Animale","الصحة و الأمراض الحيونية",null,"Université de Tiaret Ibn Khaldoun"]
["U. Tiaret","Université_de_Tiaret_Ibn_Khaldoun","Informatique Et Mathématiques","مخبر الإعلام الألي و الرياضيات",null,"Université de Tiaret Ibn Khaldoun"]
["U. Tiaret","Université_de_Tiaret_Ibn_Khaldoun","Législation De Protection Du Système D'Environnement","مخبر التشريعات لحماية النظام البيئي",null,"Université de Tiaret Ibn Khaldoun"]
["U. Tiaret","Université_de_Tiaret_Ibn_Khaldoun","Physiologie Végétale Appliquée Aux Cultures Hors Sol","مخبر فيزيولوجية النباتات المطبقة على الزراعة خارج التربة",null,"Université de Tiaret Ibn Khaldoun"]
["U. Tiaret","Université_de_Tiaret_Ibn_Khaldoun","Reproduction Des Animaux De La Ferme","مخبر تناسليات حيوانات المزرعة",null,"Université de Tiaret Ibn Khaldoun"]
["U. Tiaret","Université_de_Tiaret_Ibn_Khaldoun","Synthèse Et Catalyse","مـخــــبـر التركيب و الحفز",null,"Université de Tiaret Ibn Khaldoun"]
["U. Tiaret","Université_de_Tiaret_Ibn_Khaldoun","Technologies Industrielles","مخبر التكنولوجيات الصناعية",null,"Université de Tiaret Ibn Khaldoun"]
["U. Tizi Ouzou","Université_de_Tizi_Ouzou_Mouloud_Maameri","Aménagement Et Enseignement De La Langue Amazighe","مخبر تهيئة و تدريس اللغة الأمازيغية",null,"Université de Tizi Ouzou Mouloud Maameri"]
["U. Tizi Ouzou","Université_de_Tizi_Ouzou_Mouloud_Maameri","Analyse De Discours","مخبر تحليل الخطاب",null,"Université de Tizi Ouzou Mouloud Maameri"]
["U. Tizi Ouzou","Université_de_Tizi_Ouzou_Mouloud_Maameri","Analyse Et Modélisation Des Phénomènes Aléatoires","تحليل و تشكيل نماذج الظواهر",null,"Université de Tizi Ouzou Mouloud Maameri"]
["U. Tizi Ouzou","Université_de_Tizi_Ouzou_Mouloud_Maameri","Biochimie Analytique Et Biotechnologies","مخبر البيوكمياء التحليلية والبيوتكنولوجيات",null,"Université de Tizi Ouzou Mouloud Maameri"]
["U. Tizi Ouzou","Université_de_Tizi_Ouzou_Mouloud_Maameri","Chimie Appliquée Et Génie Chimique","الكمياء التطبيقية و الهندسة الكيميائية",null,"Université de Tizi Ouzou Mouloud Maameri"]
["U. Tizi Ouzou","Université_de_Tizi_Ouzou_Mouloud_Maameri","Conception Et Conduite Des Systèmes De Production","تصميم و قيادة انظمة الإنتاج",null,"Université de Tizi Ouzou Mouloud Maameri"]
["U. Tizi Ouzou","Université_de_Tizi_Ouzou_Mouloud_Maameri","Droit Et Nouvelles Technologies","القانون والتكنولوجيات الجديدة",null,"Université de Tizi Ouzou Mouloud Maameri"]
["U. Tizi Ouzou","Université_de_Tizi_Ouzou_Mouloud_Maameri","Eaux","مخبر \" المياه\"",null,"Université de Tizi Ouzou Mouloud Maameri"]
["U. Tizi Ouzou","Université_de_Tizi_Ouzou_Mouloud_Maameri","Ecologie Et Biologie Des Écosystèmes Terrestres","مخبر علم البيئة وبيولوجية لأرضية والنظام البيئي",null,"Université de Tizi Ouzou Mouloud Maameri"]
["U. Tizi Ouzou","Université_de_Tizi_Ouzou_Mouloud_Maameri","Elaboration Et Caractérisation Des Matériaux Et Modélisation","إعداد وتوصيف المواد والنمذجة",null,"Université de Tizi Ouzou Mouloud Maameri"]
["U. Tizi Ouzou","Université_de_Tizi_Ouzou_Mouloud_Maameri","Enérgétique, Mécanique Et Matériaux","الطاقوية ٬المكانيك و المواد",null,"Université de Tizi Ouzou Mouloud Maameri"]
["U. Tizi Ouzou","Université_de_Tizi_Ouzou_Mouloud_Maameri","Génie Électrique","مخبر الهندسة الكهربائية",null,"Université de Tizi Ouzou Mouloud Maameri"]
["U. Tizi Ouzou","Université_de_Tizi_Ouzou_Mouloud_Maameri","Géomatériaux, Environnement Et Aménagements","هندسة المواد و البيئة التهيئة",null,"Université de Tizi Ouzou Mouloud Maameri"]
["U. Tizi Ouzou","Université_de_Tizi_Ouzou_Mouloud_Maameri","Informatique","البحث في الإعلام الآلي",null,"Université de Tizi Ouzou Mouloud Maameri"]
["U. Tizi Ouzou","Université_de_Tizi_Ouzou_Mouloud_Maameri","Les Pratiques Langagières En Algérie","الممارسات اللغوية في الجزائر",null,"Université de Tizi Ouzou Mouloud Maameri"]
["U. Tizi Ouzou","Université_de_Tizi_Ouzou_Mouloud_Maameri","Management Des Organisations","مخبر بحث في تسيير المؤسسات و المنظمات",null,"Université de Tizi Ouzou Mouloud Maameri"]
["U. Tizi Ouzou","Université_de_Tizi_Ouzou_Mouloud_Maameri","Mathématiques Pures Et Appliquées","الرياضيات النظرية و التطبيقية",null,"Université de Tizi Ouzou Mouloud Maameri"]
["U. Tizi Ouzou","Université_de_Tizi_Ouzou_Mouloud_Maameri","Mécanique, Structures Et Énergétique","ميكانيك و الهياكل و الطاقة الميكانيكية",null,"Université de Tizi Ouzou Mouloud Maameri"]
["U. Tizi Ouzou","Université_de_Tizi_Ouzou_Mouloud_Maameri","Mondialisation Et Droit National","العولمة و القانون الوطني",null,"Université de Tizi Ouzou Mouloud Maameri"]
["U. Tizi Ouzou","Université_de_Tizi_Ouzou_Mouloud_Maameri","Physique Et Chimie Des Matériaux","فيزياء وكيمياء المواد",null,"Université de Tizi Ouzou Mouloud Maameri"]
["U. Tizi Ouzou","Université_de_Tizi_Ouzou_Mouloud_Maameri","Physique Et Chimie Quantique","الفيزياء و الكيمياء الدقيقة",null,"Université de Tizi Ouzou Mouloud Maameri"]
["U. Tizi Ouzou","Université_de_Tizi_Ouzou_Mouloud_Maameri","Production, Amélioration Et Protection Des Végétaux Et Des Denrées Alimentaires","الإنتاج و تحسين و حماية النباتات و المواد الغدائية",null,"Université de Tizi Ouzou Mouloud Maameri"]
["U. Tizi Ouzou","Université_de_Tizi_Ouzou_Mouloud_Maameri","Production, Sauvegarde Des Espèces Menacées Et Des Récoltes Influence Des Variations Climatiques","الإنتاج، وحماية الأنواع المهددة وحماية المحاصيل. دراسة التغيرات المناخية",null,"Université de Tizi Ouzou Mouloud Maameri"]
["U. Tizi Ouzou","Université_de_Tizi_Ouzou_Mouloud_Maameri","Qualité Et Sécurité Des Aliments","جودة وأمن الأغذية",null,"Université de Tizi Ouzou Mouloud Maameri"]
["U. Tizi Ouzou","Université_de_Tizi_Ouzou_Mouloud_Maameri","Recherche Opérationnelle Et De Mathématique De La Décision","مخبر البحث بالمنهج الحسابي و رياضيات القرار",null,"Université de Tizi Ouzou Mouloud Maameri"]
["U. Tizi Ouzou","Université_de_Tizi_Ouzou_Mouloud_Maameri","Réformes Économiques Et Dynamiques Locales","الإصلاحات الاقتصادية الدينامكيات المحلية",null,"Université de Tizi Ouzou Mouloud Maameri"]
["U. Tizi Ouzou","Université_de_Tizi_Ouzou_Mouloud_Maameri","Représentation Intellectuelle Et Culturelles","مخبر التمثلات الفكرية والثقافية: إبداع ، تواصل، نقد",null,"Université de Tizi Ouzou Mouloud Maameri"]
["U. Tizi Ouzou","Université_de_Tizi_Ouzou_Mouloud_Maameri","Ressources Naturelles","الموارد الطبيعية",null,"Université de Tizi Ouzou Mouloud Maameri"]
["U. Tizi Ouzou","Université_de_Tizi_Ouzou_Mouloud_Maameri","Société-Éducation-Travail","مجتمع-تربية- عمل",null,"Université de Tizi Ouzou Mouloud Maameri"]
["U. Tizi Ouzou","Université_de_Tizi_Ouzou_Mouloud_Maameri","Technologie Avancée En Génie Électrique","مختبر التكنولوجيات المتقدمة في الهندسة الكهربائية",null,"Université de Tizi Ouzou Mouloud Maameri"]
["U. Tizi Ouzou","Université_de_Tizi_Ouzou_Mouloud_Maameri","Vision Artificielle Et Automatique Des Systèmes","رؤية إصطناعية و آلية الأنظمة",null,"Université de Tizi Ouzou Mouloud Maameri"]
["U. Tlemcen","Université_de_Tlemcen_Abou_bekr_Belkaid","Analyse Non Linèaire Et Mathématiques Appliquées","التحليل الغير خطي والرياضيات التطبيقية",null,"Université de Tlemcen Abou bekr Belkaid"]
["U. Tlemcen","Université_de_Tlemcen_Abou_bekr_Belkaid","Analyses Statistiques En Sciences Humaines Et Réalisation D’Un Dictionnaire Unifiant Basé Sur Des Critères Scientifiques","تحليليات إحصائية في العلوم الإنسانية وإنجاز معجم موحد لها على مقاييس علمية",null,"Université de Tlemcen Abou bekr Belkaid"]
["U. Tlemcen","Université_de_Tlemcen_Abou_bekr_Belkaid","Anthropologie Cognitive","الانتروبولوجبا المعرفية",null,"Université de Tlemcen Abou bekr Belkaid"]
["U. Tlemcen","Université_de_Tlemcen_Abou_bekr_Belkaid","Anthropologie Des Religions Et Leur Comparaison : Étude Socio Anthropologique","انتربولوجيا الأديان ومقارنتها: دراسة سوسيو أنتربولوجيا",null,"Université de Tlemcen Abou bekr Belkaid"]
["U. Tlemcen","Université_de_Tlemcen_Abou_bekr_Belkaid","Antibiotiques, Antifongiques, Physico-Chimie, Synthèse Et Activité Biologique","المضادات الحيوية، المضادات الفطرية، الفيزيائية الكيميائية، التركيب و النشاط البيولوجي",null,"Université de Tlemcen Abou bekr Belkaid"]
["U. Tlemcen","Université_de_Tlemcen_Abou_bekr_Belkaid","Application Des Électrolytes Et De Poly Électrolytes Organiques","تطبيقات المركبات البسيطة و الجزيئات الكبيرة الشاردية العضوي",null,"Université de Tlemcen Abou bekr Belkaid"]
["U. Tlemcen","Université_de_Tlemcen_Abou_bekr_Belkaid","Arabisation Terminologique En Sciences Humaines Et Sociales","تعريب المصطلح في العلوم الإنسانية والاجتماعية",null,"Université de Tlemcen Abou bekr Belkaid"]
["U. Tlemcen","Université_de_Tlemcen_Abou_bekr_Belkaid","Arts Et Études Culturelles","الفنون و الدراسات الثقافية",null,"Université de Tlemcen Abou bekr Belkaid"]
["U. Tlemcen","Université_de_Tlemcen_Abou_bekr_Belkaid","Automatique","الآلية",null,"Université de Tlemcen Abou bekr Belkaid"]
["U. Tlemcen","Université_de_Tlemcen_Abou_bekr_Belkaid","Biologie Moléculaire Appliquée Et D'Immunologie","مخبر البيولوجيا الجزيئية التطبيقة و المناعة",null,"Université de Tlemcen Abou bekr Belkaid"]
["U. Tlemcen","Université_de_Tlemcen_Abou_bekr_Belkaid","Cancerlab","مخبر البحث حول السرطان",null,"Université de Tlemcen Abou bekr Belkaid"]
["U. Tlemcen","Université_de_Tlemcen_Abou_bekr_Belkaid","Catalyse Et Synthèse En Chimie Organique","مخبر التحفيز والتركيب في الكيمياء العضوية",null,"Université de Tlemcen Abou bekr Belkaid"]
["U. Tlemcen","Université_de_Tlemcen_Abou_bekr_Belkaid","Chimie Analytique Et D’Électrochimie","مخبر الكيميــاء التحليليـة و الكهروكيميـــاء",null,"Université de Tlemcen Abou bekr Belkaid"]
["U. Tlemcen","Université_de_Tlemcen_Abou_bekr_Belkaid","Chimie Inorganique Et Environnement","مخبر الكيمياء غير العضوية و المحيط",null,"Université de Tlemcen Abou bekr Belkaid"]
["U. Tlemcen","Université_de_Tlemcen_Abou_bekr_Belkaid","Chimie Organique, Substances Naturelles Et Analyses","مخبر الكيمياء العضوية و المواد الطبيعية و التحاليل",null,"Université de Tlemcen Abou bekr Belkaid"]
["U. Tlemcen","Université_de_Tlemcen_Abou_bekr_Belkaid","Chirurgie Expérimentale","الجراحة التجريبية",null,"Université de Tlemcen Abou bekr Belkaid"]
["U. Tlemcen","Université_de_Tlemcen_Abou_bekr_Belkaid","Dialogue Des Religions Et Des Civilisations Dans Le Bassin Méditerranéen","حوار الديانات والحضارات في حوض البحر المتوسط",null,"Université de Tlemcen Abou bekr Belkaid"]
["U. Tlemcen","Université_de_Tlemcen_Abou_bekr_Belkaid","Diversité Des Langues, Expressions Littéraires Et Interactions Culturelles","تعدد اللغات ٬ تعبيرات أدبية و تفاعلات ثقافية",null,"Université de Tlemcen Abou bekr Belkaid"]
["U. Tlemcen","Université_de_Tlemcen_Abou_bekr_Belkaid","Droit Comparé","مخبر البحث في القانون المقارن",null,"Université de Tlemcen Abou bekr Belkaid"]
["U. Tlemcen","Université_de_Tlemcen_Abou_bekr_Belkaid","Droit De L'Homme Et Liberté Fondamentales","حقوق الإنسان و الحريات الأساسية",null,"Université de Tlemcen Abou bekr Belkaid"]
["U. Tlemcen","Université_de_Tlemcen_Abou_bekr_Belkaid","Droit Maritime Et Transports","مخبر القانون البحري و النقل",null,"Université de Tlemcen Abou bekr Belkaid"]
["U. Tlemcen","Université_de_Tlemcen_Abou_bekr_Belkaid","Droit Privé Fondamental","مخبر القانون الخاص الأساسي",null,"Université de Tlemcen Abou bekr Belkaid"]
["U. Tlemcen","Université_de_Tlemcen_Abou_bekr_Belkaid","Dynamique Des Langues Et Discours En Méditerranée","ديناميكية اللغات و الخطب في البحرالابيض المتوسط",null,"Université de Tlemcen Abou bekr Belkaid"]
["U. Tlemcen","Université_de_Tlemcen_Abou_bekr_Belkaid","Eau Et Ouvrages Dans Leur Environnement","الماء و المنشآت في محيطها",null,"Université de Tlemcen Abou bekr Belkaid"]
["U. Tlemcen","Université_de_Tlemcen_Abou_bekr_Belkaid","Ecologie Et Gestion Des Écosystèmes Naturels","مخبر علم البيئة و تسيير الأنظمة البيْية الطبيعية",null,"Université de Tlemcen Abou bekr Belkaid"]
["U. Tlemcen","Université_de_Tlemcen_Abou_bekr_Belkaid","Economie Informelle, Institutions Et Développement","الإقتصاد الغير الرسمي، المؤسسات و التنمية",null,"Université de Tlemcen Abou bekr Belkaid"]
["U. Tlemcen","Université_de_Tlemcen_Abou_bekr_Belkaid","Energétique Et Thermique Appliquée","الطاقة و الحرارة التطبيقية",null,"Université de Tlemcen Abou bekr Belkaid"]
["U. Tlemcen","Université_de_Tlemcen_Abou_bekr_Belkaid","English For Specific Purposes Teaching","مخبر تدريس الإنجليزية لأغراض خاصة",null,"Université de Tlemcen Abou bekr Belkaid"]
["U. Tlemcen","Université_de_Tlemcen_Abou_bekr_Belkaid","Entreprise Industrielle Et Société En Algérie","المؤسسة الصناعية والمجتمع في الجزائر",null,"Université de Tlemcen Abou bekr Belkaid"]
["U. Tlemcen","Université_de_Tlemcen_Abou_bekr_Belkaid","Etudes Civilisationnelles Et Intellectuelles","مخبر الدراسات الحضارية والفكرية",null,"Université de Tlemcen Abou bekr Belkaid"]
["U. Tlemcen","Université_de_Tlemcen_Abou_bekr_Belkaid","Etudes Critiques Littéraires Et Leur Information Dans Le Maghreb Arabe Depuis Leur Institution Jusqu'À La Fin Du 20 Éme Siècle","الدراسات النقدية الأدبية وإعلامها في المغرب العربي من التأسيس إلى نهاية القرن العشرين",null,"Université de Tlemcen Abou bekr Belkaid"]
["U. Tlemcen","Université_de_Tlemcen_Abou_bekr_Belkaid","Etudes De Charia","مخبر الدراسات الشرعيــة",null,"Université de Tlemcen Abou bekr Belkaid"]
["U. Tlemcen","Université_de_Tlemcen_Abou_bekr_Belkaid","Etudes Littéraires Et Linguistiques Andalouses","مخبر الدراسات الأدبية و اللغوية الأندلسية",null,"Université de Tlemcen Abou bekr Belkaid"]
["U. Tlemcen","Université_de_Tlemcen_Abou_bekr_Belkaid","Evaluation De La Politique De Développement En Algérie","تقييم سياسة التنمية الإقتصادية في الجزائر",null,"Université de Tlemcen Abou bekr Belkaid"]
["U. Tlemcen","Université_de_Tlemcen_Abou_bekr_Belkaid","Evaluation Et Management De Risques","تقييم و إدارة المخاطر",null,"Université de Tlemcen Abou bekr Belkaid"]
["U. Tlemcen","Université_de_Tlemcen_Abou_bekr_Belkaid","Foreign Language Policy In Algeria And Teacher Professionalism","سياسة اللغات الأجنبية في الجزائر واحترافية الأستاذ",null,"Université de Tlemcen Abou bekr Belkaid"]
["U. Tlemcen","Université_de_Tlemcen_Abou_bekr_Belkaid","Génie Biomédical","الهندسة البيوطبية",null,"Université de Tlemcen Abou bekr Belkaid"]
["U. Tlemcen","Université_de_Tlemcen_Abou_bekr_Belkaid","Gestion Conservatoire De L'Eau, Du Sol Et Des Forets Et Développement Durable Des Zones Montagneuses De La Région De Tlemcen","التسييرالمحافظ على المياه والتربة والغابات والتنمية المستدامة للمناطق الجبلية في منطقة تلمسان",null,"Université de Tlemcen Abou bekr Belkaid"]
["U. Tlemcen","Université_de_Tlemcen_Abou_bekr_Belkaid","Gouvernance Publique Et Économie Sociale","الحوكمة العمومية الاقتصاد والاجتماعي",null,"Université de Tlemcen Abou bekr Belkaid"]
["U. Tlemcen","Université_de_Tlemcen_Abou_bekr_Belkaid","Ingénierie Des Systèmes Mécaniques Et Matériaux","هندسة الأنظمة الميكانيكية و المواد",null,"Université de Tlemcen Abou bekr Belkaid"]
["U. Tlemcen","Université_de_Tlemcen_Abou_bekr_Belkaid","Macromoléculaires","مخبر البحث حول الجزيئات الكبيرة",null,"Université de Tlemcen Abou bekr Belkaid"]
["U. Tlemcen","Université_de_Tlemcen_Abou_bekr_Belkaid","Management Des Entreprises Et Du Capital Social","مخبر إدارة المؤسسات ورأس المال الإجتماعي",null,"Université de Tlemcen Abou bekr Belkaid"]
["U. Tlemcen","Université_de_Tlemcen_Abou_bekr_Belkaid","Management Des Hommes Et Des Organisations","مخبر البحث حول مناجمنت الأفراد و المنظمات",null,"Université de Tlemcen Abou bekr Belkaid"]
["U. Tlemcen","Université_de_Tlemcen_Abou_bekr_Belkaid","Mécanique Computationnelle","مخبر الميكانيكا الحاسوبية",null,"Université de Tlemcen Abou bekr Belkaid"]
["U. Tlemcen","Université_de_Tlemcen_Abou_bekr_Belkaid","Méditerranéen Des Etudes Juridiques","المخبر المتوسطي للدراسات القانونية",null,"Université de Tlemcen Abou bekr Belkaid"]
["U. Tlemcen","Université_de_Tlemcen_Abou_bekr_Belkaid","Microbiologie Appliquée À L'Agroalimentaire, Au Biomédical Et À L'Environnement","الميكربيولوجيا التطبيقية للأغدية للبيوطبي وللبيئة",null,"Université de Tlemcen Abou bekr Belkaid"]
["U. Tlemcen","Université_de_Tlemcen_Abou_bekr_Belkaid","Modernisation De La Grammaire Arabe","تحديث النحو العربي",null,"Université de Tlemcen Abou bekr Belkaid"]
["U. Tlemcen","Université_de_Tlemcen_Abou_bekr_Belkaid","Monnaie Et Institutions Financières Dans Le Maghreb Arabe","النقود و المؤسسات المالية في المغرب العربي",null,"Université de Tlemcen Abou bekr Belkaid"]
["U. Tlemcen","Université_de_Tlemcen_Abou_bekr_Belkaid","Patrimoine Archéologique Et Sa Valorisation","مخبر التراث الأثري وتثمينه ",null,"Université de Tlemcen Abou bekr Belkaid"]
["U. Tlemcen","Université_de_Tlemcen_Abou_bekr_Belkaid","Phénoménologie Et Ses Applications","الفنومينولوجيا و تطبيقاتها",null,"Université de Tlemcen Abou bekr Belkaid"]
["U. Tlemcen","Université_de_Tlemcen_Abou_bekr_Belkaid","Physiologie, Physiopathologie Et Biochimie De La Nutrition","علم وﻇﺎﺋﻒ ﺍﻷﻋﻀﺎﺀ و ﺍﻷﻤﺮﺍﺾ و ﻜﻴﻤﻴﺎﺀ التغذية",null,"Université de Tlemcen Abou bekr Belkaid"]
["U. Tlemcen","Université_de_Tlemcen_Abou_bekr_Belkaid","Physique Théorique","مخبر الفيزياء النظرية",null,"Université de Tlemcen Abou bekr Belkaid"]
["U. Tlemcen","Université_de_Tlemcen_Abou_bekr_Belkaid","Population Et Développement Durable En Algérie","السكان و التنمية المستدامة في الجزائر",null,"Université de Tlemcen Abou bekr Belkaid"]
["U. Tlemcen","Université_de_Tlemcen_Abou_bekr_Belkaid","Productique De Tlemcen","مخبر هندسة الإنتاج الآلي",null,"Université de Tlemcen Abou bekr Belkaid"]
["U. Tlemcen","Université_de_Tlemcen_Abou_bekr_Belkaid","Produits Naturels « Laprona »","المنتجات الطبيعية",null,"Université de Tlemcen Abou bekr Belkaid"]
["U. Tlemcen","Université_de_Tlemcen_Abou_bekr_Belkaid","Promotion Des Ressources Hydriques, Minières Pédologiques : Législation De L'Environnement Et Choix Technologiques","ترقية الموارد المائية٬التربة والمعادن ٬التشريع البيئي والإختيارات التكنولوجية",null,"Université de Tlemcen Abou bekr Belkaid"]
["U. Tlemcen","Université_de_Tlemcen_Abou_bekr_Belkaid","Psychométriques et Applications","مخبر البحوث في القياس النفسي وتطبيقاته",null,"Université de Tlemcen Abou bekr Belkaid"]
["U. Tlemcen","Université_de_Tlemcen_Abou_bekr_Belkaid","Recherche En Informatique","مختبر البحوث تكنولوجيا المعلومات",null,"Université de Tlemcen Abou bekr Belkaid"]
["U. Tlemcen","Université_de_Tlemcen_Abou_bekr_Belkaid","Recherche sur le Diabète","مخبر البحث حول داء السكري",null,"Université de Tlemcen Abou bekr Belkaid"]
["U. Tlemcen","Université_de_Tlemcen_Abou_bekr_Belkaid","Recueil Et Authentification De La Poésie Populaire Algérienne De L'Époque Othomane Au 20Éme Siècle","جمع وتوثيق الشعر الشعبي الجزائري من العهد العثماني حتى القرن العشرين",null,"Université de Tlemcen Abou bekr Belkaid"]
["U. Tlemcen","Université_de_Tlemcen_Abou_bekr_Belkaid","Références Philosophiques Et Artistiques De La Pensée Littéraire Et Critique En Algérie – Des Conquêtes Au Colonialisme Français","المرجعيات الفلسفية والفنية للتفكير البلاغي والنقدي في الجزائر - من الفتح حتى الاستعمار الفرنسي",null,"Université de Tlemcen Abou bekr Belkaid"]
["U. Tlemcen","Université_de_Tlemcen_Abou_bekr_Belkaid","Spectrochimie Et Pharmacologie Structurale","الكيمياء الطيفية و علم الصيدلة التركيبية",null,"Université de Tlemcen Abou bekr Belkaid"]
["U. Tlemcen","Université_de_Tlemcen_Abou_bekr_Belkaid","Statistiques Et Modélisations Aléatoires","إحصاء والنمذجة عشوائية",null,"Université de Tlemcen Abou bekr Belkaid"]
["U. Tlemcen","Université_de_Tlemcen_Abou_bekr_Belkaid","Substances Naturelles Et Bioactives Lasnabio","المواد الطبيعية والبيوفعالة",null,"Université de Tlemcen Abou bekr Belkaid"]
["U. Tlemcen","Université_de_Tlemcen_Abou_bekr_Belkaid","Systèmes Dynamiques Et Applications","مخبر البحث نظام التحريكات و التطبيقات",null,"Université de Tlemcen Abou bekr Belkaid"]
["U. Tlemcen","Université_de_Tlemcen_Abou_bekr_Belkaid","Systèmes Et Technologies De L'Information Et De La Communication","نظم و التكنولوجية الإعلام و الإتصال",null,"Université de Tlemcen Abou bekr Belkaid"]
["U. Tlemcen","Université_de_Tlemcen_Abou_bekr_Belkaid","Technologies De Séparation Et De Purification","تكنولوجيات الفصل و التنقية",null,"Université de Tlemcen Abou bekr Belkaid"]
["U. Tlemcen","Université_de_Tlemcen_Abou_bekr_Belkaid","Télécommunications","مخبر الاتصالات",null,"Université de Tlemcen Abou bekr Belkaid"]
["U. Tlemcen","Université_de_Tlemcen_Abou_bekr_Belkaid","Thermodynamique Appliquée Et Modélisation Moléculaire","مخبر الديناميكا الحرارية المطبقة والنمذجة الجزيئية",null,"Université de Tlemcen Abou bekr Belkaid"]
["U. Tlemcen","Université_de_Tlemcen_Abou_bekr_Belkaid","Toxicomed","علم السموم الإحترافي",null,"Université de Tlemcen Abou bekr Belkaid"]
["U. Tlemcen","Université_de_Tlemcen_Abou_bekr_Belkaid","Tradition Et Formes D'Expression Populaire En Algérie","مخبر عادات وأشكال التعبير الشعبي بالجزائر",null,"Université de Tlemcen Abou bekr Belkaid"]
["U. Tlemcen","Université_de_Tlemcen_Abou_bekr_Belkaid","Traitement Automatique De La Langue Arabe","مخبر المعالجة الآلية للغة العربية",null,"Université de Tlemcen Abou bekr Belkaid"]
["U. Tlemcen","Université_de_Tlemcen_Abou_bekr_Belkaid","Unité De Recherche : Matériaux Et Énergies Renouvelables (Remplace Le Lr 2000 \"Matériaux Et Energies Renouvelables\")","وحدة البحث في المواد و الطاقات المتجددة",null,"Université de Tlemcen Abou bekr Belkaid"]
["U. Tlemcen","Université_de_Tlemcen_Abou_bekr_Belkaid","Valorisation Des Actions De L'Homme Pour La Protection De L'Environnement Et Application En Santé Publique","تثميـن نشاطـات الإنسـان من أجـل حمايـة البيئـة و التطبيـق في الصحـة العموميـة",null,"Université de Tlemcen Abou bekr Belkaid"]
["U. Tlemcen","Université_de_Tlemcen_Abou_bekr_Belkaid","Valorisation Des Ressources En Eau","مخبر لتقويم الموارد المائية",null,"Université de Tlemcen Abou bekr Belkaid"]
["U. STO","Université_des_Sciences_et_de_la_Technologie_d_Oran_Mohamed_Boudiaf","Aérodynamique Navale","مخبرالديناميكية الهوائية و الهيدروليكية البحرية",null,"Université des Sciences et de la Technologie d Oran Mohamed Boudiaf"]
["U. STO","Université_des_Sciences_et_de_la_Technologie_d_Oran_Mohamed_Boudiaf","Aéronautique Et Systèmes Propulsifs","علم الطيران وأنظمة الدفع",null,"Université des Sciences et de la Technologie d Oran Mohamed Boudiaf"]
["U. STO","Université_des_Sciences_et_de_la_Technologie_d_Oran_Mohamed_Boudiaf","Analyse Et Application Des Rayonnements","مخبر تحليل و تطبيق الإشعاعات",null,"Université des Sciences et de la Technologie d Oran Mohamed Boudiaf"]
["U. STO","Université_des_Sciences_et_de_la_Technologie_d_Oran_Mohamed_Boudiaf","Automatisation, Vision Et Contrôle Intelligent Des Systèmes","الآلية ٬ الرؤية و التحكم الذكي في الأنظمة",null,"Université des Sciences et de la Technologie d Oran Mohamed Boudiaf"]
["U. STO","Université_des_Sciences_et_de_la_Technologie_d_Oran_Mohamed_Boudiaf","Carburants Gazeux & Environnement","الوقود الغازية و البيئة",null,"Université des Sciences et de la Technologie d Oran Mohamed Boudiaf"]
["U. STO","Université_des_Sciences_et_de_la_Technologie_d_Oran_Mohamed_Boudiaf","Chimie Des Matériaux Inorganiques Et Applications","مخبر كيمياء المواد الغير عضوية و التطبيقات",null,"Université des Sciences et de la Technologie d Oran Mohamed Boudiaf"]
["U. STO","Université_des_Sciences_et_de_la_Technologie_d_Oran_Mohamed_Boudiaf","Chimie Et D'Électrochimie Des Complexes Métalliques","مخبر كيمياء و إلكتروكيمياء المعقدات المعدنية",null,"Université des Sciences et de la Technologie d Oran Mohamed Boudiaf"]
["U. STO","Université_des_Sciences_et_de_la_Technologie_d_Oran_Mohamed_Boudiaf","Codage Et De La Sécurité De L'Information","الترميز و سرية المعلومات",null,"Université des Sciences et de la Technologie d Oran Mohamed Boudiaf"]
["U. STO","Université_des_Sciences_et_de_la_Technologie_d_Oran_Mohamed_Boudiaf","Développement Des Entraînements Électriques","مخبرتطوير السحب الكهربائي",null,"Université des Sciences et de la Technologie d Oran Mohamed Boudiaf"]
["U. STO","Université_des_Sciences_et_de_la_Technologie_d_Oran_Mohamed_Boudiaf","Développement Durable Et Énergie Électrique","مخبر التنمية المستدامة للطاقة الكهربائية",null,"Université des Sciences et de la Technologie d Oran Mohamed Boudiaf"]
["U. STO","Université_des_Sciences_et_de_la_Technologie_d_Oran_Mohamed_Boudiaf","Eco-Matériaux Fonctionnels Et Nanostructurés","مـخــبــر النانوهيكلية الوظيفية الإيكولوجية للمواد",null,"Université des Sciences et de la Technologie d Oran Mohamed Boudiaf"]
["U. STO","Université_des_Sciences_et_de_la_Technologie_d_Oran_Mohamed_Boudiaf","Electronique De Puissance Appliquée","مخبر إلكترونيك القدرة المطبقة",null,"Université des Sciences et de la Technologie d Oran Mohamed Boudiaf"]
["U. STO","Université_des_Sciences_et_de_la_Technologie_d_Oran_Mohamed_Boudiaf","Électronique De Puissance, D’Énergie Solaire Et Automatique","إلكترونيك القدرة ٬الطاقة الشمسيةو الأتوماتيكية",null,"Université des Sciences et de la Technologie d Oran Mohamed Boudiaf"]
["U. STO","Université_des_Sciences_et_de_la_Technologie_d_Oran_Mohamed_Boudiaf","Etude Physique Des Matériaux","فيزياء المواد",null,"Université des Sciences et de la Technologie d Oran Mohamed Boudiaf"]
["U. STO","Université_des_Sciences_et_de_la_Technologie_d_Oran_Mohamed_Boudiaf","Génétique Moléculaire Et Cellulaire","الوراثة الجزيئية والخلوية",null,"Université des Sciences et de la Technologie d Oran Mohamed Boudiaf"]
["U. STO","Université_des_Sciences_et_de_la_Technologie_d_Oran_Mohamed_Boudiaf","Génie Electrique D'Oran","مخبر الهندسة الكهربائية بوهران",null,"Université des Sciences et de la Technologie d Oran Mohamed Boudiaf"]
["U. STO","Université_des_Sciences_et_de_la_Technologie_d_Oran_Mohamed_Boudiaf","Gestion Et De Traitement Des Eaux","تسيير و معالجة المياه \"متمم\"",null,"Université des Sciences et de la Technologie d Oran Mohamed Boudiaf"]
["U. STO","Université_des_Sciences_et_de_la_Technologie_d_Oran_Mohamed_Boudiaf","Ingénierie Des Procédés Et De L’Environnement","مخبر هندسة الطراءق والبيئة",null,"Université des Sciences et de la Technologie d Oran Mohamed Boudiaf"]
["U. STO","Université_des_Sciences_et_de_la_Technologie_d_Oran_Mohamed_Boudiaf","L'Activité Physique Et Sportive De L'Enfant Et De L'Adolescent","النشاط البدني الرياضي للطفل المراهق",null,"Université des Sciences et de la Technologie d Oran Mohamed Boudiaf"]
["U. STO","Université_des_Sciences_et_de_la_Technologie_d_Oran_Mohamed_Boudiaf","Matériaux Sols Et Thermique","مواد التربة و الحرارة",null,"Université des Sciences et de la Technologie d Oran Mohamed Boudiaf"]
["U. STO","Université_des_Sciences_et_de_la_Technologie_d_Oran_Mohamed_Boudiaf","Mécanique Appliquée","مخبر الميكانيك التطبيقية",null,"Université des Sciences et de la Technologie d Oran Mohamed Boudiaf"]
["U. STO","Université_des_Sciences_et_de_la_Technologie_d_Oran_Mohamed_Boudiaf","Mécanique Des Structures Et Stabilité Des Constructions","ميكانيك الهياكل و استقرار المنشئات",null,"Université des Sciences et de la Technologie d Oran Mohamed Boudiaf"]
["U. STO","Université_des_Sciences_et_de_la_Technologie_d_Oran_Mohamed_Boudiaf","Métropole Architecture Urbanisme Société","متربول هندسة معمارية عمران مجتمع",null,"Université des Sciences et de la Technologie d Oran Mohamed Boudiaf"]
["U. STO","Université_des_Sciences_et_de_la_Technologie_d_Oran_Mohamed_Boudiaf","Microscopie Électronique Et Sciences Des Matériaux","المجهر الإليكتروني علوم المواد",null,"Université des Sciences et de la Technologie d Oran Mohamed Boudiaf"]
["U. STO","Université_des_Sciences_et_de_la_Technologie_d_Oran_Mohamed_Boudiaf","Microsystèmes Et Systèmes Embarqués","مخبر الأنـظمة الدقـيقة و الأنـظمة المضمّـنة",null,"Université des Sciences et de la Technologie d Oran Mohamed Boudiaf"]
["U. STO","Université_des_Sciences_et_de_la_Technologie_d_Oran_Mohamed_Boudiaf","Physico-Chimie Des Matériaux : Catalyse Et Environnement","فيزياء و كمياء المواد : كتاليز و البيئة",null,"Université des Sciences et de la Technologie d Oran Mohamed Boudiaf"]
["U. STO","Université_des_Sciences_et_de_la_Technologie_d_Oran_Mohamed_Boudiaf","Physique Des Matériaux Et Des Fluides","مخبر فيزياء المواد و الموائع",null,"Université des Sciences et de la Technologie d Oran Mohamed Boudiaf"]
["U. STO","Université_des_Sciences_et_de_la_Technologie_d_Oran_Mohamed_Boudiaf","Physique Des Plasmas, Des Matériaux Conducteurs Et Leurs Applications","فيزياء البلازما، المواد الناقلة وتطبيقاتها",null,"Université des Sciences et de la Technologie d Oran Mohamed Boudiaf"]
["U. STO","Université_des_Sciences_et_de_la_Technologie_d_Oran_Mohamed_Boudiaf","Productions, Valorisations Végétales Et Microbiennes","مخبر بحث الإنتاج التثمين النباتي و الجرثومي",null,"Université des Sciences et de la Technologie d Oran Mohamed Boudiaf"]
["U. STO","Université_des_Sciences_et_de_la_Technologie_d_Oran_Mohamed_Boudiaf","Rhéologie - Transport Et Traitement Des Fluides Complexes","ريولوجيا ٬ نقل ومعالجة السوائل المعقدة",null,"Université des Sciences et de la Technologie d Oran Mohamed Boudiaf"]
["U. STO","Université_des_Sciences_et_de_la_Technologie_d_Oran_Mohamed_Boudiaf","Sciences Et Ingénierie Maritimes","العلوم و الهندسة البحرية",null,"Université des Sciences et de la Technologie d Oran Mohamed Boudiaf"]
["U. STO","Université_des_Sciences_et_de_la_Technologie_d_Oran_Mohamed_Boudiaf","Sciences, Technologie Et Génie Des Procédés","مخبرالعلوم و التكنولوجيا وهندسة الطرائق",null,"Université des Sciences et de la Technologie d Oran Mohamed Boudiaf"]
["U. STO","Université_des_Sciences_et_de_la_Technologie_d_Oran_Mohamed_Boudiaf","Signal-Image-Parole","إشارة - صورة - نطق",null,"Université des Sciences et de la Technologie d Oran Mohamed Boudiaf"]
["U. STO","Université_des_Sciences_et_de_la_Technologie_d_Oran_Mohamed_Boudiaf","Signaux Et Images","مخبر إشارة و صور",null,"Université des Sciences et de la Technologie d Oran Mohamed Boudiaf"]
["U. STO","Université_des_Sciences_et_de_la_Technologie_d_Oran_Mohamed_Boudiaf","Signaux, Systèmes Et Données","الإشارات ٬ الأنظمة و المعطيات",null,"Université des Sciences et de la Technologie d Oran Mohamed Boudiaf"]
["U. STO","Université_des_Sciences_et_de_la_Technologie_d_Oran_Mohamed_Boudiaf","Structure De Composites Et Matériaux Innovants","الهياكل المركبة والمواد المبتكرة",null,"Université des Sciences et de la Technologie d Oran Mohamed Boudiaf"]
["U. STO","Université_des_Sciences_et_de_la_Technologie_d_Oran_Mohamed_Boudiaf","Synthèse Organique, Physico-Chimie, Biomolécules Et Environnement","اتحضير المركبات العضوي،و التشخيص الكيميائي الفيزيائي، الجزيئات الحيوية و تأثيراها على البيئة",null,"Université des Sciences et de la Technologie d Oran Mohamed Boudiaf"]
["U. STO","Université_des_Sciences_et_de_la_Technologie_d_Oran_Mohamed_Boudiaf","Systèmes Intelligents","النطم الذكية",null,"Université des Sciences et de la Technologie d Oran Mohamed Boudiaf"]
["U. STHB","Université_des_Sciences_et_de_la_Technologie_Houari_Boumediène","Aide Multicritère À La Décision Et Recherche Opérationnelle","إعانة متعددة المعايير للقرار و البحث العلمي",null,"Université des Sciences et de la Technologie Houari Boumediène"]
["U. STHB","Université_des_Sciences_et_de_la_Technologie_Houari_Boumediène","Algèbre Et Théorie Des Nombres","الجبر و نظرية الأعداد",null,"Université des Sciences et de la Technologie Houari Boumediène"]
["U. STHB","Université_des_Sciences_et_de_la_Technologie_Houari_Boumediène","Analyse Mathématique Et Numérique Des Équations Aux Dérivées Partielles","التحليل الرياضي و الرقمي من المعادلات إلى المشتقات الجزئية",null,"Université des Sciences et de la Technologie Houari Boumediène"]
["U. STHB","Université_des_Sciences_et_de_la_Technologie_Houari_Boumediène","Analyse Organique Fonctionnelle","مخبر التحاليل العضوية الوظيفية",null,"Université des Sciences et de la Technologie Houari Boumediène"]
["U. STHB","Université_des_Sciences_et_de_la_Technologie_Houari_Boumediène","Arithmétique, Codage, Combinatoire Et Calcul Formel","مخبر لعلوم الحساب، الترميز، علوم التوافقيات والحساب الشكلي",null,"Université des Sciences et de la Technologie Houari Boumediène"]
["U. STHB","Université_des_Sciences_et_de_la_Technologie_Houari_Boumediène","Bâti Dans L'Environnement","مخبر البناء في البيئة",null,"Université des Sciences et de la Technologie Houari Boumediène"]
["U. STHB","Université_des_Sciences_et_de_la_Technologie_Houari_Boumediène","Biodiversité Et Environnement : Interactions, Génomes","التنوع البيولوجي و البيئة:التفاعلات - الجينوم",null,"Université des Sciences et de la Technologie Houari Boumediène"]
["U. STHB","Université_des_Sciences_et_de_la_Technologie_Houari_Boumediène","Biologie Cellulaire Et Moléculaire","البيولوجيا الخلوية والجزيئية",null,"Université des Sciences et de la Technologie Houari Boumediène"]
["U. STHB","Université_des_Sciences_et_de_la_Technologie_Houari_Boumediène","Biologie Et Physiologie Des Organismes","بيولوجيا و فيزيولوجيا الأحياء",null,"Université des Sciences et de la Technologie Houari Boumediène"]
["U. STHB","Université_des_Sciences_et_de_la_Technologie_Houari_Boumediène","Caractérisation Et De Diagnostic Des Équipements De Puissance","مخبر تحديد الخصائص وتشخيص معدات الطاقة",null,"Université des Sciences et de la Technologie Houari Boumediène"]
["U. STHB","Université_des_Sciences_et_de_la_Technologie_Houari_Boumediène","Chimie Du Gaz Naturel","كمياء الغاز الطبيعي",null,"Université des Sciences et de la Technologie Houari Boumediène"]
["U. STHB","Université_des_Sciences_et_de_la_Technologie_Houari_Boumediène","Chimie Organique Appliquée","الكيمياء العضوية التطبيقية",null,"Université des Sciences et de la Technologie Houari Boumediène"]
["U. STHB","Université_des_Sciences_et_de_la_Technologie_Houari_Boumediène","Chimie Théorique Computationnelle Et Photonique","مخبــر الكيميـاء النظـريـة الحـاسـوبيـة و الفـوتـونـيـة",null,"Université des Sciences et de la Technologie Houari Boumediène"]
["U. STHB","Université_des_Sciences_et_de_la_Technologie_Houari_Boumediène","Chromatographie","التحليل الكهروماتوغرافي",null,"Université des Sciences et de la Technologie Houari Boumediène"]
["U. STHB","Université_des_Sciences_et_de_la_Technologie_Houari_Boumediène","Communication Parlée Et Traitement Des Signaux","مخبر الإتصالات الناطقة و معالجة الإشارات",null,"Université des Sciences et de la Technologie Houari Boumediène"]
["U. STHB","Université_des_Sciences_et_de_la_Technologie_Houari_Boumediène","Cristallographie - Thermodynamique","علم التبلر - الديناميكيا الحرارية",null,"Université des Sciences et de la Technologie Houari Boumediène"]
["U. STHB","Université_des_Sciences_et_de_la_Technologie_Houari_Boumediène","Dynamique Et Biodiversité","مخبر الديناميك و التنوع البيولوجي",null,"Université des Sciences et de la Technologie Houari Boumediène"]
["U. STHB","Université_des_Sciences_et_de_la_Technologie_Houari_Boumediène","Ecologie Végétale Et Environnement","البيئة النباتية والمحيط",null,"Université des Sciences et de la Technologie Houari Boumediène"]
["U. STHB","Université_des_Sciences_et_de_la_Technologie_Houari_Boumediène","Electrochimie - Corrosion, Métallurgie Et Chimie Minérale","مخبرالكهروكيمياء، التآكل، دراسة المعادن والكيمياء المعدنية",null,"Université des Sciences et de la Technologie Houari Boumediène"]
["U. STHB","Université_des_Sciences_et_de_la_Technologie_Houari_Boumediène","Electronique Quantique","مخبر الإلكترونيك الكمي",null,"Université des Sciences et de la Technologie Houari Boumediène"]
["U. STHB","Université_des_Sciences_et_de_la_Technologie_Houari_Boumediène","Environnement De L'Eau, De Géomécanique Et Ouvrages","مخبر البيئة، الموارد المائية، الجيوميكانيك و المنشآت",null,"Université des Sciences et de la Technologie Houari Boumediène"]
["U. STHB","Université_des_Sciences_et_de_la_Technologie_Houari_Boumediène","Environnement Géotechnique Et Hydraulique ( Ex: Géotechnique, Infrastructures Urbaines, Environnement Et Aménagement)","الأبحاث التقنية الأرضية و الهياكل القاعدية الحضرية و البيئة و التهيئة",null,"Université des Sciences et de la Technologie Houari Boumediène"]
["U. STHB","Université_des_Sciences_et_de_la_Technologie_Houari_Boumediène","Etude Physico-Chimique Des Matériaux Et Application À L'Environnement","الدراسات الفيزيائية و الكيميائية للمواد وتطبيقات على الـمحيط",null,"Université des Sciences et de la Technologie Houari Boumediène"]
["U. STHB","Université_des_Sciences_et_de_la_Technologie_Houari_Boumediène","Études En Aménagement Et Urbanisme","مخبر البحث و الدراسات في التهيئة و التعمير",null,"Université des Sciences et de la Technologie Houari Boumediène"]
["U. STHB","Université_des_Sciences_et_de_la_Technologie_Houari_Boumediène","Génie De La Réaction","مخبر هندسة التفاعل",null,"Université des Sciences et de la Technologie Houari Boumediène"]
["U. STHB","Université_des_Sciences_et_de_la_Technologie_Houari_Boumediène","Géodynamique Des Bassins Sédimentaires Et Des Orogènes","الأرضية الديناميكية للأحواض الرسوبية وتكوين الجبال",null,"Université des Sciences et de la Technologie Houari Boumediène"]
["U. STHB","Université_des_Sciences_et_de_la_Technologie_Houari_Boumediène","Géodynamique, Géologie De L'Ingénieur Et Planétologie","الأراضة الدناميكية و جيولوجيا المهندس و علم الكواكب",null,"Université des Sciences et de la Technologie Houari Boumediène"]
["U. STHB","Université_des_Sciences_et_de_la_Technologie_Houari_Boumediène","Géo-Environnement","مخبر في جيولوجيا البيِئية",null,"Université des Sciences et de la Technologie Houari Boumediène"]
["U. STHB","Université_des_Sciences_et_de_la_Technologie_Houari_Boumediène","Géomorphologie Et Géorisques","الجيومورفولوجيا و الأخطار الطبيعية",null,"Université des Sciences et de la Technologie Houari Boumediène"]
["U. STHB","Université_des_Sciences_et_de_la_Technologie_Houari_Boumediène","Géophysique","مـخبرالجـيـوفـيـزيــاء",null,"Université des Sciences et de la Technologie Houari Boumediène"]
["U. STHB","Université_des_Sciences_et_de_la_Technologie_Houari_Boumediène","Hydrométallurgie Et Chimie Inorganique Moléculaire","التعدين بالمحاليل و الكيمياء اللاعضوية الجزئية",null,"Université des Sciences et de la Technologie Houari Boumediène"]
["U. STHB","Université_des_Sciences_et_de_la_Technologie_Houari_Boumediène","Informatique Fondamentale, Recherche Opérationnelle, Combinatoire Et Économétrie","مخبر لعلوم الإعلام الآلي الأساسية و البحوث العملية و التوفيقات و الإقتصاد القياسي",null,"Université des Sciences et de la Technologie Houari Boumediène"]
["U. STHB","Université_des_Sciences_et_de_la_Technologie_Houari_Boumediène","Informatique Intelligente, Mathématiques Et Applications","الإعلام الألي الذكي و الرياضيات و التطبيق",null,"Université des Sciences et de la Technologie Houari Boumediène"]
["U. STHB","Université_des_Sciences_et_de_la_Technologie_Houari_Boumediène","Ingénierie Des Systèmes Intelligents Et Communicants","مخبر هندسة الأنظمة الذكية والتواصلية",null,"Université des Sciences et de la Technologie Houari Boumediène"]
["U. STHB","Université_des_Sciences_et_de_la_Technologie_Houari_Boumediène","Instrumentation","مخبر التجهيزات الالكترونية",null,"Université des Sciences et de la Technologie Houari Boumediène"]
["U. STHB","Université_des_Sciences_et_de_la_Technologie_Houari_Boumediène","Intelligence Artificielle","الذكاء الاصطناعي",null,"Université des Sciences et de la Technologie Houari Boumediène"]
["U. STHB","Université_des_Sciences_et_de_la_Technologie_Houari_Boumediène","Matériaux Catalytiques Et Catalyse En Chimie Organique","مخبر المواد التحفيزية و التحفيز في الكيمياء العضوي",null,"Université des Sciences et de la Technologie Houari Boumediène"]
["U. STHB","Université_des_Sciences_et_de_la_Technologie_Houari_Boumediène","Matériaux Polymères","المواد المتعددة الأجزاء",null,"Université des Sciences et de la Technologie Houari Boumediène"]
["U. STHB","Université_des_Sciences_et_de_la_Technologie_Houari_Boumediène","Matériaux Semi-Conducteurs Et Oxydes Métalliques","المواد شباه الناقلة والأكاسيد المعدنية",null,"Université des Sciences et de la Technologie Houari Boumediène"]
["U. STHB","Université_des_Sciences_et_de_la_Technologie_Houari_Boumediène","Mécanique Avancée","الميكانيك المتقدمة",null,"Université des Sciences et de la Technologie Houari Boumediène"]
["U. STHB","Université_des_Sciences_et_de_la_Technologie_Houari_Boumediène","Mécanique Des Fluides Théorique Et Appliquée","مخبرميكانيك السوائل النظرية و التطبيقية",null,"Université des Sciences et de la Technologie Houari Boumediène"]
["U. STHB","Université_des_Sciences_et_de_la_Technologie_Houari_Boumediène","Mécanique Énergétique Et Systèmes De Conversion","مخبر مكانيك الطاقة و نظم التحويل",null,"Université des Sciences et de la Technologie Houari Boumediène"]
["U. STHB","Université_des_Sciences_et_de_la_Technologie_Houari_Boumediène","Métallogénie Et Magmatisme De L'Algérie","مخبر علم تكون المناجم و الكتل المعدنية في الجزائر",null,"Université des Sciences et de la Technologie Houari Boumediène"]
["U. STHB","Université_des_Sciences_et_de_la_Technologie_Houari_Boumediène","Modélisation Stochastique Et Traitement Des Données","بناء النماذج الإتفاقية و معالجة المعطيات",null,"Université des Sciences et de la Technologie Houari Boumediène"]
["U. STHB","Université_des_Sciences_et_de_la_Technologie_Houari_Boumediène","Modélisation, Vérification Et Évaluation Des Performances Des Systèmes Complexes","نمذجة، وتحقق وتقييم النظمة المركبة",null,"Université des Sciences et de la Technologie Houari Boumediène"]
["U. STHB","Université_des_Sciences_et_de_la_Technologie_Houari_Boumediène","Océanographie Biologique Et Environnement Marin","البيولوجية علوم البحار والبيئة البحرية",null,"Université des Sciences et de la Technologie Houari Boumediène"]
["U. STHB","Université_des_Sciences_et_de_la_Technologie_Houari_Boumediène","Phénomènes De Transfert","مخبر ظواهر التحويل",null,"Université des Sciences et de la Technologie Houari Boumediène"]
["U. STHB","Université_des_Sciences_et_de_la_Technologie_Houari_Boumediène","Physico-Chimie Théorique Et Chimie Informatique","الفيزياء الكيميائية النظرية و الكيمياء المعلوماتية",null,"Université des Sciences et de la Technologie Houari Boumediène"]
["U. STHB","Université_des_Sciences_et_de_la_Technologie_Houari_Boumediène","Physique Des Matériaux","مخبر فيزياء المواد",null,"Université des Sciences et de la Technologie Houari Boumediène"]
["U. STHB","Université_des_Sciences_et_de_la_Technologie_Houari_Boumediène","Physique Théorique","الفيزياء النظرية",null,"Université des Sciences et de la Technologie Houari Boumediène"]
["U. STHB","Université_des_Sciences_et_de_la_Technologie_Houari_Boumediène","Recherche Opérationnelle Et Mathématiques De La Décision","مخبر البحوث العملية و رياضيات القرار",null,"Université des Sciences et de la Technologie Houari Boumediène"]
["U. STHB","Université_des_Sciences_et_de_la_Technologie_Houari_Boumediène","Recherche Opérationnelle, Combinatoire, Informatique Théorique Et Méthodes Stochastiques","مخبر البحوث العملية والتوفيقات وعلوم الإعلام الألي العلمية والطرق العشوائية",null,"Université des Sciences et de la Technologie Houari Boumediène"]
["U. STHB","Université_des_Sciences_et_de_la_Technologie_Houari_Boumediène","Robotique, Parallélisme Et Systèmes Embarqués (Ex: Robotique Parallélisme Et Électroénergétique)","مخبر الروبوتيكية والتوازي و الأنظمة المدمجة",null,"Université des Sciences et de la Technologie Houari Boumediène"]
["U. STHB","Université_des_Sciences_et_de_la_Technologie_Houari_Boumediène","Sciences Des Matériaux","علوم المواد",null,"Université des Sciences et de la Technologie Houari Boumediène"]
["U. STHB","Université_des_Sciences_et_de_la_Technologie_Houari_Boumediène","Sciences Du Génie Des Procédés Industriels","علوم الهندسة و الأسليب الصناعية",null,"Université des Sciences et de la Technologie Houari Boumediène"]
["U. STHB","Université_des_Sciences_et_de_la_Technologie_Houari_Boumediène","Sciences Et Génie Des Matériaux","مخبر العلوم و هندسة المواد",null,"Université des Sciences et de la Technologie Houari Boumediène"]
["U. STHB","Université_des_Sciences_et_de_la_Technologie_Houari_Boumediène","Sciences Nucléaires Et Interaction - Rayonnement - Matière","العلوم النووية والتفاعلات - الإشعاعات - المواد",null,"Université des Sciences et de la Technologie Houari Boumediène"]
["U. STHB","Université_des_Sciences_et_de_la_Technologie_Houari_Boumediène","Stockage Et Valorisation Des Énergies Renouvelables","تخزين و تثمين الطاقات المتجددة",null,"Université des Sciences et de la Technologie Houari Boumediène"]
["U. STHB","Université_des_Sciences_et_de_la_Technologie_Houari_Boumediène","Synthèse Macromoléculaire Et Thioorganique Macromoléculaire","التركيب الجزئي الكلي و التيوعضوية الجزيئية الكلية",null,"Université des Sciences et de la Technologie Houari Boumediène"]
["U. STHB","Université_des_Sciences_et_de_la_Technologie_Houari_Boumediène","Systèmes Dynamiques","لأنظمة الدينامكية",null,"Université des Sciences et de la Technologie Houari Boumediène"]
["U. STHB","Université_des_Sciences_et_de_la_Technologie_Houari_Boumediène","Systèmes Électriques Et Industriels","الأنظمة الكهربائية و الصناعية",null,"Université des Sciences et de la Technologie Houari Boumediène"]
["U. STHB","Université_des_Sciences_et_de_la_Technologie_Houari_Boumediène","Systèmes Informatiques","مخبر أنظمة الإعلام الآلي",null,"Université des Sciences et de la Technologie Houari Boumediène"]
["U. STHB","Université_des_Sciences_et_de_la_Technologie_Houari_Boumediène","Technologie Des Matériaux","مخبر تكنولوجية المواد",null,"Université des Sciences et de la Technologie Houari Boumediène"]
["U. STHB","Université_des_Sciences_et_de_la_Technologie_Houari_Boumediène","Thermodynamique Et Modélisation Moléculaire","الحركية الحرارية و تشكيل النماذج الجزيئية",null,"Université des Sciences et de la Technologie Houari Boumediène"]
["U. STHB","Université_des_Sciences_et_de_la_Technologie_Houari_Boumediène","Thermodynamique Et Systèmes Énergétiques","مخبر الحركية الحرارية و الأنظمة الطاقوية",null,"Université des Sciences et de la Technologie Houari Boumediène"]
["U. STHB","Université_des_Sciences_et_de_la_Technologie_Houari_Boumediène","Traitement D'Images Et Rayonnement","معالجة الصور والإشعاعات",null,"Université des Sciences et de la Technologie Houari Boumediène"]
["U. STHB","Université_des_Sciences_et_de_la_Technologie_Houari_Boumediène","Transports Polyphasiques Et Milieux Poreux","مخبر النواقل المتعددة الأطوار و الأوساط المسامية",null,"Université des Sciences et de la Technologie Houari Boumediène"]
["U. STHB","Université_des_Sciences_et_de_la_Technologie_Houari_Boumediène","Villes, Régions Et Gouvernance Territoriale","مـدن أقــالـيم والـحــوكـمة الـمـجالـية",null,"Université des Sciences et de la Technologie Houari Boumediène"]
["U. STHB","Université_des_Sciences_et_de_la_Technologie_Houari_Boumediène","Zones Arides","مخبر البحث في المناطق الجافة",null,"Université des Sciences et de la Technologie Houari Boumediène"]
["U. Sc. Islamiques Constantine","Université_des_Sciences_Islamiques_Emir_Abdelkader_de_Constantine","Etudes Coraniques Et Sunna El Nabaouia","البحث في الدراسات القرآنية والسنة النبوية",null,"Université des Sciences Islamiques Emir Abdelkader de Constantine"]
["U. Sc. Islamiques Constantine","Université_des_Sciences_Islamiques_Emir_Abdelkader_de_Constantine","Études Linguistiques Et Coraniques","الدراسات اللغوية والقرآنية",null,"Université des Sciences Islamiques Emir Abdelkader de Constantine"]
["U. Sc. Islamiques Constantine","Université_des_Sciences_Islamiques_Emir_Abdelkader_de_Constantine","Etudes Littéraires Et Humaines","الدراسات الأدبية والإنسانية",null,"Université des Sciences Islamiques Emir Abdelkader de Constantine"]
["U. Sc. Islamiques Constantine","Université_des_Sciences_Islamiques_Emir_Abdelkader_de_Constantine","Etudes Prédicatives Et Communicatives","الدراسات الدعوية والإتصالية",null,"Université des Sciences Islamiques Emir Abdelkader de Constantine"]
["U. Sc. Islamiques Constantine","Université_des_Sciences_Islamiques_Emir_Abdelkader_de_Constantine","Etudes Théologiques","الدراسات الشرعية",null,"Université des Sciences Islamiques Emir Abdelkader de Constantine"]
["U. Sc. Islamiques Constantine","Université_des_Sciences_Islamiques_Emir_Abdelkader_de_Constantine","Etudes Théologiques Et Comparaison Des Religions","لدراسات العقدية و مقارنة الأديان",null,"Université des Sciences Islamiques Emir Abdelkader de Constantine"]
["U. Skikda","Université_du_20_Août_1955_de_Skikda","Anticorrosion Matériaux-Environnement Et Structures","مخبر ضد التآكل ـ مواد و محيط و منشات",null,"Université du 20 Août 1955 de Skikda"]
["U. Skikda","Université_du_20_Août_1955_de_Skikda","Automatique De Skikda","الآلية لسكيكدة",null,"Université du 20 Août 1955 de Skikda"]
["U. Skikda","Université_du_20_Août_1955_de_Skikda","Economie, Finances Et Management","اقتصاد، مالية، إدارة الأعمال",null,"Université du 20 Août 1955 de Skikda"]
["U. Skikda","Université_du_20_Août_1955_de_Skikda","Electronique De Skikda","مخبر البحث في الإلكترونيك سكيكدة",null,"Université du 20 Août 1955 de Skikda"]
["U. Skikda","Université_du_20_Août_1955_de_Skikda","Electrotechnique De Skikda","مخبر الكهروتقنية لسكيكدة",null,"Université du 20 Août 1955 de Skikda"]
["U. Skikda","Université_du_20_Août_1955_de_Skikda","Génie Chimique Et Environnement De Skikda (Ex: Mathématiques Appliquées Et Calcul Scientifique)","مخبر الهندسة الكيميائية والبيئة في سكيكدة",null,"Université du 20 Août 1955 de Skikda"]
["U. Skikda","Université_du_20_Août_1955_de_Skikda","Génie Mécanique Et Matériaux","مخبر الهندسة الميكانيكية والمواد",null,"Université du 20 Août 1955 de Skikda"]
["U. Skikda","Université_du_20_Août_1955_de_Skikda","Informatique Et Communication","الإعلام الآلي والاتصال من جامعة سكيكدة",null,"Université du 20 Août 1955 de Skikda"]
["U. Skikda","Université_du_20_Août_1955_de_Skikda","Interactions, Biodiversité, Écosystèmes Et Biotechnologie","التفاعلات, التنوع البيولوجي, النظم البيئية و البيوتكنولوجيا",null,"Université du 20 Août 1955 de Skikda"]
["U. Skikda","Université_du_20_Août_1955_de_Skikda","Le Patrimoine Littéraire Algérien Officiel Et Marginal","التراث الأدبي الجزائري \"الرسمي والهامشي",null,"Université du 20 Août 1955 de Skikda"]
["U. Skikda","Université_du_20_Août_1955_de_Skikda","Matériaux, Géotechnique, Habitat Et Urbanisme","مخبر المواد،الجيوتقني،السكن والعمران",null,"Université du 20 Août 1955 de Skikda"]
["U. Skikda","Université_du_20_Août_1955_de_Skikda","Mathématiques Appliquées Et D'Histoire Et Didactique Des Mathématiques","مخبر الرياضيات التطبيقية و تاريخ و تعليمية الرياضيات",null,"Université du 20 Août 1955 de Skikda"]
["U. Skikda","Université_du_20_Août_1955_de_Skikda","Optimisation De La Production Agricole En Zone Subhumide","مخبر تحسين مردودية الإنتاج الزراعي في المنطقة المناخية الشبه رطبة",null,"Université du 20 Août 1955 de Skikda"]
["U. Skikda","Université_du_20_Août_1955_de_Skikda","Physico-Chimie Des Surfaces Et Interfaces","مخبر البحث في فيزياء و كيمياء السطوح و السطوح البينية",null,"Université du 20 Août 1955 de Skikda"]
["U. Skikda","Université_du_20_Août_1955_de_Skikda","Recherches Et Études Sociales","مخبر البحوث و الدراسات الإجتماعية",null,"Université du 20 Août 1955 de Skikda"]
["U. Skikda","Université_du_20_Août_1955_de_Skikda","Transport Maritime Et Ports En Algérie","مخبر النقل البحري و الموانيء في الجزائر",null,"Université du 20 Août 1955 de Skikda"]

{"sheet":"Bilan d'activités du labo","index":1,"n_rows":232,"n_cols":103,"rows_kept":232,"cut":false,"hidden":false,"merged":[[191,8,191,20],[192,8,192,20],[183,8,183,20],[194,2,194,19],[212,2,212,19],[206,8,206,20],[229,20,229,21],[227,4,227,19],[127,39,127,40],[138,33,138,37],[118,20,118,26],[132,34,132,37],[149,5,149,6],[150,5,150,6],[167,33,167,37],[163,24,163,26],[231,20,231,21],[205,8,205,20],[187,5,187,6],[188,5,188,6],[196,5,196,6],[197,5,197,6],[205,5,205,6],[206,5,206,6],[183,5,183,6],[190,5,190,6],[191,5,191,6],[192,5,192,6],[199,5,199,6],[200,5,200,6],[201,5,201,6],[185,2,185,19],[194,39,194,40],[196,8,196,20],[196,33,196,37],[197,8,197,20],[197,33,197,37],[205,33,205,37],[91,35,91,37],[183,34,183,37],[190,34,190,37],[165,39,165,40],[185,39,185,40],[203,39,203,40],[174,29,174,40],[187,24,187,26],[190,24,190,26],[98,39,98,40],[107,39,107,40],[96,35,96,37],[168,28,168,31],[170,24,170,26],[170,28,170,31],[171,24,171,26],[171,28,171,31],[172,24,172,26],[206,33,206,37],[214,39,214,40],[208,28,208,31],[209,24,209,26],[209,28,209,31],[208,8,208,20],[219,24,219,26],[209,5,209,6],[210,5,210,6],[208,5,208,6],[206,28,206,31],[209,8,209,20],[210,8,210,20],[208,34,208,37],[209,34,209,37],[210,34,210,37],[216,24,216,26],[219,28,219,29],[216,31,216,33],[219,31,219,33],[217,24,217,26],[208,24,208,26],[217,28,217,29],[165,2,165,17],[147,20,147,38],[156,20,156,38],[167,5,167,6],[165,20,165,38],[161,8,161,16],[161,18,161,22],[162,8,162,16],[162,18,162,22],[163,8,163,16],[158,5,158,6],[158,18,158,22],[158,33,158,37],[162,24,162,26],[162,28,162,31],[150,28,150,31],[159,5,159,6],[163,28,163,31],[159,33,159,37],[163,33,163,37],[142,5,142,8],[142,10,142,12],[149,24,149,26],[149,28,149,31],[150,24,150,26],[150,18,150,22],[143,24,143,29],[42,29,42,40],[89,39,89,40],[94,35,94,37],[55,28,55,29],[136,2,136,17],[138,14,138,18],[96,5,96,12],[95,14,95,18],[103,14,103,18],[113,5,113,12],[113,20,113,26],[107,2,107,17],[68,5,68,12],[86,14,86,18],[89,2,89,17],[87,14,87,18],[105,14,105,18],[109,14,109,18],[87,5,87,12],[86,5,86,12],[132,14,132,18],[113,14,113,18],[95,20,95,26],[100,14,100,18],[47,35,47,37],[46,35,46,37],[121,35,121,37],[76,35,76,37],[77,35,77,37],[69,35,69,37],[110,35,110,37],[71,39,71,40],[73,35,73,37],[92,35,92,37],[116,39,116,40],[118,35,118,37],[119,35,119,37],[80,39,80,40],[153,33,153,37],[147,39,147,40],[156,39,156,40],[139,33,139,37],[150,33,150,37],[51,35,51,37],[58,35,58,37],[49,35,49,37],[50,35,50,37],[125,20,125,40],[110,20,110,26],[112,20,112,26],[91,20,91,26],[92,20,92,26],[91,28,91,29],[92,28,92,29],[100,20,100,26],[101,20,101,26],[127,20,127,38],[96,20,96,26],[123,20,123,26],[138,24,138,29],[139,24,139,29],[56,28,56,29],[46,28,46,29],[47,28,47,29],[51,5,51,12],[55,5,55,12],[55,20,55,26],[56,5,56,12],[56,20,56,26],[49,20,49,26],[50,20,50,26],[51,20,51,26],[49,14,49,18],[50,14,50,18],[50,5,50,12],[51,14,51,18],[55,14,55,18],[62,39,62,40],[64,35,64,37],[55,35,55,37],[56,35,56,37],[44,39,44,40],[44,29,44,38],[53,19,53,38],[62,19,62,38],[74,14,74,18],[73,14,73,18],[73,28,73,29],[74,28,74,29],[74,35,74,37],[74,20,74,26],[53,39,53,40],[60,20,60,26],[64,20,64,26],[65,35,65,37],[67,35,67,37],[68,35,68,37],[68,20,68,26],[69,14,69,18],[60,35,60,37],[44,2,44,16],[149,33,149,37],[87,35,87,37],[94,20,94,26],[107,19,107,38],[89,20,89,38],[101,35,101,37],[98,19,98,38],[87,20,87,26],[100,35,100,37],[95,35,95,37],[149,18,149,22],[145,29,145,40],[103,35,103,37],[113,35,113,37],[103,20,103,26],[136,39,136,40],[96,14,96,18],[101,14,101,18],[91,14,91,18],[94,14,94,18],[104,20,104,26],[141,14,141,18],[118,14,118,18],[119,14,119,18],[71,2,71,17],[86,20,86,26],[86,35,86,37],[85,20,85,26],[85,5,85,12],[141,24,141,29],[141,34,141,37],[142,24,142,29],[142,34,142,37],[129,33,129,37],[130,33,130,37],[123,35,123,37],[91,5,91,12],[92,5,92,12],[101,5,101,12],[104,5,104,12],[105,5,105,12],[121,14,121,18],[122,14,122,18],[123,14,123,18],[129,14,129,18],[119,20,119,26],[121,20,121,26],[122,20,122,26],[112,35,112,37],[109,35,109,37],[104,35,104,37],[105,35,105,37],[25,3,25,6],[27,3,27,6],[29,3,29,6],[31,2,31,16],[27,20,27,31],[110,5,110,12],[112,5,112,12],[77,20,77,26],[78,35,78,37],[85,35,85,37],[85,14,85,18],[49,5,49,12],[53,2,53,17],[67,14,67,18],[46,5,46,12],[47,5,47,12],[47,20,47,26],[46,20,46,26],[82,28,82,29],[83,28,83,29],[101,28,101,29],[109,28,109,29],[110,28,110,29],[105,20,105,26],[109,5,109,12],[109,20,109,26],[104,14,104,18],[125,2,125,19],[110,14,110,18],[112,14,112,18],[58,14,58,18],[56,14,56,18],[78,5,78,12],[67,5,67,12],[67,20,67,26],[58,5,58,12],[58,20,58,26],[134,24,134,29],[132,10,132,12],[133,14,133,18],[134,14,134,18],[118,5,118,12],[119,5,119,12],[121,5,121,12],[122,5,122,12],[123,5,123,12],[129,5,129,8],[127,2,127,17],[130,5,130,8],[103,5,103,12],[95,5,95,12],[100,5,100,12],[98,2,98,17],[100,28,100,29],[188,28,188,31],[190,8,190,20],[176,2,176,18],[182,5,182,6],[188,24,188,26],[187,8,187,20],[182,8,182,20],[187,33,187,37],[188,8,188,20],[178,5,178,6],[179,5,179,6],[181,5,181,6],[201,24,201,26],[201,28,201,31],[197,28,197,31],[196,28,196,31],[194,20,194,38],[199,8,199,20],[200,8,200,20],[201,8,201,20],[176,39,176,40],[178,28,178,31],[179,28,179,31],[181,34,181,37],[182,34,182,37],[176,19,176,38],[179,24,179,26],[190,28,190,31],[185,20,185,38],[181,28,181,31],[182,28,182,31],[183,28,183,31],[181,24,181,26],[182,24,182,26],[183,24,183,26],[187,28,187,31],[167,8,167,16],[167,18,167,22],[168,8,168,16],[168,18,168,22],[172,33,172,37],[168,33,168,37],[170,33,170,37],[171,33,171,37],[178,33,178,37],[174,2,174,19],[172,8,172,16],[172,18,172,22],[178,8,178,20],[178,24,178,26],[170,8,170,16],[170,18,170,22],[171,8,171,16],[172,28,172,31],[171,18,171,22],[168,24,168,26],[167,28,167,31],[114,35,114,37],[114,5,114,12],[114,20,114,26],[129,24,129,29],[130,24,130,29],[132,24,132,29],[133,24,133,29],[122,35,122,37],[129,10,129,12],[130,10,130,12],[130,14,130,18],[114,14,114,18],[133,34,133,37],[133,5,133,8],[118,28,118,29],[119,28,119,29],[134,34,134,37],[133,10,133,12],[158,8,158,16],[147,2,147,17],[154,8,154,16],[162,33,162,37],[167,24,167,26],[181,8,181,20],[116,2,116,17],[159,8,159,16],[159,18,159,22],[139,14,139,18],[136,20,136,38],[134,10,134,12],[132,5,132,8],[142,14,142,18],[143,14,143,18],[145,2,145,19],[139,5,139,8],[152,18,152,22],[153,18,153,22],[154,18,154,22],[116,19,116,38],[139,10,139,12],[168,5,168,6],[134,5,134,8],[141,5,141,8],[231,22,231,38],[230,22,230,38],[230,4,230,19],[229,22,229,38],[229,4,229,19],[228,22,228,38],[227,22,227,38],[203,2,203,19],[203,20,203,38],[214,20,214,38],[214,2,214,19],[220,10,220,22],[221,10,221,22],[217,31,217,33],[205,24,205,26],[206,24,206,26],[205,28,205,31],[231,4,231,19],[230,20,230,21],[220,31,220,33],[221,31,221,33],[227,20,227,21],[221,5,221,8],[212,29,212,40],[228,4,228,19],[219,10,219,22],[219,5,219,8],[217,10,217,22],[216,5,216,8],[217,5,217,8],[216,10,216,22],[228,20,228,21],[223,3,224,8],[220,5,220,8],[223,33,224,39],[216,35,216,37],[217,35,217,37],[219,35,219,37],[220,35,220,37],[221,35,221,37],[220,24,220,26],[220,28,220,29],[163,18,163,22],[216,28,216,29],[210,24,210,26],[210,28,210,31],[221,24,221,26],[221,28,221,29],[200,34,200,37],[201,34,201,37],[188,33,188,37],[197,24,197,26],[199,24,199,26],[199,28,199,31],[192,24,192,26],[192,28,192,31],[196,24,196,26],[192,34,192,37],[199,34,199,37],[191,34,191,37],[191,24,191,26],[191,28,191,31],[179,33,179,37],[179,8,179,20],[200,24,200,26],[200,28,200,31],[161,24,161,26],[161,28,161,31],[161,33,161,37],[154,33,154,37],[149,8,149,16],[150,8,150,16],[141,10,141,12],[158,28,158,31],[159,24,159,26],[159,28,159,31],[158,24,158,26],[156,2,156,17],[152,33,152,37],[143,34,143,37],[153,24,153,26],[154,24,154,26],[152,24,152,26],[152,28,152,31],[153,28,153,31],[154,28,154,31],[152,8,152,16],[153,8,153,16],[143,5,143,8],[143,10,143,12],[59,35,59,37],[69,5,69,12],[74,5,74,12],[83,35,83,37],[78,20,78,26],[82,5,82,12],[82,20,82,26],[83,5,83,12],[83,20,83,26],[62,2,62,17],[69,20,69,26],[80,19,80,38],[76,5,76,12],[82,35,82,37],[73,5,73,12],[64,28,64,29],[65,28,65,29],[64,14,64,18],[65,14,65,18],[71,19,71,38],[82,14,82,18],[77,14,77,18],[78,14,78,18],[73,20,73,26],[138,5,138,8],[138,10,138,12],[92,14,92,18],[94,5,94,12],[38,5,38,26],[39,5,39,26],[68,14,68,18],[65,5,65,12],[65,20,65,26],[46,14,46,18],[47,14,47,18],[41,2,41,16],[80,2,80,17],[76,14,76,18],[83,14,83,18],[76,20,76,26],[77,5,77,12],[42,2,42,16],[59,20,59,26],[59,14,59,18],[59,5,59,12],[60,5,60,12],[64,5,64,12],[60,14,60,18],[37,28,37,31],[38,28,38,31],[16,8,17,31],[19,8,19,31],[21,8,21,31],[25,8,25,31],[23,8,23,31],[31,19,31,40],[39,33,39,39],[36,33,36,39],[39,28,39,31],[33,5,33,26],[34,5,34,26],[36,5,36,26],[37,33,37,39],[27,8,27,18],[29,33,29,39],[19,3,21,6],[23,3,23,6],[29,20,29,31],[38,33,38,39],[41,29,41,40],[16,3,17,6],[6,12,7,28],[29,8,29,18],[33,28,34,31],[36,28,36,31],[9,1,10,10],[9,14,10,16],[9,22,10,28],[9,18,10,20],[37,5,37,26],[14,19,14,40],[33,33,34,39],[0,35,7,41],[25,33,25,39],[27,33,27,39],[16,33,17,39],[19,33,21,39],[23,33,23,39],[2,14,3,26],[4,14,5,26],[9,33,10,41],[0,14,1,26],[14,2,14,16]]}
[null,null,null,null,null,null,null,null,null,null,null,null,null,null,"وزارة التعليــم العالــي و البحــث العلمــي",null,null,null,null,null,null,null,null,null,null,null,null,null,null,null,null,null,null,null,null,"Logo du laboratoire"]
[]
[null,null,null,null,null,null,null,null,null,null,null,null,null,null,"Ministère de l’Enseignement Supérieur et de la Recherche Scientifique"]
[]
[null,null,null,null,null,null,null,null,null,null,null,null,null,null,"المديريـة العامـة للبحـث العلمـي و التطويــر التكنولوجــي"]
[]
[null,null,null,null,null,null,null,null,null,null,null,null,"Direction Générale de la Recherche Scientifique et du Développement Technologique"]
[]
[]
[null,"Bilan d’Activités du Laboratoire",null,null,null,null,null,null,null,null,null,null,null,null,"Code du laboratoire ",null,null,null,null,null,null,null,"رمز المخبر",null,null,null,null,null,null,null,null,null,null,"حصيلة نشاطات المخبر"]
[]
[]
[null,null,"A ce bilan seront adjoints ceux des équipes lors de l'évaluation."]
[]
[null,null,"Identification du Laboratoire",null,null,null,null,null,null,null,null,null,null,null,null,null,null,null,null,"التعريف بالمخبر"]
[]
[null,null,null,"   Etablissement de rattachement",null,null,null,null,null,null,null,null,null,null,null,null,null,null,null,null,null,null,null,null,null,null,null,null,null,null,null,null,null,"   مؤسسة الإلحاق"]
[null,null,null,null,null,null,null,null,null,null,null,null,null,null,null,null,null,null,null,null,null,null,null,null,null,null,null,null,null,null,null,null,null,null,null,null,null,null,null,null,null,null,null,null,{"$f":"IF(I17=\"\",\"listevide\",SUBSTITUTE(I17,\" \",\"_\"))","v":"listevide"}]
[]
[null,null,null,"   Intitulé du Laboratoire ",null,null,null,null,null,null,null,null,null,null,null,null,null,null,null,null,null,null,null,null,null,null,null,null,null,null,null,null,null,"   اسم المخبر"]
[]
[]
[]
[null,null,null,"   Acronyme du Laboratoire",null,null,null,null,null,null,null,null,null,null,null,null,null,null,null,null,null,null,null,null,null,null,null,null,null,null,null,null,null,"   الاسم المختزل للمخبر"]
[]
[null,null,null,"   Site Web ou URL",null,null,null,null,null,null,null,null,null,null,null,null,null,null,null,null,null,null,null,null,null,null,null,null,null,null,null,null,null,"   العنوان الإلكتروني"]
[]
[null,null,null,"   Grand Domaine",null,null,null,null,null,null,null,null,null,null,null,null,null,null,null,null,null,null,null,null,null,null,null,null,null,null,null,null,null,"   الميدان الأساسي"]
[]
[null,null,null,"   Nom et Prénom du Directeur",null,null,null,null,null,null,null,null,null,null,null,null,null,null,null,null,null,null,null,null,null,null,null,null,null,null,null,null,null,"   لقب و اسم المدير"]
[]
[null,null,"Equipes de recherche",null,null,null,null,null,null,null,null,null,null,null,null,null,null,null,null,"فرق البحث"]
[]
[null,null,null,"الفرق",null," اسم الفرقة ",null,null,null,null,null,null,null,null,null,null,null,null,null,null,null,null,null,null,null,null,null,null,"NOM et  Prénom du chef d'équipe",null,null,null,null,"لقب و اسم مدير الفرقة "]
[null,null,null,"Equipe",null,"     Intitulé de l'équipe"]
[]
[null,null,null,1,null,null,null,null,null,null,null,null,null,null,null,null,null,null,null,null,null,null,null,null,null,null,null,"  ",null,null,null,null,"     "]
[null,null,null,2,null,null,null,null,null,null,null,null,null,null,null,null,null,null,null,null,null,null,null,null,null,null,null,"  ",null,null,null,null,"     "]
[null,null,null,3,null,null,null,null,null,null,null,null,null,null,null,null,null,null,null,null,null,null,null,null,null,null,null,"  ",null,null,null,null,"     "]
[null,null,null,4,null,null,null,null,null,null,null,null,null,null,null,null,null,null,null,null,null,null,null,null,null,null,null,"  ",null,null,null,null,"     ",null,null,null,null,null,null,null,null,null,null,1]
[]
[null,null,"1. Organisation de manifestations scientifiques",null,null,null,null,null,null,null,null,null,null,null,null,null,null,null,null,null,null,null,null,null,null,null,null,null,null,"1. تنظيم التظاهرات العلمية"]
[null,null,"a) Conférence scientifique ou workshop",null,null,null,null,null,null,null,null,null,null,null,null,null,null,null,null,null,null,null,null,null,null,null,null,null,null,"أ) محاضرة علمية أو درس في ورشة عمل"]
[]
[null,null,"Exceptionnel : Congrès Mondial",null,null,null,null,null,null,null,null,null,null,null,null,null,null,null,"Exp",null,null,null,null,null,null,null,null,null,null,"استثنائي : المؤتمر العالمي مع الأعمال المنشورة",null,null,null,null,null,null,null,null,null,"500 pts/نقطة"]
[null,null,"                                                      ",null,null,null,null,null,null,null,null,null,null,null,null,null,null,null,null,null,null,null,null,null,null,null,null,null,null,null,null,null,null," "]
[null,null,null,"رقم",null,"إسم المحاضرة",null,null,null,null,null,null,null,null,"العنوان الإلكتروني",null,null,null,null,null,"التعريف بالشركاء",null,null,null,null,null,null,null,"الفترة (من - إلي)",null,null,"المكان",null,"# الشركاء المنظمون",null,"حصة التعاون",null,null,null,"القيمة"]
[null,null,null,"N°",null,"Nom de la Conférence",null,null,null,null,null,null,null,null,"URL",null,null,null,null,null,"Identifier les partenaires",null,null,null,null,null,null,null,"Période (Début_Fin)",null,null,"Lieu ",null,"# Partenaire",null,"Part de collab.",null,null,null,"Valeur"]
[]
[null,null,null,1,"  ",null,null,null,null,null,null,null,null,"  ",null,null,null,null,null,"  ",null,null,null,null,null,null,null,"  ",null,null,"  ",null,"   ",null,null,{"$f":"IF(AH50=\"\",\"\",100%/AH50)","v":""},null,null,null,{"$f":"IF(AJ50=\"\",\"\",AJ50*500)","v":""},null,null,null,null,{"$f":"IF(OR(AN50=\"Valeur\",AN50=\"القيمة\"),0,IF(ISERROR(SEARCH(\"/\",AN50)),AN50,0))","v":""}]
[null,null,null,2,"  ",null,null,null,null,null,null,null,null,"  ",null,null,null,null,null,"  ",null,null,null,null,null,null,null,"  ",null,null,"  ",null,"   ",null,null,{"$f":"IF(AH51=\"\",\"\",100%/AH51)","v":""},null,null,null,{"$f":"IF(AJ51=\"\",\"\",AJ51*500)","v":""},null,null,null,null,{"$f":"IF(OR(AN51=\"Valeur\",AN51=\"القيمة\"),0,IF(ISERROR(SEARCH(\"/\",AN51)),AN51,0))","v":""}]
[null,null,null,3,"  ",null,null,null,null,null,null,null,null,"  ",null,null,null,null,null,"  ",null,null,null,null,null,null,null,"  ",null,null,"  ",null,"   ",null,null,{"$f":"IF(AH52=\"\",\"\",100%/AH52)","v":""},null,null,null,"",null,null,null,null,"",null,null,null,null,null,null,null,1]
[null,null,null,null,null,null,null,null,null,null,null,null,null,null,null,null,null,null,null,null,null,null,null,null,null,null,null,null,null,null,null,null,null,null,null,null,null,null,null,null,null,null,null,null,0]
[null,null,"Conférence Mobile (2 continents) avec actes dans le WOS",null,null,null,null,null,null,null,null,null,null,null,null,null,null,null,"A+","محاضرة متنقلة (قارتين) مع الأعمال المنشورة ضمن WOS",null,null,null,null,null,null,null,null,null,null,null,null,null,null,null,null,null,null,null,"200 pts/نقطة","200 pts/ نقطة",null,null,null,0]
[null,null,null,null,null,null,null,null,null,null,null,null,null,null,null,null,null,null,null,null,null,null,null,null,null,null,null,null,null,null,null,null,null,null,null,null,null,null,null,null,null,null,null,null,0]
[null,null,null,"رقم",null,"إسم المحاضرة",null,null,null,null,null,null,null,null,"العنوان الإلكتروني",null,null,null,null,null,"التعريف بالشركاء",null,null,null,null,null,null,null,"الفترة (من - إلي)",null,null,"المكان",null,"# الشركاء المنظمون",null,"حصة التعاون",null,null,null,"القيمة",null,null,null,null,0]
[null,null,null,"N°",null,"Nom de la Conférence",null,null,null,null,null,null,null,null,"URL",null,null,null,null,null,"Identifier les partenaires",null,null,null,null,null,null,null,"Période (Début_Fin)",null,null,"Lieu ",null,"# Partenaire",null,"Part de collab.",null,null,null,"Valeur",null,null,null,null,0]
[null,null,null,null,null,null,null,null,null,null,null,null,null,null,null,null,null,null,null,null,null,null,null,null,null,null,null,null,null,null,null,null,null,null,null,null,null,null,null,null,null,null,null,null,0]
[null,null,null,1,"  ",null,null,null,null,null,null,null,null,"  ",null,null,null,null,null,"  ",null,null,null,null,null,null,null,"  ",null,null,"  ",null,"   ",null,null,{"$f":"IF(AH59=\"\",\"\",100%/AH59)","v":""},null,null,null,{"$f":"IF(AJ59=\"\",\"\",AJ59*200)","v":""},null,null,null,null,""]
[null,null,null,2,"  ",null,null,null,null,null,null,null,null,"  ",null,null,null,null,null,"  ",null,null,null,null,null,null,null,"  ",null,null,"  ",null,"   ",null,null,{"$f":"IF(AH60=\"\",\"\",100%/AH60)","v":""},null,null,null,{"$f":"IF(AJ60=\"\",\"\",AJ60*200)","v":""},null,null,null,null,""]
[null,null,null,3,"  ",null,null,null,null,null,null,null,null,"  ",null,null,null,null,null,"  ",null,null,null,null,null,null,null,"  ",null,null,"  ",null,"   ",null,null,{"$f":"IF(AH61=\"\",\"\",100%/AH61)","v":""},null,null,null,"",null,null,null,null,"",null,null,null,null,null,null,null,null,1]
[null,null,null,null,null,null,null,null,null,null,null,null,null,null,null,null,null,null,null,null,null,null,null,null,null,null,null,null,null,null,null,null,null,null,null,null,null,null,null,null,null,null,null,null,0]
[null,null,"Conférence Mobile (2 continents) avec actes",null,null,null,null,null,null,null,null,null,null,null,null,null,null,null,"A ","محاضرة متنقلة (قارتين) مع الأعمال المنشورة",null,null,null,null,null,null,null,null,null,null,null,null,null,null,null,null,null,null,null,"150 pts/نقطة","150 pts/ نقطة",null,null,null,0,null,null,null,null,null,null,null,null,null,null,null,null,null,null,null,null,null,null,null,null,null,null,null,null,null,null,null,null,null,null,null,null,null,null,null,null,null,null,null,null,null,null,null,null,null,null,null,null,null,null,null,null,null,null,null,null,null,"xxxx"]
[null,null,null,null,null,null,null,null,null,null,null,null,null,null,null,null,null,null,null,null,null,null,null,null,null,null,null,null,null,null,null,null,null,null,null,null,null,null,null,null,null,null,null,null,0]
[null,null,null,"رقم",null,"إسم المحاضرة",null,null,null,null,null,null,null,null,"العنوان الإلكتروني",null,null,null,null,null,"التعريف بالشركاء",null,null,null,null,null,null,null,"الفترة (من - إلي)",null,null,"المكان",null,"# الشركاء المنظمون",null,"حصة التعاون",null,null,null,"القيمة",null,null,null,null,0]
[null,null,null,"N°",null,"Nom de la Conférence",null,null,null,null,null,null,null,null,"URL",null,null,null,null,null,"Identifier les partenaires",null,null,null,null,null,null,null,"Période (Début_Fin)",null,null,"Lieu ",null,"# Partenaire",null,"Part de collab.",null,null,null,"Valeur",null,null,null,null,0]
[null,null,null,null,null,null,null,null,null,null,null,null,null,null,null,null,null,null,null,null,null,null,null,null,null,null,null,null,null,null,null,null,null,null,null,null,null,null,null,null,null,null,null,null,0]
[null,null,null,1,"  ",null,null,null,null,null,null,null,null,"  ",null,null,null,null,null,"  ",null,null,null,null,null,null,null,"  ",null,null,"  ",null,"   ",null,null,{"$f":"IF(AH68=\"\",\"\",100%/AH68)","v":""},null,null,null,{"$f":"IF(AJ68=\"\",\"\",AJ68*150)","v":""},null,null,null,null,""]
[null,null,null,2,"  ",null,null,null,null,null,null,null,null,"  ",null,null,null,null,null,"  ",null,null,null,null,null,null,null,"  ",null,null,"  ",null,"   ",null,null,{"$f":"IF(AH69=\"\",\"\",100%/AH69)","v":""},null,null,null,{"$f":"IF(AJ69=\"\",\"\",AJ69*150)","v":""},null,null,null,null,""]
[null,null,null,3,"  ",null,null,null,null,null,null,null,null,"  ",null,null,null,null,null,"  ",null,null,null,null,null,null,null,"  ",null,null,"  ",null,"   ",null,null,{"$f":"IF(AH70=\"\",\"\",100%/AH70)","v":""},null,null,null,{"$f":"IF(AJ70=\"\",\"\",AJ70*150)","v":""},null,null,null,null,"",null,null,null,null,null,null,null,null,null,1]
[null,null,null,null,null,null,null,null,null,null,null,null,null,null,null,null,null,null,null,null,null,null,null,null,null,null,null,null,null,null,null,null,null,null,null,null,null,null,null,null,null,null,null,null,0]
[null,null,"Conférence Mobile continentale avec actes dans le WOS",null,null,null,null,null,null,null,null,null,null,null,null,null,null,null,"B+","محاضرة متنقلة قارية مع الأعمال المنشورة ضمن WOS",null,null,null,null,null,null,null,null,null,null,null,null,null,null,null,null,null,null,null,"160 pts/نقطة","200 pts/ نقطة",null,null,null,0,null,null,null,null,null,null,null,null,null,null,null,null,null,null,null,null,null,null,null,null,null,null,null,null,null,null,null,null,null,null,null,null,null,null,null,null,null,null,null,null,null,null,null,null,null,null,null,null,null,null,null,null,null,null,null,null,null,"xxx"]
[null,null,null,null,null,null,null,null,null,null,null,null,null,null,null,null,null,null,null,null,null,null,null,null,null,null,null,null,null,null,null,null,null,null,null,null,null,null,null,null,null,null,null,null,0]
[null,null,null,"رقم",null,"إسم المحاضرة",null,null,null,null,null,null,null,null,"العنوان الإلكتروني",null,null,null,null,null,"التعريف بالشركاء",null,null,null,null,null,null,null,"الفترة (من - إلي)",null,null,"المكان",null,"# الشركاء المنظمون",null,"حصة التعاون",null,null,null,"القيمة",null,null,null,null,0]
[null,null,null,"N°",null,"Nom de la Conférence",null,null,null,null,null,null,null,null,"URL",null,null,null,null,null,"Identifier les partenaires",null,null,null,null,null,null,null,"Période (Début_Fin)",null,null,"Lieu ",null,"# Partenaire",null,"Part de collab.",null,null,null,"Valeur",null,null,null,null,0]
[null,null,null,null,null,null,null,null,null,null,null,null,null,null,null,null,null,null,null,null,null,null,null,null,null,null,null,null,null,null,null,null,null,null,null,null,null,null,null,null,null,null,null,null,0]
[null,null,null,1,"  ",null,null,null,null,null,null,null,null,"  ",null,null,null,null,null,"  ",null,null,null,null,null,null,null,"  ",null,null,"  ",null,"   ",null,null,{"$f":"IF(AH77=\"\",\"\",100%/AH77)","v":""},null,null,null,{"$f":"IF(AJ77=\"\",\"\",AJ77*160)","v":""},null,null,null,null,""]
[null,null,null,2,"  ",null,null,null,null,null,null,null,null,"  ",null,null,null,null,null,"  ",null,null,null,null,null,null,null,"  ",null,null,"  ",null,"   ",null,null,{"$f":"IF(AH78=\"\",\"\",100%/AH78)","v":""},null,null,null,{"$f":"IF(AJ78=\"\",\"\",AJ78*160)","v":""},null,null,null,null,""]
[null,null,null,3,"  ",null,null,null,null,null,null,null,null,"  ",null,null,null,null,null,"  ",null,null,null,null,null,null,null,"  ",null,null,"  ",null,"   ",null,null,{"$f":"IF(AH79=\"\",\"\",100%/AH79)","v":""},null,null,null,"",null,null,null,null,"",null,null,null,null,null,null,null,null,null,null,1]
[null,null,null,null,null,null,null,null,null,null,null,null,null,null,null,null,null,null,null,null,null,null,null,null,null,null,null,null,null,null,null,null,null,null,null,null,null,null,null,null,null,null,null,null,0]
[null,null,"Conférence Mobile continentale avec actes",null,null,null,null,null,null,null,null,null,null,null,null,null,null,null,"B","محاضرة متنقلة قارية مع الأعمال المنشورة",null,null,null,null,null,null,null,null,null,null,null,null,null,null,null,null,null,null,null,"120 pts/نقطة","150 pts/ نقطة",null,null,null,0]
[null,null,null,null,null,null,null,null,null,null,null,null,null,null,null,null,null,null,null,null,null,null,null,null,null,null,null,null,null,null,null,null,null,null,null,null,null,null,null,null,null,null,null,null,0]
[null,null,null,"رقم",null,"إسم المحاضرة",null,null,null,null,null,null,null,null,"العنوان الإلكتروني",null,null,null,null,null,"التعريف بالشركاء",null,null,null,null,null,null,null,"الفترة (من - إلي)",null,null,"المكان",null,"# الشركاء المنظمون",null,"حصة التعاون",null,null,null,"القيمة",null,null,null,null,0]
[null,null,null,"N°",null,"Nom de la Conférence",null,null,null,null,null,null,null,null,"URL",null,null,null,null,null,"Identifier les partenaires",null,null,null,null,null,null,null,"Période (Début_Fin)",null,null,"Lieu ",null,"# Partenaire",null,"Part de collab.",null,null,null,"Valeur",null,null,null,null,0]
[null,null,null,null,null,null,null,null,null,null,null,null,null,null,null,null,null,null,null,null,null,null,null,null,null,null,null,null,null,null,null,null,null,null,null,null,null,null,null,null,null,null,null,null,0]
[null,null,null,1,"  ",null,null,null,null,null,null,null,null,"  ",null,null,null,null,null,"  ",null,null,null,null,null,null,null,"  ",null,null,"  ",null,"   ",null,null,{"$f":"IF(AH86=\"\",\"\",100%/AH86)","v":""},null,null,null,{"$f":"IF(AJ86=\"\",\"\",AJ86*120)","v":""},null,null,null,null,""]
[null,null,null,2,"  ",null,null,null,null,null,null,null,null,"  ",null,null,null,null,null,"  ",null,null,null,null,null,null,null,"  ",null,null,"  ",null,"   ",null,null,{"$f":"IF(AH87=\"\",\"\",100%/AH87)","v":""},null,null,null,{"$f":"IF(AJ87=\"\",\"\",AJ87*120)","v":""},null,null,null,null,""]
[null,null,null,3,"  ",null,null,null,null,null,null,null,null,"  ",null,null,null,null,null,"  ",null,null,null,null,null,null,null,"  ",null,null,"  ",null,"   ",null,null,{"$f":"IF(AH88=\"\",\"\",100%/AH88)","v":""},null,null,null,"",null,null,null,null,"",null,null,null,null,null,null,null,null,null,null,null,1]
[null,null,null,null,null,null,null,null,null,null,null,null,null,null,null,null,null,null,null,null,null,null,null,null,null,null,null,null,null,null,null,null,null,null,null,null,null,null,null,null,null,null,null,null,0]
[null,null,"Conférence internationale avec actes dans le WOS",null,null,null,null,null,null,null,null,null,null,null,null,null,null,null,"C+",null,"محاضرة دولية مع الأعمال المنشورة ضمن WOS",null,null,null,null,null,null,null,null,null,null,null,null,null,null,null,null,null,null,"100 pts/نقطة","100 pts/ نقطة",null,null,null,0]
[null,null,null,null,null,null,null,null,null,null,null,null,null,null,null,null,null,null,null,null,null,null,null,null,null,null,null,null,null,null,null,null,null,null,null,null,null,null,null,null,null,null,null,null,0]
[null,null,null,"رقم",null,"إسم المحاضرة",null,null,null,null,null,null,null,null,"العنوان الإلكتروني",null,null,null,null,null,"التعريف بالشركاء",null,null,null,null,null,null,null,"الفترة (من - إلي)",null,null,"المكان",null,"# الشركاء المنظمون",null,"حصة التعاون",null,null,null,"القيمة",null,null,null,null,0]
[null,null,null,"N°",null,"Nom de la Conférence",null,null,null,null,null,null,null,null,"URL",null,null,null,null,null,"Identifier les partenaires",null,null,null,null,null,null,null,"Période (Début_Fin)",null,null,"Lieu ",null,"# Partenaire",null,"Part de collab.",null,null,null,"Valeur",null,null,null,null,0]
[null,null,null,null,null,null,null,null,null,null,null,null,null,null,null,null,null,null,null,null,null,null,null,null,null,null,null,null,null,null,null,null,null,null,null,null,null,null,null,null,null,null,null,null,0]
[null,null,null,1,"  ",null,null,null,null,null,null,null,null,"  ",null,null,null,null,null,"  ",null,null,null,null,null,null,null,"  ",null,null,"  ",null,"   ",null,null,{"$f":"IF(AH95=\"\",\"\",100%/AH95)","v":""},null,null,null,{"$f":"IF(AJ95=\"\",\"\",AJ95*100)","v":""},null,null,null,null,""]
[null,null,null,2,"  ",null,null,null,null,null,null,null,null,"  ",null,null,null,null,null,"  ",null,null,null,null,null,null,null,"  ",null,null,"  ",null,"   ",null,null,{"$f":"IF(AH96=\"\",\"\",100%/AH96)","v":""},null,null,null,{"$f":"IF(AJ96=\"\",\"\",AJ96*100)","v":""},null,null,null,null,""]
[null,null,null,3,"  ",null,null,null,null,null,null,null,null,"  ",null,null,null,null,null,"  ",null,null,null,null,null,null,null,"  ",null,null,"  ",null,"   ",null,null,{"$f":"IF(AH97=\"\",\"\",100%/AH97)","v":""},null,null,null,"",null,null,null,null,"",null,null,null,null,null,null,null,null,null,null,null,null,1]
[null,null,null,null,null,null,null,null,null,null,null,null,null,null,null,null,null,null,null,null,null,null,null,null,null,null,null,null,null,null,null,null,null,null,null,null,null,null,null,null,null,null,null,null,0]
[null,null,"Conférence internationale avec actes",null,null,null,null,null,null,null,null,null,null,null,null,null,null,null,"C","محاضرة دولية مع الأعمال المنشورة",null,null,null,null,null,null,null,null,null,null,null,null,null,null,null,null,null,null,null,"60 pts/نقطة","60 pts/ نقطة",null,null,null,0]
[null,null,null,null,null,null,null,null,null,null,null,null,null,null,null,null,null,null,null,null,null,null,null,null,null,null,null,null,null,null,null,null,null,null,null,null,null,null,null,null,null,null,null,null,0]
[null,null,null,"رقم",null,"إسم المحاضرة",null,null,null,null,null,null,null,null,"العنوان الإلكتروني",null,null,null,null,null,"التعريف بالشركاء",null,null,null,null,null,null,null,"الفترة (من - إلي)",null,null,"المكان",null,"# الشركاء المنظمون",null,"حصة التعاون",null,null,null,"القيمة",null,null,null,null,0]
[null,null,null,"N°",null,"Nom de la Conférence",null,null,null,null,null,null,null,null,"URL",null,null,null,null,null,"Identifier les partenaires",null,null,null,null,null,null,null,"Période (Début_Fin)",null,null,"Lieu ",null,"# Partenaire",null,"Part de collab.",null,null,null,"Valeur",null,null,null,null,0]
[null,null,null,null,null,null,null,null,null,null,null,null,null,null,null,null,null,null,null,null,null,null,null,null,null,null,null,null,null,null,null,null,null,null,null,null,null,null,null,null,null,null,null,null,0]
[null,null,null,1,"  ",null,null,null,null,null,null,null,null,"  ",null,null,null,null,null,"  ",null,null,null,null,null,null,null,"  ",null,null,"  ",null,"   ",null,null,{"$f":"IF(AH104=\"\",\"\",100%/AH104)","v":""},null,null,null,{"$f":"IF(AJ104=\"\",\"\",AJ104*60)","v":""},null,null,null,null,""]
[null,null,null,2,"  ",null,null,null,null,null,null,null,null,"  ",null,null,null,null,null,"  ",null,null,null,null,null,null,null,"  ",null,null,"  ",null,"   ",null,null,{"$f":"IF(AH105=\"\",\"\",100%/AH105)","v":""},null,null,null,{"$f":"IF(AJ105=\"\",\"\",AJ105*60)","v":""},null,null,null,null,""]
[null,null,null,3,"  ",null,null,null,null,null,null,null,null,"  ",null,null,null,null,null,"  ",null,null,null,null,null,null,null,"  ",null,null,"  ",null,"   ",null,null,{"$f":"IF(AH106=\"\",\"\",100%/AH106)","v":""},null,null,null,"",null,null,null,null,"",null,null,null,null,null,null,null,null,null,null,null,null,null,1]
[null,null,null,null,null,null,null,null,null,null,null,null,null,null,null,null,null,null,null,null,null,null,null,null,null,null,null,null,null,null,null,null,null,null,null,null,null,null,null,null,null,null,null,null,0]
[null,null,"Conférence nationale avec actes",null,null,null,null,null,null,null,null,null,null,null,null,null,null,null,"D","محاضرة وطنية مع الأعمال المنشورة",null,null,null,null,null,null,null,null,null,null,null,null,null,null,null,null,null,null,null,"30 pts/نقطة","30 pts/ نقطة",null,null,null,0]
[null,null,null,null,null,null,null,null,null,null,null,null,null,null,null,null,null,null,null,null,null,null,null,null,null,null,null,null,null,null,null,null,null,null,null,null,null,null,null,null,null,null,null,null,0]
[null,null,null,"رقم",null,"إسم المحاضرة",null,null,null,null,null,null,null,null,"العنوان الإلكتروني",null,null,null,null,null,"التعريف بالشركاء",null,null,null,null,null,null,null,"الفترة (من - إلي)",null,null,"المكان",null,"# الشركاء المنظمون",null,"حصة التعاون",null,null,null,"القيمة",null,null,null,null,0]
[null,null,null,"N°",null,"Nom de la Conférence",null,null,null,null,null,null,null,null,"URL",null,null,null,null,null,"Identifier les partenaires",null,null,null,null,null,null,null,"Période (Début_Fin)",null,null,"Lieu ",null,"# Partenaire",null,"Part de collab.",null,null,null,"Valeur",null,null,null,null,0]
[null,null,null,null,null,null,null,null,null,null,null,null,null,null,null,null,null,null,null,null,null,null,null,null,null,null,null,null,null,null,null,null,null,null,null,null,null,null,null,null,null,null,null,null,0]
[null,null,null,1,"  ",null,null,null,null,null,null,null,null,"  ",null,null,null,null,null,"  ",null,null,null,null,null,null,null,"  ",null,null,"  ",null,"   ",null,null,{"$f":"IF(AH113=\"\",\"\",100%/AH113)","v":""},null,null,null,{"$f":"IF(AJ113=\"\",\"\",AJ113*30)","v":""},null,null,null,null,""]
[null,null,null,2,"  ",null,null,null,null,null,null,null,null,"  ",null,null,null,null,null,"  ",null,null,null,null,null,null,null,"  ",null,null,"  ",null,"   ",null,null,{"$f":"IF(AH114=\"\",\"\",100%/AH114)","v":""},null,null,null,{"$f":"IF(AJ114=\"\",\"\",AJ114*30)","v":""},null,null,null,null,""]
[null,null,null,3,"  ",null,null,null,null,null,null,null,null,"  ",null,null,null,null,null,"  ",null,null,null,null,null,null,null,"  ",null,null,"  ",null,"   ",null,null,{"$f":"IF(AH115=\"\",\"\",100%/AH115)","v":""},null,null,null,"",null,null,null,null,{"$f":"IF(OR(AN115=\"Valeur\",AN115=\"القيمة\"),0,IF(ISERROR(SEARCH(\"/\",AN115)),AN115,0))","v":""},null,null,null,null,null,null,null,null,null,null,null,null,null,null,1]
[null,null,null,null,null,null,null,null,null,null,null,null,null,null,null,null,null,null,null,null,null,null,null,null,null,null,null,null,null,null,null,null,null,null,null,null,null,null,null,null,null,null,null,null,0]
[null,null,"Séminaires périodiques",null,null,null,null,null,null,null,null,null,null,null,null,null,null,null,"E","الندوات الدورية",null,null,null,null,null,null,null,null,null,null,null,null,null,null,null,null,null,null,null," (30 - 4) pts/نقطة","30 pts/ نقطة",null,null,null,0]
[null,null,null,null,null,null,null,null,null,null,null,null,null,null,null,null,null,null,null,null,null,null,null,null,null,null,null,null,null,null,null,null,null,null,null,null,null,null,null,null,null,null,null,null,0]
[null,null,null,"رقم",null,"إسم الندوة",null,null,null,null,null,null,null,"  ","العنوان الإلكتروني",null,null,null,null,null,"التعريف بالشركاء",null,null,null,null,null,null,null,"الفترة (من - إلي)",null,null,"التردد ",null,"# الشركاء المنظمون",null,"حصة التعاون",null,null,null,"القيمة",null,null,null,null,0]
[null,null,null,"N°",null,"Nom du Séminaire",null,null,null,null,null,null,null,"  ","URL",null,null,null,null,null,"Identifier les partenaires",null,null,null,null,null,null,null,"Période (Début_Fin)",null,null,"Fréquences",null,"# Partenaire",null,"Part de collab.",null,null,null,"Valeur",null,null,null,null,0]
[null,null,null,null,null,null,null,null,null,null,null,null,null,"  ",null,null,null,null,null,null,null,null,null,null,null,null,null,null,null,null,null,null,null,null,null,null,null,null,null,null,null,null,null,null,0]
[null,null,null,1,"   ",null,null,null,null,null,null,null,null,"   ",null,null,null,null,null," ",null,null,null,null,null,null,null," ",null,null," ",null,"   ",null," ",{"$f":"IF(AH122=\"\",\"\",100%/AH122)","v":""},null,null,null,{"$f":"IF(OR(AJ122=\"\",AF122=\"\"),\"\",IF(AF122=\"Hebdomadaire\",AJ122*30,IF(AF122=\"Bimensuelle\",AJ122*15,IF(AF122=\"Mensuelle\",AJ122*8,AJ122*4))))","v":""},null,null,null,null,""]
[null,null,null,2,"   ",null,null,null,null,null,null,null,null,"   ",null,null,null,null,null," ",null,null,null,null,null,null,null," ",null,null," ",null,"   ",null,null,{"$f":"IF(AH123=\"\",\"\",100%/AH123)","v":""},null,null,null,{"$f":"IF(OR(AJ123=\"\",AF123=\"\"),\"\",IF(AF123=\"Hebdomadaire\",AJ123*30,IF(AF123=\"Bimensuelle\",AJ123*15,IF(AF123=\"Mensuelle\",AJ123*8,AJ123*4))))","v":""},null,null,null,null,""]
[null,null,null,3,"   ",null,null,null,null,null,null,null,null,"   ",null,null,null,null,null," ",null,null,null,null,null,null,null," ",null,null," ",null,"   ",null,null,{"$f":"IF(AH124=\"\",\"\",100%/AH124)","v":""},null,null,null,"",null,null,null,null,"",null,null,null,null,null,null,null,null,null,null,null,null,null,null,null,1]
[null,null,null,null,null,null,null,null,null,null,null,null,null,null,null,null,null,null,null,null,null,null,null,null,null,null,null,null,null,null,null,null,null,null,null,null,null,null,null,null,null,null,null,null,0]
[null,null,"b) Organisation de périples scientifiques, de salons ou autres activités pour la diffusion\n     de la science et de la technologie et la diffusion de la culture scientifique",null,null,null,null,null,null,null,null,null,null,null,null,null,null,null,null,null,"ب) تنظيم قوافل علمية ومعارض ونشاطات أخرى بهدف نشر العلوم والتكنولوجيا و نشر الثقافة العلمية",null,null,null,null,null,null,null,null,null,null,null,null,null,null,null,null,null,null,null,null,null,null,null,0]
[null,null,null,null,null,null,null,null,null,null,null,null,null,null,null,null,null,null,null,null,null,null,null,null,null,null,null,null,null,null,null,null,null,null,null,null,null,null,null,null,null,null,null,null,0]
[null,null,"Exceptionnel : organisation de périples scientifiques avec des personnalités de premier rang mondial",null,null,null,null,null,null,null,null,null,null,null,null,null,null,null,"Exp",null,"استثنائي : تنظيم قوافل علمية مع شخصيات عالمية بارزة",null,null,null,null,null,null,null,null,null,null,null,null,null,null,null,null,null,null,"500 pts/نقطة","500 pts/ نقطة",null,null,null,0]
[null,null,null,null,null,null,null,null,null,null,null,null,null,null,null,null,null,null,null,null,null,null,null,null,null,null,null,null,null,null,null,null,null,null,null,null,null,null,null,null,null,null,null,null,0]
[null,null,null,"رقم",null,"المسسؤول على مستوى المخبر",null,null,null,null,"إسم الحدث",null,null,null,"وصف القافلة",null,null,null,null,null,"الشركاء",null,"# الشركاء",null,"إسم الباحث أو الباحثين المشاركين",null,null,null,null,null,null,"المكان",null,"فترة القافلة  (من - إلي)",null,null,null,null,null,"القيمة",null,null,null,null,0]
[null,null,null,"N°",null,"Responsable au niveau du laboratoire",null,null,null,null,"Nom de l'événement",null,null,null,"Description du périple",null,null,null,null,null,"Les partenaires",null,"# Partenaires",null,"Nom du ou des chercheur(s) impliqués",null,null,null,null,null,null,"Lieu ",null,"Période du périple (Début_Fin)",null,null,null,null,null,"Valeur",null,null,null,null,0]
[null,null,null,null,null,null,null,null,null,null,null,null,null,null,null,null,null,null,null,null,null,null,null,null,null,null,null,null,null,null,null,null,null,null,null,null,null,null,null,null,null,null,null,null,0]
[null,null,null,1,"  ",null,null,null,null,"  ",null,null,null,"    ",null,null,null,null,null," ",null," ",null,null,null,null,null,null,null,null," ",null," ",null,null,null,null,null," ",{"$f":"IF(AND(F133<>\"\",K133<>\"\",O133<>\"\"),IF(W133=\"\",500,500/W133),\"\")","v":""},null,null,null,null,""]
[null,null,null,2,"  ",null,null,null,null,"  ",null,null,null,"    ",null,null,null,null,null," ",null," ",null,null,null,null,null,null,null,null," ",null," ",null,null,null,null,null," ",{"$f":"IF(AND(F134<>\"\",K134<>\"\",O134<>\"\"),IF(W134=\"\",500,500/W134),\"\")","v":""},null,null,null,null,""]
[null,null,null,3,"  ",null,null,null,null,"  ",null,null,null,"    ",null,null,null,null,null," ",null," ",null,null,null,null,null,null,null,null," ",null," ",null,null,null,null,null," ","",null,null,null,null,"",null,null,null,null,null,null,null,null,null,null,null,null,null,null,null,null,1]
[null,null,null,null,null,null,null,null,null,null,null,null,null,null,null,null,null,null,null,null,null,null,null,null,null,null,null,null,null,null,null,null,null,null,null,null,null,null,null,null,null,null,null,null,0]
[null,null,"Organisation de cycles de conférences grand public, de salons ou journées d’innovation ou de vulgarisation",null,null,null,null,null,null,null,null,null,null,null,null,null,null,null,"A",null,"تنظيم سلسلة محاضرات للجمهور العريض، معارض أو أيام الابتكار أو التعميم",null,null,null,null,null,null,null,null,null,null,null,null,null,null,null,null,null,null,"200 pts/نقطة","200 pts/ نقطة",null,null,null,0]
[null,null,null,null,null,null,null,null,null,null,null,null,null,null,null,null,null,null,null,null,null,null,null,null,null,null,null,null,null,null,null,null,null,null,null,null,null,null,null,null,null,null,null,null,0]
[null,null,null,"رقم",null,"المسسؤول على مستوى المخبر",null,null,null,null,"إسم الحدث",null,null,null,"وصف القافلة",null,null,null,null,null,"الشركاء",null,"# الشركاء",null,"إسم الباحث أو الباحثين المشاركين",null,null,null,null,null,null,"المكان",null,"فترة القافلة  (من - إلي)",null,null,null,null,null,"القيمة",null,null,null,null,0]
[null,null,null,"N°",null,"Responsable au niveau du laboratoire",null,null,null,null,"Nom de l'événement",null,null,null,"Description du périple",null,null,null,null,null,"Les partenaires",null,"# Partenaires",null,"Nom du ou des chercheur(s) impliqués",null,null,null,null,null,null,"Lieu ",null,"Période du périple (Début_Fin)",null,null,null,null,null,"Valeur",null,null,null,null,0]
[null,null,null,null,null,null,null,null,null,null,null,null,null,null,null,null,null,null,null,null,null,null,null,null,null,null,null,null,null,null,null,null,null,null,null,null,null,null,null,null,null,null,null,null,0]
[null,null,null,1,"  ",null,null,null,null,"  ",null,null,null,"    ",null,null,null,null,null," ",null," ",null,null,null,null,null,null,null,null," ",null," ",null,null,null,null,null,null,{"$f":"IF(AND(F142<>\"\",K142<>\"\",O142<>\"\"),IF(W142=\"\",200,200/W142),\"\")","v":""},null,null,null,null,""]
[null,null,null,2,"  ",null,null,null,null,"  ",null,null,null,"    ",null,null,null,null,null," ",null," ",null,null,null,null,null,null,null,null," ",null," ",null,null,null,null,null,null,"",null,null,null,null,""]
[null,null,null,3,"  ",null,null,null,null,"  ",null,null,null,"    ",null,null,null,null,null," ",null," ",null,null,null,null,null,null,null,null," ",null," ",null,null,null,null,null,null,"",null,null,null,null,"",null,null,null,null,null,null,null,null,null,null,null,null,null,null,null,null,null,1]
[null,null,null,null,null,null,null,null,null,null,null,null,null,null,null,null,null,null,null,null,null,null,null,null,null,null,null,null,null,null,null,null,null,null,null,null,null,null,null,null,null,null,null,null,0]
[null,null,"c) Edition de revue",null,null,null,null,null,null,null,null,null,null,null,null,null,null,null,null,null,null,null,null,null,null,null,null,null,null,"ج) نشر المجلة",null,null,null,null,null,null,null,null,null,null,null,null,null,null,0]
[null,null,null,null,null,null,null,null,null,null,null,null,null,null,null,null,null,null,null,null,null,null,null,null,null,null,null,null,null,null,null,null,null,null,null,null,null,null,null,null,null,null,null,null,0]
[null,null,"Edition d’une revue WOS",null,null,null,null,null,null,null,null,null,null,null,null,null,null,null,"A",null,"نشر مجلة من صنف WOS  ",null,null,null,null,null,null,null,null,null,null,null,null,null,null,null,null,null,null,"300 pts/نقطة","100 pts/ نقطة",null,null,null,0]
[null,null,null,null,null,null,null,null,null,null,null,null,null,null,null,null,null,null,null,null,null,null,null,null,null,null,null,null,null,null,null,null,null,null,null,null,null,null,null,null,null,null,null,null,0]
[null,null,null,"رقم",null,"ر دمك",null,null,"عنوان المجلة",null,null,null,null,null,null,null,null,null,"أعضاء هيئة التحرير",null,null,null,null,null,"السنة",null,null,null,"العنوان الإلكتروني",null,null,null,null,"الناشر التجاري",null,null,null,null,null,"القيمة",null,null,null,null,0]
[null,null,null,"N°",null,"ISSN / e-ISSN",null,null,"Titre de la revue",null,null,null,null,null,null,null,null,null,"Editorial board membre de l'équipe",null,null,null,null,null,"Année",null,null,null,"URL",null,null,null,null,"Editeur commercial",null,null,null,null,null,"Valeur",null,null,null,null,0]
[null,null,null,null,null,null,null,null,null,null,null,null,null,null,null,null,null,null,null,null,null,null,null,null,null,null,null,null,null,null,null,null,null,null,null,null,null,null,null,null,null,null,null,null,0]
[null,null,null,1,"  ",null,null,"  ",null,null,null,null,null,null,null,null,null,"  ",null,null,null,null,null,"  ",null,null,null,"  ",null,null,null,null,"  ",null,null,null,null,null,"  ",{"$f":"IF(AND(OR(F153<>\"\",G153<>\"\")=TRUE,I153<>\"\",S153<>\"\"),300,\"\")","v":""},null,null,null,null,""]
[null,null,null,2,"  ",null,null,"  ",null,null,null,null,null,null,null,null,null,"  ",null,null,null,null,null,"  ",null,null,null,"  ",null,null,null,null,"  ",null,null,null,null,null,"  ",{"$f":"IF(AND(OR(F154<>\"\",G154<>\"\")=TRUE,I154<>\"\",S154<>\"\"),300,\"\")","v":""},null,null,null,null,""]
[null,null,null,3,"  ",null,null,"  ",null,null,null,null,null,null,null,null,null,"  ",null,null,null,null,null,"  ",null,null,null,"  ",null,null,null,null,"  ",null,null,null,null,null,"  ","",null,null,null,null,"",null,null,null,null,null,null,null,null,null,null,null,null,null,null,null,null,null,null,1]
[null,null,null,null,null,null,null,null,null,null,null,null,null,null,null,null,null,null,null,null,null,null,null,null,null,null,null,null,null,null,null,null,null,null,null,null,null,null,null,null,null,null,null,null,0]
[null,null,"Edition d’une revue de catégorie",null,null,null,null,null,null,null,null,null,null,null,null,null,null,null,"B",null,"نشر مجلة من صنف",null,null,null,null,null,null,null,null,null,null,null,null,null,null,null,null,null,null,"150 pts/نقطة","200 pts/ نقطة",null,null,null,0]
[null,null,null,null,null,null,null,null,null,null,null,null,null,null,null,null,null,null,null,null,null,null,null,null,null,null,null,null,null,null,null,null,null,null,null,null,null,null,null,null,null,null,null,null,0]
[null,null,null,"رقم",null,"ر دمك",null,null,"عنوان المجلة",null,null,null,null,null,null,null,null,null,"أعضاء هيئة التحرير",null,null,null,null,null,"السنة",null,null,null,"العنوان الإلكتروني",null,null,null,null,"الناشر التجاري",null,null,null,null,null,"القيمة",null,null,null,null,0]
[null,null,null,"N°",null,"ISSN / e-ISSN",null,null,"Titre de la revue",null,null,null,null,null,null,null,null,null,"Editorial board membre de l'équipe",null,null,null,null,null,"Année",null,null,null,"URL",null,null,null,null,"Editeur commercial",null,null,null,null,null,"Valeur",null,null,null,null,0]
[null,null,null,null,null,null,null,null,null,null,null,null,null,null,null,null,null,null,null,null,null,null,null,null,null,null,null,null,null,null,null,null,null,null,null,null,null,null,null,null,null,null,null,null,0]
[null,null,null,1,"  ",null,null,"  ",null,null,null,null,null,null,null,null,null,"  ",null,null,null,null,null,"  ",null,null,null,"  ",null,null,null,null,"  ",null,null,null,null,null,null,{"$f":"IF(AND(OR(F162<>\"\",G162<>\"\")=TRUE,I162<>\"\",S162<>\"\"),150,\"\")","v":""},null,null,null,null,""]
[null,null,null,2,"  ",null,null,"  ",null,null,null,null,null,null,null,null,null,"  ",null,null,null,null,null,"  ",null,null,null,"  ",null,null,null,null,"  ",null,null,null,null,null,null,{"$f":"IF(AND(OR(F163<>\"\",G163<>\"\")=TRUE,I163<>\"\",S163<>\"\"),150,\"\")","v":""},null,null,null,null,""]
[null,null,null,3,"  ",null,null,"  ",null,null,null,null,null,null,null,null,null,"  ",null,null,null,null,null,"  ",null,null,null,"  ",null,null,null,null,"  ",null,null,null,null,null,null,"",null,null,null,null,"",null,null,null,null,null,null,null,null,null,null,null,null,null,null,null,null,null,null,null,1]
[null,null,null,null,null,null,null,null,null,null,null,null,null,null,null,null,null,null,null,null,null,null,null,null,null,null,null,null,null,null,null,null,null,null,null,null,null,null,null,null,null,null,null,null,0]
[null,null,"Edition d’une revue de catégorie",null,null,null,null,null,null,null,null,null,null,null,null,null,null,null,"C",null,"مجلة من صنف  نشر",null,null,null,null,null,null,null,null,null,null,null,null,null,null,null,null,null,null,"80 pts/نقطة","80 pts/ نقطة",null,null,null,0]
[null,null,null,null,null,null,null,null,null,null,null,null,null,null,null,null,null,null,null,null,null,null,null,null,null,null,null,null,null,null,null,null,null,null,null,null,null,null,null,null,null,null,null,null,0]
[null,null,null,"رقم",null,"ر دمك",null,null,"عنوان المجلة",null,null,null,null,null,null,null,null,null,"أعضاء هيئة التحرير",null,null,null,null,null,"السنة",null,null,null,"العنوان الإلكتروني",null,null,null,null,"الناشر التجاري",null,null,null,null,null,"القيمة",null,null,null,null,0]
[null,null,null,"N°",null,"ISSN / e-ISSN",null,null,"Titre de la revue",null,null,null,null,null,null,null,null,null,"Editorial board membre de l'équipe",null,null,null,null,null,"Année",null,null,null,"URL",null,null,null,null,"Editeur commercial",null,null,null,null,null,"Valeur",null,null,null,null,0]
[null,null,null,null,null,null,null,null,null,null,null,null,null,null,null,null,null,null,null,null,null,null,null,null,null,null,null,null,null,null,null,null,null,null,null,null,null,null,null,null,null,null,null,null,0]
[null,null,null,1,"  ",null,null,"  ",null,null,null,null,null,null,null,null,null,"  ",null,null,null,null,null,"  ",null,null,null,"  ",null,null,null,null,"  ",null,null,null,null,null,null,{"$f":"IF(AND(OR(F171<>\"\",G171<>\"\")=TRUE,I171<>\"\",S171<>\"\"),80,\"\")","v":""},null,null,null,null,""]
[null,null,null,2,"  ",null,null,"  ",null,null,null,null,null,null,null,null,null,"  ",null,null,null,null,null,"  ",null,null,null,"  ",null,null,null,null,"  ",null,null,null,null,null,null,{"$f":"IF(AND(OR(F172<>\"\",G172<>\"\")=TRUE,I172<>\"\",S172<>\"\"),80,\"\")","v":""},null,null,null,null,""]
[null,null,null,3,"  ",null,null,"  ",null,null,null,null,null,null,null,null,null,"  ",null,null,null,null,null,"  ",null,null,null,"  ",null,null,null,null,"  ",null,null,null,null,null,null,"",null,null,null,null,"",null,null,null,null,null,null,null,null,null,null,null,null,null,null,null,null,null,null,null,null,1]
[null,null,null,null,null,null,null,null,null,null,null,null,null,null,null,null,null,null,null,null,null,null,null,null,null,null,null,null,null,null,null,null,null,null,null,null,null,null,null,null,null,null,null,null,0]
[null,null,"2. Formations",null,null,null,null,null,null,null,null,null,null,null,null,null,null,null,null,null,null,null,null,null,null,null,null,null,null,"2. التكوين",null,null,null,null,null,null,null,null,null,null,null,null,null,null,0]
[null,null,null,null,null,null,null,null,null,null,null,null,null,null,null,null,null,null,null,null,null,null,null,null,null,null,null,null,null,null,null,null,null,null,null,null,null,null,null,null,null,null,null,null,0]
[null,null,"Formations doctorales en cours de validité",null,null,null,null,null,null,null,null,null,null,null,null,null,null,null,null,"التكوين الساري في الدكتوراه",null,null,null,null,null,null,null,null,null,null,null,null,null,null,null,null,null,null,null,"150 pts/نقطة","200 pts/ نقطة",null,null,null,0]
[null,null,null,null,null,null,null,null,null,null,null,null,null,null,null,null,null,null,null,null,null,null,null,null,null,null,null,null,null,null,null,null,null,null,null,null,null,null,null,null,null,null,null,null,0]
[null,null,null,"رقم",null,"رقم الإعتماد",null,null,"اسم التكوين في الدكتوراه",null,null,null,null,null,null,null,null,null,null,null,null,null," # طلبة الدكتوراه المعتمدين",null,"السنة",null,null,null,"المسؤول",null,null,null,null,"الفترة (من - إلي)",null,null,null,null,null,"القيمة",null,null,null,null,{"$f":"IF(OR(AN179=\"Valeur\",AN179=\"القيمة\"),0,IF(ISERROR(SEARCH(\"/\",AN179)),AN179,0))","v":0}]
[null,null,null,"N°",null,"N° d'Agrement",null,null,"Intitulé de la formation doctorale",null,null,null,null,null,null,null,null,null,null,null,null,null,"# Doc. engagés",null,"Année",null,null,null,"Responsable",null,null,null,null,"Période (Début_Fin)",null,null,null,null,null,"Valeur",null,null,null,null,0]
[null,null,null,null,null,null,null,null,null,null,null,null,null,null,null,null,null,null,null,null,null,null,null,null,null,null,null,null,null,null,null,null,null,null,null,null,null,null,null,null,null,null,null,null,0]
[null,null,null,1,"  ",null,null," ",null,null,null,null,null,null,null,null,null,null,null,null,null," ",null," ",null,null,null," ",null,null,null,null," ",null,null,null,null,null," ",{"$f":"IF(AND(F182<>\"\",I182<>\"\"),150,\"\")","v":""},null,null,null,null,""]
[null,null,null,2,"  ",null,null," ",null,null,null,null,null,null,null,null,null,null,null,null,null," ",null," ",null,null,null," ",null,null,null,null," ",null,null,null,null,null," ",{"$f":"IF(AND(F183<>\"\",I183<>\"\"),150,\"\")","v":""},null,null,null,null,""]
[null,null,null,3,"  ",null,null," ",null,null,null,null,null,null,null,null,null,null,null,null,null," ",null," ",null,null,null," ",null,null,null,null," ",null,null,null,null,null," ","",null,null,null,null,"",null,null,null,null,null,null,null,null,null,null,null,null,null,null,null,null,null,null,null,null,null,1]
[null,null,null,null,null,null,null,null,null,null,null,null,null,null,null,null,null,null,null,null,null,null,null,null,null,null,null,null,null,null,null,null,null,null,null,null,null,null,null,null,null,null,null,null,0]
[null,null,"Formations doctorales en cotutelle en cours de validité",null,null,null,null,null,null,null,null,null,null,null,null,null,null,null,null,null,"التكوين الساري في الدكتوراه المشتركة",null,null,null,null,null,null,null,null,null,null,null,null,null,null,null,null,null,null,"150 pts/نقطة","200 pts/ نقطة",null,null,null,0]
[null,null,null,null,null,null,null,null,null,null,null,null,null,null,null,null,null,null,null,null,null,null,null,null,null,null,null,null,null,null,null,null,null,null,null,null,null,null,null,null,null,null,null,null,0]
[null,null,null,"رقم",null,"رقم الإعتماد",null,null,"اسم التكوين في الدكتوراه المشتركة",null,null,null,null,null,null,null,null,null,null,null,null,null," # طلبة الدكتوراه المعتمدين",null,"السنة",null,null,null,"المسؤول",null,null,null,null,"الفترة (من - إلي)",null,null,null,null,null,"القيمة",null,null,null,null,0]
[null,null,null,"N°",null,"N° d'Agrement",null,null,"Intitulé de la formation doctorale en coutelle",null,null,null,null,null,null,null,null,null,null,null,null,null,"# Doc. engagés",null,"Année",null,null,null,"Responsable",null,null,null,null,"Période (Début_Fin)",null,null,null,null,null,"Valeur",null,null,null,null,0]
[null,null,null,null,null,null,null,null,null,null,null,null,null,null,null,null,null,null,null,null,null,null,null,null,null,null,null,null,null,null,null,null,null,null,null,null,null,null,null,null,null,null,null,null,0]
[null,null,null,1,"  ",null,null," ",null,null,null,null,null,null,null,null,null,null,null,null,null," ",null," ",null,null,null," ",null,null,null,null," ",null,null,null,null,null," ",{"$f":"IF(AND(F191<>\"\",I191<>\"\"),150,\"\")","v":""},null,null,null,null,""]
[null,null,null,2,"  ",null,null," ",null,null,null,null,null,null,null,null,null,null,null,null,null," ",null," ",null,null,null," ",null,null,null,null," ",null,null,null,null,null," ",{"$f":"IF(AND(F192<>\"\",I192<>\"\"),150,\"\")","v":""},null,null,null,null,""]
[null,null,null,3,"  ",null,null," ",null,null,null,null,null,null,null,null,null,null,null,null,null," ",null," ",null,null,null," ",null,null,null,null," ",null,null,null,null,null," ","",null,null,null,null,"",null,null,null,null,null,null,null,null,null,null,null,null,null,null,null,null,null,null,null,null,null,null,1]
[null,null,null,null,null,null,null,null,null,null,null,null,null,null,null,null,null,null,null,null,null,null,null,null,null,null,null,null,null,null,null,null,null,null,null,null,null,null,null,null,null,null,null,null,0]
[null,null,"Formations de Master  international en cours de validité",null,null,null,null,null,null,null,null,null,null,null,null,null,null,null,null,null,"التكوين الساري في الماستر الدولي ",null,null,null,null,null,null,null,null,null,null,null,null,null,null,null,null,null,null,"120 pts/نقطة","200 pts/ نقطة",null,null,null,0]
[null,null,null,null,null,null,null,null,null,null,null,null,null,null,null,null,null,null,null,null,null,null,null,null,null,null,null,null,null,null,null,null,null,null,null,null,null,null,null,null,null,null,null,null,0]
[null,null,null,"رقم",null,"رقم الإعتماد",null,null,"اسم الماستر الدولي ",null,null,null,null,null,null,null,null,null,null,null,null,null," # طلبة الدكتوراه المعتمدين",null,"السنة",null,null,null,"المسؤول",null,null,null,null,"الفترة (من - إلي)",null,null,null,null,null,"القيمة",null,null,null,null,0]
[null,null,null,"N°",null,"N° d'Agrement",null,null,"Intitulé du Master international",null,null,null,null,null,null,null,null,null,null,null,null,null,"# Doc. engagés",null,"Année",null,null,null,"Responsable",null,null,null,null,"Période (Début_Fin)",null,null,null,null,null,"Valeur",null,null,null,null,0]
[null,null,null,null,null,null,null,null,null,null,null,null,null,null,null,null,null,null,null,null,null,null,null,null,null,null,null,null,null,null,null,null,null,null,null,null,null,null,null,null,null,null,null,null,0]
[null,null,null,1,"  ",null,null," ",null,null,null,null,null,null,null,null,null,null,null,null,null," ",null," ",null,null,null," ",null,null,null,null," ",null,null,null,null,null," ",{"$f":"IF(AND(F200<>\"\",I200<>\"\"),120,\"\")","v":""},null,null,null,null,""]
[null,null,null,2,"  ",null,null," ",null,null,null,null,null,null,null,null,null,null,null,null,null," ",null," ",null,null,null," ",null,null,null,null," ",null,null,null,null,null," ",{"$f":"IF(AND(F201<>\"\",I201<>\"\"),120,\"\")","v":""},null,null,null,null,""]
[null,null,null,3,"  ",null,null," ",null,null,null,null,null,null,null,null,null,null,null,null,null," ",null," ",null,null,null," ",null,null,null,null," ",null,null,null,null,null," ","",null,null,null,null,"",null,null,null,null,null,null,null,null,null,null,null,null,null,null,null,null,null,null,null,null,null,null,null,1]
[null,null,null,null,null,null,null,null,null,null,null,null,null,null,null,null,null,null,null,null,null,null,null,null,null,null,null,null,null,null,null,null,null,null,null,null,null,null,null,null,null,null,null,null,0]
[null,null,"Formations de Master national en cours de validité",null,null,null,null,null,null,null,null,null,null,null,null,null,null,null,null,null,"التكوين الساري في الماستر الوطنى",null,null,null,null,null,null,null,null,null,null,null,null,null,null,null,null,null,null,"120 pts/نقطة","200 pts/ نقطة",null,null,null,0]
[null,null,null,null,null,null,null,null,null,null,null,null,null,null,null,null,null,null,null,null,null,null,null,null,null,null,null,null,null,null,null,null,null,null,null,null,null,null,null,null,null,null,null,null,0]
[null,null,null,"رقم",null,"رقم الإعتماد",null,null,"اسم الماستر الوطنى",null,null,null,null,null,null,null,null,null,null,null,null,null," # طلبة الدكتوراه المعتمدين",null,"السنة",null,null,null,"المسؤول",null,null,null,null,"الفترة (من - إلي)",null,null,null,null,null,"القيمة",null,null,null,null,0]
[null,null,null,"N°",null,"N° d'Agrement",null,null,"Intitulé du Master national",null,null,null,null,null,null,null,null,null,null,null,null,null,"# Doc. engagés",null,"Année",null,null,null,"Responsable",null,null,null,null,"Période (Début_Fin)",null,null,null,null,null,"Valeur",null,null,null,null,0]
[null,null,null,null,null,null,null,null,null,null,null,null,null,null,null,null,null,null,null,null,null,null,null,null,null,null,null,null,null,null,null,null,null,null,null,null,null,null,null,null,null,null,null,null,0]
[null,null,null,1,"  ",null,null," ",null,null,null,null,null,null,null,null,null,null,null,null,null," ",null," ",null,null,null," ",null,null,null,null," ",null,null,null,null,null," ",{"$f":"IF(AND(F209<>\"\",I209<>\"\"),120,\"\")","v":""},null,null,null,null,""]
[null,null,null,2,"  ",null,null," ",null,null,null,null,null,null,null,null,null,null,null,null,null," ",null," ",null,null,null," ",null,null,null,null," ",null,null,null,null,null," ",{"$f":"IF(AND(F210<>\"\",I210<>\"\"),120,\"\")","v":""},null,null,null,null,""]
[null,null,null,3,"  ",null,null," ",null,null,null,null,null,null,null,null,null,null,null,null,null," ",null," ",null,null,null," ",null,null,null,null," ",null,null,null,null,null," ","",null,null,null,null,"",null,null,null,null,null,null,null,null,null,null,null,null,null,null,null,null,null,null,null,null,null,null,null,null,1]
[null,null,null,null,null,null,null,null,null,null,null,null,null,null,null,null,null,null,null,null,null,null,null,null,null,null,null,null,null,null,null,null,null,null,null,null,null,null,null,null,null,null,null,null,0]
[null,null,"3. Collaborations",null,null,null,null,null,null,null,null,null,null,null,null,null,null,null,null,null,null,null,null,null,null,null,null,null,null,"3. التعاون",null,null,null,null,null,null,null,null,null,null,null,null,null,null,0]
[null,null,null,null,null,null,null,null,null,null,null,null,null,null,null,null,null,null,null,null,null,null,null,null,null,null,null,null,null,null,null,null,null,null,null,null,null,null,null,null,null,null,null,null,0]
[null,null,"Collaborations nationale et internationale avec d’autres entités de recherche",null,null,null,null,null,null,null,null,null,null,null,null,null,null,null,null,null,"التعاون مع كيانات البحث الأخرى على المستوى الوطني و الدولي",null,null,null,null,null,null,null,null,null,null,null,null,null,null,null,null,null,null,"150 pts/نقطة","100 pts/ نقطة",null,null,null,0]
[null,null,null,null,null,null,null,null,null,null,null,null,null,null,null,null,null,null,null,null,null,null,null,null,null,null,null,null,null,null,null,null,null,null,null,null,null,null,null,null,null,null,null,null,0]
[null,null,null,"رقم",null,"إسم كيان البحث ",null,null,null,null," وصف وجيز",null,null,null,null,null,null,null,null,null,null,null,null,null,"السنة",null,null,null,"أبعاد التعاون",null,null,"نقطة اتصال المخبر",null,null,null,"نوع التعاون",null,null,null,"القيمة",null,null,null,null,0]
[null,null,null,"N°",null,"Nom de l’entité de recherche ",null,null,null,null,"Description succinte",null,null,null,null,null,null,null,null,null,null,null,null,null,"Année",null,null,null,"Dimensions de la collab.",null,null,"Point de contact du labo",null,null,null,"Type de collab.",null,null,null,"Valeur",null,null,null,null,0]
[null,null,null,null,null,null,null,null,null,null,null,null,null,null,null,null,null,null,null,null,null,null,null,null,null,null,null,null,null,null,null,null,null,null,null,null,null,null,null,null,null,null,null,null,0]
[null,null,null,1,"   ",null,null,null,null,"  ",null,null,null,null,null,null,null,null,null,null,null,null,null," ",null,null,null," ",null,null," ",null,null,null," ",null,null,null," ",{"$f":"IF(OR(AC220=\"\",AJ220=\"\"),\"\",IF(AJ220=\"Socio-économique\",1.2*IF(AC220=\"Interuniversitaire\",0.4*150,IF(AC220=\"Sectorielle\",150*0.5,IF(AC220=\"InterSectorielle bilatérale\",150*0.7,IF(AC220=\"InterSectorielle multilatérale\",150*0.8,IF(AC220=\"Internationale bilatérale\",150*0.9,150))))),IF(AC220=\"Interuniversitaire\",0.4*150,IF(AC220=\"Sectorielle\",150*0.5,IF(AC220=\"InterSectorielle bilatérale\",150*0.7,IF(AC220=\"InterSectorielle multilatérale\",150*0.8,IF(AC220=\"Internationale bilatérale\",150*0.9,150)))))))","v":""},null,null,null,null,""]
[null,null,null,2,"   ",null,null,null,null,"  ",null,null,null,null,null,null,null,null,null,null,null,null,null," ",null,null,null," ",null,null," ",null,null,null," ",null,null,null," ",{"$f":"IF(OR(AC221=\"\",AJ221=\"\"),\"\",IF(AJ221=\"Socio-économique\",1.2*IF(AC221=\"Interuniversitaire\",0.4*150,IF(AC221=\"Sectorielle\",150*0.5,IF(AC221=\"InterSectorielle bilatérale\",150*0.7,IF(AC221=\"InterSectorielle multilatérale\",150*0.8,IF(AC221=\"Internationale bilatérale\",150*0.9,150))))),IF(AC221=\"Interuniversitaire\",0.4*150,IF(AC221=\"Sectorielle\",150*0.5,IF(AC221=\"InterSectorielle bilatérale\",150*0.7,IF(AC221=\"InterSectorielle multilatérale\",150*0.8,IF(AC221=\"Internationale bilatérale\",150*0.9,150)))))))","v":""},null,null,null,null,""]
[null,null,null,3,"   ",null,null,null,null,"  ",null,null,null,null,null,null,null,null,null,null,null,null,null," ",null,null,null," ",null,null," ",null,null,null," ",null,null,null," ","",null,null,null,null,"",null,null,null,null,null,null,null,null,null,null,null,null,null,null,null,null,null,null,null,null,null,null,null,null,null,1]
[null,null,null,null,null,null,null,null,null,null,null,null,null,null,null,null,null,null,null,null,null,null,null,null,null,null,null,null,null,null,null,null,null,null,null,null,null,null,null,null,null,null,null,null,0]
[null,null,null,"Tableau récapitulatif ",null,null,null,null,null,null,null,null,null,null,null,null,null,null,null,null,null,null,null,null,null,null,null,null,null,null,null,null,null,"جدول المحصّلة"]
[]
[]
[]
[null,null,null,null,"Bilan d’activités du laboratoire",null,null,null,null,null,null,null,null,null,null,null,null,null,null,null,"Valeur / القيمة",null,"حصيلة نشاطات المخبر"]
[null,null,null,null,"1. Organisation des manifestations scientifiques",null,null,null,null,null,null,null,null,null,null,null,null,null,null,null,{"$f":"SUM(AS50:AS174)","v":0},null,"1.  تنظيم التظاهرات العلمية"]
[null,null,null,null,"2. Formations",null,null,null,null,null,null,null,null,null,null,null,null,null,null,null,{"$f":"SUM(AS182:AS212)","v":0},null,"2. التكوين"]
[null,null,null,null,"3. Collaborations",null,null,null,null,null,null,null,null,null,null,null,null,null,null,null,{"$f":"SUM(AS220:AS223)","v":0},null,"3. التعاون"]
[null,null,null,null,"Total",null,null,null,null,null,null,null,null,null,null,null,null,null,null,null,{"$f":"SUM(U229:V231)","v":0},null,"المجموع"]

{"sheet":"Classeur","index":2,"n_rows":11,"n_cols":10,"rows_kept":11,"cut":false,"hidden":true,"merged":[[0,8,0,9]]}
[null,"Code","Grands domaines (Français)","Grands domaines (Français)","Annee","Collaboration",null,null,"fréquence"]
[1,"GD1","Sciences de la nature et de la vie",{"$f":"CONCATENATE(B2,\": \",C2)","v":"GD1: Sciences de la nature et de la vie"},"2014","Interuniversitaire",0.4,null,"Hebdomadaire",30]
[2,"GD2","Sciences de la terre et de l’univers",{"$f":"CONCATENATE(B3,\": \",C3)","v":"GD2: Sciences de la terre et de l’univers"},"2015","Sectorielle",0.5,null,"Bimensuelle",15]
[3,"GD3","Sciences de la physique","GD3: Sciences de la physique","2016","InterSectorielle bilatérale",0.7,null,"Mensuelle",8]
[4,"GD4","Chimie","GD4: Chimie","2017","InterSectorielle multilatérale",0.8,null,"Autres",4]
[5,"GD5","Sciences mathématiques et leurs interactions","GD5: Sciences mathématiques et leurs interactions","2018","Internationale bilatérale",0.9]
[6,"GD6","Sciences pour l’ingénieur","GD6: Sciences pour l’ingénieur","2019","Internationale multilatérale",1,null,"Type_collaboration"]
[7,"GD7","Sciences sociales","GD7: Sciences sociales",null,null,null,null,"Académique",1]
[8,"GD8","Sciences humaines et arts","GD8: Sciences humaines et arts",null,null,null,null,"Socio-économique",1.2]
[9,"GD9","Multidisciplinaire","GD9: Multidisciplinaire"]
[10]